Workbook

Sheet Readme
A1: ISCWSA MWD Error Model Example Spreadsheet
A2: Well: | B2: ISCWSA#3 | C2: Model: | D2: MWD Revision 5
A3: Revision: 1.1 | B3: 14/11/2016 | C3: Andy McGregor | D3: andy.mcgregor@hptech.com
A4: Revision 5.01 | B4: 2017-02-28 | D4: Corrected depth azimuth wt. fns and added covariance graph
A5: Revision 5.02 | B5: 2018-03-23 | D5: Modified drdp, ABXY-TI2, XYM3 and XYM4 at 30m for surface tie-on change
A6: Revision 5.03 | B6: 2019-09-13 | D6: Added XCLL, XCLH, SAGE, XYM3L and XYM4L
A7: Revision 5.04 | B7: 2019-11-21 | D7: Verify Rev5 changes. Rename new sources
A8: Revision 5.10 | B8: 2022-09-16 | D8: Modify XCLA to include sine term.
A9: Revision 5.11 | B9: 2023-01-05 | D9: Update Model tab with correct details for XCLA
A11: This spreadsheet sets out as an example, the calculations for the ISCWSA Error model.
A12: Versions are available for the three ISCWSA test wells.
A13: The calculations have been verified on these wells against diagnostic data provided by Steve Grindrod at Copsegrove Developments
A14: Although an attempt has been made to ensure that the formulation is general, no assumptions should be made as to the validatity of the data on any other well paths or with any other error models
A15: Throughout, the NEV axis is aligned with true north
A17: The various worksheets are as follows:
A18: Readme | B18: This explanation sheet.
A20: Model | B20: The details of the error model, following the Copsegrove//OWSG format. Note that magnitudes on this page are converted as necessary and used throughout the remaining calculations. Equations on this page are not used, but have been explicitly typed into cells of the error source sheets.
A22: Wellpath | B22: Includes the wellpath at each survey station for evaluation. Also the basic reference data required for evaluation of the error model.
A24: Validation | B24: Compares covariance output from this sheet with the diagnostic data provided by Steve Grindrod at a selection of survey stations along the well path.
A26: TOTALS | B26: NEV axis covaraince values at each survey station. The covariance elements are clearly labelled in the header.
B27: Depth units follow the setup page, covariance values are in m^2. Both NEV and HLA covariance values are given. The necessary direction cosine matrix for the transformation is calculated in the trailing columns following Williamson (A-28)
B28: Covariance | H28: Covariance | N28: NEV to HLA Direction Cosine Matrix
A29: Md | B29: NN | C29: EE | D29: VV | E29: NE | F29: NV | G29: EV | H29: HH | I29: LL | J29: AA | K29: HL | L29: HA | M29: LA
A31: drdp | B31: The partial derivative of wellbore position in the NEV system, wrt survey measurements, at each survey station. Following Williamson equations (A.4a) - (A.6)
B32: The 3 x 3 drdsurvey matrix is evaluated at both the current survey station (k) and the following one (k+1).
B33: drk_dDepth | E33: drk_dInc | H33: drk_dAz | K33: drk+1dDepth | N33: drk+1_dInc | Q33: drk+1dAz
A34: Md | B34: N | C34: E | D34: V | E34: N | F34: E | G34: V | H34: N | I34: E | J34: V | K34: N | L34: E | M34: V | N34: N | O34: E | P34: V | Q34: N | R34: E | S34: V
A37: There then follows a separate worksheet for each error source in the model.
A38: These follow the same format.
B39: dpde | E39: e | H39: estar | K39: Sigma e systematic | N39: Covariance
A40: Md | B40: D | C40: I | D40: A | E40: N | F40: E | G40: V | H40: N | I40: E | J40: V | K40: N | L40: E | M40: V | N40: NN | O40: EE | P40: VV | Q40: NE | R40: NV | S40: EV
A41: First the weighting functions (dpde) are evaluated at each station. The components dDepthde, dIncde and dAzde are clearly labelled.
A42: Then the error vectors e (over both the preceeding and following well intervals) and e* (over the preceeding interval only) are evaluated in the NEV system.
A43: Next the error vectors are summed, by a methodology depending on the propgoation mode.
A44: Then the covariance matrix for that error source is evaluated at each survey station.
A45: The covariance results for each source are summed in the TOTALS sheet.

Sheet Model
A1: [OWSG Prefix] | B1: ISCWSA MWD Rev5
A3: OWSG Prefix: | B3: None | D3: No | E3: Code | F3: Term Description | G3: Wt.Fn. | H3: Wt.Fn. Source | I3: Type | J3: Magnitude | K3: Units | L3: Prop. | M3: P1 | N3: P2 | O3: P3 | P3: Wt.Fn. Comment | Q3: Depth Formula | R3: Inclination Formula | S3: Azimuth Formula | T3: Singularity North Formula | U3: Singularity East Formula | V3: Singularity Vert. Formula | W3: Convert Magnitudes Degrees to Radians
A4: Short Name: | B4: ISCWSA MWD Rev5 | D4: 1 | E4: DRFR | F4: Depth: Depth Reference - Random | G4: DREF | H4: SPE 67616 | I4: Depth | J4: 0.35 | K4: m | L4: R | M4: 0 | N4: 0 | O4: 0 | Q4: 1 | R4: 0 | S4: 0 | W4: =J4 -> 0.35
A5: Long Name: | B5: ISCWSA MWD (Fixed Rig) Rev5 | D5: 2 | E5: DSFS | F5: Depth: Depth Scale Factor - Systematic | G5: DSF | H5: SPE 67616 | I5: Depth | J5: 0.00056 | K5: - | L5: S | M5: 1 | N5: 0 | O5: 0 | Q5: MD | R5: 0 | S5: 0 | W5: =J5 -> 0.00056
A6: Revision No: | B6: 5 | D6: 3 | E6: DSTG | F6: Depth: Depth Stretch - Global | G6: DST | H6: SPE 67616 | I6: Depth | J6: 2.5e-07 | K6: 1/m | L6: G | M6: 1 | N6: 1 | O6: 1 | Q6: MD * TVD | R6: 0 | S6: 0 | W6: 2.5e-07
A7: Revision Date: | B7: 2019-10-02 | D7: 4 | E7: ABXY-TI1S | F7: MWD TF Ind: X and Y Accelerometer Bias | G7: ABXY-TI1 | H7: SPE 63275 + Andy Brooks | I7: Sensor | J7: 0.004 | K7: m/s2 | L7: S | M7: 1 | N7: 0 | O7: 0 | Q7: 0 | R7: -Cos(Inc) / Gfield | S7: (Tan(Dip) * Cos(Inc) * Sin(AzM)) / Gfield | W7: 0.004
A8: Revision Comment: | B8: DECR and DBHR terms added. AMIL reduced from 300 to 220 nT. XYM1, XYM2, XYM3, XYM4 increased from 0.06 to 0.1 deg. Same as OWSG MWD Rev.2 | D8: 5 | E8: ABXY-TI2S | F8: MWD TF Ind: X and Y Accelerometer Bias | G8: ABXY-TI2 | H8: SPE 63275 + Andy Brooks | I8: Sensor | J8: 0.004 | K8: m/s2 | L8: S | M8: 1 | N8: 0 | O8: 0 | P8: Singularity when vertical | Q8: 0 | R8: 0 | S8: ((Tan((pi / 2) - Inc)) - Tan(Dip) * Cos(AzM)) / Gfield | T8: -Sin(Az) / Gfield | U8: Cos(Az) / Gfield | V8: 0 | W8: 0.004
A9: Source: | B9: OWSG | D9: 6 | E9: ABZ | F9: MWD: Z-Accelerometer Bias | G9: ABZ | H9: SPE 67616 Table 1 | I9: Sensor | J9: 0.004 | K9: m/s2 | L9: S | M9: 1 | N9: 0 | O9: 0 | Q9: 0 | R9: -Sin(Inc) / Gfield | S9: Tan(Dip) * Sin(Inc) * Sin(AzM) / Gfield | W9: 0.004
A10: Application: | B10: None | D10: 7 | E10: ASXY-TI1S | F10: MWD TF Ind: X and Y Accelerometer Scale Factor | G10: ASXY-TI1 | H10: SPE 63275 + Andy Brooks | I10: Sensor | J10: 0.0005 | K10: - | L10: S | M10: 1 | N10: 0 | O10: 0 | Q10: 0 | R10: Sin(Inc) * Cos(Inc) / Sqr(2) | S10: (-Tan(Dip) * Sin(Inc) * Cos(Inc) * Sin(AzM)) / Sqr(2) | W10: 0.0005
A11: Tool Type: | B11: MWD | D11: 8 | E11: ASXY-TI2S | F11: MWD TF Ind: X and Y Accelerometer Scale Factor | G11: ASXY-TI2 | H11: SPE 63275 + Andy Brooks | I11: Sensor | J11: 0.0005 | K11: - | L11: S | M11: 1 | N11: 0 | O11: 0 | Q11: 0 | R11: Sin(Inc) * Cos(Inc) / 2 | S11: (-Tan(Dip) * Sin(Inc) * Cos(Inc) * Sin(AzM)) / 2 | W11: 0.0005
A12: Status: | B12: Agreed | D12: 9 | E12: ASXY-TI3S | F12: MWD TF Ind: X and Y Accelerometer Scale Factor | G12: ASXY-TI3 | H12: SPE 63275 + Andy Brooks | I12: Sensor | J12: 0.0005 | K12: - | L12: S | M12: 1 | N12: 0 | O12: 0 | Q12: 0 | R12: 0 | S12: (Tan(Dip) * Sin(Inc) * Cos(AzM) - Cos(Inc)) / 2 | W12: 0.0005
A13: Checked: | D13: 10 | E13: ASZ | F13: MWD: Z-Accelerometer Scale Factor | G13: ASZ | H13: SPE 67616 Table 1 | I13: Sensor | J13: 0.0005 | K13: - | L13: S | M13: 1 | N13: 0 | O13: 0 | Q13: 0 | R13: -Sin(Inc) * Cos(Inc) | S13: Tan(Dip) * Sin(Inc) * Cos(Inc) * Sin(AzM) | W13: 0.0005
A14: Approved: | D14: 11 | E14: MBXY-TI1S | F14: MWD TF Ind: X and Y Magnetometer Bias | G14: MBXY-TI1 | H14: SPE 63275 + Andy Brooks | I14: Sensor | J14: 70 | K14: nT | L14: S | M14: 1 | N14: 0 | O14: 0 | Q14: 0 | R14: 0 | S14: -Cos(Inc) * Sin(AzM) / (BField * Cos(Dip)) | W14: 70
A15: Notes: | B15: Same as OWSG MWD Rev.2 | D15: 12 | E15: MBXY-TI2S | F15: MWD TF Ind: X and Y Magnetometer Bias | G15: MBXY-TI2 | H15: SPE 63275 + Andy Brooks | I15: Sensor | J15: 70 | K15: nT | L15: S | M15: 1 | N15: 0 | O15: 0 | Q15: 0 | R15: 0 | S15: Cos(AzM) / (BField * Cos(Dip)) | W15: 70
A16: Revision History: | B16: None | D16: 13 | E16: MBZ | F16: MWD: Z-Magnetometer Bias | G16: MBZ | H16: SPE 67616 Table 1 | I16: Sensor | J16: 70 | K16: nT | L16: S | M16: 1 | N16: 0 | O16: 0 | Q16: 0 | R16: 0 | S16: -Sin(Inc) * Sin(AzM) / (BField * Cos(Dip)) | W16: 70
A17: Replaces / Replaced By: | B17: ISCWSA MWD Rev 3 / OWSG_A001Mb_MWD | D17: 14 | E17: MSXY-TI1S | F17: MWD TF Ind: X and Y Magnetometer Scale Factor | G17: MSXY-TI1 | H17: SPE 63275 + Andy Brooks | I17: Sensor | J17: 0.0016 | K17: - | L17: S | M17: 1 | N17: 0 | O17: 0 | Q17: 0 | R17: 0 | S17: Sin(Inc) * Sin(AzM) * (Tan(Dip) * Cos(Inc) + Sin(Inc) * Cos(AzM)) / Sqr(2) | W17: 0.0016
A18: Inclination Range Min: | B18: 0 deg | D18: 15 | E18: MSXY-TI2S | F18: MWD TF Ind: X and Y Magnetometer Scale Factor | G18: MSXY-TI2 | H18: SPE 63275 + Andy Brooks | I18: Sensor | J18: 0.0016 | K18: - | L18: S | M18: 1 | N18: 0 | O18: 0 | Q18: 0 | R18: 0 | S18: Sin(AzM) * (Tan(Dip) * Sin(Inc) * Cos(Inc) - Cos(Inc) * Cos(Inc) * Cos(AzM) - Cos(AzM)) / 2 | W18: 0.0016
A19: Inclination Range Max: | B19: 180 deg | D19: 16 | E19: MSXY-TI3S | F19: MWD TF Ind: X and Y Magnetometer Scale Factor | G19: MSXY-TI3 | H19: SPE 63275 + Andy Brooks | I19: Sensor | J19: 0.0016 | K19: - | L19: S | M19: 1 | N19: 0 | O19: 0 | Q19: 0 | R19: 0 | S19: (Cos(Inc) * Cos(AzM) * Cos(AzM) - Cos(Inc) * Sin(AzM) * Sin(AzM) - Tan(Dip) * Sin(Inc) * Cos(AzM)) / 2 | W19: 0.0016
A20: Hor East/West Exclusion: | B20: 0 deg | D20: 17 | E20: MSZ | F20: MWD: Z-Magnetometer Scale Factor | G20: MSZ | H20: SPE 67616 Table 1 | I20: Sensor | J20: 0.0016 | K20: - | L20: S | M20: 1 | N20: 0 | O20: 0 | Q20: 0 | R20: 0 | S20: -(Sin(Inc) * Cos(AzM) + Tan(Dip) * Cos(Inc)) * Sin(Inc) * Sin(AzM) | W20: 0.0016
A21: Range Comment: | B21: None | D21: 18 | E21: DEC-U | F21: MWD: Declination - Uncorrelated | G21: AZ | H21: SPE 67616 | I21: AziRef | J21: 0.16 | K21: deg | L21: G | M21: 1 | N21: 1 | O21: 1 | Q21: 0 | R21: 0 | S21: 1 | W21: =RADIANS(J21) -> 0.002792526803
A22: Tool Parameters | D22: 19 | E22: DEC-OS | F22: MWD: Declination - Crustal Omission SD Ref Models | G22: AZ | H22: SPE 67616 | I22: AziRef | J22: 0.24 | K22: deg | L22: G | M22: 1 | N22: 1 | O22: 1 | Q22: 0 | R22: 0 | S22: 1 | W22: =RADIANS(J22) -> 0.004188790205
A23: Misalignment Alt: | B23: 3 | D23: 20 | E23: DEC-OH | F23: MWD: Declination - Crustal Omission HD Ref Models | G23: AZ | H23: SPE 67616 | I23: AziRef | J23: 0.21 | K23: deg | L23: G | M23: 1 | N23: 1 | O23: 1 | Q23: 0 | R23: 0 | S23: 1 | W23: =RADIANS(J23) -> 0.003665191429
A24: Default Tortusity (rad/m) | B24: 0.000572615 | D24: 21 | E24: DEC-OI | F24: MWD: Declination - Crustal Omission IFR Ref Models | G24: AZ | H24: SPE 67616 | I24: AziRef | J24: 0.05 | K24: deg | L24: G | M24: 1 | N24: 1 | O24: 1 | Q24: 0 | R24: 0 | S24: 1 | W24: =RADIANS(J24) -> 0.000872664626
D25: 22 | E25: DECR | F25: MWD: Declination - Random | G25: AZ | H25: SPE 67616 | I25: AziRef | J25: 0.1 | K25: deg | L25: R | M25: 0 | N25: 0 | O25: 0 | Q25: 0 | R25: 0 | S25: 1 | W25: =RADIANS(J25) -> 0.001745329252
D26: 23 | E26: DBH-U | F26: MWD: BH-Dependent Declination - Uncorrelated | G26: DBH | H26: SPE 67616 | I26: AziRef | J26: 2350 | K26: deg.nT | L26: G | M26: 1 | N26: 1 | O26: 1 | Q26: 0 | R26: 0 | S26: 1 / (BField * Cos(Dip)) | W26: 41.01523742
D27: 24 | E27: DBH-OS | F27: MWD: BH-Dependent Declination - Crustal Omission SD Ref Models | G27: DBH | H27: SPE 67616 | I27: AziRef | J27: 3359 | K27: deg.nT | L27: G | M27: 1 | N27: 1 | O27: 1 | Q27: 0 | R27: 0 | S27: 1 / (BField * Cos(Dip)) | W27: 58.62560957
D28: 25 | E28: DBH-OH | F28: MWD: BH-Dependent Declination - Crustal Omission HD Ref Models | G28: DBH | H28: SPE 67616 | I28: AziRef | J28: 2840 | K28: deg.nT | L28: G | M28: 1 | N28: 1 | O28: 1 | Q28: 0 | R28: 0 | S28: 1 / (BField * Cos(Dip)) | W28: 49.56735076
D29: 26 | E29: DBH-OI | F29: MWD: BH-Dependent Declination - Crustal Omission IFR Ref Models | G29: DBH | H29: SPE 67616 | I29: AziRef | J29: 356 | K29: deg.nT | L29: G | M29: 1 | N29: 1 | O29: 1 | Q29: 0 | R29: 0 | S29: 1 / (BField * Cos(Dip)) | W29: 6.213372137
D30: 27 | E30: DBHR | F30: MWD: BH-Dependent Declination - Random | G30: DBH | H30: SPE 67616 | I30: AziRef | J30: 3000 | K30: deg.nT | L30: R | M30: 0 | N30: 0 | O30: 0 | Q30: 0 | R30: 0 | S30: 1 / (BField * Cos(Dip)) | W30: 52.35987756
D31: 28 | E31: AMIL | F31: MWD: Axial Interference - SinI.SinA | G31: AMIL | H31: Halliburton | I31: Mgntcs | J31: 220 | K31: nT | L31: S | M31: 1 | N31: 0 | O31: 0 | Q31: 0 | R31: 0 | S31: Sin(Inc) * Sin(AzM) / (BField * Cos(Dip)) | W31: =J31 -> 220
D32: 29 | E32: SAGE | F32: MWD: Sag Enhanced | G32: SAGE | H32: Jerry Codling SPE????? | I32: Align | J32: 0.2 | K32: deg | L32: S | M32: 1 | N32: 0 | O32: 0 | Q32: 0 | R32: Sin(Inc)^0.25 | S32: 0 | W32: =RADIANS(J32) -> 0.003490658504
D33: 30 | E33: XYM1 | F33: Misalignment: XY Misalignment 1 | G33: XYM1 | H33: SPE 90408 Table 9 - Alt. 3 | I33: Align | J33: 0.1 | K33: deg | L33: S | M33: 1 | N33: 0 | O33: 0 | Q33: 0 | R33: Abs(Sin(Inc)) | S33: 0 | W33: 0.001745329252
D34: 31 | E34: XYM2 | F34: Misalignment: XY Misalignment 2 | G34: XYM2 | H34: SPE 90408 Table 9 - Alt. 3 | I34: Align | J34: 0.1 | K34: deg | L34: R | M34: 1 | N34: 0 | O34: 0 | Q34: 0 | R34: 0 | S34: -1 | W34: 0.001745329252
D35: 32 | E35: XYM3E | F35: Misalignment: XY Misalignment 3 | G35: XYM3L | H35: SPE 90408 Table 9 - Alt. 3 | I35: Align | J35: 0.3 | K35: deg | L35: R | M35: 1 | N35: 0 | O35: 0 | P35: Singularity when vertical | Q35: 0 | R35: Abs(Cos(Inc)) * Cos(AzT) | S35: -(Abs(Cos(Inc)) * Sin(AzT)) / Sin(Inc) | T35: 1 | U35: 0 | V35: 0 | W35: 0.005235987756
D36: 33 | E36: XYM4E | F36: Misalignment: XY Misalignment 4 | G36: XYM4L | H36: SPE 90408 Table 9 - Alt. 3 | I36: Align | J36: 0.3 | K36: deg | L36: S | M36: 1 | N36: 0 | O36: 0 | P36: Singularity when vertical | Q36: 0 | R36: Abs(Cos(Inc)) * Sin(AzT) | S36: (Abs(Cos(Inc)) * Cos(AzT)) / Sin(Inc) | T36: 0 | U36: 1 | V36: 0 | W36: 0.005235987756
D37: 34 | E37: XCLA | F37: Depth: Long Course Length XCL - Azimuth | G37: XCLA | H37: SPE 187249 Jerry Codling | I37: Depth | J37: 0.167 | K37: - | L37: R | M37: 0 | N37: 0 | O37: 0 | P37: Tangential Calculation. Singularity when vertical. Formula for MD in metres. Az difference < 180 deg. | Q37: 0 | R37: 0 | S37: Max(Abs(AzT-AzPrev), 0.0328084 * (MD-MDPrev) / Sin(Inc)) | T37: 0.0328084 * RAD * (MD - MDPrev) | U37: 0.0328084 * RAD * (MD - MDPrev) | W37: 0.167
D38: 35 | E38: XCLH | F38: Depth: Long Course Length XCL - Inclination | G38: XCLH | H38: SPE 187249 Jerry Codling | I38: Depth | J38: 0.167 | K38: - | L38: R | M38: 0 | N38: 0 | O38: 0 | P38: Tangential Calculation. Formula for MD in metres. Az difference < 180 deg. | Q38: 0 | R38: Max(Abs(Inc-IncPrev), 0.0328084* (MD-MDPrev)) | S38: 0 | W38: 0.167

Sheet Wellpath
A1: Well | B1: ISCWSA Test #3 | C1: Convert to Radians | E1: INPUT WELLPATH | K1: WELLPATH Radians
A2: Latitude (deg) | B2: -40 | C2: =RADIANS(B2) -> -0.6981317008 | E2: MD | F2: Inc (°) | G2: Az (°) | H2: TVD | I2: Toolface (°) | K2: =E2 -> MD | L2: Inc (rad) | M2: AzT (rad) | N2: AzG (rad) | O2: AzMag (rad) | P2: =H2 -> TVD | Q2: Tface (rad)
A3: G (m/s2) | B3: 9.80665 | E3: 0 | F3: 0 | G3: 0 | H3: 0 | K3: =IF($B$9=$C$12,E3,E3*0.3048) -> 0 | L3: =RADIANS(F3) -> 0 | M3: =IF($B$8=$B$12,RADIANS(G3),RADIANS(G3+$B$7)) -> 0 | N3: =M3-RADIANS($B$7) -> 0 | O3: =M3-RADIANS(B$6) -> -0.2268928028 | P3: =IF($B$9=$C$12,H3,H3*$B$11) -> 0
A4: Btotal (nT) | B4: 61000 | E4: 30 | F4: 0 | G4: 0 | H4: 30 | K4: 30 | L4: =RADIANS(F4) -> 0 | M4: 0 | N4: =M4-RADIANS($B$7) -> 0 | O4: -0.2268928028 | P4: 30
A5: Dip (deg) | B5: -70 | C5: =RADIANS(B5) -> -1.221730476 | E5: 60 | F5: 0 | G5: 0 | H5: 60 | K5: 60 | L5: 0 | M5: 0 | N5: 0 | O5: -0.2268928028 | P5: 60
A6: Declination (deg) | B6: 13 | C6: =RADIANS(B6) -> 0.2268928028 | E6: 90 | F6: 0 | G6: 0 | H6: 90 | K6: 90 | L6: 0 | M6: 0 | N6: 0 | O6: -0.2268928028 | P6: 90
A7: Convergence (deg) | B7: 0 | C7: =RADIANS(B7) -> 0 | E7: 120 | F7: 0 | G7: 0 | H7: 120 | K7: 120 | L7: 0 | M7: 0 | N7: 0 | O7: -0.2268928028 | P7: 120
A8: Azimuth Ref | B8: TRUE | E8: 150 | F8: 0 | G8: 0 | H8: 150 | K8: 150 | L8: 0 | M8: 0 | N8: 0 | O8: -0.2268928028 | P8: 150
A9: Depth Units | B9: m | E9: 180 | F9: 0 | G9: 0 | H9: 180 | K9: 180 | L9: 0 | M9: 0 | N9: 0 | O9: -0.2268928028 | P9: 180
A10: Vertical Inc Limit (deg) | B10: 0.0001 | C10: =RADIANS(B10) -> 1.745329252e-06 | E10: 210 | F10: 0 | G10: 0 | H10: 210 | K10: 210 | L10: 0 | M10: 0 | N10: 0 | O10: -0.2268928028 | P10: 210
A11: Feet to metres conversion | B11: 0.3048 | E11: 240 | F11: 0 | G11: 0 | H11: 240 | K11: 240 | L11: 0 | M11: 0 | N11: 0 | O11: -0.2268928028 | P11: 240
B12: TRUE | C12: m | E12: 270 | F12: 0 | G12: 0 | H12: 270 | K12: 270 | L12: 0 | M12: 0 | N12: 0 | O12: -0.2268928028 | P12: 270
B13: GRID | C13: ft | E13: 300 | F13: 0 | G13: 0 | H13: 300 | K13: 300 | L13: 0 | M13: 0 | N13: 0 | O13: -0.2268928028 | P13: 300
E14: 330 | F14: 0 | G14: 0 | H14: 330 | K14: 330 | L14: 0 | M14: 0 | N14: 0 | O14: -0.2268928028 | P14: 330
E15: 360 | F15: 0 | G15: 0 | H15: 360 | K15: 360 | L15: 0 | M15: 0 | N15: 0 | O15: -0.2268928028 | P15: 360
E16: 390 | F16: 0 | G16: 0 | H16: 390 | K16: 390 | L16: 0 | M16: 0 | N16: 0 | O16: -0.2268928028 | P16: 390
E17: 420 | F17: 0 | G17: 0 | H17: 420 | K17: 420 | L17: 0 | M17: 0 | N17: 0 | O17: -0.2268928028 | P17: 420
E18: 450 | F18: 0 | G18: 0 | H18: 450 | K18: 450 | L18: 0 | M18: 0 | N18: 0 | O18: -0.2268928028 | P18: 450
E19: 480 | F19: 0 | G19: 0 | H19: 480 | K19: 480 | L19: 0 | M19: 0 | N19: 0 | O19: -0.2268928028 | P19: 480
E20: 500 | F20: 0 | G20: 0 | H20: 500 | K20: 500 | L20: 0 | M20: 0 | N20: 0 | O20: -0.2268928028 | P20: 500
E21: 510 | F21: 0.83 | G21: 0 | H21: 510 | K21: 510 | L21: 0.01448623279 | M21: 0 | N21: 0 | O21: -0.2268928028 | P21: 510
E22: 540 | F22: 3.33 | G22: 0 | H22: 539.98 | K22: 540 | L22: 0.05811946409 | M22: 0 | N22: 0 | O22: -0.2268928028 | P22: 539.98
E23: 570 | F23: 5.83 | G23: 0 | H23: 569.88 | K23: 570 | L23: 0.1017526954 | M23: 0 | N23: 0 | O23: -0.2268928028 | P23: 569.88
E24: 600 | F24: 8.33 | G24: 0 | H24: 599.65 | K24: 600 | L24: 0.1453859267 | M24: 0 | N24: 0 | O24: -0.2268928028 | P24: 599.65
E25: 630 | F25: 10.83 | G25: 0 | H25: 629.23 | K25: 630 | L25: 0.189019158 | M25: 0 | N25: 0 | O25: -0.2268928028 | P25: 629.23
E26: 660 | F26: 13.33 | G26: 0 | H26: 658.56 | K26: 660 | L26: 0.2326523893 | M26: 0 | N26: 0 | O26: -0.2268928028 | P26: 658.56
E27: 690 | F27: 15.83 | G27: 0 | H27: 687.59 | K27: 690 | L27: 0.2762856206 | M27: 0 | N27: 0 | O27: -0.2268928028 | P27: 687.59
E28: 720 | F28: 18.33 | G28: 0 | H28: 716.27 | K28: 720 | L28: 0.3199188519 | M28: 0 | N28: 0 | O28: -0.2268928028 | P28: 716.27
E29: 750 | F29: 20.83 | G29: 0 | H29: 744.53 | K29: 750 | L29: 0.3635520832 | M29: 0 | N29: 0 | O29: -0.2268928028 | P29: 744.53
E30: 780 | F30: 23.33 | G30: 0 | H30: 772.32 | K30: 780 | L30: 0.4071853145 | M30: 0 | N30: 0 | O30: -0.2268928028 | P30: 772.32
E31: 810 | F31: 25.83 | G31: 0 | H31: 799.6 | K31: 810 | L31: 0.4508185458 | M31: 0 | N31: 0 | O31: -0.2268928028 | P31: 799.6
E32: 840 | F32: 28.33 | G32: 0 | H32: 826.31 | K32: 840 | L32: 0.4944517771 | M32: 0 | N32: 0 | O32: -0.2268928028 | P32: 826.31
E33: 870 | F33: 30.83 | G33: 0 | H33: 852.4 | K33: 870 | L33: 0.5380850084 | M33: 0 | N33: 0 | O33: -0.2268928028 | P33: 852.4
E34: 900 | F34: 33.33 | G34: 0 | H34: 877.81 | K34: 900 | L34: 0.5817182397 | M34: 0 | N34: 0 | O34: -0.2268928028 | P34: 877.81
E35: 930 | F35: 35.83 | G35: 0 | H35: 902.51 | K35: =IF($B$9=$C$12,E35,E35*0.3048) -> 930 | L35: 0.625351471 | M35: =IF($B$8=$B$12,RADIANS(G35),RADIANS(G35+$B$7)) -> 0 | N35: 0 | O35: -0.2268928028 | P35: =IF($B$9=$C$12,H35,H35*$B$11) -> 902.51
E36: 960 | F36: 38.33 | G36: 0 | H36: 926.44 | K36: 960 | L36: 0.6689847023 | M36: 0 | N36: 0 | O36: -0.2268928028 | P36: 926.44
E37: 990 | F37: 40.83 | G37: 0 | H37: 949.56 | K37: 990 | L37: 0.7126179336 | M37: 0 | N37: 0 | O37: -0.2268928028 | P37: 949.56
E38: 1020 | F38: 43.33 | G38: 0 | H38: 971.82 | K38: 1020 | L38: 0.7562511649 | M38: 0 | N38: 0 | O38: -0.2268928028 | P38: 971.82
E39: 1050 | F39: 45.83 | G39: 0 | H39: 993.19 | K39: 1050 | L39: 0.7998843962 | M39: 0 | N39: 0 | O39: -0.2268928028 | P39: 993.19
E40: 1080 | F40: 48.33 | G40: 0 | H40: 1013.62 | K40: 1080 | L40: 0.8435176275 | M40: 0 | N40: 0 | O40: -0.2268928028 | P40: 1013.62
E41: 1100 | F41: 50 | G41: 0 | H41: 1026.69 | K41: 1100 | L41: 0.872664626 | M41: 0 | N41: 0 | O41: -0.2268928028 | P41: 1026.69
E42: 1110 | F42: 50 | G42: 0 | H42: 1033.12 | K42: 1110 | L42: 0.872664626 | M42: 0 | N42: 0 | O42: -0.2268928028 | P42: 1033.12
E43: 1140 | F43: 50 | G43: 0 | H43: 1052.4 | K43: 1140 | L43: 0.872664626 | M43: 0 | N43: 0 | O43: -0.2268928028 | P43: 1052.4
E44: 1170 | F44: 50 | G44: 0 | H44: 1071.69 | K44: 1170 | L44: 0.872664626 | M44: 0 | N44: 0 | O44: -0.2268928028 | P44: 1071.69
E45: 1200 | F45: 50 | G45: 0 | H45: 1090.97 | K45: 1200 | L45: 0.872664626 | M45: 0 | N45: 0 | O45: -0.2268928028 | P45: 1090.97
E46: 1230 | F46: 50 | G46: 0 | H46: 1110.26 | K46: 1230 | L46: 0.872664626 | M46: 0 | N46: 0 | O46: -0.2268928028 | P46: 1110.26
E47: 1260 | F47: 50 | G47: 0 | H47: 1129.54 | K47: 1260 | L47: 0.872664626 | M47: 0 | N47: 0 | O47: -0.2268928028 | P47: 1129.54
E48: 1290 | F48: 50 | G48: 0 | H48: 1148.82 | K48: 1290 | L48: 0.872664626 | M48: 0 | N48: 0 | O48: -0.2268928028 | P48: 1148.82
E49: 1320 | F49: 50 | G49: 0 | H49: 1168.11 | K49: 1320 | L49: 0.872664626 | M49: 0 | N49: 0 | O49: -0.2268928028 | P49: 1168.11
E50: 1350 | F50: 50 | G50: 0 | H50: 1187.39 | K50: 1350 | L50: 0.872664626 | M50: 0 | N50: 0 | O50: -0.2268928028 | P50: 1187.39
E51: 1380 | F51: 50 | G51: 0 | H51: 1206.67 | K51: 1380 | L51: 0.872664626 | M51: 0 | N51: 0 | O51: -0.2268928028 | P51: 1206.67
E52: 1410 | F52: 50 | G52: 0 | H52: 1225.96 | K52: 1410 | L52: 0.872664626 | M52: 0 | N52: 0 | O52: -0.2268928028 | P52: 1225.96
E53: 1440 | F53: 50 | G53: 0 | H53: 1245.24 | K53: 1440 | L53: 0.872664626 | M53: 0 | N53: 0 | O53: -0.2268928028 | P53: 1245.24
E54: 1470 | F54: 50 | G54: 0 | H54: 1264.52 | K54: 1470 | L54: 0.872664626 | M54: 0 | N54: 0 | O54: -0.2268928028 | P54: 1264.52
E55: 1500 | F55: 50 | G55: 0 | H55: 1283.81 | K55: 1500 | L55: 0.872664626 | M55: 0 | N55: 0 | O55: -0.2268928028 | P55: 1283.81
E56: 1530 | F56: 50 | G56: 0 | H56: 1303.09 | K56: 1530 | L56: 0.872664626 | M56: 0 | N56: 0 | O56: -0.2268928028 | P56: 1303.09
E57: 1560 | F57: 50 | G57: 0 | H57: 1322.38 | K57: 1560 | L57: 0.872664626 | M57: 0 | N57: 0 | O57: -0.2268928028 | P57: 1322.38
E58: 1590 | F58: 50 | G58: 0 | H58: 1341.66 | K58: 1590 | L58: 0.872664626 | M58: 0 | N58: 0 | O58: -0.2268928028 | P58: 1341.66
E59: 1620 | F59: 50 | G59: 0 | H59: 1360.94 | K59: 1620 | L59: 0.872664626 | M59: 0 | N59: 0 | O59: -0.2268928028 | P59: 1360.94
E60: 1650 | F60: 50 | G60: 0 | H60: 1380.23 | K60: 1650 | L60: 0.872664626 | M60: 0 | N60: 0 | O60: -0.2268928028 | P60: 1380.23
E61: 1680 | F61: 50 | G61: 0 | H61: 1399.51 | K61: 1680 | L61: 0.872664626 | M61: 0 | N61: 0 | O61: -0.2268928028 | P61: 1399.51
E62: 1700 | F62: 50 | G62: 0 | H62: 1412.37 | K62: 1700 | L62: 0.872664626 | M62: 0 | N62: 0 | O62: -0.2268928028 | P62: 1412.37
E63: 1710 | F63: 49.33 | G63: 0 | H63: 1418.84 | K63: 1710 | L63: 0.86097092 | M63: 0 | N63: 0 | O63: -0.2268928028 | P63: 1418.84
E64: 1740 | F64: 47.33 | G64: 0 | H64: 1438.78 | K64: 1740 | L64: 0.826064335 | M64: 0 | N64: 0 | O64: -0.2268928028 | P64: 1438.78
E65: 1770 | F65: 45.33 | G65: 0 | H65: 1459.49 | K65: 1770 | L65: 0.7911577499 | M65: 0 | N65: 0 | O65: -0.2268928028 | P65: 1459.49
E66: 1800 | F66: 43.33 | G66: 0 | H66: 1480.95 | K66: 1800 | L66: 0.7562511649 | M66: 0 | N66: 0 | O66: -0.2268928028 | P66: 1480.95
E67: 1830 | F67: 41.33 | G67: 0 | H67: 1503.13 | K67: =IF($B$9=$C$12,E67,E67*0.3048) -> 1830 | L67: 0.7213445798 | M67: =IF($B$8=$B$12,RADIANS(G67),RADIANS(G67+$B$7)) -> 0 | N67: 0 | O67: =M67-RADIANS(B$6) -> -0.2268928028 | P67: =IF($B$9=$C$12,H67,H67*$B$11) -> 1503.13
E68: 1860 | F68: 39.33 | G68: 0 | H68: 1526 | K68: 1860 | L68: =RADIANS(F68) -> 0.6864379948 | M68: 0 | N68: =M68-RADIANS($B$7) -> 0 | O68: -0.2268928028 | P68: 1526
E69: 1890 | F69: 37.33 | G69: 0 | H69: 1549.53 | K69: 1890 | L69: 0.6515314098 | M69: 0 | N69: 0 | O69: -0.2268928028 | P69: 1549.53
E70: 1920 | F70: 35.33 | G70: 0 | H70: 1573.69 | K70: 1920 | L70: 0.6166248247 | M70: 0 | N70: 0 | O70: -0.2268928028 | P70: 1573.69
E71: 1950 | F71: 33.33 | G71: 0 | H71: 1598.46 | K71: 1950 | L71: 0.5817182397 | M71: 0 | N71: 0 | O71: -0.2268928028 | P71: 1598.46
E72: 1980 | F72: 31.33 | G72: 0 | H72: 1623.81 | K72: 1980 | L72: 0.5468116546 | M72: 0 | N72: 0 | O72: -0.2268928028 | P72: 1623.81
E73: 2010 | F73: 29.33 | G73: 0 | H73: 1649.7 | K73: 2010 | L73: 0.5119050696 | M73: 0 | N73: 0 | O73: -0.2268928028 | P73: 1649.7
E74: 2040 | F74: 27.33 | G74: 0 | H74: 1676.11 | K74: 2040 | L74: 0.4769984846 | M74: 0 | N74: 0 | O74: -0.2268928028 | P74: 1676.11
E75: 2070 | F75: 25.33 | G75: 0 | H75: 1702.99 | K75: 2070 | L75: 0.4420918995 | M75: 0 | N75: 0 | O75: -0.2268928028 | P75: 1702.99
E76: 2100 | F76: 23.33 | G76: 0 | H76: 1730.33 | K76: 2100 | L76: 0.4071853145 | M76: 0 | N76: 0 | O76: -0.2268928028 | P76: 1730.33
E77: 2130 | F77: 21.33 | G77: 0 | H77: 1758.08 | K77: 2130 | L77: 0.3722787295 | M77: 0 | N77: 0 | O77: -0.2268928028 | P77: 1758.08
E78: 2160 | F78: 19.33 | G78: 0 | H78: 1786.2 | K78: 2160 | L78: 0.3373721444 | M78: 0 | N78: 0 | O78: -0.2268928028 | P78: 1786.2
E79: 2190 | F79: 17.33 | G79: 0 | H79: 1814.68 | K79: 2190 | L79: 0.3024655594 | M79: 0 | N79: 0 | O79: -0.2268928028 | P79: 1814.68
E80: 2220 | F80: 15.33 | G80: 0 | H80: 1843.47 | K80: 2220 | L80: 0.2675589743 | M80: 0 | N80: 0 | O80: -0.2268928028 | P80: 1843.47
E81: 2250 | F81: 13.33 | G81: 0 | H81: 1872.53 | K81: 2250 | L81: 0.2326523893 | M81: 0 | N81: 0 | O81: -0.2268928028 | P81: 1872.53
E82: 2280 | F82: 11.33 | G82: 0 | H82: 1901.84 | K82: 2280 | L82: 0.1977458043 | M82: 0 | N82: 0 | O82: -0.2268928028 | P82: 1901.84
E83: 2310 | F83: 9.33 | G83: 0 | H83: 1931.35 | K83: 2310 | L83: 0.1628392192 | M83: 0 | N83: 0 | O83: -0.2268928028 | P83: 1931.35
E84: 2340 | F84: 7.33 | G84: 0 | H84: 1961.03 | K84: 2340 | L84: 0.1279326342 | M84: 0 | N84: 0 | O84: -0.2268928028 | P84: 1961.03
E85: 2370 | F85: 5.33 | G85: 0 | H85: 1990.85 | K85: 2370 | L85: 0.09302604913 | M85: 0 | N85: 0 | O85: -0.2268928028 | P85: 1990.85
E86: 2400 | F86: 3.33 | G86: 0 | H86: 2020.76 | K86: 2400 | L86: 0.05811946409 | M86: 0 | N86: 0 | O86: -0.2268928028 | P86: 2020.76
E87: 2430 | F87: 1.33 | G87: 0 | H87: 2050.73 | K87: 2430 | L87: 0.02321287905 | M87: 0 | N87: 0 | O87: -0.2268928028 | P87: 2050.73
E88: 2450 | F88: 0 | G88: 0 | H88: 2070.73 | K88: 2450 | L88: 0 | M88: 0 | N88: 0 | O88: -0.2268928028 | P88: 2070.73
E89: 2460 | F89: 0 | G89: 0 | H89: 2080.73 | K89: 2460 | L89: 0 | M89: 0 | N89: 0 | O89: -0.2268928028 | P89: 2080.73
E90: 2490 | F90: 0 | G90: 0 | H90: 2110.73 | K90: 2490 | L90: 0 | M90: 0 | N90: 0 | O90: -0.2268928028 | P90: 2110.73
E91: 2520 | F91: 0 | G91: 0 | H91: 2140.73 | K91: 2520 | L91: 0 | M91: 0 | N91: 0 | O91: -0.2268928028 | P91: 2140.73
E92: 2550 | F92: 0 | G92: 0 | H92: 2170.73 | K92: 2550 | L92: 0 | M92: 0 | N92: 0 | O92: -0.2268928028 | P92: 2170.73
E93: 2580 | F93: 0 | G93: 0 | H93: 2200.73 | K93: 2580 | L93: 0 | M93: 0 | N93: 0 | O93: -0.2268928028 | P93: 2200.73
E94: 2610 | F94: 0 | G94: 0 | H94: 2230.73 | K94: 2610 | L94: 0 | M94: 0 | N94: 0 | O94: -0.2268928028 | P94: 2230.73
E95: 2640 | F95: 0 | G95: 0 | H95: 2260.73 | K95: 2640 | L95: 0 | M95: 0 | N95: 0 | O95: -0.2268928028 | P95: 2260.73
E96: 2670 | F96: 0 | G96: 0 | H96: 2290.73 | K96: 2670 | L96: 0 | M96: 0 | N96: 0 | O96: -0.2268928028 | P96: 2290.73
E97: 2700 | F97: 0 | G97: 0 | H97: 2320.73 | K97: 2700 | L97: 0 | M97: 0 | N97: 0 | O97: -0.2268928028 | P97: 2320.73
E98: 2730 | F98: 0 | G98: 0 | H98: 2350.73 | K98: 2730 | L98: 0 | M98: 0 | N98: 0 | O98: -0.2268928028 | P98: 2350.73
E99: 2760 | F99: 0 | G99: 0 | H99: 2380.73 | K99: =IF($B$9=$C$12,E99,E99*0.3048) -> 2760 | L99: 0 | M99: =IF($B$8=$B$12,RADIANS(G99),RADIANS(G99+$B$7)) -> 0 | N99: 0 | O99: -0.2268928028 | P99: =IF($B$9=$C$12,H99,H99*$B$11) -> 2380.73
E100: 2790 | F100: 0 | G100: 0 | H100: 2410.73 | K100: 2790 | L100: 0 | M100: 0 | N100: 0 | O100: -0.2268928028 | P100: 2410.73
E101: 2820 | F101: 0 | G101: 0 | H101: 2440.73 | K101: 2820 | L101: 0 | M101: 0 | N101: 0 | O101: -0.2268928028 | P101: 2440.73
E102: 2850 | F102: 0 | G102: 0 | H102: 2470.73 | K102: 2850 | L102: 0 | M102: 0 | N102: 0 | O102: -0.2268928028 | P102: 2470.73
E103: 2880 | F103: 15 | G103: 283 | H103: 2500.39 | K103: 2880 | L103: 0.2617993878 | M103: 4.939281783 | N103: 4.939281783 | O103: 4.71238898 | P103: 2500.39
E104: 2910 | F104: 30 | G104: 283 | H104: 2528.03 | K104: 2910 | L104: 0.5235987756 | M104: 4.939281783 | N104: 4.939281783 | O104: 4.71238898 | P104: 2528.03
E105: 2940 | F105: 45 | G105: 283 | H105: 2551.76 | K105: 2940 | L105: 0.7853981634 | M105: 4.939281783 | N105: 4.939281783 | O105: 4.71238898 | P105: 2551.76
E106: 2970 | F106: 60 | G106: 283 | H106: 2569.97 | K106: 2970 | L106: 1.047197551 | M106: 4.939281783 | N106: 4.939281783 | O106: 4.71238898 | P106: 2569.97
E107: 3000 | F107: 75 | G107: 283 | H107: 2581.42 | K107: 3000 | L107: 1.308996939 | M107: 4.939281783 | N107: 4.939281783 | O107: 4.71238898 | P107: 2581.42
E108: 3030 | F108: 90 | G108: 283 | H108: 2585.32 | K108: 3030 | L108: 1.570796327 | M108: 4.939281783 | N108: 4.939281783 | O108: 4.71238898 | P108: 2585.32
E109: 3060 | F109: 90 | G109: 283 | H109: 2585.32 | K109: 3060 | L109: 1.570796327 | M109: 4.939281783 | N109: 4.939281783 | O109: 4.71238898 | P109: 2585.32
E110: 3090 | F110: 90 | G110: 283 | H110: 2585.32 | K110: 3090 | L110: 1.570796327 | M110: 4.939281783 | N110: 4.939281783 | O110: 4.71238898 | P110: 2585.32
E111: 3120 | F111: 90 | G111: 283 | H111: 2585.32 | K111: 3120 | L111: 1.570796327 | M111: 4.939281783 | N111: 4.939281783 | O111: 4.71238898 | P111: 2585.32
E112: 3150 | F112: 90 | G112: 283 | H112: 2585.32 | K112: 3150 | L112: 1.570796327 | M112: 4.939281783 | N112: 4.939281783 | O112: 4.71238898 | P112: 2585.32
E113: 3180 | F113: 90 | G113: 283 | H113: 2585.32 | K113: 3180 | L113: 1.570796327 | M113: 4.939281783 | N113: 4.939281783 | O113: 4.71238898 | P113: 2585.32
E114: 3210 | F114: 90 | G114: 283 | H114: 2585.32 | K114: 3210 | L114: 1.570796327 | M114: 4.939281783 | N114: 4.939281783 | O114: 4.71238898 | P114: 2585.32
E115: 3240 | F115: 90 | G115: 283 | H115: 2585.32 | K115: 3240 | L115: 1.570796327 | M115: 4.939281783 | N115: 4.939281783 | O115: 4.71238898 | P115: 2585.32
E116: 3270 | F116: 90 | G116: 283 | H116: 2585.32 | K116: 3270 | L116: 1.570796327 | M116: 4.939281783 | N116: 4.939281783 | O116: 4.71238898 | P116: 2585.32
E117: 3300 | F117: 90 | G117: 283 | H117: 2585.32 | K117: 3300 | L117: 1.570796327 | M117: 4.939281783 | N117: 4.939281783 | O117: 4.71238898 | P117: 2585.32
E118: 3330 | F118: 90 | G118: 283 | H118: 2585.32 | K118: 3330 | L118: 1.570796327 | M118: 4.939281783 | N118: 4.939281783 | O118: 4.71238898 | P118: 2585.32
E119: 3360 | F119: 90 | G119: 283 | H119: 2585.32 | K119: 3360 | L119: 1.570796327 | M119: 4.939281783 | N119: 4.939281783 | O119: 4.71238898 | P119: 2585.32
E120: 3390 | F120: 90 | G120: 283 | H120: 2585.32 | K120: 3390 | L120: 1.570796327 | M120: 4.939281783 | N120: 4.939281783 | O120: 4.71238898 | P120: 2585.32
E121: 3420 | F121: 90 | G121: 283 | H121: 2585.32 | K121: 3420 | L121: 1.570796327 | M121: 4.939281783 | N121: 4.939281783 | O121: 4.71238898 | P121: 2585.32
E122: 3430 | F122: 90 | G122: 283 | H122: 2585.32 | K122: 3430 | L122: 1.570796327 | M122: 4.939281783 | N122: 4.939281783 | O122: 4.71238898 | P122: 2585.32
E123: 3450 | F123: 92.05 | G123: 277.36 | H123: 2584.97 | K123: 3450 | L123: 1.606575576 | M123: 4.840845213 | N123: 4.840845213 | O123: 4.613952411 | P123: 2584.97
E124: 3480 | F124: 95.08 | G124: 268.87 | H124: 2583.1 | K124: 3480 | L124: 1.659459053 | M124: 4.69266676 | N124: 4.69266676 | O124: 4.465773957 | P124: 2583.1
E125: 3510 | F125: 98 | G125: 260.3 | H125: 2579.68 | K125: 3510 | L125: 1.710422667 | M125: 4.543092043 | N125: 4.543092043 | O125: 4.31619924 | P125: 2579.68
E126: 3540 | F126: 100.74 | G126: 251.61 | H126: 2574.79 | K126: 3540 | L126: 1.758244688 | M126: 4.391422931 | N126: 4.391422931 | O126: 4.164530128 | P126: 2574.79
E127: 3570 | F127: 103.23 | G127: 242.77 | H127: 2568.55 | K127: 3570 | L127: 1.801703387 | M127: 4.237135825 | N127: 4.237135825 | O127: 4.010243022 | P127: 2568.55
E128: 3600 | F128: 105.41 | G128: 233.75 | H128: 2561.11 | K128: 3600 | L128: 1.839751565 | M128: 4.079707127 | N128: 4.079707127 | O128: 3.852814324 | P128: 2561.11
E129: 3630 | F129: 107.23 | G129: 224.57 | H129: 2552.66 | K129: 3630 | L129: 1.871516557 | M129: 3.919485901 | N129: 3.919485901 | O129: 3.692593098 | P129: 2552.66
E130: 3660 | F130: 108.62 | G130: 215.22 | H130: 2543.41 | K130: 3660 | L130: 1.895776634 | M130: 3.756297616 | N130: 3.756297616 | O130: 3.529404813 | P130: 2543.41
E131: 3690 | F131: 109.54 | G131: 205.75 | H131: 2533.58 | K131: 3690 | L131: 1.911833663 | M131: 3.591014936 | N131: 3.591014936 | O131: =M131-RADIANS(B$6) -> 3.364122133 | P131: 2533.58
E132: 3720 | F132: 109.97 | G132: 196.19 | H132: 2523.42 | K132: 3720 | L132: =RADIANS(F132) -> 1.919338578 | M132: 3.424161459 | N132: =M132-RADIANS($B$7) -> 3.424161459 | O132: 3.197268657 | P132: 2523.42
E133: 3730 | F133: 110 | G133: 193 | H133: 2520 | K133: 3730 | L133: 1.919862177 | M133: 3.368485456 | N133: 3.368485456 | O133: 3.141592654 | P133: 2520
E134: 3750 | F134: 110 | G134: 193 | H134: 2513.16 | K134: =IF($B$9=$C$12,E134,E134*0.3048) -> 3750 | L134: =RADIANS(F134) -> 1.919862177 | M134: =IF($B$8=$B$12,RADIANS(G134),RADIANS(G134+$B$7)) -> 3.368485456 | N134: =M134-RADIANS($B$7) -> 3.368485456 | O134: =M134-RADIANS(B$6) -> 3.141592654 | P134: =IF($B$9=$C$12,H134,H134*$B$11) -> 2513.16
E135: 3780 | F135: 110 | G135: 193 | H135: 2502.9 | K135: 3780 | L135: 1.919862177 | M135: 3.368485456 | N135: 3.368485456 | O135: 3.141592654 | P135: 2502.9
E136: 3810 | F136: 110 | G136: 193 | H136: 2492.64 | K136: 3810 | L136: 1.919862177 | M136: 3.368485456 | N136: 3.368485456 | O136: 3.141592654 | P136: 2492.64
E137: 3840 | F137: 110 | G137: 193 | H137: 2482.38 | K137: 3840 | L137: 1.919862177 | M137: 3.368485456 | N137: 3.368485456 | O137: 3.141592654 | P137: 2482.38
E138: 3870 | F138: 110 | G138: 193 | H138: 2472.12 | K138: 3870 | L138: 1.919862177 | M138: 3.368485456 | N138: 3.368485456 | O138: 3.141592654 | P138: 2472.12
E139: 3900 | F139: 110 | G139: 193 | H139: 2461.86 | K139: 3900 | L139: 1.919862177 | M139: 3.368485456 | N139: 3.368485456 | O139: 3.141592654 | P139: 2461.86
E140: 3930 | F140: 110 | G140: 193 | H140: 2451.6 | K140: 3930 | L140: 1.919862177 | M140: 3.368485456 | N140: 3.368485456 | O140: 3.141592654 | P140: 2451.6
E141: 3960 | F141: 110 | G141: 193 | H141: 2441.34 | K141: 3960 | L141: 1.919862177 | M141: 3.368485456 | N141: 3.368485456 | O141: 3.141592654 | P141: 2441.34
E142: 3990 | F142: 110 | G142: 193 | H142: 2431.08 | K142: 3990 | L142: 1.919862177 | M142: 3.368485456 | N142: 3.368485456 | O142: 3.141592654 | P142: 2431.08
E143: 4020 | F143: 110 | G143: 193 | H143: 2420.82 | K143: 4020 | L143: 1.919862177 | M143: 3.368485456 | N143: 3.368485456 | O143: 3.141592654 | P143: 2420.82
E144: 4030 | F144: 110 | G144: 193 | H144: 2417.4 | K144: 4030 | L144: 1.919862177 | M144: 3.368485456 | N144: 3.368485456 | O144: 3.141592654 | P144: 2417.4

Sheet Validation
C1: Diagnostic Values | I1: Calculated Values | O1: Deltas
A2: MD | B2: Source | C2: NN | D2: EE | E2: VV | F2: NE | G2: NV | H2: EV | I2: NN | J2: EE | K2: VV | L2: NE | M2: NV | N2: EV | O2: NN | P2: EE | Q2: VV | R2: NE | S2: NV | T2: EV
A3: 1700 | B3: DRFR | C3: 0.0754 | D3: 0 | E3: 0.0516 | F3: 0 | G3: 0.0588 | H3: 0 | I3: =VLOOKUP($A3,INDIRECT("'"&$B3&"'!$A$3:$v$144"),17) -> 0.07541276226 | J3: =VLOOKUP($A3,INDIRECT("'"&$B3&"'!$A$3:$v$144"),18) -> 0 | K3: =VLOOKUP($A3,INDIRECT("'"&$B3&"'!$A$3:$v$144"),19) -> 0.0515805913 | L3: =VLOOKUP($A3,INDIRECT("'"&$B3&"'!$A$3:$v$144"),20) -> 0 | M3: =VLOOKUP($A3,INDIRECT("'"&$B3&"'!$A$3:$v$144"),21) -> 0.05879367063 | N3: =VLOOKUP($A3,INDIRECT("'"&$B3&"'!$A$3:$v$144"),22) -> 0 | O3: =C3-I3 -> -1.276225805e-05 | P3: 0 | Q3: 1.940869985e-05 | R3: 0 | S3: 6.329372023e-06 | T3: 0
A4: 1700 | B4: DSFS | C4: 0.1559 | D4: 0 | E4: 0.6255 | F4: 0 | G4: 0.3123 | H4: 0 | I4: 0.1559378928 | J4: 0 | K4: 0.625502735 | L4: 0 | M4: 0.3123132697 | N4: 0 | O4: =C4-I4 -> -3.789282501e-05 | P4: =D4-J4 -> 0 | Q4: =E4-K4 -> -2.735022076e-06 | R4: =F4-L4 -> 0 | S4: =G4-M4 -> -1.326973989e-05 | T4: =H4-N4 -> 0
A5: 1700 | B5: DSTG | C5: 0.1162 | D5: 0 | E5: 0.2085 | F5: 0 | G5: 0.1556 | H5: 0 | I5: 0.1162174339 | J5: 0 | K5: 0.2084474945 | L5: 0 | M5: 0.1556445724 | N5: 0 | O5: -1.743393376e-05 | P5: 0 | Q5: 5.250547198e-05 | R5: 0 | S5: -4.457242052e-05 | T5: 0
A6: 1700 | B6: ABXY-TI1S | C6: 0.2465 | D6: 0.0157 | E6: 0.0411 | F6: -0.0622 | G6: -0.1006 | H6: 0.0254 | I6: 0.2464510347 | J6: 0.01569981099 | K6: 0.04110078287 | L6: -0.06220317245 | M6: -0.1006445749 | N6: 0.02540225428 | O6: 4.896525053e-05 | P6: 1.890145761e-07 | Q6: -7.828659483e-07 | R6: 3.172449071e-06 | S6: 4.457494732e-05 | T6: -2.254276901e-06
A7: 1700 | B7: ABXY-TI2S | C7: 0 | D7: 1.8118 | E7: 0 | F7: 0 | G7: 0 | H7: 0 | I7: 0 | J7: 1.811844559 | K7: 0 | L7: 0 | M7: 0 | N7: 0 | O7: 0 | P7: -4.455921325e-05 | Q7: 0 | R7: 0 | S7: 0 | T7: 0
A8: 1700 | B8: ABZ | C8: 0.0411 | D8: 0.0148 | E8: 0.0388 | F8: -0.0247 | G8: -0.0399 | H8: 0.024 | I8: 0.04110078287 | J8: 0.01481967428 | K8: 0.0387966591 | L8: -0.02467995573 | M8: -0.03993210565 | N8: 0.02397819533 | O8: -7.828659483e-07 | P8: -1.967428056e-05 | Q8: 3.340899133e-06 | R8: -2.004427173e-05 | S8: 3.210564983e-05 | T8: 2.180467489e-05
A9: 1700 | B9: ASXY-TI1S | C9: 0.016 | D9: 0.0052 | E9: 0.0136 | F9: -0.0091 | G9: -0.0147 | H9: 0.0084 | I9: 0.01602495505 | J9: 0.005179386818 | K9: 0.01355919846 | L9: -0.009110402899 | M9: -0.01474060874 | N9: 0.00838023471 | O9: -2.495505499e-05 | P9: 2.061318175e-05 | Q9: 4.080153619e-05 | R9: 1.04028986e-05 | S9: 4.060873791e-05 | T9: 1.976529031e-05
A10: 1700 | B10: ASXY-TI2S | C10: 0.008 | D10: 0.0026 | E10: 0.0068 | F10: -0.0046 | G10: -0.0074 | H10: 0.0042 | I10: 0.008012477527 | J10: 0.002589693409 | K10: 0.006779599232 | L10: -0.004555201449 | M10: -0.007370304369 | N10: 0.004190117355 | O10: -1.24775275e-05 | P10: 1.030659088e-05 | Q10: 2.04007681e-05 | R10: -4.47985507e-05 | S10: -2.969563104e-05 | T10: 9.882645156e-06
A11: 1700 | B11: ASXY-TI3S | C11: 0 | D11: 0.2002 | E11: 0 | F11: 0 | G11: 0 | H11: 0 | I11: 0 | J11: 0.2002087393 | K11: 0 | L11: 0 | M11: 0 | N11: 0 | O11: 0 | P11: -8.739263175e-06 | Q11: 0 | R11: 0 | S11: 0 | T11: 0
A12: 1700 | B12: ASZ | C12: 0.032 | D12: 0.0104 | E12: 0.0271 | F12: -0.0182 | G12: -0.0295 | H12: 0.0168 | I12: 0.03204991011 | J12: 0.01035877364 | K12: 0.02711839693 | L12: -0.0182208058 | M12: -0.02948121748 | N12: 0.01676046942 | O12: -4.991010998e-05 | P12: 4.12263635e-05 | Q12: -1.839692761e-05 | R12: 2.08057972e-05 | S12: -1.878252418e-05 | T12: 3.953058062e-05
A13: 1700 | B13: MBXY-TI1S | C13: 0 | D13: 0.1407 | E13: 0 | F13: 0 | G13: 0 | H13: 0 | I13: 0 | J13: 0.1407280175 | K13: 0 | L13: 0 | M13: 0 | N13: 0 | O13: 0 | P13: -2.801745415e-05 | Q13: 0 | R13: 0 | S13: 0 | T13: 0
A14: 1700 | B14: MBXY-TI2S | C14: 0 | D14: 5.3144 | E14: 0 | F14: 0 | G14: 0 | H14: 0 | I14: 0 | J14: 5.31442783 | K14: 0 | L14: 0 | M14: 0 | N14: 0 | O14: 0 | P14: -2.782984705e-05 | Q14: 0 | R14: 0 | S14: 0 | T14: 0
A15: 1700 | B15: MBZ | C15: 0 | D15: 0.1328 | E15: 0 | F15: 0 | G15: 0 | H15: 0 | I15: 0 | J15: 0.1328387573 | K15: 0 | L15: 0 | M15: 0 | N15: 0 | O15: 0 | P15: -3.875727907e-05 | Q15: 0 | R15: 0 | S15: 0 | T15: 0
A16: 1700 | B16: MSXY-TI1S | C16: 0 | D16: 0.0208 | E16: 0 | F16: 0 | G16: 0 | H16: 0 | I16: 0 | J16: 0.02079968399 | K16: 0 | L16: 0 | M16: 0 | N16: 0 | O16: 0 | P16: 3.160072387e-07 | Q16: 0 | R16: 0 | S16: 0 | T16: 0
A17: 1700 | B17: MSXY-TI2S | C17: 0 | D17: 0.122 | E17: 0 | F17: 0 | G17: 0 | H17: 0 | I17: 0 | J17: 0.1219945139 | K17: 0 | L17: 0 | M17: 0 | N17: 0 | O17: 0 | P17: 5.486099134e-06 | Q17: 0 | R17: 0 | S17: 0 | T17: 0
A18: 1700 | B18: MSXY-TI3S | C18: 0 | D18: 1.9365 | E18: 0 | F18: 0 | G18: 0 | H18: 0 | I18: 0 | J18: 1.93651692 | K18: 0 | L18: 0 | M18: 0 | N18: 0 | O18: 0 | P18: -1.691992847e-05 | Q18: 0 | R18: 0 | S18: 0 | T18: 0
A19: 1700 | B19: MSZ | C19: 0 | D19: 0.0416 | E19: 0 | F19: 0 | G19: 0 | H19: 0 | I19: 0 | J19: 0.04159936799 | K19: 0 | L19: 0 | M19: 0 | N19: 0 | O19: 0 | P19: 6.320144774e-07 | Q19: 0 | R19: 0 | S19: 0 | T19: 0
A20: 1700 | B20: DEC-U | C20: 0 | D20: 3.8777 | E20: 0 | F20: 0 | G20: 0 | H20: 0 | I20: 0 | J20: 3.877665189 | K20: 0 | L20: 0 | M20: 0 | N20: 0 | O20: 0 | P20: 3.481148318e-05 | Q20: 0 | R20: 0 | S20: 0 | T20: 0
A21: 1700 | B21: DEC-OS | C21: 0 | D21: 8.7247 | E21: 0 | F21: 0 | G21: 0 | H21: 0 | I21: 0 | J21: 8.724746674 | K21: 0 | L21: 0 | M21: 0 | N21: 0 | O21: 0 | P21: -4.667416283e-05 | Q21: 0 | R21: 0 | S21: 0 | T21: 0
A22: 1700 | B22: DEC-OH | C22: 0 | D22: 6.0589 | E22: 0 | F22: 0 | G22: 0 | H22: 0 | I22: 0 | J22: 6.679884172 | K22: 0 | L22: 0 | M22: 0 | N22: 0 | O22: 0 | P22: -0.6209841724 | Q22: 0 | R22: 0 | S22: 0 | T22: 0
A23: 1700 | B23: DEC-OI | C23: 0 | D23: 0.3787 | E23: 0 | F23: 0 | G23: 0 | H23: 0 | I23: 0 | J23: 0.3786782411 | K23: 0 | L23: 0 | M23: 0 | N23: 0 | O23: 0 | P23: 2.17589339e-05 | Q23: 0 | R23: 0 | S23: 0 | T23: 0
A24: 1700 | B24: DECR | C24: 0 | D24: 0.0426 | E24: 0 | F24: 0 | G24: 0 | H24: 0 | I24: 0 | J24: 0.04257672049 | K24: 0 | L24: 0 | M24: 0 | N24: 0 | O24: 0 | P24: 2.327950945e-05 | Q24: 0 | R24: 0 | S24: 0 | T24: 0
A25: 1700 | B25: DBH-U | C25: 0 | D25: 1.9218 | E25: 0 | F25: 0 | G25: 0 | H25: 0 | I25: 0 | J25: 1.921777161 | K25: 0 | L25: 0 | M25: 0 | N25: 0 | O25: 0 | P25: 2.283920102e-05 | Q25: 0 | R25: 0 | S25: 0 | T25: 0
A26: 1700 | B26: DBH-OS | C26: 0 | D26: 3.9263 | E26: 0 | F26: 0 | G26: 0 | H26: 0 | I26: 0 | J26: 3.926334634 | K26: 0 | L26: 0 | M26: 0 | N26: 0 | O26: 0 | P26: -3.463355595e-05 | Q26: 0 | R26: 0 | S26: 0 | T26: 0
A27: 1700 | B27: DBH-OH | C27: 0 | D27: 2.8068 | E27: 0 | F27: 0 | G27: 0 | H27: 0 | I27: 0 | J27: 2.806751628 | K27: 0 | L27: 0 | M27: 0 | N27: 0 | O27: 0 | P27: 4.837154545e-05 | Q27: 0 | R27: 0 | S27: 0 | T27: 0
A28: 1700 | B28: DBH-OI | C28: 0 | D28: 0.0441 | E28: 0 | F28: 0 | G28: 0 | H28: 0 | I28: 0 | J28: 0.04410291539 | K28: 0 | L28: 0 | M28: 0 | N28: 0 | O28: 0 | P28: -2.915391764e-06 | Q28: 0 | R28: 0 | S28: 0 | T28: 0
A29: 1700 | B29: DBHR | C29: 0 | D29: 0.088 | E29: 0 | F29: 0 | G29: 0 | H29: 0 | I29: 0 | J29: 0.08803425161 | K29: 0 | L29: 0 | M29: 0 | N29: 0 | O29: 0 | P29: -3.425161155e-05 | Q29: 0 | R29: 0 | S29: 0 | T29: 0
A30: 1700 | B30: AMIL | C30: 0 | D30: 1.3121 | E30: 0 | F30: 0 | G30: 0 | H30: 0 | I30: 0 | J30: 1.312121603 | K30: 0 | L30: 0 | M30: 0 | N30: 0 | O30: 0 | P30: -2.160251164e-05 | Q30: 0 | R30: 0 | S30: 0 | T30: 0
A31: 1700 | B31: SAGE | C31: 6.9144 | D31: 0 | E31: 4.9398 | F31: 0 | G31: -5.8443 | H31: 0 | I31: 6.914365868 | J31: 0 | K31: 4.939789698 | L31: 0 | M31: -5.844271835 | N31: 0 | O31: 3.413151244e-05 | P31: 0 | Q31: 1.030236845e-05 | R31: 0 | S31: -2.816487716e-05 | T31: 0
A32: 1700 | B32: XYM1 | C32: 0.7525 | D32: 0 | E32: 0.7103 | F32: 0 | G32: -0.7311 | H32: 0 | I32: 0.7525341237 | J32: 0 | K32: 0.7103468067 | L32: 0 | M32: -0.731136247 | N32: 0 | O32: -3.412374782e-05 | P32: 0 | Q32: -4.680667853e-05 | R32: 0 | S32: 3.624702985e-05 | T32: 0
A33: 1700 | B33: XYM2 | C33: 0 | D33: 1.5147 | E33: 0 | F33: 0 | G33: 0 | H33: 0 | I33: 0 | J33: 1.514712964 | K33: 0 | L33: 0 | M33: 0 | N33: 0 | O33: 0 | P33: -1.296426438e-05 | Q33: 0 | R33: 0 | S33: 0 | T33: 0
A34: 1700 | B34: XYM3E | C34: 0.8129 | D34: 0 | E34: 0.1815 | F34: 0 | G34: -0.2125 | H34: 0 | I34: 0.8129174909 | J34: 0 | K34: 0.1815243056 | L34: 0 | M34: -0.2124750932 | N34: 0 | O34: -1.749094547e-05 | P34: 0 | Q34: -2.430562498e-05 | R34: 0 | S34: -2.490682251e-05 | T34: 0
A35: 1700 | B35: XYM4E | C35: 0 | D35: 0.9944 | E35: 0 | F35: 0 | G35: 0 | H35: 0 | I35: 0 | J35: 0.9944417966 | K35: 0 | L35: 0 | M35: 0 | N35: 0 | O35: 0 | P35: -4.179657045e-05 | Q35: 0 | R35: 0 | S35: 0 | T35: 0
A36: 1700 | B36: XCLA | C36: 0 | D36: 0.4046 | E36: 0 | F36: 0 | G36: 0 | H36: 0 | I36: 0 | J36: 0.4045512072 | K36: 0 | L36: 0 | M36: 0 | N36: 0 | O36: 0 | P36: 4.879278689e-05 | Q36: 0 | R36: 0 | S36: 0 | T36: 0
A37: 1700 | B37: XCLH | C37: 0.8878 | D37: 0 | E37: 0.2925 | F37: 0 | G37: -0.3915 | H37: 0 | I37: 0.8877687429 | J37: 0 | K37: 0.2925109421 | L37: 0 | M37: -0.3915036737 | N37: 0 | O37: 3.125709315e-05 | P37: 0 | Q37: -1.094212023e-05 | R37: 0 | S37: 3.673728775e-06 | T37: 0
A38: 1700 | B38: TOTAL | C38: 10.0588 | D38: 41.865 | E38: 7.1371 | F38: -0.1188 | G38: -6.8448 | H38: 0.0787 | I38: =VLOOKUP($A38,TOTALS!$A$3:$G$144,2) -> 10.05879348 | J38: =VLOOKUP($A38,TOTALS!$A$3:$G$144,3) -> 42.48598489 | K38: =VLOOKUP($A38,TOTALS!$A$3:$G$144,4) -> 7.137057209 | L38: =VLOOKUP($A38,TOTALS!$A$3:$G$144,5) -> -0.1187695383 | M38: =VLOOKUP($A38,TOTALS!$A$3:$G$144,6) -> -6.844804147 | N38: =VLOOKUP($A38,TOTALS!$A$3:$G$144,7) -> 0.07871127109 | O38: 6.52458759e-06 | P38: -0.620984885 | Q38: 4.279050433e-05 | R38: -3.046167755e-05 | S38: 4.147450392e-06 | T38: -1.127108592e-05
A40: 2850 | B40: DRFR | C40: 0.0064 | D40: 0 | E40: 0.1242 | F40: 0 | G40: -0.0028 | H40: 0 | I40: =VLOOKUP($A40,INDIRECT("'"&$B40&"'!$A$3:$v$144"),17) -> 0.006367975148 | J40: =VLOOKUP($A40,INDIRECT("'"&$B40&"'!$A$3:$v$144"),18) -> 0 | K40: =VLOOKUP($A40,INDIRECT("'"&$B40&"'!$A$3:$v$144"),19) -> 0.1242476225 | L40: =VLOOKUP($A40,INDIRECT("'"&$B40&"'!$A$3:$v$144"),20) -> 0 | M40: =VLOOKUP($A40,INDIRECT("'"&$B40&"'!$A$3:$v$144"),21) -> -0.002753260488 | N40: =VLOOKUP($A40,INDIRECT("'"&$B40&"'!$A$3:$v$144"),22) -> 0 | O40: =C40-I40 -> 3.202485163e-05 | P40: 0 | Q40: -4.762250949e-05 | R40: 0 | S40: -4.67395124e-05 | T40: 0
A41: 2850 | B41: DSFS | C41: 0.3212 | D41: 0 | E41: 1.9142 | F41: 0 | G41: 0.7842 | H41: 0 | I41: 0.3212310042 | J41: 0 | K41: 1.9141997 | L41: 0 | M41: 0.7841557829 | N41: 0 | O41: -3.100422741e-05 | P41: 0 | Q41: 3.002314672e-07 | R41: 0 | S41: 4.421710451e-05 | T41: 0
A42: 2850 | B42: DSTG | C42: 0.3474 | D42: 0 | E42: 2.3925 | F42: 0 | G42: 0.9117 | H42: 0 | I42: 0.3474284568 | J42: 0 | K42: 2.392471581 | L42: 0 | M42: 0.9117086757 | N42: 0 | O42: -2.845682893e-05 | P42: 0 | Q42: 2.841903577e-05 | R42: 0 | S42: -8.675719094e-06 | T42: 0
A43: 2850 | B43: ABXY-TI1S | C43: 0.8079 | D43: 0.0357 | E43: 0.0934 | F43: -0.1697 | G43: -0.2746 | H43: 0.0577 | I43: 0.8079038133 | J43: 0.03565964578 | K43: 0.09335394927 | L43: -0.1697338028 | M43: -0.2746288616 | N43: 0.05769721625 | O43: -3.813298676e-06 | P43: 4.035422171e-05 | Q43: 4.605073456e-05 | R43: 3.380277707e-05 | S43: 2.886155327e-05 | T43: 2.783751635e-06
A44: 2850 | B44: ABXY-TI2S | C44: 0 | D44: 4.4642 | E44: 0 | F44: 0 | G44: 0 | H44: 0 | I44: 0 | J44: 4.464235144 | K44: 0 | L44: 0 | M44: 0 | N44: 0 | O44: 0 | P44: -3.514352398e-05 | Q44: 0 | R44: 0 | S44: 0 | T44: 0
A45: 2850 | B45: ABZ | C45: 0.0934 | D45: 0.0266 | E45: 0.0695 | F45: -0.0498 | G45: -0.0806 | H45: 0.043 | I45: 0.09335394927 | J45: 0.02655050694 | K45: 0.06950699099 | L45: -0.04978548662 | M45: -0.08055279083 | N45: 0.04295865276 | O45: 4.605073456e-05 | P45: 4.949305958e-05 | Q45: -6.990991944e-06 | R45: -1.451338103e-05 | S45: -4.720916904e-05 | T45: 4.13472425e-05
A46: 2850 | B46: ASXY-TI1S | C46: 0.0404 | D46: 0.01 | E46: 0.0262 | F46: -0.0201 | G46: -0.0325 | H46: 0.0162 | I46: 0.04037065946 | J46: 0.01002156463 | K46: 0.02623561214 | L46: -0.02011410383 | M46: -0.03254456888 | N46: 0.0162148661 | O46: 2.934054498e-05 | P46: -2.156462615e-05 | Q46: -3.561213947e-05 | R46: 1.410382614e-05 | S46: 4.456887526e-05 | T46: -1.486609758e-05
A47: 2850 | B47: ASXY-TI2S | C47: 0.0202 | D47: 0.005 | E47: 0.0131 | F47: -0.0101 | G47: -0.0163 | H47: 0.0081 | I47: 0.02018532973 | J47: 0.005010782313 | K47: 0.01311780607 | L47: -0.01005705191 | M47: -0.01627228444 | N47: 0.008107433049 | O47: 1.467027249e-05 | P47: -1.078231308e-05 | Q47: -1.780606974e-05 | R47: -4.294808693e-05 | S47: -2.771556237e-05 | T47: -7.433048789e-06
A48: 2850 | B48: ASXY-TI3S | C48: 0 | D48: 0.3842 | E48: 0 | F48: 0 | G48: 0 | H48: 0 | I48: 0 | J48: 0.384221504 | K48: 0 | L48: 0 | M48: 0 | N48: 0 | O48: 0 | P48: -2.150396168e-05 | Q48: 0 | R48: 0 | S48: 0 | T48: 0
A49: 2850 | B49: ASZ | C49: 0.0807 | D49: 0.02 | E49: 0.0525 | F49: -0.0402 | G49: -0.0651 | H49: 0.0324 | I49: 0.08074131891 | J49: 0.02004312925 | K49: 0.05247122428 | L49: -0.04022820765 | M49: -0.06508913775 | N49: 0.0324297322 | O49: -4.131891004e-05 | P49: -4.312925231e-05 | Q49: 2.877572106e-05 | R49: 2.820765229e-05 | S49: -1.086224948e-05 | T49: -2.973219516e-05
A50: 2850 | B50: MBXY-TI1S | C50: 0 | D50: 0.3196 | E50: 0 | F50: 0 | G50: 0 | H50: 0 | I50: 0 | J50: 0.3196415077 | K50: 0 | L50: 0 | M50: 0 | N50: 0 | O50: 0 | P50: -4.150766883e-05 | Q50: 0 | R50: 0 | S50: 0 | T50: 0
A51: 2850 | B51: MBXY-TI2S | C51: 0 | D51: 10.9477 | E51: 0 | F51: 0 | G51: 0 | H51: 0 | I51: 0 | J51: 10.94768537 | K51: 0 | L51: 0 | M51: 0 | N51: 0 | O51: 0 | P51: 1.462508232e-05 | Q51: 0 | R51: 0 | S51: 0 | T51: 0
A52: 2850 | B52: MBZ | C52: 0 | D52: 0.238 | E52: 0 | F52: 0 | G52: 0 | H52: 0 | I52: 0 | J52: 0.2379901393 | K52: 0 | L52: 0 | M52: 0 | N52: 0 | O52: 0 | P52: 9.860653929e-06 | Q52: 0 | R52: 0 | S52: 0 | T52: 0
A53: 2850 | B53: MSXY-TI1S | C53: 0 | D53: 0.0442 | E53: 0 | F53: 0 | G53: 0 | H53: 0 | I53: 0 | J53: 0.04422310711 | K53: 0 | L53: 0 | M53: 0 | N53: 0 | O53: 0 | P53: -2.310710685e-05 | Q53: 0 | R53: 0 | S53: 0 | T53: 0
A54: 2850 | B54: MSXY-TI2S | C54: 0 | D54: 0.2537 | E54: 0 | F54: 0 | G54: 0 | H54: 0 | I54: 0 | J54: 0.2536508975 | K54: 0 | L54: 0 | M54: 0 | N54: 0 | O54: 0 | P54: 4.91024613e-05 | Q54: 0 | R54: 0 | S54: 0 | T54: 0
A55: 2850 | B55: MSXY-TI3S | C55: 0 | D55: 3.6975 | E55: 0 | F55: 0 | G55: 0 | H55: 0 | I55: 0 | J55: 3.697507453 | K55: 0 | L55: 0 | M55: 0 | N55: 0 | O55: =C55-I55 -> 0 | P55: =D55-J55 -> -7.453206059e-06 | Q55: =E55-K55 -> 0 | R55: =F55-L55 -> 0 | S55: =G55-M55 -> 0 | T55: =H55-N55 -> 0
A56: 2850 | B56: MSZ | C56: 0 | D56: 0.0884 | E56: 0 | F56: 0 | G56: 0 | H56: 0 | I56: 0 | J56: 0.08844621421 | K56: 0 | L56: 0 | M56: 0 | N56: 0 | O56: 0 | P56: -4.621421369e-05 | Q56: 0 | R56: 0 | S56: 0 | T56: 0
A57: 2850 | B57: DEC-U | C57: 0 | D57: 7.988 | E57: 0 | F57: 0 | G57: 0 | H57: 0 | I57: 0 | J57: 7.987964054 | K57: 0 | L57: 0 | M57: 0 | N57: 0 | O57: 0 | P57: 3.594585747e-05 | Q57: 0 | R57: 0 | S57: 0 | T57: 0
A58: 2850 | B58: DEC-OS | C58: 0 | D58: 17.9729 | E58: 0 | F58: 0 | G58: 0 | H58: 0 | I58: 0 | J58: 17.97291912 | K58: 0 | L58: 0 | M58: 0 | N58: 0 | O58: 0 | P58: -1.912182069e-05 | Q58: 0 | R58: 0 | S58: 0 | T58: 0
A59: 2850 | B59: DEC-OH | C59: 0 | D59: 12.4812 | E59: 0 | F59: 0 | G59: 0 | H59: 0 | I59: 0 | J59: 13.7605162 | K59: 0 | L59: 0 | M59: 0 | N59: 0 | O59: 0 | P59: -1.279316203 | Q59: 0 | R59: 0 | S59: 0 | T59: 0
A60: 2850 | B60: DEC-OI | C60: 0 | D60: 0.7801 | E60: 0 | F60: 0 | G60: 0 | H60: 0 | I60: 0 | J60: 0.7800746147 | K60: 0 | L60: 0 | M60: 0 | N60: 0 | O60: 0 | P60: 2.538533764e-05 | Q60: 0 | R60: 0 | S60: 0 | T60: 0
A61: 2850 | B61: DECR | C61: 0 | D61: 0.0571 | E61: 0 | F61: 0 | G61: 0 | H61: 0 | I61: 0 | J61: 0.05711916796 | K61: 0 | L61: 0 | M61: 0 | N61: 0 | O61: 0 | P61: -1.916795607e-05 | Q61: 0 | R61: 0 | S61: 0 | T61: 0
A62: 2850 | B62: DBH-U | C62: 0 | D62: 3.9588 | E62: 0 | F62: 0 | G62: 0 | H62: 0 | I62: 0 | J62: 3.95884795 | K62: 0 | L62: 0 | M62: 0 | N62: 0 | O62: 0 | P62: -4.794953276e-05 | Q62: 0 | R62: 0 | S62: 0 | T62: 0
A63: 2850 | B63: DBH-OS | C63: 0 | D63: 8.0882 | E63: 0 | F63: 0 | G63: 0 | H63: 0 | I63: 0 | J63: 8.088222782 | K63: 0 | L63: 0 | M63: 0 | N63: 0 | O63: 0 | P63: -2.278165181e-05 | Q63: 0 | R63: 0 | S63: 0 | T63: 0
A64: 2850 | B64: DBH-OH | C64: 0 | D64: 5.7819 | E64: 0 | F64: 0 | G64: 0 | H64: 0 | I64: 0 | J64: 5.781889366 | K64: 0 | L64: 0 | M64: 0 | N64: 0 | O64: 0 | P64: 1.063435919e-05 | Q64: 0 | R64: 0 | S64: 0 | T64: 0
A65: 2850 | B65: DBH-OI | C65: 0 | D65: 0.0909 | E65: 0 | F65: 0 | G65: 0 | H65: 0 | I65: 0 | J65: 0.09085170733 | K65: 0 | L65: 0 | M65: 0 | N65: 0 | O65: 0 | P65: 4.829266963e-05 | Q65: 0 | R65: 0 | S65: 0 | T65: 0
A66: 2850 | B66: DBHR | C66: 0 | D66: 0.1181 | E66: 0 | F66: 0 | G66: 0 | H66: 0 | I66: 0 | J66: 0.1181031124 | K66: 0 | L66: 0 | M66: 0 | N66: 0 | O66: 0 | P66: -3.112352286e-06 | Q66: 0 | R66: 0 | S66: 0 | T66: 0
A67: 2850 | B67: AMIL | C67: 0 | D67: 2.3508 | E67: 0 | F67: 0 | G67: 0 | H67: 0 | I67: 0 | J67: 2.350759744 | K67: 0 | L67: 0 | M67: 0 | N67: 0 | O67: 0 | P67: 4.025625513e-05 | Q67: 0 | R67: 0 | S67: 0 | T67: 0
A68: 2850 | B68: SAGE | C68: 18.8346 | D68: 0 | E68: 9.7624 | F68: 0 | G68: -13.5599 | H68: 0 | I68: 18.83459363 | J68: 0 | K68: 9.762433315 | L68: 0 | M68: -13.55992125 | N68: 0 | O68: 6.36506055e-06 | P68: 0 | Q68: -3.331469649e-05 | R68: 0 | S68: 2.125237102e-05 | T68: 0
A69: 2850 | B69: XYM1 | C69: 1.7093 | D69: 0 | E69: 1.2726 | F69: 0 | G69: -1.4749 | H69: 0 | I69: 1.709262635 | J69: 0 | K69: 1.272637135 | L69: 0 | M69: -1.47488003 | N69: 0 | O69: 3.736531981e-05 | P69: 0 | Q69: -3.713518717e-05 | R69: 0 | S69: -1.997007151e-05 | T69: 0
A70: 2850 | B70: XYM2 | C70: 0 | D70: 3.1203 | E70: 0 | F70: 0 | G70: 0 | H70: 0 | I70: 0 | J70: 3.120298459 | K70: 0 | L70: 0 | M70: 0 | N70: 0 | O70: 0 | P70: 1.54135057e-06 | Q70: 0 | R70: 0 | S70: 0 | T70: 0
A71: 2850 | B71: XYM3E | C71: 1.5173 | D71: 0 | E71: 0.2647 | F71: 0 | G71: -0.3575 | H71: 0 | I71: 1.517326154 | J71: 0 | K71: 0.2646551362 | L71: 0 | M71: -0.3575325316 | N71: 0 | O71: -2.615380084e-05 | P71: 0 | Q71: 4.486376317e-05 | R71: 0 | S71: 3.253157474e-05 | T71: 0
A72: 2850 | B72: XYM4E | C72: 0 | D72: 1.782 | E72: 0 | F72: 0 | G72: 0 | H72: 0 | I72: 0 | J72: 1.78198129 | K72: 0 | L72: 0 | M72: 0 | N72: 0 | O72: 0 | P72: 1.870996233e-05 | Q72: 0 | R72: 0 | S72: 0 | T72: 0
A73: 2850 | B73: XCLA | C73: 0 | D73: 0.6803 | E73: 0 | F73: 0 | G73: 0 | H73: 0 | I73: 0 | J73: 0.6802568785 | K73: 0 | L73: 0 | M73: 0 | N73: 0 | O73: 0 | P73: 4.312150581e-05 | Q73: 0 | R73: 0 | S73: 0 | T73: 0
A74: 2850 | B74: XCLH | C74: 1.5724 | D74: 0 | E74: 0.4447 | F74: 0 | G74: -0.6362 | H74: 0 | I74: 1.572411139 | J74: 0 | K74: 0.444652705 | L74: 0 | M74: -0.6361706297 | N74: 0 | O74: -1.113854649e-05 | P74: 0 | Q74: 4.729502999e-05 | R74: 0 | S74: -2.937029021e-05 | T74: 0
A75: 2850 | B75: TOTAL | C75: 25.3512 | D75: 85.7854 | E75: 16.43 | F75: -0.2899 | G75: -14.8045 | H75: 0.1574 | I75: =VLOOKUP($A75,TOTALS!$A$3:$G$144,2) -> 25.35117607 | J75: =VLOOKUP($A75,TOTALS!$A$3:$G$144,3) -> 87.06469142 | K75: =VLOOKUP($A75,TOTALS!$A$3:$G$144,4) -> 16.42998278 | L75: =VLOOKUP($A75,TOTALS!$A$3:$G$144,5) -> -0.2899186528 | M75: =VLOOKUP($A75,TOTALS!$A$3:$G$144,6) -> -14.80448089 | N75: =VLOOKUP($A75,TOTALS!$A$3:$G$144,7) -> 0.1574079003 | O75: 2.393117163e-05 | P75: -1.279291419 | Q75: 1.722292172e-05 | R75: 1.865278754e-05 | S75: -1.911109531e-05 | T75: -7.900347388e-06
A77: 3430 | B77: DRFR | C77: 0.0137 | D77: 0.1378 | E77: 0.0243 | F77: -0.0318 | G77: -0.0063 | H77: 0.0154 | I77: =VLOOKUP($A77,INDIRECT("'"&$B77&"'!$A$3:$v$144"),17) -> 0.0137105634 | J77: =VLOOKUP($A77,INDIRECT("'"&$B77&"'!$A$3:$v$144"),18) -> 0.1377593149 | K77: =VLOOKUP($A77,INDIRECT("'"&$B77&"'!$A$3:$v$144"),19) -> 0.02434952569 | L77: =VLOOKUP($A77,INDIRECT("'"&$B77&"'!$A$3:$v$144"),20) -> -0.03180424385 | M77: =VLOOKUP($A77,INDIRECT("'"&$B77&"'!$A$3:$v$144"),21) -> -0.006319334534 | N77: =VLOOKUP($A77,INDIRECT("'"&$B77&"'!$A$3:$v$144"),22) -> 0.0154463637 | O77: =C77-I77 -> -1.056339621e-05 | P77: =D77-J77 -> 4.068506253e-05 | Q77: -4.952569479e-05 | R77: 4.243850309e-06 | S77: 1.933453375e-05 | T77: -4.636369683e-05
A78: 3430 | B78: DSFS | C78: 0.3988 | D78: 0.0786 | E78: 2.0948 | F78: -0.1771 | G78: 0.914 | H78: -0.4059 | I78: 0.3988103532 | J78: 0.07863982286 | K78: 2.094823164 | L78: -0.1770942561 | M78: 0.9140225194 | N78: -0.4058774723 | O78: =C78-I78 -> -1.035321241e-05 | P78: =D78-J78 -> -3.98228573e-05 | Q78: =E78-K78 -> -2.316420485e-05 | R78: =F78-L78 -> -5.743937644e-06 | S78: =G78-M78 -> -2.251943487e-05 | T78: =H78-N78 -> -2.25276633e-05
A79: 3430 | B79: DSTG | C79: 0.4536 | D79: 0.1325 | E79: 2.8338 | F79: -0.2451 | G79: 1.1337 | H79: -0.6127 | I79: 0.4535506504 | J79: 0.1324803896 | K79: 2.833722552 | L79: -0.2451256145 | M79: 1.133682807 | N79: -0.6127092849 | O79: 4.934962332e-05 | P79: 1.961036213e-05 | Q79: 7.744769179e-05 | R79: 2.561449675e-05 | S79: 1.719313273e-05 | T79: 9.284943034e-06
A80: 3430 | B80: ABXY-TI1S | C80: 0.7237 | D80: 0.0542 | E80: 0.1078 | F80: -0.198 | G80: -0.2793 | H80: 0.0764 | I80: 0.7237026462 | J80: 0.05417601977 | K80: 0.1078285523 | L80: -0.198008406 | M80: -0.2793489012 | N80: 0.07643115713 | O80: -2.646195091e-06 | P80: 2.398023296e-05 | Q80: -2.855228313e-05 | R80: 8.40604813e-06 | S80: 4.890123766e-05 | T80: -3.115712811e-05
A81: 3430 | B81: ABXY-TI2S | C81: 0.0015 | D81: 4.5287 | E81: 0 | F81: 0.0837 | G81: 0 | H81: 0 | I81: 0.001546101242 | J81: 4.528681151 | K81: 0 | L81: 0.08367675635 | M81: 0 | N81: 0 | O81: -4.610124233e-05 | P81: 1.884910061e-05 | Q81: 0 | R81: 2.324364847e-05 | S81: 0 | T81: 0
A82: 3430 | B82: ABZ | C82: 0.0503 | D82: 0.0953 | E82: 0.2148 | F82: 0.0693 | G82: 0.104 | H82: 0.1431 | I82: 0.05034351668 | J82: 0.09530655527 | K82: 0.2148379632 | L82: 0.06926808179 | M82: 0.1039985509 | N82: 0.1430925093 | O82: -4.351668319e-05 | P82: -6.55527036e-06 | Q82: -3.796324236e-05 | R82: 3.191820708e-05 | S82: 1.449112625e-06 | T82: 7.490699444e-06
A83: 3430 | B83: ASXY-TI1S | C83: 0.0284 | D83: 0.0147 | E83: 0.0307 | F83: -0.0204 | G83: -0.0295 | H83: 0.0212 | I83: 0.02835230626 | J83: 0.01469949864 | K83: 0.03071101226 | L83: -0.02041481539 | M83: -0.02950810101 | N83: 0.02124703469 | O83: 4.769374422e-05 | P83: 5.013550522e-07 | Q83: -1.101226329e-05 | R83: 1.481538951e-05 | S83: 8.101008261e-06 | T83: -4.703469073e-05
A84: 3430 | B84: ASXY-TI2S | C84: 0.0142 | D84: 0.0073 | E84: 0.0154 | F84: -0.0102 | G84: -0.0148 | H84: 0.0106 | I84: 0.01417615313 | J84: 0.007349749322 | K84: 0.01535550613 | L84: -0.01020740769 | M84: -0.0147540505 | N84: 0.01062351735 | O84: 2.384687211e-05 | P84: -4.974932247e-05 | Q84: 4.449386835e-05 | R84: 7.407694757e-06 | S84: -4.594949587e-05 | T84: -2.351734537e-05
A85: 3430 | B85: ASXY-TI3S | C85: 0.0002 | D85: 0.3881 | E85: 0 | F85: 0.0085 | G85: 0 | H85: 0 | I85: 0.0001859539878 | J85: 0.3881343176 | K85: 0 | L85: 0.008495594396 | M85: 0 | N85: 0 | O85: 1.404601225e-05 | P85: -3.431761306e-05 | Q85: 0 | R85: 4.405603851e-06 | S85: 0 | T85: 0
A86: 3430 | B86: ASZ | C86: 0.0567 | D86: 0.0294 | E86: 0.0614 | F86: -0.0408 | G86: -0.059 | H86: 0.0425 | I86: 0.05670461251 | J86: 0.02939899729 | K86: 0.06142202453 | L86: -0.04082963078 | M86: -0.05901620202 | N86: 0.04249406938 | O86: -4.612511556e-06 | P86: 1.002710104e-06 | Q86: -2.202452658e-05 | R86: 2.963077903e-05 | S86: 1.620201652e-05 | T86: 5.930618534e-06
A87: 3430 | B87: MBXY-TI1S | C87: 0.0335 | D87: 0.3692 | E87: 0 | F87: 0.1112 | G87: 0 | H87: 0 | I87: 0.03349334474 | J87: 0.369202174 | K87: 0 | L87: 0.1112016892 | M87: 0 | N87: 0 | O87: 6.65526295e-06 | P87: -2.174013272e-06 | Q87: 0 | R87: -1.689249287e-06 | S87: 0 | T87: 0
A88: 3430 | B88: MBXY-TI2S | C88: 0 | D88: 10.9477 | E88: 0 | F88: 0 | G88: 0 | H88: 0 | I88: 9.533655721e-32 | J88: 10.94768537 | K88: 0 | L88: -1.021623528e-15 | M88: 0 | N88: 0 | O88: -9.533655721e-32 | P88: 1.462508232e-05 | Q88: 0 | R88: 1.021623528e-15 | S88: 0 | T88: 0
A89: 3430 | B89: MBZ | C89: 2.5661 | D89: 0.7356 | E89: 0 | F89: 1.3739 | G89: 0 | H89: 0 | I89: 2.566096985 | J89: 0.7355996293 | K89: 0 | L89: 1.373906835 | M89: 0 | N89: 0 | O89: 3.014892008e-06 | P89: 3.706792405e-07 | Q89: 0 | R89: -6.834922426e-06 | S89: 0 | T89: 0
A90: 3430 | B90: MSXY-TI1S | C90: 0.0129 | D90: 0.056 | E90: 0 | F90: 0.0269 | G90: 0 | H90: 0 | I90: 0.0129256974 | J90: 0.05595145457 | K90: 0 | L90: 0.02689259323 | M90: 0 | N90: 0 | O90: -2.569739534e-05 | P90: 4.854542995e-05 | Q90: 0 | R90: 7.406770607e-06 | S90: 0 | T90: 0
A91: 3430 | B91: MSXY-TI2S | C91: 0.0065 | D91: 0.2727 | E91: 0 | F91: 0.042 | G91: 0 | H91: 0 | I91: 0.006462848698 | J91: 0.2726903175 | K91: 0 | L91: 0.04198042714 | M91: 0 | N91: 0 | O91: 3.715130233e-05 | P91: 9.682528728e-06 | Q91: 0 | R91: 1.957285667e-05 | S91: 0 | T91: 0
A92: 3430 | B92: MSXY-TI3S | C92: 0.0019 | D92: 3.6589 | E92: 0 | F92: -0.0835 | G92: 0 | H92: 0 | I92: 0.001904168835 | J92: 3.658865223 | K92: 0 | L92: -0.08346913877 | M92: 0 | N92: 0 | O92: -4.168834589e-06 | P92: 3.477738938e-05 | Q92: 0 | R92: -3.086123089e-05 | S92: 0 | T92: 0
A93: 3430 | B93: MSZ | C93: 0.0259 | D93: 0.1119 | E93: 0 | F93: 0.0538 | G93: 0 | H93: 0 | I93: 0.02585139479 | J93: 0.1119029091 | K93: 0 | L93: 0.05378518646 | M93: 0 | N93: 0 | O93: 4.860520932e-05 | P93: -2.909140101e-06 | Q93: 0 | R93: 1.481354121e-05 | S93: 0 | T93: 0
A94: 3430 | B94: DEC-U | C94: 1.9555 | D94: 9.9171 | E94: 0 | F94: 4.4038 | G94: 0 | H94: 0 | I94: 1.955515096 | J94: 9.917108635 | K94: 0 | L94: 4.403754722 | M94: 0 | N94: 0 | O94: -1.509643047e-05 | P94: -8.635084928e-06 | Q94: 0 | R94: 4.527830517e-05 | S94: 0 | T94: 0
A95: 3430 | B95: DEC-OS | C95: 4.3999 | D95: 22.3135 | E95: 0 | F95: 9.9084 | G95: 0 | H95: 0 | I95: 4.399908967 | J95: 22.31349443 | K95: 0 | L95: 9.908448124 | M95: 0 | N95: 0 | O95: -8.966968549e-06 | P95: 5.571058949e-06 | Q95: 0 | R95: -4.812381336e-05 | S95: 0 | T95: 0
A96: 3430 | B96: DEC-OH | C96: 3.0555 | D96: 15.4955 | E96: 0 | F96: 6.8809 | G96: 0 | H96: 0 | I96: 3.368680303 | J96: 17.08376917 | K96: 0 | L96: 7.586155595 | M96: 0 | N96: 0 | O96: -0.3131803028 | P96: -1.588269172 | Q96: 0 | R96: -0.7052555948 | S96: 0 | T96: 0
A97: 3430 | B97: DEC-OI | C97: 0.191 | D97: 0.9685 | E97: 0 | F97: 0.4301 | G97: 0 | H97: 0 | I97: 0.1909682711 | J97: 0.9684676401 | K97: 0 | L97: 0.430054172 | M97: 0 | N97: 0 | O97: 3.172886421e-05 | P97: 3.235985499e-05 | Q97: 0 | R97: 4.582795949e-05 | S97: 0 | T97: 0
A98: 3430 | B98: DECR | C98: 0.0416 | D98: 0.0593 | E98: 0 | F98: 0.0096 | G98: 0 | H98: 0 | I98: 0.04157291278 | J98: 0.05933500927 | K98: 0 | L98: 0.009597863174 | M98: 0 | N98: 0 | O98: 2.708721541e-05 | P98: -3.500926582e-05 | Q98: 0 | R98: 2.1368256e-06 | S98: 0 | T98: 0
A99: 3430 | B99: DBH-U | C99: 0.9692 | D99: 4.9149 | E99: 0 | F99: 2.1825 | G99: 0 | H99: 0 | I99: 0.9691564556 | J99: 4.914935135 | K99: 0 | L99: 2.182507987 | M99: 0 | N99: 0 | O99: 4.354444868e-05 | P99: -3.51348094e-05 | Q99: 0 | R99: -7.98727439e-06 | S99: 0 | T99: 0
A100: 3430 | B100: DBH-OS | C100: 1.9801 | D100: 10.0416 | E100: 0 | F100: 4.459 | G100: 0 | H100: 0 | I100: 1.980059205 | J100: 10.04158049 | K100: 0 | L100: 4.459027234 | M100: 0 | N100: 0 | O100: 4.079522548e-05 | P100: 1.951131312e-05 | Q100: 0 | R100: -2.723439863e-05 | S100: 0 | T100: 0
A101: 3430 | B101: DBH-OH | C101: 1.4155 | D101: 7.1783 | E101: 0 | F101: 3.1875 | G101: 0 | H101: 0 | I101: 1.415451029 | J101: 7.178252752 | K101: 0 | L101: 3.187548469 | M101: 0 | N101: 0 | O101: 4.897095614e-05 | P101: 4.724792783e-05 | Q101: 0 | R101: -4.846938167e-05 | S101: 0 | T101: 0
A102: 3430 | B102: DBH-OI | C102: 0.0222 | D102: 0.1128 | E102: 0 | F102: 0.0501 | G102: 0 | H102: 0 | I102: 0.02224119738 | J102: 0.1127929777 | K102: 0 | L102: 0.05008643409 | M102: 0 | N102: 0 | O102: -4.119738357e-05 | P102: 7.022318659e-06 | Q102: 0 | R102: 1.356590761e-05 | S102: 0 | T102: 0
A103: 3430 | B103: DBHR | C103: 0.086 | D103: 0.1227 | E103: 0 | F103: 0.0198 | G103: 0 | H103: 0 | I103: 0.08595871693 | J103: 0.1226847224 | K103: 0 | L103: 0.01984513349 | M103: 0 | N103: 0 | O103: 4.128307354e-05 | P103: 1.527757663e-05 | Q103: 0 | R103: -4.513348829e-05 | S103: 0 | T103: 0
A104: 3430 | B104: AMIL | C104: 25.3468 | D104: 7.2659 | E104: 0 | F104: 13.5708 | G104: 0 | H104: 0 | I104: 25.34675389 | J104: 7.265922869 | K104: 0 | L104: 13.57083486 | M104: 0 | N104: 0 | O104: 4.610628023e-05 | P104: -2.286920915e-05 | Q104: 0 | R104: -3.485923377e-05 | S104: 0 | T104: 0
A105: 3430 | B105: SAGE | C105: 19.4124 | D105: 0.0819 | E105: 23.933 | F105: -1.2608 | G105: -21.5545 | H105: 1.4 | I105: 19.41239637 | J105: 0.08188955505 | K105: 23.93304675 | L105: -1.260822153 | M105: -21.55453061 | N105: 1.399952338 | O105: 3.628754509e-06 | P105: 1.044494933e-05 | Q105: -4.674979253e-05 | R105: 2.21529258e-05 | S105: 3.06114172e-05 | T105: 4.76617587e-05
A106: 3430 | B106: XYM1 | C106: 1.7672 | D106: 0.0091 | E106: 3.9336 | F106: -0.1266 | G106: -2.6366 | H106: 0.1888 | I106: 1.767215359 | J106: 0.009063171832 | K106: 3.933572237 | L106: -0.1265566137 | M106: -2.636563915 | N106: 0.1888137736 | O106: -1.53594701e-05 | P106: 3.682816827e-05 | Q106: 2.776261322e-05 | R106: -4.338631841e-05 | S106: -3.60854523e-05 | T106: -1.377359706e-05
A107: 3430 | B107: XYM2 | C107: 0.7639 | D107: 3.8739 | E107: 0 | F107: 1.7202 | G107: 0 | H107: 0 | I107: 0.7638730845 | J107: 3.873870561 | K107: 0 | L107: 1.720216688 | M107: 0 | N107: 0 | O107: 2.691545685e-05 | P107: 2.943941995e-05 | Q107: 0 | R107: -1.668816204e-05 | S107: 0 | T107: 0
A108: 3430 | B108: XYM3E | C108: 1.5964 | D108: 0.0002 | E108: 0.2656 | F108: 0.0024 | G108: -0.3644 | H108: -0.0004 | I108: 1.596394459 | J108: 0.000185796466 | K108: 0.26559157 | L108: 0.002409009427 | M108: -0.3643881213 | N108: -0.0003871553966 | O108: 5.540712031e-06 | P108: 1.420353396e-05 | Q108: 8.429957491e-06 | R108: -9.00942666e-06 | S108: -1.187867512e-05 | T108: -1.28446034e-05
A109: 3430 | B109: XYM4E | C109: 0.0002 | D109: 1.8444 | E109: 0.0176 | F109: 0.0016 | G109: 0.0017 | H109: 0.0228 | I109: 0.000185796466 | J109: 1.844416955 | K109: 0.01756907445 | L109: 0.001647131011 | M109: 0.00167695426 | N109: 0.02281829008 | O109: 1.420353396e-05 | P109: -1.695488412e-05 | Q109: 3.092555364e-05 | R109: -4.713101052e-05 | S109: 2.304574004e-05 | T109: -1.829008402e-05
A110: 3430 | B110: XCLA | C110: 0.1337 | D110: 0.6874 | E110: 0 | F110: 0.0309 | G110: 0 | H110: 0 | I110: 0.1336986339 | J110: 0.6873830319 | K110: 0 | L110: 0.03086676176 | M110: 0 | N110: 0 | O110: 1.366131752e-06 | P110: 1.696805304e-05 | Q110: 0 | R110: 3.323824288e-05 | S110: 0 | T110: 0
A111: 3430 | B111: XCLH | C111: 1.79 | D111: 4.0832 | E111: 6.5622 | F111: -0.9427 | G111: -1.3583 | H111: 3.1279 | I111: 1.790046159 | J111: 4.08319931 | K111: 6.562203447 | L111: -0.9426808388 | M111: -1.358305456 | N111: 3.127909576 | O111: -4.615860233e-05 | P111: 6.897123894e-07 | Q111: -3.446565364e-06 | R111: -1.916122875e-05 | S111: 5.455637843e-06 | T111: -9.576487735e-06
A112: 3430 | B112: TOTAL | C112: 69.3147 | D112: 110.5886 | E112: 40.0951 | F112: 45.4899 | G112: -24.1493 | H112: 4.0298 | I112: =VLOOKUP($A112,TOTALS!$A$3:$G$144,2) -> 69.62789321 | J112: =VLOOKUP($A112,TOTALS!$A$3:$G$144,3) -> 112.1768751 | K112: =VLOOKUP($A112,TOTALS!$A$3:$G$144,4) -> 40.09503338 | L112: =VLOOKUP($A112,TOTALS!$A$3:$G$144,5) -> 46.19519423 | M112: =VLOOKUP($A112,TOTALS!$A$3:$G$144,6) -> -24.14935386 | N112: =VLOOKUP($A112,TOTALS!$A$3:$G$144,7) -> 4.029854717 | O112: -0.3131932076 | P112: -1.58827511 | Q112: 6.66211116e-05 | R112: -0.7052942288 | S112: 5.386077848e-05 | T112: -5.471727685e-05
A114: 4030 | B114: DRFR | C114: 0.1265 | D114: 0.0368 | E114: 0.0403 | F114: 0.0104 | G114: 0.0371 | H114: 0.0221 | I114: =VLOOKUP($A114,INDIRECT("'"&$B114&"'!$A$3:$v$144"),17) -> 0.1265030876 | J114: =VLOOKUP($A114,INDIRECT("'"&$B114&"'!$A$3:$v$144"),18) -> 0.03683702964 | K114: =VLOOKUP($A114,INDIRECT("'"&$B114&"'!$A$3:$v$144"),19) -> 0.04030678117 | L114: =VLOOKUP($A114,INDIRECT("'"&$B114&"'!$A$3:$v$144"),20) -> 0.01035049111 | M114: =VLOOKUP($A114,INDIRECT("'"&$B114&"'!$A$3:$v$144"),21) -> 0.03713248145 | N114: =VLOOKUP($A114,INDIRECT("'"&$B114&"'!$A$3:$v$144"),22) -> 0.02213399846 | O114: =C114-I114 -> -3.087615513e-06 | P114: =D114-J114 -> -3.702964001e-05 | Q114: =E114-K114 -> -6.781165364e-06 | R114: =F114-L114 -> 4.950888627e-05 | S114: =G114-M114 -> -3.248144592e-05 | T114: =H114-N114 -> -3.399845668e-05
A115: 4030 | B115: DSFS | C115: 0.1632 | D115: 0.1958 | E115: 1.8316 | F115: -0.1788 | G115: 0.5467 | H115: -0.5989 | I115: 0.1631945238 | J115: 0.1958201533 | K115: 1.831644499 | L115: -0.1787645845 | M115: 0.5467306025 | N115: -0.5988930677 | O115: =C115-I115 -> 5.476178298e-06 | P115: -2.015333754e-05 | Q115: -4.449862789e-05 | R115: -3.541547999e-05 | S115: -3.060254957e-05 | T115: -6.932264887e-06
A116: 4030 | B116: DSTG | C116: 0.2995 | D116: 0.239 | E116: 2.6517 | F116: -0.2675 | G116: 0.8912 | H116: -0.7961 | I116: 0.2994968599 | J116: 0.238989476 | K116: 2.651634178 | L116: -0.2675380302 | M116: 0.8911543694 | N116: -0.7960607156 | O116: 3.140094485e-06 | P116: 1.05239794e-05 | Q116: 6.582170599e-05 | R116: 3.803022866e-05 | S116: 4.563064686e-05 | T116: -3.928443316e-05
A117: 4030 | B117: ABXY-TI1S | C117: 0.7416 | D117: 0.0665 | E117: 0.0694 | F117: -0.222 | G117: -0.2269 | H117: 0.0679 | I117: 0.7415631117 | J117: 0.06646353122 | K117: 0.06944175816 | L117: -0.2220065382 | M117: -0.2269260811 | N117: 0.06793632652 | O117: 3.688829599e-05 | P117: 3.646878244e-05 | Q117: -4.175815755e-05 | R117: 6.538247259e-06 | S117: 2.608105176e-05 | T117: -3.632652055e-05
A118: 4030 | B118: ABXY-TI2S | C118: 0.0377 | D118: 6.875 | E118: 0 | F118: -0.5093 | G118: 0 | H118: 0 | I118: 0.03772988669 | J118: 6.874958456 | K118: 0 | L118: -0.5093048238 | M118: 0 | N118: 0 | O118: -2.988669169e-05 | P118: 4.154360841e-05 | Q118: 0 | R118: 4.823823329e-06 | S118: 0 | T118: 0
A119: 4030 | B119: ABZ | C119: 0.1268 | D119: 0.0498 | E119: 0.4717 | F119: 0.0795 | G119: 0.2446 | H119: 0.1533 | I119: 0.1268154731 | J119: 0.04982188689 | K119: 0.4716502928 | L119: 0.07948701879 | M119: 0.2445660545 | N119: 0.1532922292 | O119: -1.547309858e-05 | P119: -2.188688663e-05 | Q119: 4.970723305e-05 | R119: 1.298120956e-05 | S119: 3.394549871e-05 | T119: 7.770789645e-06
A120: 4030 | B120: ASXY-TI1S | C120: 0.0316 | D120: 0.0202 | E120: 0.0149 | F120: -0.0252 | G120: -0.0217 | H120: 0.0173 | I120: 0.03157854669 | J120: 0.02017308534 | K120: 0.0148753014 | L120: -0.02523958631 | M120: -0.02167349533 | N120: 0.01732283824 | O120: 2.145331026e-05 | P120: 2.691466373e-05 | Q120: 2.469859716e-05 | R120: 3.958631134e-05 | S120: -2.650466876e-05 | T120: -2.283823749e-05
A121: 4030 | B121: ASXY-TI2S | C121: 0.0158 | D121: 0.0101 | E121: 0.0074 | F121: -0.0126 | G121: -0.0108 | H121: 0.0087 | I121: 0.01578927334 | J121: 0.01008654267 | K121: 0.007437650701 | L121: -0.01261979316 | M121: -0.01083674767 | N121: 0.008661419119 | O121: 1.072665513e-05 | P121: 1.345733186e-05 | Q121: -3.765070142e-05 | R121: 1.979315567e-05 | S121: 3.674766562e-05 | T121: 3.858088126e-05
A122: 4030 | B122: ASXY-TI3S | C122: 0.0152 | D122: 0.8255 | E122: 0 | F122: -0.1121 | G122: 0 | H122: 0 | I122: 0.01521464659 | J122: 0.8255369647 | K122: 0 | L122: -0.1120725353 | M122: 0 | N122: 0 | O122: -1.464658545e-05 | P122: -3.696468478e-05 | Q122: 0 | R122: -2.746473422e-05 | S122: 0 | T122: 0
A123: 4030 | B123: ASZ | C123: 0.0632 | D123: 0.0403 | E123: 0.0298 | F123: -0.0505 | G123: -0.0433 | H123: 0.0346 | I123: 0.06315709338 | J123: 0.04034617067 | K123: 0.02975060281 | L123: -0.05047917262 | M123: -0.04334699066 | N123: 0.03464567647 | O123: 4.290662052e-05 | P123: -4.617067255e-05 | Q123: 4.939719433e-05 | R123: -2.082737732e-05 | S123: 4.699066248e-05 | T123: -4.567647498e-05
A124: 4030 | B124: MBXY-TI1S | C124: 0.009 | D124: 0.4353 | E124: 0 | F124: 0.0624 | G124: 0 | H124: 0 | I124: 0.008953735918 | J124: 0.4353373972 | K124: 0 | L124: 0.06243313295 | M124: 0 | N124: 0 | O124: 4.626408238e-05 | P124: -3.739719255e-05 | Q124: 0 | R124: -3.313294657e-05 | S124: 0 | T124: 0
A125: 4030 | B125: MBXY-TI2S | C125: 0.3813 | D125: 21.2943 | E125: 0 | F125: -2.8494 | G125: 0 | H125: 0 | I125: 0.3812662216 | J125: 21.29434892 | K125: 0 | L125: -2.849353603 | M125: 0 | N125: 0 | O125: 3.377837748e-05 | P125: -4.892257597e-05 | Q125: 0 | R125: -4.63968784e-05 | S125: 0 | T125: 0
A126: 4030 | B126: MBZ | C126: 4.6635 | D126: 0.4623 | E126: 0 | F126: 1.4683 | G126: 0 | H126: 0 | I126: 4.663453836 | J126: 0.4623176992 | K126: 0 | L126: 1.46833145 | M126: 0 | N126: 0 | O126: 4.616449508e-05 | P126: -1.76992089e-05 | Q126: 0 | R126: -3.145018335e-05 | S126: 0 | T126: 0
A127: 4030 | B127: MSXY-TI1S | C127: 0.0129 | D127: 0.056 | E127: 0 | F127: 0.0269 | G127: 0 | H127: 0 | I127: 0.01292196059 | J127: 0.05595136232 | K127: 0 | L127: 0.02688868348 | M127: 0 | N127: 0 | O127: -2.19605937e-05 | P127: 4.863767777e-05 | Q127: 0 | R127: 1.131652364e-05 | S127: 0 | T127: 0
A128: 4030 | B128: MSXY-TI2S | C128: 0.0015 | D128: 0.3521 | E128: 0 | F128: -0.0229 | G128: 0 | H128: 0 | I128: 0.001487132651 | J128: 0.3521379263 | K128: 0 | L128: -0.02288396399 | M128: 0 | N128: 0 | O128: 1.286734908e-05 | P128: -3.792634614e-05 | Q128: 0 | R128: -1.603600995e-05 | S128: 0 | T128: 0
A129: 4030 | B129: MSXY-TI3S | C129: 0.2035 | D129: 7.912 | E129: 0 | F129: -1.2688 | G129: 0 | H129: 0 | I129: 0.2034623334 | J129: 7.912032451 | K129: 0 | L129: -1.268779171 | M129: 0 | N129: 0 | O129: 3.766656271e-05 | P129: -3.245052465e-05 | Q129: 0 | R129: -2.082905838e-05 | S129: 0 | T129: 0
A130: 4030 | B130: MSZ | C130: 0.0258 | D130: 0.1119 | E130: 0 | F130: 0.0538 | G130: 0 | H130: 0 | I130: 0.02584392119 | J130: 0.1119027246 | K130: 0 | L130: 0.05377736695 | M130: 0 | N130: 0 | O130: -4.392118741e-05 | P130: -2.724644456e-06 | Q130: 0 | R130: 2.263304728e-05 | S130: 0 | T130: 0
A131: 4030 | B131: DEC-U | C131: 4.8694 | D131: 4.0581 | E131: 0 | F131: 4.4453 | G131: 0 | H131: 0 | I131: 4.869406519 | J131: 4.058113859 | K131: 0 | L131: 4.445290325 | M131: 0 | N131: 0 | O131: -6.518523989e-06 | P131: -1.385876632e-05 | Q131: 0 | R131: 9.674634371e-06 | S131: 0 | T131: 0
A132: 4030 | B132: DEC-OS | C132: 10.9562 | D132: 9.1308 | E132: 0 | F132: 10.0019 | G132: 0 | H132: 0 | I132: 10.95616467 | J132: 9.130756182 | K132: 0 | L132: 10.00190323 | M132: 0 | N132: 0 | O132: 3.533332101e-05 | P132: 4.381777581e-05 | Q132: 0 | R132: -3.232072659e-06 | S132: 0 | T132: 0
A133: 4030 | B133: DEC-OH | C133: 7.6084 | D133: 6.3408 | E133: 0 | F133: 6.9458 | G133: 0 | H133: 0 | I133: 8.388313573 | J133: 6.990735202 | K133: 0 | L133: 7.657707162 | M133: 0 | N133: 0 | O133: -0.7799135729 | P133: -0.649935202 | Q133: 0 | R133: -0.7119071621 | S133: 0 | T133: 0
A134: 4030 | B134: DEC-OI | C134: 0.4755 | D134: 0.3963 | E134: 0 | F134: 0.4341 | G134: 0 | H134: 0 | I134: 0.4755279803 | J134: 0.3963001815 | K134: 0 | L134: 0.4341103833 | M134: 0 | N134: 0 | O134: -2.798032461e-05 | P134: -1.815201496e-07 | Q134: 0 | R134: -1.038333649e-05 | S134: 0 | T134: 0
A135: 4030 | B135: DECR | C135: 0.0592 | D135: 0.0887 | E135: 0 | F135: -0.0022 | G135: 0 | H135: 0 | I135: 0.05919419497 | J135: 0.08869587333 | K135: 0 | L135: -0.002239403132 | M135: 0 | N135: 0 | O135: 5.805029372e-06 | P135: 4.126672694e-06 | Q135: 0 | R135: 3.94031319e-05 | S135: 0 | T135: 0
A136: 4030 | B136: DBH-U | C136: 2.4133 | D136: 2.0112 | E136: 0 | F136: 2.2031 | G136: 0 | H136: 0 | I136: 2.413285774 | J136: 2.011207815 | K136: 0 | L136: 2.2030931 | M136: 0 | N136: 0 | O136: 1.422647388e-05 | P136: -7.814639089e-06 | Q136: 0 | R136: 6.900134935e-06 | S136: 0 | T136: 0
A137: 4030 | B137: DBH-OS | C137: 4.9305 | D137: 4.109 | E137: 0 | F137: 4.5011 | G137: 0 | H137: 0 | I137: 4.930523531 | J137: 4.109048156 | K137: 0 | L137: 4.501084161 | M137: 0 | N137: 0 | O137: -2.353131519e-05 | P137: -4.815551703e-05 | Q137: 0 | R137: 1.583925784e-05 | S137: 0 | T137: 0
A138: 4030 | B138: DBH-OH | C138: 3.5246 | D138: 2.9374 | E138: 0 | F138: 3.2176 | G138: 0 | H138: 0 | I138: 3.524598956 | J138: 2.937364916 | K138: 0 | L138: 3.217612984 | M138: 0 | N138: 0 | O138: 1.043919922e-06 | P138: 3.508379304e-05 | Q138: 0 | R138: -1.298438599e-05 | S138: 0 | T138: 0
A139: 4030 | B139: DBH-OI | C139: 0.0554 | D139: 0.0462 | E139: 0 | F139: 0.0506 | G139: 0 | H139: 0 | I139: 0.05538255967 | J139: 0.04615526186 | K139: 0 | L139: 0.05055884239 | M139: 0 | N139: 0 | O139: 1.74403271e-05 | P139: 4.473814466e-05 | Q139: 0 | R139: 4.115760896e-05 | S139: 0 | T139: 0
A140: 4030 | B140: DBHR | C140: 0.1224 | D140: 0.1834 | E140: 0 | F140: -0.0046 | G140: 0 | H140: 0 | I140: 0.1223935661 | J140: 0.1833930547 | K140: 0 | L140: -0.004630327947 | M140: 0 | N140: 0 | O140: 6.43389281e-06 | P140: 6.945310987e-06 | Q140: 0 | R140: 3.032794686e-05 | S140: 0 | T140: 0
A141: 4030 | B141: AMIL | C141: 46.0635 | D141: 4.5666 | E141: 0 | F141: 14.5035 | G141: 0 | H141: 0 | I141: 46.06350319 | J141: 4.566566662 | K141: 0 | L141: 14.50351881 | M141: 0 | N141: 0 | O141: -3.191518012e-06 | P141: 3.333842642e-05 | Q141: 0 | R141: -1.881405594e-05 | S141: 0 | T141: 0
A142: 4030 | B142: SAGE | C142: 23.944 | D142: 0.003 | E142: 47.1868 | F142: -0.2687 | G142: -33.6131 | H142: 0.3771 | I142: 23.94396951 | J142: 0.003014419271 | K142: 47.18678299 | L142: -0.2686580785 | M142: -33.61307622 | N142: 0.3771481777 | O142: 3.048821828e-05 | P142: -1.441927085e-05 | Q142: 1.701206752e-05 | R142: -4.19215491e-05 | S142: -2.377627249e-05 | T142: -4.817773414e-05
A143: 4030 | B143: XYM1 | C143: 2.4417 | D143: 0.0003 | E143: 8.6357 | F143: 0.0261 | G143: -4.5919 | H143: -0.049 | I143: 2.441685068 | J143: 0.0002780714698 | K143: 8.63567346 | L143: 0.02605691761 | M143: -4.591905371 | N143: -0.04900341225 | O143: 1.493215559e-05 | P143: 2.19285302e-05 | Q143: 2.65399492e-05 | R143: 4.308238502e-05 | S143: 5.37121425e-06 | T143: 3.412245609e-06
A144: 4030 | B144: XYM2 | C144: 1.9021 | D144: 1.5852 | E144: 0 | F144: 1.7364 | G144: 0 | H144: 0 | I144: 1.902111921 | J144: 1.585200726 | K144: 0 | L144: 1.736441533 | M144: 0 | N144: 0 | O144: -1.192129844e-05 | P144: -7.260805985e-07 | Q144: 0 | R144: -4.153334595e-05 | S144: 0 | T144: 0
A145: 4030 | B145: XYM3E | C145: 1.6014 | D145: 0.0064 | E145: 0.2948 | F145: 0.0027 | G145: -0.3696 | H145: -0.0125 | I145: 1.601399554 | J145: 0.006419563498 | K145: 0.2948364873 | L145: 0.002738365007 | M145: -0.3696465924 | N145: -0.012507619 | O145: 4.457167015e-07 | P145: -1.956349844e-05 | Q145: -3.648728266e-05 | R145: -3.836500684e-05 | S145: 4.659244541e-05 | T145: 7.619000481e-06
A146: 4030 | B146: XYM4E | C146: 0.0064 | D146: 1.8717 | E146: 0.0245 | F146: -0.0089 | G146: -0.0043 | H146: 0.0308 | I146: 0.006419563498 | J146: 1.871743115 | K146: 0.02449292686 | L146: -0.008853001069 | M146: -0.004268503747 | N146: 0.03076494771 | O146: -1.956349844e-05 | P146: -4.311470116e-05 | Q146: 7.073135206e-06 | R146: -4.699893093e-05 | S146: -3.149625253e-05 | T146: 3.505229233e-05
A147: 4030 | B147: XCLA | C147: 3.303 | D147: 2.9155 | E147: 0 | F147: -1.7275 | G147: 0 | H147: 0 | I147: 3.278454694 | J147: 2.896464762 | K147: 0 | L147: -1.712686082 | M147: 0 | N147: 0 | O147: 0.02454530564 | P147: 0.01903523764 | Q147: 0 | R147: -0.01481391807 | S147: 0 | T147: 0
A148: 4030 | B148: XCLH | C148: 1.8029 | D148: 4.0926 | E148: 6.954 | F148: -0.9355 | G148: -1.4081 | H148: 3.0713 | I148: 1.802886017 | J148: 4.092644279 | K148: 6.953955109 | L148: -0.9355046339 | M148: -1.408061965 | N148: 3.071264277 | O148: 1.398252185e-05 | P148: -4.427867158e-05 | Q148: 4.489120975e-05 | R148: 4.633914983e-06 | S148: -3.803506955e-05 | T148: 3.572271075e-05
A149: 4030 | B149: TOTAL | C149: 122.9983 | D149: 83.3262 | E149: 68.2125 | F149: 41.303 | G149: -38.5701 | H149: 2.3267 | I149: =VLOOKUP($A149,TOTALS!$A$3:$G$144,2) -> 123.7536525 | J149: =VLOOKUP($A149,TOTALS!$A$3:$G$144,3) -> 83.95716388 | K149: =VLOOKUP($A149,TOTALS!$A$3:$G$144,4) -> 68.21248203 | L149: =VLOOKUP($A149,TOTALS!$A$3:$G$144,5) -> 42.02977064 | M149: =VLOOKUP($A149,TOTALS!$A$3:$G$144,6) -> -38.57015846 | N149: =VLOOKUP($A149,TOTALS!$A$3:$G$144,7) -> 2.326705076 | O149: -0.7553524859 | P149: -0.6309638781 | Q149: 1.796515733e-05 | R149: -0.726770635 | S149: 5.846292628e-05 | T149: -5.076201801e-06

Sheet TOTALS
B1: Covariance | H1: Covariance | N1: NEV to HLA Direction Cosine Matrix
A2: Md | B2: NN | C2: EE | D2: VV | E2: NE | F2: NV | G2: EV | H2: HH | I2: LL | J2: AA | K2: HL | L2: HA | M2: LA
A3: =Wellpath!E3 -> 0 | B3: ='DEC-OS'!Q3+'DEC-OH'!Q3+'DEC-OI'!Q3+'DBH-OS'!Q3+'DBH-OH'!Q3+'DBH-OI'!Q3+XCLH!Q3+XCLA!Q3+DRFR!Q3+DSFS!Q3+DSTG!Q3+XYM1!Q3+XYM2!Q3+XYM3E!Q3+XYM4E!Q3+SAGE!Q3+'ABXY-TI1S'!Q3+'ABXY-TI2S'!Q3+ABZ!Q3+'ASXY-TI1S'!Q3+'ASXY-TI2S'!Q3+'ASXY-TI3S'!Q3+ASZ!Q3+'MBXY-TI1S'!Q3+'MBXY-TI2S'!Q3+MBZ!Q3+'MSXY-TI1S'!Q3+'MSXY-TI2S'!Q3++'MSXY-TI3S'!Q3+MSZ!Q3+'DEC-U'!Q3+DECR!Q3+'DBH-U'!Q3+DBHR!Q3+AMIL!Q3 -> 0 | C3: ='DEC-OS'!R3+'DEC-OH'!R3+'DEC-OI'!R3+'DBH-OS'!R3+'DBH-OH'!R3+'DBH-OI'!R3+XCLH!R3+XCLA!R3+DRFR!R3+DSFS!R3+DSTG!R3+XYM1!R3+XYM2!R3+XYM3E!R3+XYM4E!R3+SAGE!R3+'ABXY-TI1S'!R3+'ABXY-TI2S'!R3+ABZ!R3+'ASXY-TI1S'!R3+'ASXY-TI2S'!R3+'ASXY-TI3S'!R3+ASZ!R3+'MBXY-TI1S'!R3+'MBXY-TI2S'!R3+MBZ!R3+'MSXY-TI1S'!R3+'MSXY-TI2S'!R3++'MSXY-TI3S'!R3+MSZ!R3+'DEC-U'!R3+DECR!R3+'DBH-U'!R3+DBHR!R3+AMIL!R3 -> 0 | D3: ='DEC-OS'!S3+'DEC-OH'!S3+'DEC-OI'!S3+'DBH-OS'!S3+'DBH-OH'!S3+'DBH-OI'!S3+XCLH!S3+XCLA!S3+DRFR!S3+DSFS!S3+DSTG!S3+XYM1!S3+XYM2!S3+XYM3E!S3+XYM4E!S3+SAGE!S3+'ABXY-TI1S'!S3+'ABXY-TI2S'!S3+ABZ!S3+'ASXY-TI1S'!S3+'ASXY-TI2S'!S3+'ASXY-TI3S'!S3+ASZ!S3+'MBXY-TI1S'!S3+'MBXY-TI2S'!S3+MBZ!S3+'MSXY-TI1S'!S3+'MSXY-TI2S'!S3++'MSXY-TI3S'!S3+MSZ!S3+'DEC-U'!S3+DECR!S3+'DBH-U'!S3+DBHR!S3+AMIL!S3 -> 0 | E3: ='DEC-OS'!T3+'DEC-OH'!T3+'DEC-OI'!T3+'DBH-OS'!T3+'DBH-OH'!T3+'DBH-OI'!T3+XCLH!T3+XCLA!T3+DRFR!T3+DSFS!T3+DSTG!T3+XYM1!T3+XYM2!T3+XYM3E!T3+XYM4E!T3+SAGE!T3+'ABXY-TI1S'!T3+'ABXY-TI2S'!T3+ABZ!T3+'ASXY-TI1S'!T3+'ASXY-TI2S'!T3+'ASXY-TI3S'!T3+ASZ!T3+'MBXY-TI1S'!T3+'MBXY-TI2S'!T3+MBZ!T3+'MSXY-TI1S'!T3+'MSXY-TI2S'!T3++'MSXY-TI3S'!T3+MSZ!T3+'DEC-U'!T3+DECR!T3+'DBH-U'!T3+DBHR!T3+AMIL!T3 -> 0 | F3: ='DEC-OS'!U3+'DEC-OH'!U3+'DEC-OI'!U3+'DBH-OS'!U3+'DBH-OH'!U3+'DBH-OI'!U3+XCLH!U3+XCLA!U3+DRFR!U3+DSFS!U3+DSTG!U3+XYM1!U3+XYM2!U3+XYM3E!U3+XYM4E!U3+SAGE!U3+'ABXY-TI1S'!U3+'ABXY-TI2S'!U3+ABZ!U3+'ASXY-TI1S'!U3+'ASXY-TI2S'!U3+'ASXY-TI3S'!U3+ASZ!U3+'MBXY-TI1S'!U3+'MBXY-TI2S'!U3+MBZ!U3+'MSXY-TI1S'!U3+'MSXY-TI2S'!U3++'MSXY-TI3S'!U3+MSZ!U3+'DEC-U'!U3+DECR!U3+'DBH-U'!U3+DBHR!U3+AMIL!U3 -> 0 | G3: ='DEC-OS'!V3+'DEC-OH'!V3+'DEC-OI'!V3+'DBH-OS'!V3+'DBH-OH'!V3+'DBH-OI'!V3+XCLH!V3+XCLA!V3+DRFR!V3+DSFS!V3+DSTG!V3+XYM1!V3+XYM2!V3+XYM3E!V3+XYM4E!V3+SAGE!V3+'ABXY-TI1S'!V3+'ABXY-TI2S'!V3+ABZ!V3+'ASXY-TI1S'!V3+'ASXY-TI2S'!V3+'ASXY-TI3S'!V3+ASZ!V3+'MBXY-TI1S'!V3+'MBXY-TI2S'!V3+MBZ!V3+'MSXY-TI1S'!V3+'MSXY-TI2S'!V3++'MSXY-TI3S'!V3+MSZ!V3+'DEC-U'!V3+DECR!V3+'DBH-U'!V3+DBHR!V3+AMIL!V3 -> 0 | H3: =N3*(B3*N3+E3*Q3+F3*T3) + Q3*(E3*N3+C3*Q3+G3*T3)+ T3*(F3*N3+G3*Q3+D3*T3) -> 0 | I3: =O3*(B3*O3+E3*R3+F3*U3) + R3*(E3*O3+C3*R3+G3*U3)+ U3*(F3*O3+G3*R3+D3*U3) -> 0 | J3: =P3*(B3*P3+E3*S3+F3*V3) + S3*(E3*P3+C3*S3+G3*V3)+ V3*(F3*P3+G3*S3+D3*V3) -> 0 | K3: =N3*(B3*O3+E3*R3+F3*U3) + Q3*(E3*O3+C3*R3+G3*U3)+ T3*(F3*O3+G3*R3+D3*U3) -> 0 | L3: =N3*(B3*P3+E3*S3+F3*V3) + Q3*(E3*P3+C3*S3+G3*V3)+ T3*(F3*P3+G3*S3+D3*V3) -> 0 | M3: =O3*(B3*P3+E3*S3+F3*V3) + R3*(E3*P3+C3*S3+G3*V3)+ U3*(F3*P3+G3*S3+D3*V3) -> 0 | N3: =COS(Wellpath!$L3)*COS(Wellpath!$M3) -> 1 | O3: =-SIN(Wellpath!$M3) -> 0 | P3: =SIN(Wellpath!$L3)*COS(Wellpath!$M3) -> 0 | Q3: =COS(Wellpath!$L3)*SIN(Wellpath!$M3) -> 0 | R3: =COS(Wellpath!$M3) -> 1 | S3: =SIN(Wellpath!$L3)*SIN(Wellpath!$M3) -> 0 | T3: =-SIN(Wellpath!$L3) -> 0 | U3: 0 | V3: =COS(Wellpath!$L3) -> 1
A4: =Wellpath!E4 -> 30 | B4: ='DEC-OS'!Q4+'DEC-OH'!Q4+'DEC-OI'!Q4+'DBH-OS'!Q4+'DBH-OH'!Q4+'DBH-OI'!Q4+XCLH!Q4+XCLA!Q4+DRFR!Q4+DSFS!Q4+DSTG!Q4+XYM1!Q4+XYM2!Q4+XYM3E!Q4+XYM4E!Q4+SAGE!Q4+'ABXY-TI1S'!Q4+'ABXY-TI2S'!Q4+ABZ!Q4+'ASXY-TI1S'!Q4+'ASXY-TI2S'!Q4+'ASXY-TI3S'!Q4+ASZ!Q4+'MBXY-TI1S'!Q4+'MBXY-TI2S'!Q4+MBZ!Q4+'MSXY-TI1S'!Q4+'MSXY-TI2S'!Q4++'MSXY-TI3S'!Q4+MSZ!Q4+'DEC-U'!Q4+DECR!Q4+'DBH-U'!Q4+DBHR!Q4+AMIL!Q4 -> 0.03223076328 | C4: ='DEC-OS'!R4+'DEC-OH'!R4+'DEC-OI'!R4+'DBH-OS'!R4+'DBH-OH'!R4+'DBH-OI'!R4+XCLH!R4+XCLA!R4+DRFR!R4+DSFS!R4+DSTG!R4+XYM1!R4+XYM2!R4+XYM3E!R4+XYM4E!R4+SAGE!R4+'ABXY-TI1S'!R4+'ABXY-TI2S'!R4+ABZ!R4+'ASXY-TI1S'!R4+'ASXY-TI2S'!R4+'ASXY-TI3S'!R4+ASZ!R4+'MBXY-TI1S'!R4+'MBXY-TI2S'!R4+MBZ!R4+'MSXY-TI1S'!R4+'MSXY-TI2S'!R4++'MSXY-TI3S'!R4+MSZ!R4+'DEC-U'!R4+DECR!R4+'DBH-U'!R4+DBHR!R4+AMIL!R4 -> 0.03223076328 | D4: ='DEC-OS'!S4+'DEC-OH'!S4+'DEC-OI'!S4+'DBH-OS'!S4+'DBH-OH'!S4+'DBH-OI'!S4+XCLH!S4+XCLA!S4+DRFR!S4+DSFS!S4+DSTG!S4+XYM1!S4+XYM2!S4+XYM3E!S4+XYM4E!S4+SAGE!S4+'ABXY-TI1S'!S4+'ABXY-TI2S'!S4+ABZ!S4+'ASXY-TI1S'!S4+'ASXY-TI2S'!S4+'ASXY-TI3S'!S4+ASZ!S4+'MBXY-TI1S'!S4+'MBXY-TI2S'!S4+MBZ!S4+'MSXY-TI1S'!S4+'MSXY-TI2S'!S4++'MSXY-TI3S'!S4+MSZ!S4+'DEC-U'!S4+DECR!S4+'DBH-U'!S4+DBHR!S4+AMIL!S4 -> 0.1227822906 | E4: ='DEC-OS'!T4+'DEC-OH'!T4+'DEC-OI'!T4+'DBH-OS'!T4+'DBH-OH'!T4+'DBH-OI'!T4+XCLH!T4+XCLA!T4+DRFR!T4+DSFS!T4+DSTG!T4+XYM1!T4+XYM2!T4+XYM3E!T4+XYM4E!T4+SAGE!T4+'ABXY-TI1S'!T4+'ABXY-TI2S'!T4+ABZ!T4+'ASXY-TI1S'!T4+'ASXY-TI2S'!T4+'ASXY-TI3S'!T4+ASZ!T4+'MBXY-TI1S'!T4+'MBXY-TI2S'!T4+MBZ!T4+'MSXY-TI1S'!T4+'MSXY-TI2S'!T4++'MSXY-TI3S'!T4+MSZ!T4+'DEC-U'!T4+DECR!T4+'DBH-U'!T4+DBHR!T4+AMIL!T4 -> 0 | F4: ='DEC-OS'!U4+'DEC-OH'!U4+'DEC-OI'!U4+'DBH-OS'!U4+'DBH-OH'!U4+'DBH-OI'!U4+XCLH!U4+XCLA!U4+DRFR!U4+DSFS!U4+DSTG!U4+XYM1!U4+XYM2!U4+XYM3E!U4+XYM4E!U4+SAGE!U4+'ABXY-TI1S'!U4+'ABXY-TI2S'!U4+ABZ!U4+'ASXY-TI1S'!U4+'ASXY-TI2S'!U4+'ASXY-TI3S'!U4+ASZ!U4+'MBXY-TI1S'!U4+'MBXY-TI2S'!U4+MBZ!U4+'MSXY-TI1S'!U4+'MSXY-TI2S'!U4++'MSXY-TI3S'!U4+MSZ!U4+'DEC-U'!U4+DECR!U4+'DBH-U'!U4+DBHR!U4+AMIL!U4 -> 0 | G4: ='DEC-OS'!V4+'DEC-OH'!V4+'DEC-OI'!V4+'DBH-OS'!V4+'DBH-OH'!V4+'DBH-OI'!V4+XCLH!V4+XCLA!V4+DRFR!V4+DSFS!V4+DSTG!V4+XYM1!V4+XYM2!V4+XYM3E!V4+XYM4E!V4+SAGE!V4+'ABXY-TI1S'!V4+'ABXY-TI2S'!V4+ABZ!V4+'ASXY-TI1S'!V4+'ASXY-TI2S'!V4+'ASXY-TI3S'!V4+ASZ!V4+'MBXY-TI1S'!V4+'MBXY-TI2S'!V4+MBZ!V4+'MSXY-TI1S'!V4+'MSXY-TI2S'!V4++'MSXY-TI3S'!V4+MSZ!V4+'DEC-U'!V4+DECR!V4+'DBH-U'!V4+DBHR!V4+AMIL!V4 -> 0 | H4: 0.03223076328 | I4: 0.03223076328 | J4: 0.1227822906 | K4: 0 | L4: 0 | M4: 0 | N4: =COS(Wellpath!$L4)*COS(Wellpath!$M4) -> 1 | O4: =-SIN(Wellpath!$M4) -> 0 | P4: =SIN(Wellpath!$L4)*COS(Wellpath!$M4) -> 0 | Q4: =COS(Wellpath!$L4)*SIN(Wellpath!$M4) -> 0 | R4: =COS(Wellpath!$M4) -> 1 | S4: =SIN(Wellpath!$L4)*SIN(Wellpath!$M4) -> 0 | T4: =-SIN(Wellpath!$L4) -> 0 | U4: 0 | V4: =COS(Wellpath!$L4) -> 1
A5: =Wellpath!E5 -> 60 | B5: ='DEC-OS'!Q5+'DEC-OH'!Q5+'DEC-OI'!Q5+'DBH-OS'!Q5+'DBH-OH'!Q5+'DBH-OI'!Q5+XCLH!Q5+XCLA!Q5+DRFR!Q5+DSFS!Q5+DSTG!Q5+XYM1!Q5+XYM2!Q5+XYM3E!Q5+XYM4E!Q5+SAGE!Q5+'ABXY-TI1S'!Q5+'ABXY-TI2S'!Q5+ABZ!Q5+'ASXY-TI1S'!Q5+'ASXY-TI2S'!Q5+'ASXY-TI3S'!Q5+ASZ!Q5+'MBXY-TI1S'!Q5+'MBXY-TI2S'!Q5+MBZ!Q5+'MSXY-TI1S'!Q5+'MSXY-TI2S'!Q5++'MSXY-TI3S'!Q5+MSZ!Q5+'DEC-U'!Q5+DECR!Q5+'DBH-U'!Q5+DBHR!Q5+AMIL!Q5 -> 0.07709800056 | C5: ='DEC-OS'!R5+'DEC-OH'!R5+'DEC-OI'!R5+'DBH-OS'!R5+'DBH-OH'!R5+'DBH-OI'!R5+XCLH!R5+XCLA!R5+DRFR!R5+DSFS!R5+DSTG!R5+XYM1!R5+XYM2!R5+XYM3E!R5+XYM4E!R5+SAGE!R5+'ABXY-TI1S'!R5+'ABXY-TI2S'!R5+ABZ!R5+'ASXY-TI1S'!R5+'ASXY-TI2S'!R5+'ASXY-TI3S'!R5+ASZ!R5+'MBXY-TI1S'!R5+'MBXY-TI2S'!R5+MBZ!R5+'MSXY-TI1S'!R5+'MSXY-TI2S'!R5++'MSXY-TI3S'!R5+MSZ!R5+'DEC-U'!R5+DECR!R5+'DBH-U'!R5+DBHR!R5+AMIL!R5 -> 0.07709800056 | D5: ='DEC-OS'!S5+'DEC-OH'!S5+'DEC-OI'!S5+'DBH-OS'!S5+'DBH-OH'!S5+'DBH-OI'!S5+XCLH!S5+XCLA!S5+DRFR!S5+DSFS!S5+DSTG!S5+XYM1!S5+XYM2!S5+XYM3E!S5+XYM4E!S5+SAGE!S5+'ABXY-TI1S'!S5+'ABXY-TI2S'!S5+ABZ!S5+'ASXY-TI1S'!S5+'ASXY-TI2S'!S5+'ASXY-TI3S'!S5+ASZ!S5+'MBXY-TI1S'!S5+'MBXY-TI2S'!S5+MBZ!S5+'MSXY-TI1S'!S5+'MSXY-TI2S'!S5++'MSXY-TI3S'!S5+MSZ!S5+'DEC-U'!S5+DECR!S5+'DBH-U'!S5+DBHR!S5+AMIL!S5 -> 0.12362977 | E5: ='DEC-OS'!T5+'DEC-OH'!T5+'DEC-OI'!T5+'DBH-OS'!T5+'DBH-OH'!T5+'DBH-OI'!T5+XCLH!T5+XCLA!T5+DRFR!T5+DSFS!T5+DSTG!T5+XYM1!T5+XYM2!T5+XYM3E!T5+XYM4E!T5+SAGE!T5+'ABXY-TI1S'!T5+'ABXY-TI2S'!T5+ABZ!T5+'ASXY-TI1S'!T5+'ASXY-TI2S'!T5+'ASXY-TI3S'!T5+ASZ!T5+'MBXY-TI1S'!T5+'MBXY-TI2S'!T5+MBZ!T5+'MSXY-TI1S'!T5+'MSXY-TI2S'!T5++'MSXY-TI3S'!T5+MSZ!T5+'DEC-U'!T5+DECR!T5+'DBH-U'!T5+DBHR!T5+AMIL!T5 -> 0 | F5: ='DEC-OS'!U5+'DEC-OH'!U5+'DEC-OI'!U5+'DBH-OS'!U5+'DBH-OH'!U5+'DBH-OI'!U5+XCLH!U5+XCLA!U5+DRFR!U5+DSFS!U5+DSTG!U5+XYM1!U5+XYM2!U5+XYM3E!U5+XYM4E!U5+SAGE!U5+'ABXY-TI1S'!U5+'ABXY-TI2S'!U5+ABZ!U5+'ASXY-TI1S'!U5+'ASXY-TI2S'!U5+'ASXY-TI3S'!U5+ASZ!U5+'MBXY-TI1S'!U5+'MBXY-TI2S'!U5+MBZ!U5+'MSXY-TI1S'!U5+'MSXY-TI2S'!U5++'MSXY-TI3S'!U5+MSZ!U5+'DEC-U'!U5+DECR!U5+'DBH-U'!U5+DBHR!U5+AMIL!U5 -> 0 | G5: ='DEC-OS'!V5+'DEC-OH'!V5+'DEC-OI'!V5+'DBH-OS'!V5+'DBH-OH'!V5+'DBH-OI'!V5+XCLH!V5+XCLA!V5+DRFR!V5+DSFS!V5+DSTG!V5+XYM1!V5+XYM2!V5+XYM3E!V5+XYM4E!V5+SAGE!V5+'ABXY-TI1S'!V5+'ABXY-TI2S'!V5+ABZ!V5+'ASXY-TI1S'!V5+'ASXY-TI2S'!V5+'ASXY-TI3S'!V5+ASZ!V5+'MBXY-TI1S'!V5+'MBXY-TI2S'!V5+MBZ!V5+'MSXY-TI1S'!V5+'MSXY-TI2S'!V5++'MSXY-TI3S'!V5+MSZ!V5+'DEC-U'!V5+DECR!V5+'DBH-U'!V5+DBHR!V5+AMIL!V5 -> 0 | H5: 0.07709800056 | I5: 0.07709800056 | J5: 0.12362977 | K5: 0 | L5: 0 | M5: 0 | N5: =COS(Wellpath!$L5)*COS(Wellpath!$M5) -> 1 | O5: =-SIN(Wellpath!$M5) -> 0 | P5: =SIN(Wellpath!$L5)*COS(Wellpath!$M5) -> 0 | Q5: =COS(Wellpath!$L5)*SIN(Wellpath!$M5) -> 0 | R5: =COS(Wellpath!$M5) -> 1 | S5: =SIN(Wellpath!$L5)*SIN(Wellpath!$M5) -> 0 | T5: =-SIN(Wellpath!$L5) -> 0 | U5: 0 | V5: =COS(Wellpath!$L5) -> 1
A6: =Wellpath!E6 -> 90 | B6: ='DEC-OS'!Q6+'DEC-OH'!Q6+'DEC-OI'!Q6+'DBH-OS'!Q6+'DBH-OH'!Q6+'DBH-OI'!Q6+XCLH!Q6+XCLA!Q6+DRFR!Q6+DSFS!Q6+DSTG!Q6+XYM1!Q6+XYM2!Q6+XYM3E!Q6+XYM4E!Q6+SAGE!Q6+'ABXY-TI1S'!Q6+'ABXY-TI2S'!Q6+ABZ!Q6+'ASXY-TI1S'!Q6+'ASXY-TI2S'!Q6+'ASXY-TI3S'!Q6+ASZ!Q6+'MBXY-TI1S'!Q6+'MBXY-TI2S'!Q6+MBZ!Q6+'MSXY-TI1S'!Q6+'MSXY-TI2S'!Q6++'MSXY-TI3S'!Q6+MSZ!Q6+'DEC-U'!Q6+DECR!Q6+'DBH-U'!Q6+DBHR!Q6+AMIL!Q6 -> 0.1099277008 | C6: ='DEC-OS'!R6+'DEC-OH'!R6+'DEC-OI'!R6+'DBH-OS'!R6+'DBH-OH'!R6+'DBH-OI'!R6+XCLH!R6+XCLA!R6+DRFR!R6+DSFS!R6+DSTG!R6+XYM1!R6+XYM2!R6+XYM3E!R6+XYM4E!R6+SAGE!R6+'ABXY-TI1S'!R6+'ABXY-TI2S'!R6+ABZ!R6+'ASXY-TI1S'!R6+'ASXY-TI2S'!R6+'ASXY-TI3S'!R6+ASZ!R6+'MBXY-TI1S'!R6+'MBXY-TI2S'!R6+MBZ!R6+'MSXY-TI1S'!R6+'MSXY-TI2S'!R6++'MSXY-TI3S'!R6+MSZ!R6+'DEC-U'!R6+DECR!R6+'DBH-U'!R6+DBHR!R6+AMIL!R6 -> 0.1099277008 | D6: ='DEC-OS'!S6+'DEC-OH'!S6+'DEC-OI'!S6+'DBH-OS'!S6+'DBH-OH'!S6+'DBH-OI'!S6+XCLH!S6+XCLA!S6+DRFR!S6+DSFS!S6+DSTG!S6+XYM1!S6+XYM2!S6+XYM3E!S6+XYM4E!S6+SAGE!S6+'ABXY-TI1S'!S6+'ABXY-TI2S'!S6+ABZ!S6+'ASXY-TI1S'!S6+'ASXY-TI2S'!S6+'ASXY-TI3S'!S6+ASZ!S6+'MBXY-TI1S'!S6+'MBXY-TI2S'!S6+MBZ!S6+'MSXY-TI1S'!S6+'MSXY-TI2S'!S6++'MSXY-TI3S'!S6+MSZ!S6+'DEC-U'!S6+DECR!S6+'DBH-U'!S6+DBHR!S6+AMIL!S6 -> 0.1250442606 | E6: ='DEC-OS'!T6+'DEC-OH'!T6+'DEC-OI'!T6+'DBH-OS'!T6+'DBH-OH'!T6+'DBH-OI'!T6+XCLH!T6+XCLA!T6+DRFR!T6+DSFS!T6+DSTG!T6+XYM1!T6+XYM2!T6+XYM3E!T6+XYM4E!T6+SAGE!T6+'ABXY-TI1S'!T6+'ABXY-TI2S'!T6+ABZ!T6+'ASXY-TI1S'!T6+'ASXY-TI2S'!T6+'ASXY-TI3S'!T6+ASZ!T6+'MBXY-TI1S'!T6+'MBXY-TI2S'!T6+MBZ!T6+'MSXY-TI1S'!T6+'MSXY-TI2S'!T6++'MSXY-TI3S'!T6+MSZ!T6+'DEC-U'!T6+DECR!T6+'DBH-U'!T6+DBHR!T6+AMIL!T6 -> 0 | F6: ='DEC-OS'!U6+'DEC-OH'!U6+'DEC-OI'!U6+'DBH-OS'!U6+'DBH-OH'!U6+'DBH-OI'!U6+XCLH!U6+XCLA!U6+DRFR!U6+DSFS!U6+DSTG!U6+XYM1!U6+XYM2!U6+XYM3E!U6+XYM4E!U6+SAGE!U6+'ABXY-TI1S'!U6+'ABXY-TI2S'!U6+ABZ!U6+'ASXY-TI1S'!U6+'ASXY-TI2S'!U6+'ASXY-TI3S'!U6+ASZ!U6+'MBXY-TI1S'!U6+'MBXY-TI2S'!U6+MBZ!U6+'MSXY-TI1S'!U6+'MSXY-TI2S'!U6++'MSXY-TI3S'!U6+MSZ!U6+'DEC-U'!U6+DECR!U6+'DBH-U'!U6+DBHR!U6+AMIL!U6 -> 0 | G6: ='DEC-OS'!V6+'DEC-OH'!V6+'DEC-OI'!V6+'DBH-OS'!V6+'DBH-OH'!V6+'DBH-OI'!V6+XCLH!V6+XCLA!V6+DRFR!V6+DSFS!V6+DSTG!V6+XYM1!V6+XYM2!V6+XYM3E!V6+XYM4E!V6+SAGE!V6+'ABXY-TI1S'!V6+'ABXY-TI2S'!V6+ABZ!V6+'ASXY-TI1S'!V6+'ASXY-TI2S'!V6+'ASXY-TI3S'!V6+ASZ!V6+'MBXY-TI1S'!V6+'MBXY-TI2S'!V6+MBZ!V6+'MSXY-TI1S'!V6+'MSXY-TI2S'!V6++'MSXY-TI3S'!V6+MSZ!V6+'DEC-U'!V6+DECR!V6+'DBH-U'!V6+DBHR!V6+AMIL!V6 -> 0 | H6: 0.1099277008 | I6: 0.1099277008 | J6: 0.1250442606 | K6: 0 | L6: 0 | M6: 0 | N6: =COS(Wellpath!$L6)*COS(Wellpath!$M6) -> 1 | O6: =-SIN(Wellpath!$M6) -> 0 | P6: =SIN(Wellpath!$L6)*COS(Wellpath!$M6) -> 0 | Q6: =COS(Wellpath!$L6)*SIN(Wellpath!$M6) -> 0 | R6: =COS(Wellpath!$M6) -> 1 | S6: =SIN(Wellpath!$L6)*SIN(Wellpath!$M6) -> 0 | T6: =-SIN(Wellpath!$L6) -> 0 | U6: 0 | V6: =COS(Wellpath!$L6) -> 1
A7: =Wellpath!E7 -> 120 | B7: ='DEC-OS'!Q7+'DEC-OH'!Q7+'DEC-OI'!Q7+'DBH-OS'!Q7+'DBH-OH'!Q7+'DBH-OI'!Q7+XCLH!Q7+XCLA!Q7+DRFR!Q7+DSFS!Q7+DSTG!Q7+XYM1!Q7+XYM2!Q7+XYM3E!Q7+XYM4E!Q7+SAGE!Q7+'ABXY-TI1S'!Q7+'ABXY-TI2S'!Q7+ABZ!Q7+'ASXY-TI1S'!Q7+'ASXY-TI2S'!Q7+'ASXY-TI3S'!Q7+ASZ!Q7+'MBXY-TI1S'!Q7+'MBXY-TI2S'!Q7+MBZ!Q7+'MSXY-TI1S'!Q7+'MSXY-TI2S'!Q7++'MSXY-TI3S'!Q7+MSZ!Q7+'DEC-U'!Q7+DECR!Q7+'DBH-U'!Q7+DBHR!Q7+AMIL!Q7 -> 0.1430568696 | C7: ='DEC-OS'!R7+'DEC-OH'!R7+'DEC-OI'!R7+'DBH-OS'!R7+'DBH-OH'!R7+'DBH-OI'!R7+XCLH!R7+XCLA!R7+DRFR!R7+DSFS!R7+DSTG!R7+XYM1!R7+XYM2!R7+XYM3E!R7+XYM4E!R7+SAGE!R7+'ABXY-TI1S'!R7+'ABXY-TI2S'!R7+ABZ!R7+'ASXY-TI1S'!R7+'ASXY-TI2S'!R7+'ASXY-TI3S'!R7+ASZ!R7+'MBXY-TI1S'!R7+'MBXY-TI2S'!R7+MBZ!R7+'MSXY-TI1S'!R7+'MSXY-TI2S'!R7++'MSXY-TI3S'!R7+MSZ!R7+'DEC-U'!R7+DECR!R7+'DBH-U'!R7+DBHR!R7+AMIL!R7 -> 0.1430568696 | D7: ='DEC-OS'!S7+'DEC-OH'!S7+'DEC-OI'!S7+'DBH-OS'!S7+'DBH-OH'!S7+'DBH-OI'!S7+XCLH!S7+XCLA!S7+DRFR!S7+DSFS!S7+DSTG!S7+XYM1!S7+XYM2!S7+XYM3E!S7+XYM4E!S7+SAGE!S7+'ABXY-TI1S'!S7+'ABXY-TI2S'!S7+ABZ!S7+'ASXY-TI1S'!S7+'ASXY-TI2S'!S7+'ASXY-TI3S'!S7+ASZ!S7+'MBXY-TI1S'!S7+'MBXY-TI2S'!S7+MBZ!S7+'MSXY-TI1S'!S7+'MSXY-TI2S'!S7++'MSXY-TI3S'!S7+MSZ!S7+'DEC-U'!S7+DECR!S7+'DBH-U'!S7+DBHR!S7+AMIL!S7 -> 0.1270288 | E7: ='DEC-OS'!T7+'DEC-OH'!T7+'DEC-OI'!T7+'DBH-OS'!T7+'DBH-OH'!T7+'DBH-OI'!T7+XCLH!T7+XCLA!T7+DRFR!T7+DSFS!T7+DSTG!T7+XYM1!T7+XYM2!T7+XYM3E!T7+XYM4E!T7+SAGE!T7+'ABXY-TI1S'!T7+'ABXY-TI2S'!T7+ABZ!T7+'ASXY-TI1S'!T7+'ASXY-TI2S'!T7+'ASXY-TI3S'!T7+ASZ!T7+'MBXY-TI1S'!T7+'MBXY-TI2S'!T7+MBZ!T7+'MSXY-TI1S'!T7+'MSXY-TI2S'!T7++'MSXY-TI3S'!T7+MSZ!T7+'DEC-U'!T7+DECR!T7+'DBH-U'!T7+DBHR!T7+AMIL!T7 -> 0 | F7: ='DEC-OS'!U7+'DEC-OH'!U7+'DEC-OI'!U7+'DBH-OS'!U7+'DBH-OH'!U7+'DBH-OI'!U7+XCLH!U7+XCLA!U7+DRFR!U7+DSFS!U7+DSTG!U7+XYM1!U7+XYM2!U7+XYM3E!U7+XYM4E!U7+SAGE!U7+'ABXY-TI1S'!U7+'ABXY-TI2S'!U7+ABZ!U7+'ASXY-TI1S'!U7+'ASXY-TI2S'!U7+'ASXY-TI3S'!U7+ASZ!U7+'MBXY-TI1S'!U7+'MBXY-TI2S'!U7+MBZ!U7+'MSXY-TI1S'!U7+'MSXY-TI2S'!U7++'MSXY-TI3S'!U7+MSZ!U7+'DEC-U'!U7+DECR!U7+'DBH-U'!U7+DBHR!U7+AMIL!U7 -> 0 | G7: ='DEC-OS'!V7+'DEC-OH'!V7+'DEC-OI'!V7+'DBH-OS'!V7+'DBH-OH'!V7+'DBH-OI'!V7+XCLH!V7+XCLA!V7+DRFR!V7+DSFS!V7+DSTG!V7+XYM1!V7+XYM2!V7+XYM3E!V7+XYM4E!V7+SAGE!V7+'ABXY-TI1S'!V7+'ABXY-TI2S'!V7+ABZ!V7+'ASXY-TI1S'!V7+'ASXY-TI2S'!V7+'ASXY-TI3S'!V7+ASZ!V7+'MBXY-TI1S'!V7+'MBXY-TI2S'!V7+MBZ!V7+'MSXY-TI1S'!V7+'MSXY-TI2S'!V7++'MSXY-TI3S'!V7+MSZ!V7+'DEC-U'!V7+DECR!V7+'DBH-U'!V7+DBHR!V7+AMIL!V7 -> 0 | H7: 0.1430568696 | I7: 0.1430568696 | J7: 0.1270288 | K7: 0 | L7: 0 | M7: 0 | N7: =COS(Wellpath!$L7)*COS(Wellpath!$M7) -> 1 | O7: =-SIN(Wellpath!$M7) -> 0 | P7: =SIN(Wellpath!$L7)*COS(Wellpath!$M7) -> 0 | Q7: =COS(Wellpath!$L7)*SIN(Wellpath!$M7) -> 0 | R7: =COS(Wellpath!$M7) -> 1 | S7: =SIN(Wellpath!$L7)*SIN(Wellpath!$M7) -> 0 | T7: =-SIN(Wellpath!$L7) -> 0 | U7: 0 | V7: =COS(Wellpath!$L7) -> 1
A8: =Wellpath!E8 -> 150 | B8: ='DEC-OS'!Q8+'DEC-OH'!Q8+'DEC-OI'!Q8+'DBH-OS'!Q8+'DBH-OH'!Q8+'DBH-OI'!Q8+XCLH!Q8+XCLA!Q8+DRFR!Q8+DSFS!Q8+DSTG!Q8+XYM1!Q8+XYM2!Q8+XYM3E!Q8+XYM4E!Q8+SAGE!Q8+'ABXY-TI1S'!Q8+'ABXY-TI2S'!Q8+ABZ!Q8+'ASXY-TI1S'!Q8+'ASXY-TI2S'!Q8+'ASXY-TI3S'!Q8+ASZ!Q8+'MBXY-TI1S'!Q8+'MBXY-TI2S'!Q8+MBZ!Q8+'MSXY-TI1S'!Q8+'MSXY-TI2S'!Q8++'MSXY-TI3S'!Q8+MSZ!Q8+'DEC-U'!Q8+DECR!Q8+'DBH-U'!Q8+DBHR!Q8+AMIL!Q8 -> 0.1764855068 | C8: ='DEC-OS'!R8+'DEC-OH'!R8+'DEC-OI'!R8+'DBH-OS'!R8+'DBH-OH'!R8+'DBH-OI'!R8+XCLH!R8+XCLA!R8+DRFR!R8+DSFS!R8+DSTG!R8+XYM1!R8+XYM2!R8+XYM3E!R8+XYM4E!R8+SAGE!R8+'ABXY-TI1S'!R8+'ABXY-TI2S'!R8+ABZ!R8+'ASXY-TI1S'!R8+'ASXY-TI2S'!R8+'ASXY-TI3S'!R8+ASZ!R8+'MBXY-TI1S'!R8+'MBXY-TI2S'!R8+MBZ!R8+'MSXY-TI1S'!R8+'MSXY-TI2S'!R8++'MSXY-TI3S'!R8+MSZ!R8+'DEC-U'!R8+DECR!R8+'DBH-U'!R8+DBHR!R8+AMIL!R8 -> 0.1764855068 | D8: ='DEC-OS'!S8+'DEC-OH'!S8+'DEC-OI'!S8+'DBH-OS'!S8+'DBH-OH'!S8+'DBH-OI'!S8+XCLH!S8+XCLA!S8+DRFR!S8+DSFS!S8+DSTG!S8+XYM1!S8+XYM2!S8+XYM3E!S8+XYM4E!S8+SAGE!S8+'ABXY-TI1S'!S8+'ABXY-TI2S'!S8+ABZ!S8+'ASXY-TI1S'!S8+'ASXY-TI2S'!S8+'ASXY-TI3S'!S8+ASZ!S8+'MBXY-TI1S'!S8+'MBXY-TI2S'!S8+MBZ!S8+'MSXY-TI1S'!S8+'MSXY-TI2S'!S8++'MSXY-TI3S'!S8+MSZ!S8+'DEC-U'!S8+DECR!S8+'DBH-U'!S8+DBHR!S8+AMIL!S8 -> 0.1295876406 | E8: ='DEC-OS'!T8+'DEC-OH'!T8+'DEC-OI'!T8+'DBH-OS'!T8+'DBH-OH'!T8+'DBH-OI'!T8+XCLH!T8+XCLA!T8+DRFR!T8+DSFS!T8+DSTG!T8+XYM1!T8+XYM2!T8+XYM3E!T8+XYM4E!T8+SAGE!T8+'ABXY-TI1S'!T8+'ABXY-TI2S'!T8+ABZ!T8+'ASXY-TI1S'!T8+'ASXY-TI2S'!T8+'ASXY-TI3S'!T8+ASZ!T8+'MBXY-TI1S'!T8+'MBXY-TI2S'!T8+MBZ!T8+'MSXY-TI1S'!T8+'MSXY-TI2S'!T8++'MSXY-TI3S'!T8+MSZ!T8+'DEC-U'!T8+DECR!T8+'DBH-U'!T8+DBHR!T8+AMIL!T8 -> 0 | F8: ='DEC-OS'!U8+'DEC-OH'!U8+'DEC-OI'!U8+'DBH-OS'!U8+'DBH-OH'!U8+'DBH-OI'!U8+XCLH!U8+XCLA!U8+DRFR!U8+DSFS!U8+DSTG!U8+XYM1!U8+XYM2!U8+XYM3E!U8+XYM4E!U8+SAGE!U8+'ABXY-TI1S'!U8+'ABXY-TI2S'!U8+ABZ!U8+'ASXY-TI1S'!U8+'ASXY-TI2S'!U8+'ASXY-TI3S'!U8+ASZ!U8+'MBXY-TI1S'!U8+'MBXY-TI2S'!U8+MBZ!U8+'MSXY-TI1S'!U8+'MSXY-TI2S'!U8++'MSXY-TI3S'!U8+MSZ!U8+'DEC-U'!U8+DECR!U8+'DBH-U'!U8+DBHR!U8+AMIL!U8 -> 0 | G8: ='DEC-OS'!V8+'DEC-OH'!V8+'DEC-OI'!V8+'DBH-OS'!V8+'DBH-OH'!V8+'DBH-OI'!V8+XCLH!V8+XCLA!V8+DRFR!V8+DSFS!V8+DSTG!V8+XYM1!V8+XYM2!V8+XYM3E!V8+XYM4E!V8+SAGE!V8+'ABXY-TI1S'!V8+'ABXY-TI2S'!V8+ABZ!V8+'ASXY-TI1S'!V8+'ASXY-TI2S'!V8+'ASXY-TI3S'!V8+ASZ!V8+'MBXY-TI1S'!V8+'MBXY-TI2S'!V8+MBZ!V8+'MSXY-TI1S'!V8+'MSXY-TI2S'!V8++'MSXY-TI3S'!V8+MSZ!V8+'DEC-U'!V8+DECR!V8+'DBH-U'!V8+DBHR!V8+AMIL!V8 -> 0 | H8: 0.1764855068 | I8: 0.1764855068 | J8: 0.1295876406 | K8: 0 | L8: 0 | M8: 0 | N8: =COS(Wellpath!$L8)*COS(Wellpath!$M8) -> 1 | O8: =-SIN(Wellpath!$M8) -> 0 | P8: =SIN(Wellpath!$L8)*COS(Wellpath!$M8) -> 0 | Q8: =COS(Wellpath!$L8)*SIN(Wellpath!$M8) -> 0 | R8: =COS(Wellpath!$M8) -> 1 | S8: =SIN(Wellpath!$L8)*SIN(Wellpath!$M8) -> 0 | T8: =-SIN(Wellpath!$L8) -> 0 | U8: 0 | V8: =COS(Wellpath!$L8) -> 1
A9: =Wellpath!E9 -> 180 | B9: ='DEC-OS'!Q9+'DEC-OH'!Q9+'DEC-OI'!Q9+'DBH-OS'!Q9+'DBH-OH'!Q9+'DBH-OI'!Q9+XCLH!Q9+XCLA!Q9+DRFR!Q9+DSFS!Q9+DSTG!Q9+XYM1!Q9+XYM2!Q9+XYM3E!Q9+XYM4E!Q9+SAGE!Q9+'ABXY-TI1S'!Q9+'ABXY-TI2S'!Q9+ABZ!Q9+'ASXY-TI1S'!Q9+'ASXY-TI2S'!Q9+'ASXY-TI3S'!Q9+ASZ!Q9+'MBXY-TI1S'!Q9+'MBXY-TI2S'!Q9+MBZ!Q9+'MSXY-TI1S'!Q9+'MSXY-TI2S'!Q9++'MSXY-TI3S'!Q9+MSZ!Q9+'DEC-U'!Q9+DECR!Q9+'DBH-U'!Q9+DBHR!Q9+AMIL!Q9 -> 0.2102136126 | C9: ='DEC-OS'!R9+'DEC-OH'!R9+'DEC-OI'!R9+'DBH-OS'!R9+'DBH-OH'!R9+'DBH-OI'!R9+XCLH!R9+XCLA!R9+DRFR!R9+DSFS!R9+DSTG!R9+XYM1!R9+XYM2!R9+XYM3E!R9+XYM4E!R9+SAGE!R9+'ABXY-TI1S'!R9+'ABXY-TI2S'!R9+ABZ!R9+'ASXY-TI1S'!R9+'ASXY-TI2S'!R9+'ASXY-TI3S'!R9+ASZ!R9+'MBXY-TI1S'!R9+'MBXY-TI2S'!R9+MBZ!R9+'MSXY-TI1S'!R9+'MSXY-TI2S'!R9++'MSXY-TI3S'!R9+MSZ!R9+'DEC-U'!R9+DECR!R9+'DBH-U'!R9+DBHR!R9+AMIL!R9 -> 0.2102136126 | D9: ='DEC-OS'!S9+'DEC-OH'!S9+'DEC-OI'!S9+'DBH-OS'!S9+'DBH-OH'!S9+'DBH-OI'!S9+XCLH!S9+XCLA!S9+DRFR!S9+DSFS!S9+DSTG!S9+XYM1!S9+XYM2!S9+XYM3E!S9+XYM4E!S9+SAGE!S9+'ABXY-TI1S'!S9+'ABXY-TI2S'!S9+ABZ!S9+'ASXY-TI1S'!S9+'ASXY-TI2S'!S9+'ASXY-TI3S'!S9+ASZ!S9+'MBXY-TI1S'!S9+'MBXY-TI2S'!S9+MBZ!S9+'MSXY-TI1S'!S9+'MSXY-TI2S'!S9++'MSXY-TI3S'!S9+MSZ!S9+'DEC-U'!S9+DECR!S9+'DBH-U'!S9+DBHR!S9+AMIL!S9 -> 0.13272625 | E9: ='DEC-OS'!T9+'DEC-OH'!T9+'DEC-OI'!T9+'DBH-OS'!T9+'DBH-OH'!T9+'DBH-OI'!T9+XCLH!T9+XCLA!T9+DRFR!T9+DSFS!T9+DSTG!T9+XYM1!T9+XYM2!T9+XYM3E!T9+XYM4E!T9+SAGE!T9+'ABXY-TI1S'!T9+'ABXY-TI2S'!T9+ABZ!T9+'ASXY-TI1S'!T9+'ASXY-TI2S'!T9+'ASXY-TI3S'!T9+ASZ!T9+'MBXY-TI1S'!T9+'MBXY-TI2S'!T9+MBZ!T9+'MSXY-TI1S'!T9+'MSXY-TI2S'!T9++'MSXY-TI3S'!T9+MSZ!T9+'DEC-U'!T9+DECR!T9+'DBH-U'!T9+DBHR!T9+AMIL!T9 -> 0 | F9: ='DEC-OS'!U9+'DEC-OH'!U9+'DEC-OI'!U9+'DBH-OS'!U9+'DBH-OH'!U9+'DBH-OI'!U9+XCLH!U9+XCLA!U9+DRFR!U9+DSFS!U9+DSTG!U9+XYM1!U9+XYM2!U9+XYM3E!U9+XYM4E!U9+SAGE!U9+'ABXY-TI1S'!U9+'ABXY-TI2S'!U9+ABZ!U9+'ASXY-TI1S'!U9+'ASXY-TI2S'!U9+'ASXY-TI3S'!U9+ASZ!U9+'MBXY-TI1S'!U9+'MBXY-TI2S'!U9+MBZ!U9+'MSXY-TI1S'!U9+'MSXY-TI2S'!U9++'MSXY-TI3S'!U9+MSZ!U9+'DEC-U'!U9+DECR!U9+'DBH-U'!U9+DBHR!U9+AMIL!U9 -> 0 | G9: ='DEC-OS'!V9+'DEC-OH'!V9+'DEC-OI'!V9+'DBH-OS'!V9+'DBH-OH'!V9+'DBH-OI'!V9+XCLH!V9+XCLA!V9+DRFR!V9+DSFS!V9+DSTG!V9+XYM1!V9+XYM2!V9+XYM3E!V9+XYM4E!V9+SAGE!V9+'ABXY-TI1S'!V9+'ABXY-TI2S'!V9+ABZ!V9+'ASXY-TI1S'!V9+'ASXY-TI2S'!V9+'ASXY-TI3S'!V9+ASZ!V9+'MBXY-TI1S'!V9+'MBXY-TI2S'!V9+MBZ!V9+'MSXY-TI1S'!V9+'MSXY-TI2S'!V9++'MSXY-TI3S'!V9+MSZ!V9+'DEC-U'!V9+DECR!V9+'DBH-U'!V9+DBHR!V9+AMIL!V9 -> 0 | H9: 0.2102136126 | I9: 0.2102136126 | J9: 0.13272625 | K9: 0 | L9: 0 | M9: 0 | N9: =COS(Wellpath!$L9)*COS(Wellpath!$M9) -> 1 | O9: =-SIN(Wellpath!$M9) -> 0 | P9: =SIN(Wellpath!$L9)*COS(Wellpath!$M9) -> 0 | Q9: =COS(Wellpath!$L9)*SIN(Wellpath!$M9) -> 0 | R9: =COS(Wellpath!$M9) -> 1 | S9: =SIN(Wellpath!$L9)*SIN(Wellpath!$M9) -> 0 | T9: =-SIN(Wellpath!$L9) -> 0 | U9: 0 | V9: =COS(Wellpath!$L9) -> 1
A10: =Wellpath!E10 -> 210 | B10: ='DEC-OS'!Q10+'DEC-OH'!Q10+'DEC-OI'!Q10+'DBH-OS'!Q10+'DBH-OH'!Q10+'DBH-OI'!Q10+XCLH!Q10+XCLA!Q10+DRFR!Q10+DSFS!Q10+DSTG!Q10+XYM1!Q10+XYM2!Q10+XYM3E!Q10+XYM4E!Q10+SAGE!Q10+'ABXY-TI1S'!Q10+'ABXY-TI2S'!Q10+ABZ!Q10+'ASXY-TI1S'!Q10+'ASXY-TI2S'!Q10+'ASXY-TI3S'!Q10+ASZ!Q10+'MBXY-TI1S'!Q10+'MBXY-TI2S'!Q10+MBZ!Q10+'MSXY-TI1S'!Q10+'MSXY-TI2S'!Q10++'MSXY-TI3S'!Q10+MSZ!Q10+'DEC-U'!Q10+DECR!Q10+'DBH-U'!Q10+DBHR!Q10+AMIL!Q10 -> 0.2442411868 | C10: ='DEC-OS'!R10+'DEC-OH'!R10+'DEC-OI'!R10+'DBH-OS'!R10+'DBH-OH'!R10+'DBH-OI'!R10+XCLH!R10+XCLA!R10+DRFR!R10+DSFS!R10+DSTG!R10+XYM1!R10+XYM2!R10+XYM3E!R10+XYM4E!R10+SAGE!R10+'ABXY-TI1S'!R10+'ABXY-TI2S'!R10+ABZ!R10+'ASXY-TI1S'!R10+'ASXY-TI2S'!R10+'ASXY-TI3S'!R10+ASZ!R10+'MBXY-TI1S'!R10+'MBXY-TI2S'!R10+MBZ!R10+'MSXY-TI1S'!R10+'MSXY-TI2S'!R10++'MSXY-TI3S'!R10+MSZ!R10+'DEC-U'!R10+DECR!R10+'DBH-U'!R10+DBHR!R10+AMIL!R10 -> 0.2442411868 | D10: ='DEC-OS'!S10+'DEC-OH'!S10+'DEC-OI'!S10+'DBH-OS'!S10+'DBH-OH'!S10+'DBH-OI'!S10+XCLH!S10+XCLA!S10+DRFR!S10+DSFS!S10+DSTG!S10+XYM1!S10+XYM2!S10+XYM3E!S10+XYM4E!S10+SAGE!S10+'ABXY-TI1S'!S10+'ABXY-TI2S'!S10+ABZ!S10+'ASXY-TI1S'!S10+'ASXY-TI2S'!S10+'ASXY-TI3S'!S10+ASZ!S10+'MBXY-TI1S'!S10+'MBXY-TI2S'!S10+MBZ!S10+'MSXY-TI1S'!S10+'MSXY-TI2S'!S10++'MSXY-TI3S'!S10+MSZ!S10+'DEC-U'!S10+DECR!S10+'DBH-U'!S10+DBHR!S10+AMIL!S10 -> 0.1364513106 | E10: ='DEC-OS'!T10+'DEC-OH'!T10+'DEC-OI'!T10+'DBH-OS'!T10+'DBH-OH'!T10+'DBH-OI'!T10+XCLH!T10+XCLA!T10+DRFR!T10+DSFS!T10+DSTG!T10+XYM1!T10+XYM2!T10+XYM3E!T10+XYM4E!T10+SAGE!T10+'ABXY-TI1S'!T10+'ABXY-TI2S'!T10+ABZ!T10+'ASXY-TI1S'!T10+'ASXY-TI2S'!T10+'ASXY-TI3S'!T10+ASZ!T10+'MBXY-TI1S'!T10+'MBXY-TI2S'!T10+MBZ!T10+'MSXY-TI1S'!T10+'MSXY-TI2S'!T10++'MSXY-TI3S'!T10+MSZ!T10+'DEC-U'!T10+DECR!T10+'DBH-U'!T10+DBHR!T10+AMIL!T10 -> 0 | F10: ='DEC-OS'!U10+'DEC-OH'!U10+'DEC-OI'!U10+'DBH-OS'!U10+'DBH-OH'!U10+'DBH-OI'!U10+XCLH!U10+XCLA!U10+DRFR!U10+DSFS!U10+DSTG!U10+XYM1!U10+XYM2!U10+XYM3E!U10+XYM4E!U10+SAGE!U10+'ABXY-TI1S'!U10+'ABXY-TI2S'!U10+ABZ!U10+'ASXY-TI1S'!U10+'ASXY-TI2S'!U10+'ASXY-TI3S'!U10+ASZ!U10+'MBXY-TI1S'!U10+'MBXY-TI2S'!U10+MBZ!U10+'MSXY-TI1S'!U10+'MSXY-TI2S'!U10++'MSXY-TI3S'!U10+MSZ!U10+'DEC-U'!U10+DECR!U10+'DBH-U'!U10+DBHR!U10+AMIL!U10 -> 0 | G10: ='DEC-OS'!V10+'DEC-OH'!V10+'DEC-OI'!V10+'DBH-OS'!V10+'DBH-OH'!V10+'DBH-OI'!V10+XCLH!V10+XCLA!V10+DRFR!V10+DSFS!V10+DSTG!V10+XYM1!V10+XYM2!V10+XYM3E!V10+XYM4E!V10+SAGE!V10+'ABXY-TI1S'!V10+'ABXY-TI2S'!V10+ABZ!V10+'ASXY-TI1S'!V10+'ASXY-TI2S'!V10+'ASXY-TI3S'!V10+ASZ!V10+'MBXY-TI1S'!V10+'MBXY-TI2S'!V10+MBZ!V10+'MSXY-TI1S'!V10+'MSXY-TI2S'!V10++'MSXY-TI3S'!V10+MSZ!V10+'DEC-U'!V10+DECR!V10+'DBH-U'!V10+DBHR!V10+AMIL!V10 -> 0 | H10: 0.2442411868 | I10: 0.2442411868 | J10: 0.1364513106 | K10: 0 | L10: 0 | M10: 0 | N10: =COS(Wellpath!$L10)*COS(Wellpath!$M10) -> 1 | O10: =-SIN(Wellpath!$M10) -> 0 | P10: =SIN(Wellpath!$L10)*COS(Wellpath!$M10) -> 0 | Q10: =COS(Wellpath!$L10)*SIN(Wellpath!$M10) -> 0 | R10: =COS(Wellpath!$M10) -> 1 | S10: =SIN(Wellpath!$L10)*SIN(Wellpath!$M10) -> 0 | T10: =-SIN(Wellpath!$L10) -> 0 | U10: 0 | V10: =COS(Wellpath!$L10) -> 1
A11: =Wellpath!E11 -> 240 | B11: ='DEC-OS'!Q11+'DEC-OH'!Q11+'DEC-OI'!Q11+'DBH-OS'!Q11+'DBH-OH'!Q11+'DBH-OI'!Q11+XCLH!Q11+XCLA!Q11+DRFR!Q11+DSFS!Q11+DSTG!Q11+XYM1!Q11+XYM2!Q11+XYM3E!Q11+XYM4E!Q11+SAGE!Q11+'ABXY-TI1S'!Q11+'ABXY-TI2S'!Q11+ABZ!Q11+'ASXY-TI1S'!Q11+'ASXY-TI2S'!Q11+'ASXY-TI3S'!Q11+ASZ!Q11+'MBXY-TI1S'!Q11+'MBXY-TI2S'!Q11+MBZ!Q11+'MSXY-TI1S'!Q11+'MSXY-TI2S'!Q11++'MSXY-TI3S'!Q11+MSZ!Q11+'DEC-U'!Q11+DECR!Q11+'DBH-U'!Q11+DBHR!Q11+AMIL!Q11 -> 0.2785682296 | C11: ='DEC-OS'!R11+'DEC-OH'!R11+'DEC-OI'!R11+'DBH-OS'!R11+'DBH-OH'!R11+'DBH-OI'!R11+XCLH!R11+XCLA!R11+DRFR!R11+DSFS!R11+DSTG!R11+XYM1!R11+XYM2!R11+XYM3E!R11+XYM4E!R11+SAGE!R11+'ABXY-TI1S'!R11+'ABXY-TI2S'!R11+ABZ!R11+'ASXY-TI1S'!R11+'ASXY-TI2S'!R11+'ASXY-TI3S'!R11+ASZ!R11+'MBXY-TI1S'!R11+'MBXY-TI2S'!R11+MBZ!R11+'MSXY-TI1S'!R11+'MSXY-TI2S'!R11++'MSXY-TI3S'!R11+MSZ!R11+'DEC-U'!R11+DECR!R11+'DBH-U'!R11+DBHR!R11+AMIL!R11 -> 0.2785682296 | D11: ='DEC-OS'!S11+'DEC-OH'!S11+'DEC-OI'!S11+'DBH-OS'!S11+'DBH-OH'!S11+'DBH-OI'!S11+XCLH!S11+XCLA!S11+DRFR!S11+DSFS!S11+DSTG!S11+XYM1!S11+XYM2!S11+XYM3E!S11+XYM4E!S11+SAGE!S11+'ABXY-TI1S'!S11+'ABXY-TI2S'!S11+ABZ!S11+'ASXY-TI1S'!S11+'ASXY-TI2S'!S11+'ASXY-TI3S'!S11+ASZ!S11+'MBXY-TI1S'!S11+'MBXY-TI2S'!S11+MBZ!S11+'MSXY-TI1S'!S11+'MSXY-TI2S'!S11++'MSXY-TI3S'!S11+MSZ!S11+'DEC-U'!S11+DECR!S11+'DBH-U'!S11+DBHR!S11+AMIL!S11 -> 0.14077072 | E11: ='DEC-OS'!T11+'DEC-OH'!T11+'DEC-OI'!T11+'DBH-OS'!T11+'DBH-OH'!T11+'DBH-OI'!T11+XCLH!T11+XCLA!T11+DRFR!T11+DSFS!T11+DSTG!T11+XYM1!T11+XYM2!T11+XYM3E!T11+XYM4E!T11+SAGE!T11+'ABXY-TI1S'!T11+'ABXY-TI2S'!T11+ABZ!T11+'ASXY-TI1S'!T11+'ASXY-TI2S'!T11+'ASXY-TI3S'!T11+ASZ!T11+'MBXY-TI1S'!T11+'MBXY-TI2S'!T11+MBZ!T11+'MSXY-TI1S'!T11+'MSXY-TI2S'!T11++'MSXY-TI3S'!T11+MSZ!T11+'DEC-U'!T11+DECR!T11+'DBH-U'!T11+DBHR!T11+AMIL!T11 -> 0 | F11: ='DEC-OS'!U11+'DEC-OH'!U11+'DEC-OI'!U11+'DBH-OS'!U11+'DBH-OH'!U11+'DBH-OI'!U11+XCLH!U11+XCLA!U11+DRFR!U11+DSFS!U11+DSTG!U11+XYM1!U11+XYM2!U11+XYM3E!U11+XYM4E!U11+SAGE!U11+'ABXY-TI1S'!U11+'ABXY-TI2S'!U11+ABZ!U11+'ASXY-TI1S'!U11+'ASXY-TI2S'!U11+'ASXY-TI3S'!U11+ASZ!U11+'MBXY-TI1S'!U11+'MBXY-TI2S'!U11+MBZ!U11+'MSXY-TI1S'!U11+'MSXY-TI2S'!U11++'MSXY-TI3S'!U11+MSZ!U11+'DEC-U'!U11+DECR!U11+'DBH-U'!U11+DBHR!U11+AMIL!U11 -> 0 | G11: ='DEC-OS'!V11+'DEC-OH'!V11+'DEC-OI'!V11+'DBH-OS'!V11+'DBH-OH'!V11+'DBH-OI'!V11+XCLH!V11+XCLA!V11+DRFR!V11+DSFS!V11+DSTG!V11+XYM1!V11+XYM2!V11+XYM3E!V11+XYM4E!V11+SAGE!V11+'ABXY-TI1S'!V11+'ABXY-TI2S'!V11+ABZ!V11+'ASXY-TI1S'!V11+'ASXY-TI2S'!V11+'ASXY-TI3S'!V11+ASZ!V11+'MBXY-TI1S'!V11+'MBXY-TI2S'!V11+MBZ!V11+'MSXY-TI1S'!V11+'MSXY-TI2S'!V11++'MSXY-TI3S'!V11+MSZ!V11+'DEC-U'!V11+DECR!V11+'DBH-U'!V11+DBHR!V11+AMIL!V11 -> 0 | H11: 0.2785682296 | I11: 0.2785682296 | J11: 0.14077072 | K11: 0 | L11: 0 | M11: 0 | N11: =COS(Wellpath!$L11)*COS(Wellpath!$M11) -> 1 | O11: =-SIN(Wellpath!$M11) -> 0 | P11: =SIN(Wellpath!$L11)*COS(Wellpath!$M11) -> 0 | Q11: =COS(Wellpath!$L11)*SIN(Wellpath!$M11) -> 0 | R11: =COS(Wellpath!$M11) -> 1 | S11: =SIN(Wellpath!$L11)*SIN(Wellpath!$M11) -> 0 | T11: =-SIN(Wellpath!$L11) -> 0 | U11: 0 | V11: =COS(Wellpath!$L11) -> 1
A12: =Wellpath!E12 -> 270 | B12: ='DEC-OS'!Q12+'DEC-OH'!Q12+'DEC-OI'!Q12+'DBH-OS'!Q12+'DBH-OH'!Q12+'DBH-OI'!Q12+XCLH!Q12+XCLA!Q12+DRFR!Q12+DSFS!Q12+DSTG!Q12+XYM1!Q12+XYM2!Q12+XYM3E!Q12+XYM4E!Q12+SAGE!Q12+'ABXY-TI1S'!Q12+'ABXY-TI2S'!Q12+ABZ!Q12+'ASXY-TI1S'!Q12+'ASXY-TI2S'!Q12+'ASXY-TI3S'!Q12+ASZ!Q12+'MBXY-TI1S'!Q12+'MBXY-TI2S'!Q12+MBZ!Q12+'MSXY-TI1S'!Q12+'MSXY-TI2S'!Q12++'MSXY-TI3S'!Q12+MSZ!Q12+'DEC-U'!Q12+DECR!Q12+'DBH-U'!Q12+DBHR!Q12+AMIL!Q12 -> 0.3131947408 | C12: ='DEC-OS'!R12+'DEC-OH'!R12+'DEC-OI'!R12+'DBH-OS'!R12+'DBH-OH'!R12+'DBH-OI'!R12+XCLH!R12+XCLA!R12+DRFR!R12+DSFS!R12+DSTG!R12+XYM1!R12+XYM2!R12+XYM3E!R12+XYM4E!R12+SAGE!R12+'ABXY-TI1S'!R12+'ABXY-TI2S'!R12+ABZ!R12+'ASXY-TI1S'!R12+'ASXY-TI2S'!R12+'ASXY-TI3S'!R12+ASZ!R12+'MBXY-TI1S'!R12+'MBXY-TI2S'!R12+MBZ!R12+'MSXY-TI1S'!R12+'MSXY-TI2S'!R12++'MSXY-TI3S'!R12+MSZ!R12+'DEC-U'!R12+DECR!R12+'DBH-U'!R12+DBHR!R12+AMIL!R12 -> 0.3131947408 | D12: ='DEC-OS'!S12+'DEC-OH'!S12+'DEC-OI'!S12+'DBH-OS'!S12+'DBH-OH'!S12+'DBH-OI'!S12+XCLH!S12+XCLA!S12+DRFR!S12+DSFS!S12+DSTG!S12+XYM1!S12+XYM2!S12+XYM3E!S12+XYM4E!S12+SAGE!S12+'ABXY-TI1S'!S12+'ABXY-TI2S'!S12+ABZ!S12+'ASXY-TI1S'!S12+'ASXY-TI2S'!S12+'ASXY-TI3S'!S12+ASZ!S12+'MBXY-TI1S'!S12+'MBXY-TI2S'!S12+MBZ!S12+'MSXY-TI1S'!S12+'MSXY-TI2S'!S12++'MSXY-TI3S'!S12+MSZ!S12+'DEC-U'!S12+DECR!S12+'DBH-U'!S12+DBHR!S12+AMIL!S12 -> 0.1456935906 | E12: ='DEC-OS'!T12+'DEC-OH'!T12+'DEC-OI'!T12+'DBH-OS'!T12+'DBH-OH'!T12+'DBH-OI'!T12+XCLH!T12+XCLA!T12+DRFR!T12+DSFS!T12+DSTG!T12+XYM1!T12+XYM2!T12+XYM3E!T12+XYM4E!T12+SAGE!T12+'ABXY-TI1S'!T12+'ABXY-TI2S'!T12+ABZ!T12+'ASXY-TI1S'!T12+'ASXY-TI2S'!T12+'ASXY-TI3S'!T12+ASZ!T12+'MBXY-TI1S'!T12+'MBXY-TI2S'!T12+MBZ!T12+'MSXY-TI1S'!T12+'MSXY-TI2S'!T12++'MSXY-TI3S'!T12+MSZ!T12+'DEC-U'!T12+DECR!T12+'DBH-U'!T12+DBHR!T12+AMIL!T12 -> 0 | F12: ='DEC-OS'!U12+'DEC-OH'!U12+'DEC-OI'!U12+'DBH-OS'!U12+'DBH-OH'!U12+'DBH-OI'!U12+XCLH!U12+XCLA!U12+DRFR!U12+DSFS!U12+DSTG!U12+XYM1!U12+XYM2!U12+XYM3E!U12+XYM4E!U12+SAGE!U12+'ABXY-TI1S'!U12+'ABXY-TI2S'!U12+ABZ!U12+'ASXY-TI1S'!U12+'ASXY-TI2S'!U12+'ASXY-TI3S'!U12+ASZ!U12+'MBXY-TI1S'!U12+'MBXY-TI2S'!U12+MBZ!U12+'MSXY-TI1S'!U12+'MSXY-TI2S'!U12++'MSXY-TI3S'!U12+MSZ!U12+'DEC-U'!U12+DECR!U12+'DBH-U'!U12+DBHR!U12+AMIL!U12 -> 0 | G12: ='DEC-OS'!V12+'DEC-OH'!V12+'DEC-OI'!V12+'DBH-OS'!V12+'DBH-OH'!V12+'DBH-OI'!V12+XCLH!V12+XCLA!V12+DRFR!V12+DSFS!V12+DSTG!V12+XYM1!V12+XYM2!V12+XYM3E!V12+XYM4E!V12+SAGE!V12+'ABXY-TI1S'!V12+'ABXY-TI2S'!V12+ABZ!V12+'ASXY-TI1S'!V12+'ASXY-TI2S'!V12+'ASXY-TI3S'!V12+ASZ!V12+'MBXY-TI1S'!V12+'MBXY-TI2S'!V12+MBZ!V12+'MSXY-TI1S'!V12+'MSXY-TI2S'!V12++'MSXY-TI3S'!V12+MSZ!V12+'DEC-U'!V12+DECR!V12+'DBH-U'!V12+DBHR!V12+AMIL!V12 -> 0 | H12: 0.3131947408 | I12: 0.3131947408 | J12: 0.1456935906 | K12: 0 | L12: 0 | M12: 0 | N12: =COS(Wellpath!$L12)*COS(Wellpath!$M12) -> 1 | O12: =-SIN(Wellpath!$M12) -> 0 | P12: =SIN(Wellpath!$L12)*COS(Wellpath!$M12) -> 0 | Q12: =COS(Wellpath!$L12)*SIN(Wellpath!$M12) -> 0 | R12: =COS(Wellpath!$M12) -> 1 | S12: =SIN(Wellpath!$L12)*SIN(Wellpath!$M12) -> 0 | T12: =-SIN(Wellpath!$L12) -> 0 | U12: 0 | V12: =COS(Wellpath!$L12) -> 1
A13: =Wellpath!E13 -> 300 | B13: ='DEC-OS'!Q13+'DEC-OH'!Q13+'DEC-OI'!Q13+'DBH-OS'!Q13+'DBH-OH'!Q13+'DBH-OI'!Q13+XCLH!Q13+XCLA!Q13+DRFR!Q13+DSFS!Q13+DSTG!Q13+XYM1!Q13+XYM2!Q13+XYM3E!Q13+XYM4E!Q13+SAGE!Q13+'ABXY-TI1S'!Q13+'ABXY-TI2S'!Q13+ABZ!Q13+'ASXY-TI1S'!Q13+'ASXY-TI2S'!Q13+'ASXY-TI3S'!Q13+ASZ!Q13+'MBXY-TI1S'!Q13+'MBXY-TI2S'!Q13+MBZ!Q13+'MSXY-TI1S'!Q13+'MSXY-TI2S'!Q13++'MSXY-TI3S'!Q13+MSZ!Q13+'DEC-U'!Q13+DECR!Q13+'DBH-U'!Q13+DBHR!Q13+AMIL!Q13 -> 0.3481207205 | C13: ='DEC-OS'!R13+'DEC-OH'!R13+'DEC-OI'!R13+'DBH-OS'!R13+'DBH-OH'!R13+'DBH-OI'!R13+XCLH!R13+XCLA!R13+DRFR!R13+DSFS!R13+DSTG!R13+XYM1!R13+XYM2!R13+XYM3E!R13+XYM4E!R13+SAGE!R13+'ABXY-TI1S'!R13+'ABXY-TI2S'!R13+ABZ!R13+'ASXY-TI1S'!R13+'ASXY-TI2S'!R13+'ASXY-TI3S'!R13+ASZ!R13+'MBXY-TI1S'!R13+'MBXY-TI2S'!R13+MBZ!R13+'MSXY-TI1S'!R13+'MSXY-TI2S'!R13++'MSXY-TI3S'!R13+MSZ!R13+'DEC-U'!R13+DECR!R13+'DBH-U'!R13+DBHR!R13+AMIL!R13 -> 0.3481207205 | D13: ='DEC-OS'!S13+'DEC-OH'!S13+'DEC-OI'!S13+'DBH-OS'!S13+'DBH-OH'!S13+'DBH-OI'!S13+XCLH!S13+XCLA!S13+DRFR!S13+DSFS!S13+DSTG!S13+XYM1!S13+XYM2!S13+XYM3E!S13+XYM4E!S13+SAGE!S13+'ABXY-TI1S'!S13+'ABXY-TI2S'!S13+ABZ!S13+'ASXY-TI1S'!S13+'ASXY-TI2S'!S13+'ASXY-TI3S'!S13+ASZ!S13+'MBXY-TI1S'!S13+'MBXY-TI2S'!S13+MBZ!S13+'MSXY-TI1S'!S13+'MSXY-TI2S'!S13++'MSXY-TI3S'!S13+MSZ!S13+'DEC-U'!S13+DECR!S13+'DBH-U'!S13+DBHR!S13+AMIL!S13 -> 0.15123025 | E13: ='DEC-OS'!T13+'DEC-OH'!T13+'DEC-OI'!T13+'DBH-OS'!T13+'DBH-OH'!T13+'DBH-OI'!T13+XCLH!T13+XCLA!T13+DRFR!T13+DSFS!T13+DSTG!T13+XYM1!T13+XYM2!T13+XYM3E!T13+XYM4E!T13+SAGE!T13+'ABXY-TI1S'!T13+'ABXY-TI2S'!T13+ABZ!T13+'ASXY-TI1S'!T13+'ASXY-TI2S'!T13+'ASXY-TI3S'!T13+ASZ!T13+'MBXY-TI1S'!T13+'MBXY-TI2S'!T13+MBZ!T13+'MSXY-TI1S'!T13+'MSXY-TI2S'!T13++'MSXY-TI3S'!T13+MSZ!T13+'DEC-U'!T13+DECR!T13+'DBH-U'!T13+DBHR!T13+AMIL!T13 -> 0 | F13: ='DEC-OS'!U13+'DEC-OH'!U13+'DEC-OI'!U13+'DBH-OS'!U13+'DBH-OH'!U13+'DBH-OI'!U13+XCLH!U13+XCLA!U13+DRFR!U13+DSFS!U13+DSTG!U13+XYM1!U13+XYM2!U13+XYM3E!U13+XYM4E!U13+SAGE!U13+'ABXY-TI1S'!U13+'ABXY-TI2S'!U13+ABZ!U13+'ASXY-TI1S'!U13+'ASXY-TI2S'!U13+'ASXY-TI3S'!U13+ASZ!U13+'MBXY-TI1S'!U13+'MBXY-TI2S'!U13+MBZ!U13+'MSXY-TI1S'!U13+'MSXY-TI2S'!U13++'MSXY-TI3S'!U13+MSZ!U13+'DEC-U'!U13+DECR!U13+'DBH-U'!U13+DBHR!U13+AMIL!U13 -> 0 | G13: ='DEC-OS'!V13+'DEC-OH'!V13+'DEC-OI'!V13+'DBH-OS'!V13+'DBH-OH'!V13+'DBH-OI'!V13+XCLH!V13+XCLA!V13+DRFR!V13+DSFS!V13+DSTG!V13+XYM1!V13+XYM2!V13+XYM3E!V13+XYM4E!V13+SAGE!V13+'ABXY-TI1S'!V13+'ABXY-TI2S'!V13+ABZ!V13+'ASXY-TI1S'!V13+'ASXY-TI2S'!V13+'ASXY-TI3S'!V13+ASZ!V13+'MBXY-TI1S'!V13+'MBXY-TI2S'!V13+MBZ!V13+'MSXY-TI1S'!V13+'MSXY-TI2S'!V13++'MSXY-TI3S'!V13+MSZ!V13+'DEC-U'!V13+DECR!V13+'DBH-U'!V13+DBHR!V13+AMIL!V13 -> 0 | H13: 0.3481207205 | I13: 0.3481207205 | J13: 0.15123025 | K13: 0 | L13: 0 | M13: 0 | N13: =COS(Wellpath!$L13)*COS(Wellpath!$M13) -> 1 | O13: =-SIN(Wellpath!$M13) -> 0 | P13: =SIN(Wellpath!$L13)*COS(Wellpath!$M13) -> 0 | Q13: =COS(Wellpath!$L13)*SIN(Wellpath!$M13) -> 0 | R13: =COS(Wellpath!$M13) -> 1 | S13: =SIN(Wellpath!$L13)*SIN(Wellpath!$M13) -> 0 | T13: =-SIN(Wellpath!$L13) -> 0 | U13: 0 | V13: =COS(Wellpath!$L13) -> 1
A14: =Wellpath!E14 -> 330 | B14: ='DEC-OS'!Q14+'DEC-OH'!Q14+'DEC-OI'!Q14+'DBH-OS'!Q14+'DBH-OH'!Q14+'DBH-OI'!Q14+XCLH!Q14+XCLA!Q14+DRFR!Q14+DSFS!Q14+DSTG!Q14+XYM1!Q14+XYM2!Q14+XYM3E!Q14+XYM4E!Q14+SAGE!Q14+'ABXY-TI1S'!Q14+'ABXY-TI2S'!Q14+ABZ!Q14+'ASXY-TI1S'!Q14+'ASXY-TI2S'!Q14+'ASXY-TI3S'!Q14+ASZ!Q14+'MBXY-TI1S'!Q14+'MBXY-TI2S'!Q14+MBZ!Q14+'MSXY-TI1S'!Q14+'MSXY-TI2S'!Q14++'MSXY-TI3S'!Q14+MSZ!Q14+'DEC-U'!Q14+DECR!Q14+'DBH-U'!Q14+DBHR!Q14+AMIL!Q14 -> 0.3833461687 | C14: ='DEC-OS'!R14+'DEC-OH'!R14+'DEC-OI'!R14+'DBH-OS'!R14+'DBH-OH'!R14+'DBH-OI'!R14+XCLH!R14+XCLA!R14+DRFR!R14+DSFS!R14+DSTG!R14+XYM1!R14+XYM2!R14+XYM3E!R14+XYM4E!R14+SAGE!R14+'ABXY-TI1S'!R14+'ABXY-TI2S'!R14+ABZ!R14+'ASXY-TI1S'!R14+'ASXY-TI2S'!R14+'ASXY-TI3S'!R14+ASZ!R14+'MBXY-TI1S'!R14+'MBXY-TI2S'!R14+MBZ!R14+'MSXY-TI1S'!R14+'MSXY-TI2S'!R14++'MSXY-TI3S'!R14+MSZ!R14+'DEC-U'!R14+DECR!R14+'DBH-U'!R14+DBHR!R14+AMIL!R14 -> 0.3833461687 | D14: ='DEC-OS'!S14+'DEC-OH'!S14+'DEC-OI'!S14+'DBH-OS'!S14+'DBH-OH'!S14+'DBH-OI'!S14+XCLH!S14+XCLA!S14+DRFR!S14+DSFS!S14+DSTG!S14+XYM1!S14+XYM2!S14+XYM3E!S14+XYM4E!S14+SAGE!S14+'ABXY-TI1S'!S14+'ABXY-TI2S'!S14+ABZ!S14+'ASXY-TI1S'!S14+'ASXY-TI2S'!S14+'ASXY-TI3S'!S14+ASZ!S14+'MBXY-TI1S'!S14+'MBXY-TI2S'!S14+MBZ!S14+'MSXY-TI1S'!S14+'MSXY-TI2S'!S14++'MSXY-TI3S'!S14+MSZ!S14+'DEC-U'!S14+DECR!S14+'DBH-U'!S14+DBHR!S14+AMIL!S14 -> 0.1573922406 | E14: ='DEC-OS'!T14+'DEC-OH'!T14+'DEC-OI'!T14+'DBH-OS'!T14+'DBH-OH'!T14+'DBH-OI'!T14+XCLH!T14+XCLA!T14+DRFR!T14+DSFS!T14+DSTG!T14+XYM1!T14+XYM2!T14+XYM3E!T14+XYM4E!T14+SAGE!T14+'ABXY-TI1S'!T14+'ABXY-TI2S'!T14+ABZ!T14+'ASXY-TI1S'!T14+'ASXY-TI2S'!T14+'ASXY-TI3S'!T14+ASZ!T14+'MBXY-TI1S'!T14+'MBXY-TI2S'!T14+MBZ!T14+'MSXY-TI1S'!T14+'MSXY-TI2S'!T14++'MSXY-TI3S'!T14+MSZ!T14+'DEC-U'!T14+DECR!T14+'DBH-U'!T14+DBHR!T14+AMIL!T14 -> 0 | F14: ='DEC-OS'!U14+'DEC-OH'!U14+'DEC-OI'!U14+'DBH-OS'!U14+'DBH-OH'!U14+'DBH-OI'!U14+XCLH!U14+XCLA!U14+DRFR!U14+DSFS!U14+DSTG!U14+XYM1!U14+XYM2!U14+XYM3E!U14+XYM4E!U14+SAGE!U14+'ABXY-TI1S'!U14+'ABXY-TI2S'!U14+ABZ!U14+'ASXY-TI1S'!U14+'ASXY-TI2S'!U14+'ASXY-TI3S'!U14+ASZ!U14+'MBXY-TI1S'!U14+'MBXY-TI2S'!U14+MBZ!U14+'MSXY-TI1S'!U14+'MSXY-TI2S'!U14++'MSXY-TI3S'!U14+MSZ!U14+'DEC-U'!U14+DECR!U14+'DBH-U'!U14+DBHR!U14+AMIL!U14 -> 0 | G14: ='DEC-OS'!V14+'DEC-OH'!V14+'DEC-OI'!V14+'DBH-OS'!V14+'DBH-OH'!V14+'DBH-OI'!V14+XCLH!V14+XCLA!V14+DRFR!V14+DSFS!V14+DSTG!V14+XYM1!V14+XYM2!V14+XYM3E!V14+XYM4E!V14+SAGE!V14+'ABXY-TI1S'!V14+'ABXY-TI2S'!V14+ABZ!V14+'ASXY-TI1S'!V14+'ASXY-TI2S'!V14+'ASXY-TI3S'!V14+ASZ!V14+'MBXY-TI1S'!V14+'MBXY-TI2S'!V14+MBZ!V14+'MSXY-TI1S'!V14+'MSXY-TI2S'!V14++'MSXY-TI3S'!V14+MSZ!V14+'DEC-U'!V14+DECR!V14+'DBH-U'!V14+DBHR!V14+AMIL!V14 -> 0 | H14: 0.3833461687 | I14: 0.3833461687 | J14: 0.1573922406 | K14: 0 | L14: 0 | M14: 0 | N14: =COS(Wellpath!$L14)*COS(Wellpath!$M14) -> 1 | O14: =-SIN(Wellpath!$M14) -> 0 | P14: =SIN(Wellpath!$L14)*COS(Wellpath!$M14) -> 0 | Q14: =COS(Wellpath!$L14)*SIN(Wellpath!$M14) -> 0 | R14: =COS(Wellpath!$M14) -> 1 | S14: =SIN(Wellpath!$L14)*SIN(Wellpath!$M14) -> 0 | T14: =-SIN(Wellpath!$L14) -> 0 | U14: 0 | V14: =COS(Wellpath!$L14) -> 1
A15: =Wellpath!E15 -> 360 | B15: ='DEC-OS'!Q15+'DEC-OH'!Q15+'DEC-OI'!Q15+'DBH-OS'!Q15+'DBH-OH'!Q15+'DBH-OI'!Q15+XCLH!Q15+XCLA!Q15+DRFR!Q15+DSFS!Q15+DSTG!Q15+XYM1!Q15+XYM2!Q15+XYM3E!Q15+XYM4E!Q15+SAGE!Q15+'ABXY-TI1S'!Q15+'ABXY-TI2S'!Q15+ABZ!Q15+'ASXY-TI1S'!Q15+'ASXY-TI2S'!Q15+'ASXY-TI3S'!Q15+ASZ!Q15+'MBXY-TI1S'!Q15+'MBXY-TI2S'!Q15+MBZ!Q15+'MSXY-TI1S'!Q15+'MSXY-TI2S'!Q15++'MSXY-TI3S'!Q15+MSZ!Q15+'DEC-U'!Q15+DECR!Q15+'DBH-U'!Q15+DBHR!Q15+AMIL!Q15 -> 0.4188710854 | C15: ='DEC-OS'!R15+'DEC-OH'!R15+'DEC-OI'!R15+'DBH-OS'!R15+'DBH-OH'!R15+'DBH-OI'!R15+XCLH!R15+XCLA!R15+DRFR!R15+DSFS!R15+DSTG!R15+XYM1!R15+XYM2!R15+XYM3E!R15+XYM4E!R15+SAGE!R15+'ABXY-TI1S'!R15+'ABXY-TI2S'!R15+ABZ!R15+'ASXY-TI1S'!R15+'ASXY-TI2S'!R15+'ASXY-TI3S'!R15+ASZ!R15+'MBXY-TI1S'!R15+'MBXY-TI2S'!R15+MBZ!R15+'MSXY-TI1S'!R15+'MSXY-TI2S'!R15++'MSXY-TI3S'!R15+MSZ!R15+'DEC-U'!R15+DECR!R15+'DBH-U'!R15+DBHR!R15+AMIL!R15 -> 0.4188710854 | D15: ='DEC-OS'!S15+'DEC-OH'!S15+'DEC-OI'!S15+'DBH-OS'!S15+'DBH-OH'!S15+'DBH-OI'!S15+XCLH!S15+XCLA!S15+DRFR!S15+DSFS!S15+DSTG!S15+XYM1!S15+XYM2!S15+XYM3E!S15+XYM4E!S15+SAGE!S15+'ABXY-TI1S'!S15+'ABXY-TI2S'!S15+ABZ!S15+'ASXY-TI1S'!S15+'ASXY-TI2S'!S15+'ASXY-TI3S'!S15+ASZ!S15+'MBXY-TI1S'!S15+'MBXY-TI2S'!S15+MBZ!S15+'MSXY-TI1S'!S15+'MSXY-TI2S'!S15++'MSXY-TI3S'!S15+MSZ!S15+'DEC-U'!S15+DECR!S15+'DBH-U'!S15+DBHR!S15+AMIL!S15 -> 0.16419232 | E15: ='DEC-OS'!T15+'DEC-OH'!T15+'DEC-OI'!T15+'DBH-OS'!T15+'DBH-OH'!T15+'DBH-OI'!T15+XCLH!T15+XCLA!T15+DRFR!T15+DSFS!T15+DSTG!T15+XYM1!T15+XYM2!T15+XYM3E!T15+XYM4E!T15+SAGE!T15+'ABXY-TI1S'!T15+'ABXY-TI2S'!T15+ABZ!T15+'ASXY-TI1S'!T15+'ASXY-TI2S'!T15+'ASXY-TI3S'!T15+ASZ!T15+'MBXY-TI1S'!T15+'MBXY-TI2S'!T15+MBZ!T15+'MSXY-TI1S'!T15+'MSXY-TI2S'!T15++'MSXY-TI3S'!T15+MSZ!T15+'DEC-U'!T15+DECR!T15+'DBH-U'!T15+DBHR!T15+AMIL!T15 -> 0 | F15: ='DEC-OS'!U15+'DEC-OH'!U15+'DEC-OI'!U15+'DBH-OS'!U15+'DBH-OH'!U15+'DBH-OI'!U15+XCLH!U15+XCLA!U15+DRFR!U15+DSFS!U15+DSTG!U15+XYM1!U15+XYM2!U15+XYM3E!U15+XYM4E!U15+SAGE!U15+'ABXY-TI1S'!U15+'ABXY-TI2S'!U15+ABZ!U15+'ASXY-TI1S'!U15+'ASXY-TI2S'!U15+'ASXY-TI3S'!U15+ASZ!U15+'MBXY-TI1S'!U15+'MBXY-TI2S'!U15+MBZ!U15+'MSXY-TI1S'!U15+'MSXY-TI2S'!U15++'MSXY-TI3S'!U15+MSZ!U15+'DEC-U'!U15+DECR!U15+'DBH-U'!U15+DBHR!U15+AMIL!U15 -> 0 | G15: ='DEC-OS'!V15+'DEC-OH'!V15+'DEC-OI'!V15+'DBH-OS'!V15+'DBH-OH'!V15+'DBH-OI'!V15+XCLH!V15+XCLA!V15+DRFR!V15+DSFS!V15+DSTG!V15+XYM1!V15+XYM2!V15+XYM3E!V15+XYM4E!V15+SAGE!V15+'ABXY-TI1S'!V15+'ABXY-TI2S'!V15+ABZ!V15+'ASXY-TI1S'!V15+'ASXY-TI2S'!V15+'ASXY-TI3S'!V15+ASZ!V15+'MBXY-TI1S'!V15+'MBXY-TI2S'!V15+MBZ!V15+'MSXY-TI1S'!V15+'MSXY-TI2S'!V15++'MSXY-TI3S'!V15+MSZ!V15+'DEC-U'!V15+DECR!V15+'DBH-U'!V15+DBHR!V15+AMIL!V15 -> 0 | H15: 0.4188710854 | I15: 0.4188710854 | J15: 0.16419232 | K15: 0 | L15: 0 | M15: 0 | N15: =COS(Wellpath!$L15)*COS(Wellpath!$M15) -> 1 | O15: =-SIN(Wellpath!$M15) -> 0 | P15: =SIN(Wellpath!$L15)*COS(Wellpath!$M15) -> 0 | Q15: =COS(Wellpath!$L15)*SIN(Wellpath!$M15) -> 0 | R15: =COS(Wellpath!$M15) -> 1 | S15: =SIN(Wellpath!$L15)*SIN(Wellpath!$M15) -> 0 | T15: =-SIN(Wellpath!$L15) -> 0 | U15: 0 | V15: =COS(Wellpath!$L15) -> 1
A16: =Wellpath!E16 -> 390 | B16: ='DEC-OS'!Q16+'DEC-OH'!Q16+'DEC-OI'!Q16+'DBH-OS'!Q16+'DBH-OH'!Q16+'DBH-OI'!Q16+XCLH!Q16+XCLA!Q16+DRFR!Q16+DSFS!Q16+DSTG!Q16+XYM1!Q16+XYM2!Q16+XYM3E!Q16+XYM4E!Q16+SAGE!Q16+'ABXY-TI1S'!Q16+'ABXY-TI2S'!Q16+ABZ!Q16+'ASXY-TI1S'!Q16+'ASXY-TI2S'!Q16+'ASXY-TI3S'!Q16+ASZ!Q16+'MBXY-TI1S'!Q16+'MBXY-TI2S'!Q16+MBZ!Q16+'MSXY-TI1S'!Q16+'MSXY-TI2S'!Q16++'MSXY-TI3S'!Q16+MSZ!Q16+'DEC-U'!Q16+DECR!Q16+'DBH-U'!Q16+DBHR!Q16+AMIL!Q16 -> 0.4546954706 | C16: ='DEC-OS'!R16+'DEC-OH'!R16+'DEC-OI'!R16+'DBH-OS'!R16+'DBH-OH'!R16+'DBH-OI'!R16+XCLH!R16+XCLA!R16+DRFR!R16+DSFS!R16+DSTG!R16+XYM1!R16+XYM2!R16+XYM3E!R16+XYM4E!R16+SAGE!R16+'ABXY-TI1S'!R16+'ABXY-TI2S'!R16+ABZ!R16+'ASXY-TI1S'!R16+'ASXY-TI2S'!R16+'ASXY-TI3S'!R16+ASZ!R16+'MBXY-TI1S'!R16+'MBXY-TI2S'!R16+MBZ!R16+'MSXY-TI1S'!R16+'MSXY-TI2S'!R16++'MSXY-TI3S'!R16+MSZ!R16+'DEC-U'!R16+DECR!R16+'DBH-U'!R16+DBHR!R16+AMIL!R16 -> 0.4546954706 | D16: ='DEC-OS'!S16+'DEC-OH'!S16+'DEC-OI'!S16+'DBH-OS'!S16+'DBH-OH'!S16+'DBH-OI'!S16+XCLH!S16+XCLA!S16+DRFR!S16+DSFS!S16+DSTG!S16+XYM1!S16+XYM2!S16+XYM3E!S16+XYM4E!S16+SAGE!S16+'ABXY-TI1S'!S16+'ABXY-TI2S'!S16+ABZ!S16+'ASXY-TI1S'!S16+'ASXY-TI2S'!S16+'ASXY-TI3S'!S16+ASZ!S16+'MBXY-TI1S'!S16+'MBXY-TI2S'!S16+MBZ!S16+'MSXY-TI1S'!S16+'MSXY-TI2S'!S16++'MSXY-TI3S'!S16+MSZ!S16+'DEC-U'!S16+DECR!S16+'DBH-U'!S16+DBHR!S16+AMIL!S16 -> 0.1716444606 | E16: ='DEC-OS'!T16+'DEC-OH'!T16+'DEC-OI'!T16+'DBH-OS'!T16+'DBH-OH'!T16+'DBH-OI'!T16+XCLH!T16+XCLA!T16+DRFR!T16+DSFS!T16+DSTG!T16+XYM1!T16+XYM2!T16+XYM3E!T16+XYM4E!T16+SAGE!T16+'ABXY-TI1S'!T16+'ABXY-TI2S'!T16+ABZ!T16+'ASXY-TI1S'!T16+'ASXY-TI2S'!T16+'ASXY-TI3S'!T16+ASZ!T16+'MBXY-TI1S'!T16+'MBXY-TI2S'!T16+MBZ!T16+'MSXY-TI1S'!T16+'MSXY-TI2S'!T16++'MSXY-TI3S'!T16+MSZ!T16+'DEC-U'!T16+DECR!T16+'DBH-U'!T16+DBHR!T16+AMIL!T16 -> 0 | F16: ='DEC-OS'!U16+'DEC-OH'!U16+'DEC-OI'!U16+'DBH-OS'!U16+'DBH-OH'!U16+'DBH-OI'!U16+XCLH!U16+XCLA!U16+DRFR!U16+DSFS!U16+DSTG!U16+XYM1!U16+XYM2!U16+XYM3E!U16+XYM4E!U16+SAGE!U16+'ABXY-TI1S'!U16+'ABXY-TI2S'!U16+ABZ!U16+'ASXY-TI1S'!U16+'ASXY-TI2S'!U16+'ASXY-TI3S'!U16+ASZ!U16+'MBXY-TI1S'!U16+'MBXY-TI2S'!U16+MBZ!U16+'MSXY-TI1S'!U16+'MSXY-TI2S'!U16++'MSXY-TI3S'!U16+MSZ!U16+'DEC-U'!U16+DECR!U16+'DBH-U'!U16+DBHR!U16+AMIL!U16 -> 0 | G16: ='DEC-OS'!V16+'DEC-OH'!V16+'DEC-OI'!V16+'DBH-OS'!V16+'DBH-OH'!V16+'DBH-OI'!V16+XCLH!V16+XCLA!V16+DRFR!V16+DSFS!V16+DSTG!V16+XYM1!V16+XYM2!V16+XYM3E!V16+XYM4E!V16+SAGE!V16+'ABXY-TI1S'!V16+'ABXY-TI2S'!V16+ABZ!V16+'ASXY-TI1S'!V16+'ASXY-TI2S'!V16+'ASXY-TI3S'!V16+ASZ!V16+'MBXY-TI1S'!V16+'MBXY-TI2S'!V16+MBZ!V16+'MSXY-TI1S'!V16+'MSXY-TI2S'!V16++'MSXY-TI3S'!V16+MSZ!V16+'DEC-U'!V16+DECR!V16+'DBH-U'!V16+DBHR!V16+AMIL!V16 -> 0 | H16: 0.4546954706 | I16: 0.4546954706 | J16: 0.1716444606 | K16: 0 | L16: 0 | M16: 0 | N16: =COS(Wellpath!$L16)*COS(Wellpath!$M16) -> 1 | O16: =-SIN(Wellpath!$M16) -> 0 | P16: =SIN(Wellpath!$L16)*COS(Wellpath!$M16) -> 0 | Q16: =COS(Wellpath!$L16)*SIN(Wellpath!$M16) -> 0 | R16: =COS(Wellpath!$M16) -> 1 | S16: =SIN(Wellpath!$L16)*SIN(Wellpath!$M16) -> 0 | T16: =-SIN(Wellpath!$L16) -> 0 | U16: 0 | V16: =COS(Wellpath!$L16) -> 1
A17: =Wellpath!E17 -> 420 | B17: ='DEC-OS'!Q17+'DEC-OH'!Q17+'DEC-OI'!Q17+'DBH-OS'!Q17+'DBH-OH'!Q17+'DBH-OI'!Q17+XCLH!Q17+XCLA!Q17+DRFR!Q17+DSFS!Q17+DSTG!Q17+XYM1!Q17+XYM2!Q17+XYM3E!Q17+XYM4E!Q17+SAGE!Q17+'ABXY-TI1S'!Q17+'ABXY-TI2S'!Q17+ABZ!Q17+'ASXY-TI1S'!Q17+'ASXY-TI2S'!Q17+'ASXY-TI3S'!Q17+ASZ!Q17+'MBXY-TI1S'!Q17+'MBXY-TI2S'!Q17+MBZ!Q17+'MSXY-TI1S'!Q17+'MSXY-TI2S'!Q17++'MSXY-TI3S'!Q17+MSZ!Q17+'DEC-U'!Q17+DECR!Q17+'DBH-U'!Q17+DBHR!Q17+AMIL!Q17 -> 0.4908193243 | C17: ='DEC-OS'!R17+'DEC-OH'!R17+'DEC-OI'!R17+'DBH-OS'!R17+'DBH-OH'!R17+'DBH-OI'!R17+XCLH!R17+XCLA!R17+DRFR!R17+DSFS!R17+DSTG!R17+XYM1!R17+XYM2!R17+XYM3E!R17+XYM4E!R17+SAGE!R17+'ABXY-TI1S'!R17+'ABXY-TI2S'!R17+ABZ!R17+'ASXY-TI1S'!R17+'ASXY-TI2S'!R17+'ASXY-TI3S'!R17+ASZ!R17+'MBXY-TI1S'!R17+'MBXY-TI2S'!R17+MBZ!R17+'MSXY-TI1S'!R17+'MSXY-TI2S'!R17++'MSXY-TI3S'!R17+MSZ!R17+'DEC-U'!R17+DECR!R17+'DBH-U'!R17+DBHR!R17+AMIL!R17 -> 0.4908193243 | D17: ='DEC-OS'!S17+'DEC-OH'!S17+'DEC-OI'!S17+'DBH-OS'!S17+'DBH-OH'!S17+'DBH-OI'!S17+XCLH!S17+XCLA!S17+DRFR!S17+DSFS!S17+DSTG!S17+XYM1!S17+XYM2!S17+XYM3E!S17+XYM4E!S17+SAGE!S17+'ABXY-TI1S'!S17+'ABXY-TI2S'!S17+ABZ!S17+'ASXY-TI1S'!S17+'ASXY-TI2S'!S17+'ASXY-TI3S'!S17+ASZ!S17+'MBXY-TI1S'!S17+'MBXY-TI2S'!S17+MBZ!S17+'MSXY-TI1S'!S17+'MSXY-TI2S'!S17++'MSXY-TI3S'!S17+MSZ!S17+'DEC-U'!S17+DECR!S17+'DBH-U'!S17+DBHR!S17+AMIL!S17 -> 0.17976385 | E17: ='DEC-OS'!T17+'DEC-OH'!T17+'DEC-OI'!T17+'DBH-OS'!T17+'DBH-OH'!T17+'DBH-OI'!T17+XCLH!T17+XCLA!T17+DRFR!T17+DSFS!T17+DSTG!T17+XYM1!T17+XYM2!T17+XYM3E!T17+XYM4E!T17+SAGE!T17+'ABXY-TI1S'!T17+'ABXY-TI2S'!T17+ABZ!T17+'ASXY-TI1S'!T17+'ASXY-TI2S'!T17+'ASXY-TI3S'!T17+ASZ!T17+'MBXY-TI1S'!T17+'MBXY-TI2S'!T17+MBZ!T17+'MSXY-TI1S'!T17+'MSXY-TI2S'!T17++'MSXY-TI3S'!T17+MSZ!T17+'DEC-U'!T17+DECR!T17+'DBH-U'!T17+DBHR!T17+AMIL!T17 -> 0 | F17: ='DEC-OS'!U17+'DEC-OH'!U17+'DEC-OI'!U17+'DBH-OS'!U17+'DBH-OH'!U17+'DBH-OI'!U17+XCLH!U17+XCLA!U17+DRFR!U17+DSFS!U17+DSTG!U17+XYM1!U17+XYM2!U17+XYM3E!U17+XYM4E!U17+SAGE!U17+'ABXY-TI1S'!U17+'ABXY-TI2S'!U17+ABZ!U17+'ASXY-TI1S'!U17+'ASXY-TI2S'!U17+'ASXY-TI3S'!U17+ASZ!U17+'MBXY-TI1S'!U17+'MBXY-TI2S'!U17+MBZ!U17+'MSXY-TI1S'!U17+'MSXY-TI2S'!U17++'MSXY-TI3S'!U17+MSZ!U17+'DEC-U'!U17+DECR!U17+'DBH-U'!U17+DBHR!U17+AMIL!U17 -> 0 | G17: ='DEC-OS'!V17+'DEC-OH'!V17+'DEC-OI'!V17+'DBH-OS'!V17+'DBH-OH'!V17+'DBH-OI'!V17+XCLH!V17+XCLA!V17+DRFR!V17+DSFS!V17+DSTG!V17+XYM1!V17+XYM2!V17+XYM3E!V17+XYM4E!V17+SAGE!V17+'ABXY-TI1S'!V17+'ABXY-TI2S'!V17+ABZ!V17+'ASXY-TI1S'!V17+'ASXY-TI2S'!V17+'ASXY-TI3S'!V17+ASZ!V17+'MBXY-TI1S'!V17+'MBXY-TI2S'!V17+MBZ!V17+'MSXY-TI1S'!V17+'MSXY-TI2S'!V17++'MSXY-TI3S'!V17+MSZ!V17+'DEC-U'!V17+DECR!V17+'DBH-U'!V17+DBHR!V17+AMIL!V17 -> 0 | H17: 0.4908193243 | I17: 0.4908193243 | J17: 0.17976385 | K17: 0 | L17: 0 | M17: 0 | N17: =COS(Wellpath!$L17)*COS(Wellpath!$M17) -> 1 | O17: =-SIN(Wellpath!$M17) -> 0 | P17: =SIN(Wellpath!$L17)*COS(Wellpath!$M17) -> 0 | Q17: =COS(Wellpath!$L17)*SIN(Wellpath!$M17) -> 0 | R17: =COS(Wellpath!$M17) -> 1 | S17: =SIN(Wellpath!$L17)*SIN(Wellpath!$M17) -> 0 | T17: =-SIN(Wellpath!$L17) -> 0 | U17: 0 | V17: =COS(Wellpath!$L17) -> 1
A18: =Wellpath!E18 -> 450 | B18: ='DEC-OS'!Q18+'DEC-OH'!Q18+'DEC-OI'!Q18+'DBH-OS'!Q18+'DBH-OH'!Q18+'DBH-OI'!Q18+XCLH!Q18+XCLA!Q18+DRFR!Q18+DSFS!Q18+DSTG!Q18+XYM1!Q18+XYM2!Q18+XYM3E!Q18+XYM4E!Q18+SAGE!Q18+'ABXY-TI1S'!Q18+'ABXY-TI2S'!Q18+ABZ!Q18+'ASXY-TI1S'!Q18+'ASXY-TI2S'!Q18+'ASXY-TI3S'!Q18+ASZ!Q18+'MBXY-TI1S'!Q18+'MBXY-TI2S'!Q18+MBZ!Q18+'MSXY-TI1S'!Q18+'MSXY-TI2S'!Q18++'MSXY-TI3S'!Q18+MSZ!Q18+'DEC-U'!Q18+DECR!Q18+'DBH-U'!Q18+DBHR!Q18+AMIL!Q18 -> 0.5272426465 | C18: ='DEC-OS'!R18+'DEC-OH'!R18+'DEC-OI'!R18+'DBH-OS'!R18+'DBH-OH'!R18+'DBH-OI'!R18+XCLH!R18+XCLA!R18+DRFR!R18+DSFS!R18+DSTG!R18+XYM1!R18+XYM2!R18+XYM3E!R18+XYM4E!R18+SAGE!R18+'ABXY-TI1S'!R18+'ABXY-TI2S'!R18+ABZ!R18+'ASXY-TI1S'!R18+'ASXY-TI2S'!R18+'ASXY-TI3S'!R18+ASZ!R18+'MBXY-TI1S'!R18+'MBXY-TI2S'!R18+MBZ!R18+'MSXY-TI1S'!R18+'MSXY-TI2S'!R18++'MSXY-TI3S'!R18+MSZ!R18+'DEC-U'!R18+DECR!R18+'DBH-U'!R18+DBHR!R18+AMIL!R18 -> 0.5272426465 | D18: ='DEC-OS'!S18+'DEC-OH'!S18+'DEC-OI'!S18+'DBH-OS'!S18+'DBH-OH'!S18+'DBH-OI'!S18+XCLH!S18+XCLA!S18+DRFR!S18+DSFS!S18+DSTG!S18+XYM1!S18+XYM2!S18+XYM3E!S18+XYM4E!S18+SAGE!S18+'ABXY-TI1S'!S18+'ABXY-TI2S'!S18+ABZ!S18+'ASXY-TI1S'!S18+'ASXY-TI2S'!S18+'ASXY-TI3S'!S18+ASZ!S18+'MBXY-TI1S'!S18+'MBXY-TI2S'!S18+MBZ!S18+'MSXY-TI1S'!S18+'MSXY-TI2S'!S18++'MSXY-TI3S'!S18+MSZ!S18+'DEC-U'!S18+DECR!S18+'DBH-U'!S18+DBHR!S18+AMIL!S18 -> 0.1885668906 | E18: ='DEC-OS'!T18+'DEC-OH'!T18+'DEC-OI'!T18+'DBH-OS'!T18+'DBH-OH'!T18+'DBH-OI'!T18+XCLH!T18+XCLA!T18+DRFR!T18+DSFS!T18+DSTG!T18+XYM1!T18+XYM2!T18+XYM3E!T18+XYM4E!T18+SAGE!T18+'ABXY-TI1S'!T18+'ABXY-TI2S'!T18+ABZ!T18+'ASXY-TI1S'!T18+'ASXY-TI2S'!T18+'ASXY-TI3S'!T18+ASZ!T18+'MBXY-TI1S'!T18+'MBXY-TI2S'!T18+MBZ!T18+'MSXY-TI1S'!T18+'MSXY-TI2S'!T18++'MSXY-TI3S'!T18+MSZ!T18+'DEC-U'!T18+DECR!T18+'DBH-U'!T18+DBHR!T18+AMIL!T18 -> 0 | F18: ='DEC-OS'!U18+'DEC-OH'!U18+'DEC-OI'!U18+'DBH-OS'!U18+'DBH-OH'!U18+'DBH-OI'!U18+XCLH!U18+XCLA!U18+DRFR!U18+DSFS!U18+DSTG!U18+XYM1!U18+XYM2!U18+XYM3E!U18+XYM4E!U18+SAGE!U18+'ABXY-TI1S'!U18+'ABXY-TI2S'!U18+ABZ!U18+'ASXY-TI1S'!U18+'ASXY-TI2S'!U18+'ASXY-TI3S'!U18+ASZ!U18+'MBXY-TI1S'!U18+'MBXY-TI2S'!U18+MBZ!U18+'MSXY-TI1S'!U18+'MSXY-TI2S'!U18++'MSXY-TI3S'!U18+MSZ!U18+'DEC-U'!U18+DECR!U18+'DBH-U'!U18+DBHR!U18+AMIL!U18 -> 0 | G18: ='DEC-OS'!V18+'DEC-OH'!V18+'DEC-OI'!V18+'DBH-OS'!V18+'DBH-OH'!V18+'DBH-OI'!V18+XCLH!V18+XCLA!V18+DRFR!V18+DSFS!V18+DSTG!V18+XYM1!V18+XYM2!V18+XYM3E!V18+XYM4E!V18+SAGE!V18+'ABXY-TI1S'!V18+'ABXY-TI2S'!V18+ABZ!V18+'ASXY-TI1S'!V18+'ASXY-TI2S'!V18+'ASXY-TI3S'!V18+ASZ!V18+'MBXY-TI1S'!V18+'MBXY-TI2S'!V18+MBZ!V18+'MSXY-TI1S'!V18+'MSXY-TI2S'!V18++'MSXY-TI3S'!V18+MSZ!V18+'DEC-U'!V18+DECR!V18+'DBH-U'!V18+DBHR!V18+AMIL!V18 -> 0 | H18: 0.5272426465 | I18: 0.5272426465 | J18: 0.1885668906 | K18: 0 | L18: 0 | M18: 0 | N18: =COS(Wellpath!$L18)*COS(Wellpath!$M18) -> 1 | O18: =-SIN(Wellpath!$M18) -> 0 | P18: =SIN(Wellpath!$L18)*COS(Wellpath!$M18) -> 0 | Q18: =COS(Wellpath!$L18)*SIN(Wellpath!$M18) -> 0 | R18: =COS(Wellpath!$M18) -> 1 | S18: =SIN(Wellpath!$L18)*SIN(Wellpath!$M18) -> 0 | T18: =-SIN(Wellpath!$L18) -> 0 | U18: 0 | V18: =COS(Wellpath!$L18) -> 1
A19: =Wellpath!E19 -> 480 | B19: ='DEC-OS'!Q19+'DEC-OH'!Q19+'DEC-OI'!Q19+'DBH-OS'!Q19+'DBH-OH'!Q19+'DBH-OI'!Q19+XCLH!Q19+XCLA!Q19+DRFR!Q19+DSFS!Q19+DSTG!Q19+XYM1!Q19+XYM2!Q19+XYM3E!Q19+XYM4E!Q19+SAGE!Q19+'ABXY-TI1S'!Q19+'ABXY-TI2S'!Q19+ABZ!Q19+'ASXY-TI1S'!Q19+'ASXY-TI2S'!Q19+'ASXY-TI3S'!Q19+ASZ!Q19+'MBXY-TI1S'!Q19+'MBXY-TI2S'!Q19+MBZ!Q19+'MSXY-TI1S'!Q19+'MSXY-TI2S'!Q19++'MSXY-TI3S'!Q19+MSZ!Q19+'DEC-U'!Q19+DECR!Q19+'DBH-U'!Q19+DBHR!Q19+AMIL!Q19 -> 0.5639654372 | C19: ='DEC-OS'!R19+'DEC-OH'!R19+'DEC-OI'!R19+'DBH-OS'!R19+'DBH-OH'!R19+'DBH-OI'!R19+XCLH!R19+XCLA!R19+DRFR!R19+DSFS!R19+DSTG!R19+XYM1!R19+XYM2!R19+XYM3E!R19+XYM4E!R19+SAGE!R19+'ABXY-TI1S'!R19+'ABXY-TI2S'!R19+ABZ!R19+'ASXY-TI1S'!R19+'ASXY-TI2S'!R19+'ASXY-TI3S'!R19+ASZ!R19+'MBXY-TI1S'!R19+'MBXY-TI2S'!R19+MBZ!R19+'MSXY-TI1S'!R19+'MSXY-TI2S'!R19++'MSXY-TI3S'!R19+MSZ!R19+'DEC-U'!R19+DECR!R19+'DBH-U'!R19+DBHR!R19+AMIL!R19 -> 0.5639654372 | D19: ='DEC-OS'!S19+'DEC-OH'!S19+'DEC-OI'!S19+'DBH-OS'!S19+'DBH-OH'!S19+'DBH-OI'!S19+XCLH!S19+XCLA!S19+DRFR!S19+DSFS!S19+DSTG!S19+XYM1!S19+XYM2!S19+XYM3E!S19+XYM4E!S19+SAGE!S19+'ABXY-TI1S'!S19+'ABXY-TI2S'!S19+ABZ!S19+'ASXY-TI1S'!S19+'ASXY-TI2S'!S19+'ASXY-TI3S'!S19+ASZ!S19+'MBXY-TI1S'!S19+'MBXY-TI2S'!S19+MBZ!S19+'MSXY-TI1S'!S19+'MSXY-TI2S'!S19++'MSXY-TI3S'!S19+MSZ!S19+'DEC-U'!S19+DECR!S19+'DBH-U'!S19+DBHR!S19+AMIL!S19 -> 0.1980712 | E19: ='DEC-OS'!T19+'DEC-OH'!T19+'DEC-OI'!T19+'DBH-OS'!T19+'DBH-OH'!T19+'DBH-OI'!T19+XCLH!T19+XCLA!T19+DRFR!T19+DSFS!T19+DSTG!T19+XYM1!T19+XYM2!T19+XYM3E!T19+XYM4E!T19+SAGE!T19+'ABXY-TI1S'!T19+'ABXY-TI2S'!T19+ABZ!T19+'ASXY-TI1S'!T19+'ASXY-TI2S'!T19+'ASXY-TI3S'!T19+ASZ!T19+'MBXY-TI1S'!T19+'MBXY-TI2S'!T19+MBZ!T19+'MSXY-TI1S'!T19+'MSXY-TI2S'!T19++'MSXY-TI3S'!T19+MSZ!T19+'DEC-U'!T19+DECR!T19+'DBH-U'!T19+DBHR!T19+AMIL!T19 -> 0 | F19: ='DEC-OS'!U19+'DEC-OH'!U19+'DEC-OI'!U19+'DBH-OS'!U19+'DBH-OH'!U19+'DBH-OI'!U19+XCLH!U19+XCLA!U19+DRFR!U19+DSFS!U19+DSTG!U19+XYM1!U19+XYM2!U19+XYM3E!U19+XYM4E!U19+SAGE!U19+'ABXY-TI1S'!U19+'ABXY-TI2S'!U19+ABZ!U19+'ASXY-TI1S'!U19+'ASXY-TI2S'!U19+'ASXY-TI3S'!U19+ASZ!U19+'MBXY-TI1S'!U19+'MBXY-TI2S'!U19+MBZ!U19+'MSXY-TI1S'!U19+'MSXY-TI2S'!U19++'MSXY-TI3S'!U19+MSZ!U19+'DEC-U'!U19+DECR!U19+'DBH-U'!U19+DBHR!U19+AMIL!U19 -> 0 | G19: ='DEC-OS'!V19+'DEC-OH'!V19+'DEC-OI'!V19+'DBH-OS'!V19+'DBH-OH'!V19+'DBH-OI'!V19+XCLH!V19+XCLA!V19+DRFR!V19+DSFS!V19+DSTG!V19+XYM1!V19+XYM2!V19+XYM3E!V19+XYM4E!V19+SAGE!V19+'ABXY-TI1S'!V19+'ABXY-TI2S'!V19+ABZ!V19+'ASXY-TI1S'!V19+'ASXY-TI2S'!V19+'ASXY-TI3S'!V19+ASZ!V19+'MBXY-TI1S'!V19+'MBXY-TI2S'!V19+MBZ!V19+'MSXY-TI1S'!V19+'MSXY-TI2S'!V19++'MSXY-TI3S'!V19+MSZ!V19+'DEC-U'!V19+DECR!V19+'DBH-U'!V19+DBHR!V19+AMIL!V19 -> 0 | H19: 0.5639654372 | I19: 0.5639654372 | J19: 0.1980712 | K19: 0 | L19: 0 | M19: 0 | N19: =COS(Wellpath!$L19)*COS(Wellpath!$M19) -> 1 | O19: =-SIN(Wellpath!$M19) -> 0 | P19: =SIN(Wellpath!$L19)*COS(Wellpath!$M19) -> 0 | Q19: =COS(Wellpath!$L19)*SIN(Wellpath!$M19) -> 0 | R19: =COS(Wellpath!$M19) -> 1 | S19: =SIN(Wellpath!$L19)*SIN(Wellpath!$M19) -> 0 | T19: =-SIN(Wellpath!$L19) -> 0 | U19: 0 | V19: =COS(Wellpath!$L19) -> 1
A20: =Wellpath!E20 -> 500 | B20: ='DEC-OS'!Q20+'DEC-OH'!Q20+'DEC-OI'!Q20+'DBH-OS'!Q20+'DBH-OH'!Q20+'DBH-OI'!Q20+XCLH!Q20+XCLA!Q20+DRFR!Q20+DSFS!Q20+DSTG!Q20+XYM1!Q20+XYM2!Q20+XYM3E!Q20+XYM4E!Q20+SAGE!Q20+'ABXY-TI1S'!Q20+'ABXY-TI2S'!Q20+ABZ!Q20+'ASXY-TI1S'!Q20+'ASXY-TI2S'!Q20+'ASXY-TI3S'!Q20+ASZ!Q20+'MBXY-TI1S'!Q20+'MBXY-TI2S'!Q20+MBZ!Q20+'MSXY-TI1S'!Q20+'MSXY-TI2S'!Q20++'MSXY-TI3S'!Q20+MSZ!Q20+'DEC-U'!Q20+DECR!Q20+'DBH-U'!Q20+DBHR!Q20+AMIL!Q20 -> 0.5823972149 | C20: ='DEC-OS'!R20+'DEC-OH'!R20+'DEC-OI'!R20+'DBH-OS'!R20+'DBH-OH'!R20+'DBH-OI'!R20+XCLH!R20+XCLA!R20+DRFR!R20+DSFS!R20+DSTG!R20+XYM1!R20+XYM2!R20+XYM3E!R20+XYM4E!R20+SAGE!R20+'ABXY-TI1S'!R20+'ABXY-TI2S'!R20+ABZ!R20+'ASXY-TI1S'!R20+'ASXY-TI2S'!R20+'ASXY-TI3S'!R20+ASZ!R20+'MBXY-TI1S'!R20+'MBXY-TI2S'!R20+MBZ!R20+'MSXY-TI1S'!R20+'MSXY-TI2S'!R20++'MSXY-TI3S'!R20+MSZ!R20+'DEC-U'!R20+DECR!R20+'DBH-U'!R20+DBHR!R20+AMIL!R20 -> 0.5823972149 | D20: ='DEC-OS'!S20+'DEC-OH'!S20+'DEC-OI'!S20+'DBH-OS'!S20+'DBH-OH'!S20+'DBH-OI'!S20+XCLH!S20+XCLA!S20+DRFR!S20+DSFS!S20+DSTG!S20+XYM1!S20+XYM2!S20+XYM3E!S20+XYM4E!S20+SAGE!S20+'ABXY-TI1S'!S20+'ABXY-TI2S'!S20+ABZ!S20+'ASXY-TI1S'!S20+'ASXY-TI2S'!S20+'ASXY-TI3S'!S20+ASZ!S20+'MBXY-TI1S'!S20+'MBXY-TI2S'!S20+MBZ!S20+'MSXY-TI1S'!S20+'MSXY-TI2S'!S20++'MSXY-TI3S'!S20+MSZ!S20+'DEC-U'!S20+DECR!S20+'DBH-U'!S20+DBHR!S20+AMIL!S20 -> 0.20480625 | E20: ='DEC-OS'!T20+'DEC-OH'!T20+'DEC-OI'!T20+'DBH-OS'!T20+'DBH-OH'!T20+'DBH-OI'!T20+XCLH!T20+XCLA!T20+DRFR!T20+DSFS!T20+DSTG!T20+XYM1!T20+XYM2!T20+XYM3E!T20+XYM4E!T20+SAGE!T20+'ABXY-TI1S'!T20+'ABXY-TI2S'!T20+ABZ!T20+'ASXY-TI1S'!T20+'ASXY-TI2S'!T20+'ASXY-TI3S'!T20+ASZ!T20+'MBXY-TI1S'!T20+'MBXY-TI2S'!T20+MBZ!T20+'MSXY-TI1S'!T20+'MSXY-TI2S'!T20++'MSXY-TI3S'!T20+MSZ!T20+'DEC-U'!T20+DECR!T20+'DBH-U'!T20+DBHR!T20+AMIL!T20 -> 0 | F20: ='DEC-OS'!U20+'DEC-OH'!U20+'DEC-OI'!U20+'DBH-OS'!U20+'DBH-OH'!U20+'DBH-OI'!U20+XCLH!U20+XCLA!U20+DRFR!U20+DSFS!U20+DSTG!U20+XYM1!U20+XYM2!U20+XYM3E!U20+XYM4E!U20+SAGE!U20+'ABXY-TI1S'!U20+'ABXY-TI2S'!U20+ABZ!U20+'ASXY-TI1S'!U20+'ASXY-TI2S'!U20+'ASXY-TI3S'!U20+ASZ!U20+'MBXY-TI1S'!U20+'MBXY-TI2S'!U20+MBZ!U20+'MSXY-TI1S'!U20+'MSXY-TI2S'!U20++'MSXY-TI3S'!U20+MSZ!U20+'DEC-U'!U20+DECR!U20+'DBH-U'!U20+DBHR!U20+AMIL!U20 -> 0 | G20: ='DEC-OS'!V20+'DEC-OH'!V20+'DEC-OI'!V20+'DBH-OS'!V20+'DBH-OH'!V20+'DBH-OI'!V20+XCLH!V20+XCLA!V20+DRFR!V20+DSFS!V20+DSTG!V20+XYM1!V20+XYM2!V20+XYM3E!V20+XYM4E!V20+SAGE!V20+'ABXY-TI1S'!V20+'ABXY-TI2S'!V20+ABZ!V20+'ASXY-TI1S'!V20+'ASXY-TI2S'!V20+'ASXY-TI3S'!V20+ASZ!V20+'MBXY-TI1S'!V20+'MBXY-TI2S'!V20+MBZ!V20+'MSXY-TI1S'!V20+'MSXY-TI2S'!V20++'MSXY-TI3S'!V20+MSZ!V20+'DEC-U'!V20+DECR!V20+'DBH-U'!V20+DBHR!V20+AMIL!V20 -> 0 | H20: 0.5823972149 | I20: 0.5823972149 | J20: 0.20480625 | K20: 0 | L20: 0 | M20: 0 | N20: =COS(Wellpath!$L20)*COS(Wellpath!$M20) -> 1 | O20: =-SIN(Wellpath!$M20) -> 0 | P20: =SIN(Wellpath!$L20)*COS(Wellpath!$M20) -> 0 | Q20: =COS(Wellpath!$L20)*SIN(Wellpath!$M20) -> 0 | R20: =COS(Wellpath!$M20) -> 1 | S20: =SIN(Wellpath!$L20)*SIN(Wellpath!$M20) -> 0 | T20: =-SIN(Wellpath!$L20) -> 0 | U20: 0 | V20: =COS(Wellpath!$L20) -> 1
A21: =Wellpath!E21 -> 510 | B21: ='DEC-OS'!Q21+'DEC-OH'!Q21+'DEC-OI'!Q21+'DBH-OS'!Q21+'DBH-OH'!Q21+'DBH-OI'!Q21+XCLH!Q21+XCLA!Q21+DRFR!Q21+DSFS!Q21+DSTG!Q21+XYM1!Q21+XYM2!Q21+XYM3E!Q21+XYM4E!Q21+SAGE!Q21+'ABXY-TI1S'!Q21+'ABXY-TI2S'!Q21+ABZ!Q21+'ASXY-TI1S'!Q21+'ASXY-TI2S'!Q21+'ASXY-TI3S'!Q21+ASZ!Q21+'MBXY-TI1S'!Q21+'MBXY-TI2S'!Q21+MBZ!Q21+'MSXY-TI1S'!Q21+'MSXY-TI2S'!Q21++'MSXY-TI3S'!Q21+MSZ!Q21+'DEC-U'!Q21+DECR!Q21+'DBH-U'!Q21+DBHR!Q21+AMIL!Q21 -> 0.5888240945 | C21: ='DEC-OS'!R21+'DEC-OH'!R21+'DEC-OI'!R21+'DBH-OS'!R21+'DBH-OH'!R21+'DBH-OI'!R21+XCLH!R21+XCLA!R21+DRFR!R21+DSFS!R21+DSTG!R21+XYM1!R21+XYM2!R21+XYM3E!R21+XYM4E!R21+SAGE!R21+'ABXY-TI1S'!R21+'ABXY-TI2S'!R21+ABZ!R21+'ASXY-TI1S'!R21+'ASXY-TI2S'!R21+'ASXY-TI3S'!R21+ASZ!R21+'MBXY-TI1S'!R21+'MBXY-TI2S'!R21+MBZ!R21+'MSXY-TI1S'!R21+'MSXY-TI2S'!R21++'MSXY-TI3S'!R21+MSZ!R21+'DEC-U'!R21+DECR!R21+'DBH-U'!R21+DBHR!R21+AMIL!R21 -> 0.5883144505 | D21: ='DEC-OS'!S21+'DEC-OH'!S21+'DEC-OI'!S21+'DBH-OS'!S21+'DBH-OH'!S21+'DBH-OI'!S21+XCLH!S21+XCLA!S21+DRFR!S21+DSFS!S21+DSTG!S21+XYM1!S21+XYM2!S21+XYM3E!S21+XYM4E!S21+SAGE!S21+'ABXY-TI1S'!S21+'ABXY-TI2S'!S21+ABZ!S21+'ASXY-TI1S'!S21+'ASXY-TI2S'!S21+'ASXY-TI3S'!S21+ASZ!S21+'MBXY-TI1S'!S21+'MBXY-TI2S'!S21+MBZ!S21+'MSXY-TI1S'!S21+'MSXY-TI2S'!S21++'MSXY-TI3S'!S21+MSZ!S21+'DEC-U'!S21+DECR!S21+'DBH-U'!S21+DBHR!S21+AMIL!S21 -> 0.2082828483 | E21: ='DEC-OS'!T21+'DEC-OH'!T21+'DEC-OI'!T21+'DBH-OS'!T21+'DBH-OH'!T21+'DBH-OI'!T21+XCLH!T21+XCLA!T21+DRFR!T21+DSFS!T21+DSTG!T21+XYM1!T21+XYM2!T21+XYM3E!T21+XYM4E!T21+SAGE!T21+'ABXY-TI1S'!T21+'ABXY-TI2S'!T21+ABZ!T21+'ASXY-TI1S'!T21+'ASXY-TI2S'!T21+'ASXY-TI3S'!T21+ASZ!T21+'MBXY-TI1S'!T21+'MBXY-TI2S'!T21+MBZ!T21+'MSXY-TI1S'!T21+'MSXY-TI2S'!T21++'MSXY-TI3S'!T21+MSZ!T21+'DEC-U'!T21+DECR!T21+'DBH-U'!T21+DBHR!T21+AMIL!T21 -> -3.797851907e-06 | F21: ='DEC-OS'!U21+'DEC-OH'!U21+'DEC-OI'!U21+'DBH-OS'!U21+'DBH-OH'!U21+'DBH-OI'!U21+XCLH!U21+XCLA!U21+DRFR!U21+DSFS!U21+DSTG!U21+XYM1!U21+XYM2!U21+XYM3E!U21+XYM4E!U21+SAGE!U21+'ABXY-TI1S'!U21+'ABXY-TI2S'!U21+ABZ!U21+'ASXY-TI1S'!U21+'ASXY-TI2S'!U21+'ASXY-TI3S'!U21+ASZ!U21+'MBXY-TI1S'!U21+'MBXY-TI2S'!U21+MBZ!U21+'MSXY-TI1S'!U21+'MSXY-TI2S'!U21++'MSXY-TI3S'!U21+MSZ!U21+'DEC-U'!U21+DECR!U21+'DBH-U'!U21+DBHR!U21+AMIL!U21 -> 0.0008748524142 | G21: ='DEC-OS'!V21+'DEC-OH'!V21+'DEC-OI'!V21+'DBH-OS'!V21+'DBH-OH'!V21+'DBH-OI'!V21+XCLH!V21+XCLA!V21+DRFR!V21+DSFS!V21+DSTG!V21+XYM1!V21+XYM2!V21+XYM3E!V21+XYM4E!V21+SAGE!V21+'ABXY-TI1S'!V21+'ABXY-TI2S'!V21+ABZ!V21+'ASXY-TI1S'!V21+'ASXY-TI2S'!V21+'ASXY-TI3S'!V21+ASZ!V21+'MBXY-TI1S'!V21+'MBXY-TI2S'!V21+MBZ!V21+'MSXY-TI1S'!V21+'MSXY-TI2S'!V21++'MSXY-TI3S'!V21+MSZ!V21+'DEC-U'!V21+DECR!V21+'DBH-U'!V21+DBHR!V21+AMIL!V21 -> 5.39710506e-10 | H21: 0.5887189 | I21: 0.5883144505 | J21: 0.2083880427 | K21: -3.797461241e-06 | L21: 0.006386323157 | M21: -5.447498876e-08 | N21: =COS(Wellpath!$L21)*COS(Wellpath!$M21) -> 0.9998950764 | O21: =-SIN(Wellpath!$M21) -> 0 | P21: =SIN(Wellpath!$L21)*COS(Wellpath!$M21) -> 0.01448572614 | Q21: =COS(Wellpath!$L21)*SIN(Wellpath!$M21) -> 0 | R21: =COS(Wellpath!$M21) -> 1 | S21: =SIN(Wellpath!$L21)*SIN(Wellpath!$M21) -> 0 | T21: =-SIN(Wellpath!$L21) -> -0.01448572614 | U21: 0 | V21: =COS(Wellpath!$L21) -> 0.9998950764
A22: =Wellpath!E22 -> 540 | B22: ='DEC-OS'!Q22+'DEC-OH'!Q22+'DEC-OI'!Q22+'DBH-OS'!Q22+'DBH-OH'!Q22+'DBH-OI'!Q22+XCLH!Q22+XCLA!Q22+DRFR!Q22+DSFS!Q22+DSTG!Q22+XYM1!Q22+XYM2!Q22+XYM3E!Q22+XYM4E!Q22+SAGE!Q22+'ABXY-TI1S'!Q22+'ABXY-TI2S'!Q22+ABZ!Q22+'ASXY-TI1S'!Q22+'ASXY-TI2S'!Q22+'ASXY-TI3S'!Q22+ASZ!Q22+'MBXY-TI1S'!Q22+'MBXY-TI2S'!Q22+MBZ!Q22+'MSXY-TI1S'!Q22+'MSXY-TI2S'!Q22++'MSXY-TI3S'!Q22+MSZ!Q22+'DEC-U'!Q22+DECR!Q22+'DBH-U'!Q22+DBHR!Q22+AMIL!Q22 -> 0.6607992624 | C22: ='DEC-OS'!R22+'DEC-OH'!R22+'DEC-OI'!R22+'DBH-OS'!R22+'DBH-OH'!R22+'DBH-OI'!R22+XCLH!R22+XCLA!R22+DRFR!R22+DSFS!R22+DSTG!R22+XYM1!R22+XYM2!R22+XYM3E!R22+XYM4E!R22+SAGE!R22+'ABXY-TI1S'!R22+'ABXY-TI2S'!R22+ABZ!R22+'ASXY-TI1S'!R22+'ASXY-TI2S'!R22+'ASXY-TI3S'!R22+ASZ!R22+'MBXY-TI1S'!R22+'MBXY-TI2S'!R22+MBZ!R22+'MSXY-TI1S'!R22+'MSXY-TI2S'!R22++'MSXY-TI3S'!R22+MSZ!R22+'DEC-U'!R22+DECR!R22+'DBH-U'!R22+DBHR!R22+AMIL!R22 -> 0.6180157523 | D22: ='DEC-OS'!S22+'DEC-OH'!S22+'DEC-OI'!S22+'DBH-OS'!S22+'DBH-OH'!S22+'DBH-OI'!S22+XCLH!S22+XCLA!S22+DRFR!S22+DSFS!S22+DSTG!S22+XYM1!S22+XYM2!S22+XYM3E!S22+XYM4E!S22+SAGE!S22+'ABXY-TI1S'!S22+'ABXY-TI2S'!S22+ABZ!S22+'ASXY-TI1S'!S22+'ASXY-TI2S'!S22+'ASXY-TI3S'!S22+ASZ!S22+'MBXY-TI1S'!S22+'MBXY-TI2S'!S22+MBZ!S22+'MSXY-TI1S'!S22+'MSXY-TI2S'!S22++'MSXY-TI3S'!S22+MSZ!S22+'DEC-U'!S22+DECR!S22+'DBH-U'!S22+DBHR!S22+AMIL!S22 -> 0.219217974 | E22: ='DEC-OS'!T22+'DEC-OH'!T22+'DEC-OI'!T22+'DBH-OS'!T22+'DBH-OH'!T22+'DBH-OI'!T22+XCLH!T22+XCLA!T22+DRFR!T22+DSFS!T22+DSTG!T22+XYM1!T22+XYM2!T22+XYM3E!T22+XYM4E!T22+SAGE!T22+'ABXY-TI1S'!T22+'ABXY-TI2S'!T22+ABZ!T22+'ASXY-TI1S'!T22+'ASXY-TI2S'!T22+'ASXY-TI3S'!T22+ASZ!T22+'MBXY-TI1S'!T22+'MBXY-TI2S'!T22+MBZ!T22+'MSXY-TI1S'!T22+'MSXY-TI2S'!T22++'MSXY-TI3S'!T22+MSZ!T22+'DEC-U'!T22+DECR!T22+'DBH-U'!T22+DBHR!T22+AMIL!T22 -> -6.440004906e-05 | F22: ='DEC-OS'!U22+'DEC-OH'!U22+'DEC-OI'!U22+'DBH-OS'!U22+'DBH-OH'!U22+'DBH-OI'!U22+XCLH!U22+XCLA!U22+DRFR!U22+DSFS!U22+DSTG!U22+XYM1!U22+XYM2!U22+XYM3E!U22+XYM4E!U22+SAGE!U22+'ABXY-TI1S'!U22+'ABXY-TI2S'!U22+ABZ!U22+'ASXY-TI1S'!U22+'ASXY-TI2S'!U22+'ASXY-TI3S'!U22+ASZ!U22+'MBXY-TI1S'!U22+'MBXY-TI2S'!U22+MBZ!U22+'MSXY-TI1S'!U22+'MSXY-TI2S'!U22++'MSXY-TI3S'!U22+MSZ!U22+'DEC-U'!U22+DECR!U22+'DBH-U'!U22+DBHR!U22+AMIL!U22 -> 0.001165531459 | G22: ='DEC-OS'!V22+'DEC-OH'!V22+'DEC-OI'!V22+'DBH-OS'!V22+'DBH-OH'!V22+'DBH-OI'!V22+XCLH!V22+XCLA!V22+DRFR!V22+DSFS!V22+DSTG!V22+XYM1!V22+XYM2!V22+XYM3E!V22+XYM4E!V22+SAGE!V22+'ABXY-TI1S'!V22+'ABXY-TI2S'!V22+ABZ!V22+'ASXY-TI1S'!V22+'ASXY-TI2S'!V22+'ASXY-TI3S'!V22+ASZ!V22+'MBXY-TI1S'!V22+'MBXY-TI2S'!V22+MBZ!V22+'MSXY-TI1S'!V22+'MSXY-TI2S'!V22++'MSXY-TI3S'!V22+MSZ!V22+'DEC-U'!V22+DECR!V22+'DBH-U'!V22+DBHR!V22+AMIL!V22 -> 1.393646923e-07 | H22: 0.6591741608 | I22: 0.6180157523 | J22: 0.2208430756 | K22: -6.429940735e-05 | L22: 0.02676437896 | M22: -3.601660143e-06 | N22: =COS(Wellpath!$L22)*COS(Wellpath!$M22) -> 0.9983115393 | O22: =-SIN(Wellpath!$M22) -> 0 | P22: =SIN(Wellpath!$L22)*COS(Wellpath!$M22) -> 0.0580867496 | Q22: =COS(Wellpath!$L22)*SIN(Wellpath!$M22) -> 0 | R22: =COS(Wellpath!$M22) -> 1 | S22: =SIN(Wellpath!$L22)*SIN(Wellpath!$M22) -> 0 | T22: =-SIN(Wellpath!$L22) -> -0.0580867496 | U22: 0 | V22: =COS(Wellpath!$L22) -> 0.9983115393
A23: =Wellpath!E23 -> 570 | B23: ='DEC-OS'!Q23+'DEC-OH'!Q23+'DEC-OI'!Q23+'DBH-OS'!Q23+'DBH-OH'!Q23+'DBH-OI'!Q23+XCLH!Q23+XCLA!Q23+DRFR!Q23+DSFS!Q23+DSTG!Q23+XYM1!Q23+XYM2!Q23+XYM3E!Q23+XYM4E!Q23+SAGE!Q23+'ABXY-TI1S'!Q23+'ABXY-TI2S'!Q23+ABZ!Q23+'ASXY-TI1S'!Q23+'ASXY-TI2S'!Q23+'ASXY-TI3S'!Q23+ASZ!Q23+'MBXY-TI1S'!Q23+'MBXY-TI2S'!Q23+MBZ!Q23+'MSXY-TI1S'!Q23+'MSXY-TI2S'!Q23++'MSXY-TI3S'!Q23+MSZ!Q23+'DEC-U'!Q23+DECR!Q23+'DBH-U'!Q23+DBHR!Q23+AMIL!Q23 -> 0.7474396683 | C23: ='DEC-OS'!R23+'DEC-OH'!R23+'DEC-OI'!R23+'DBH-OS'!R23+'DBH-OH'!R23+'DBH-OI'!R23+XCLH!R23+XCLA!R23+DRFR!R23+DSFS!R23+DSTG!R23+XYM1!R23+XYM2!R23+XYM3E!R23+XYM4E!R23+SAGE!R23+'ABXY-TI1S'!R23+'ABXY-TI2S'!R23+ABZ!R23+'ASXY-TI1S'!R23+'ASXY-TI2S'!R23+'ASXY-TI3S'!R23+ASZ!R23+'MBXY-TI1S'!R23+'MBXY-TI2S'!R23+MBZ!R23+'MSXY-TI1S'!R23+'MSXY-TI2S'!R23++'MSXY-TI3S'!R23+MSZ!R23+'DEC-U'!R23+DECR!R23+'DBH-U'!R23+DBHR!R23+AMIL!R23 -> 0.657612702 | D23: ='DEC-OS'!S23+'DEC-OH'!S23+'DEC-OI'!S23+'DBH-OS'!S23+'DBH-OH'!S23+'DBH-OI'!S23+XCLH!S23+XCLA!S23+DRFR!S23+DSFS!S23+DSTG!S23+XYM1!S23+XYM2!S23+XYM3E!S23+XYM4E!S23+SAGE!S23+'ABXY-TI1S'!S23+'ABXY-TI2S'!S23+ABZ!S23+'ASXY-TI1S'!S23+'ASXY-TI2S'!S23+'ASXY-TI3S'!S23+ASZ!S23+'MBXY-TI1S'!S23+'MBXY-TI2S'!S23+MBZ!S23+'MSXY-TI1S'!S23+'MSXY-TI2S'!S23++'MSXY-TI3S'!S23+MSZ!S23+'DEC-U'!S23+DECR!S23+'DBH-U'!S23+DBHR!S23+AMIL!S23 -> 0.2309380558 | E23: ='DEC-OS'!T23+'DEC-OH'!T23+'DEC-OI'!T23+'DBH-OS'!T23+'DBH-OH'!T23+'DBH-OI'!T23+XCLH!T23+XCLA!T23+DRFR!T23+DSFS!T23+DSTG!T23+XYM1!T23+XYM2!T23+XYM3E!T23+XYM4E!T23+SAGE!T23+'ABXY-TI1S'!T23+'ABXY-TI2S'!T23+ABZ!T23+'ASXY-TI1S'!T23+'ASXY-TI2S'!T23+'ASXY-TI3S'!T23+ASZ!T23+'MBXY-TI1S'!T23+'MBXY-TI2S'!T23+MBZ!T23+'MSXY-TI1S'!T23+'MSXY-TI2S'!T23++'MSXY-TI3S'!T23+MSZ!T23+'DEC-U'!T23+DECR!T23+'DBH-U'!T23+DBHR!T23+AMIL!T23 -> -0.0002080291717 | F23: ='DEC-OS'!U23+'DEC-OH'!U23+'DEC-OI'!U23+'DBH-OS'!U23+'DBH-OH'!U23+'DBH-OI'!U23+XCLH!U23+XCLA!U23+DRFR!U23+DSFS!U23+DSTG!U23+XYM1!U23+XYM2!U23+XYM3E!U23+XYM4E!U23+SAGE!U23+'ABXY-TI1S'!U23+'ABXY-TI2S'!U23+ABZ!U23+'ASXY-TI1S'!U23+'ASXY-TI2S'!U23+'ASXY-TI3S'!U23+ASZ!U23+'MBXY-TI1S'!U23+'MBXY-TI2S'!U23+MBZ!U23+'MSXY-TI1S'!U23+'MSXY-TI2S'!U23++'MSXY-TI3S'!U23+MSZ!U23+'DEC-U'!U23+DECR!U23+'DBH-U'!U23+DBHR!U23+AMIL!U23 -> -0.0003716566402 | G23: ='DEC-OS'!V23+'DEC-OH'!V23+'DEC-OI'!V23+'DBH-OS'!V23+'DBH-OH'!V23+'DBH-OI'!V23+XCLH!V23+XCLA!V23+DRFR!V23+DSFS!V23+DSTG!V23+XYM1!V23+XYM2!V23+XYM3E!V23+XYM4E!V23+SAGE!V23+'ABXY-TI1S'!V23+'ABXY-TI2S'!V23+ABZ!V23+'ASXY-TI1S'!V23+'ASXY-TI2S'!V23+'ASXY-TI3S'!V23+ASZ!V23+'MBXY-TI1S'!V23+'MBXY-TI2S'!V23+MBZ!V23+'MSXY-TI1S'!V23+'MSXY-TI2S'!V23++'MSXY-TI3S'!V23+MSZ!V23+'DEC-U'!V23+DECR!V23+'DBH-U'!V23+DBHR!V23+AMIL!V23 -> 1.317428797e-06 | H23: 0.7421855551 | I23: 0.657612702 | J23: 0.236192169 | K23: -0.0002070869947 | L23: 0.0518294355 | M23: -1.982040651e-05 | N23: =COS(Wellpath!$L23)*COS(Wellpath!$M23) -> 0.9948276595 | O23: =-SIN(Wellpath!$M23) -> 0 | P23: =SIN(Wellpath!$L23)*COS(Wellpath!$M23) -> 0.1015772016 | Q23: =COS(Wellpath!$L23)*SIN(Wellpath!$M23) -> 0 | R23: =COS(Wellpath!$M23) -> 1 | S23: =SIN(Wellpath!$L23)*SIN(Wellpath!$M23) -> 0 | T23: =-SIN(Wellpath!$L23) -> -0.1015772016 | U23: 0 | V23: =COS(Wellpath!$L23) -> 0.9948276595
A24: =Wellpath!E24 -> 600 | B24: ='DEC-OS'!Q24+'DEC-OH'!Q24+'DEC-OI'!Q24+'DBH-OS'!Q24+'DBH-OH'!Q24+'DBH-OI'!Q24+XCLH!Q24+XCLA!Q24+DRFR!Q24+DSFS!Q24+DSTG!Q24+XYM1!Q24+XYM2!Q24+XYM3E!Q24+XYM4E!Q24+SAGE!Q24+'ABXY-TI1S'!Q24+'ABXY-TI2S'!Q24+ABZ!Q24+'ASXY-TI1S'!Q24+'ASXY-TI2S'!Q24+'ASXY-TI3S'!Q24+ASZ!Q24+'MBXY-TI1S'!Q24+'MBXY-TI2S'!Q24+MBZ!Q24+'MSXY-TI1S'!Q24+'MSXY-TI2S'!Q24++'MSXY-TI3S'!Q24+MSZ!Q24+'DEC-U'!Q24+DECR!Q24+'DBH-U'!Q24+DBHR!Q24+AMIL!Q24 -> 0.8421217386 | C24: ='DEC-OS'!R24+'DEC-OH'!R24+'DEC-OI'!R24+'DBH-OS'!R24+'DBH-OH'!R24+'DBH-OI'!R24+XCLH!R24+XCLA!R24+DRFR!R24+DSFS!R24+DSTG!R24+XYM1!R24+XYM2!R24+XYM3E!R24+XYM4E!R24+SAGE!R24+'ABXY-TI1S'!R24+'ABXY-TI2S'!R24+ABZ!R24+'ASXY-TI1S'!R24+'ASXY-TI2S'!R24+'ASXY-TI3S'!R24+ASZ!R24+'MBXY-TI1S'!R24+'MBXY-TI2S'!R24+MBZ!R24+'MSXY-TI1S'!R24+'MSXY-TI2S'!R24++'MSXY-TI3S'!R24+MSZ!R24+'DEC-U'!R24+DECR!R24+'DBH-U'!R24+DBHR!R24+AMIL!R24 -> 0.7002930245 | D24: ='DEC-OS'!S24+'DEC-OH'!S24+'DEC-OI'!S24+'DBH-OS'!S24+'DBH-OH'!S24+'DBH-OI'!S24+XCLH!S24+XCLA!S24+DRFR!S24+DSFS!S24+DSTG!S24+XYM1!S24+XYM2!S24+XYM3E!S24+XYM4E!S24+SAGE!S24+'ABXY-TI1S'!S24+'ABXY-TI2S'!S24+ABZ!S24+'ASXY-TI1S'!S24+'ASXY-TI2S'!S24+'ASXY-TI3S'!S24+ASZ!S24+'MBXY-TI1S'!S24+'MBXY-TI2S'!S24+MBZ!S24+'MSXY-TI1S'!S24+'MSXY-TI2S'!S24++'MSXY-TI3S'!S24+MSZ!S24+'DEC-U'!S24+DECR!S24+'DBH-U'!S24+DBHR!S24+AMIL!S24 -> 0.2437434944 | E24: ='DEC-OS'!T24+'DEC-OH'!T24+'DEC-OI'!T24+'DBH-OS'!T24+'DBH-OH'!T24+'DBH-OI'!T24+XCLH!T24+XCLA!T24+DRFR!T24+DSFS!T24+DSTG!T24+XYM1!T24+XYM2!T24+XYM3E!T24+XYM4E!T24+SAGE!T24+'ABXY-TI1S'!T24+'ABXY-TI2S'!T24+ABZ!T24+'ASXY-TI1S'!T24+'ASXY-TI2S'!T24+'ASXY-TI3S'!T24+ASZ!T24+'MBXY-TI1S'!T24+'MBXY-TI2S'!T24+MBZ!T24+'MSXY-TI1S'!T24+'MSXY-TI2S'!T24++'MSXY-TI3S'!T24+MSZ!T24+'DEC-U'!T24+DECR!T24+'DBH-U'!T24+DBHR!T24+AMIL!T24 -> -0.0004462950693 | F24: ='DEC-OS'!U24+'DEC-OH'!U24+'DEC-OI'!U24+'DBH-OS'!U24+'DBH-OH'!U24+'DBH-OI'!U24+XCLH!U24+XCLA!U24+DRFR!U24+DSFS!U24+DSTG!U24+XYM1!U24+XYM2!U24+XYM3E!U24+XYM4E!U24+SAGE!U24+'ABXY-TI1S'!U24+'ABXY-TI2S'!U24+ABZ!U24+'ASXY-TI1S'!U24+'ASXY-TI2S'!U24+'ASXY-TI3S'!U24+ASZ!U24+'MBXY-TI1S'!U24+'MBXY-TI2S'!U24+MBZ!U24+'MSXY-TI1S'!U24+'MSXY-TI2S'!U24++'MSXY-TI3S'!U24+MSZ!U24+'DEC-U'!U24+DECR!U24+'DBH-U'!U24+DBHR!U24+AMIL!U24 -> -0.005963078926 | G24: ='DEC-OS'!V24+'DEC-OH'!V24+'DEC-OI'!V24+'DBH-OS'!V24+'DBH-OH'!V24+'DBH-OI'!V24+XCLH!V24+XCLA!V24+DRFR!V24+DSFS!V24+DSTG!V24+XYM1!V24+XYM2!V24+XYM3E!V24+XYM4E!V24+SAGE!V24+'ABXY-TI1S'!V24+'ABXY-TI2S'!V24+ABZ!V24+'ASXY-TI1S'!V24+'ASXY-TI2S'!V24+'ASXY-TI3S'!V24+ASZ!V24+'MBXY-TI1S'!V24+'MBXY-TI2S'!V24+MBZ!V24+'MSXY-TI1S'!V24+'MSXY-TI2S'!V24++'MSXY-TI3S'!V24+MSZ!V24+'DEC-U'!V24+DECR!V24+'DBH-U'!V24+DBHR!V24+AMIL!V24 -> 5.543671575e-06 | H24: 0.8312722056 | I24: 0.7002930245 | J24: 0.2545930274 | K24: -0.0004423898225 | L24: 0.08006229105 | M24: -5.917149761e-05 | N24: =COS(Wellpath!$L24)*COS(Wellpath!$M24) -> 0.9894500687 | O24: =-SIN(Wellpath!$M24) -> 0 | P24: =SIN(Wellpath!$L24)*COS(Wellpath!$M24) -> 0.1448742957 | Q24: =COS(Wellpath!$L24)*SIN(Wellpath!$M24) -> 0 | R24: =COS(Wellpath!$M24) -> 1 | S24: =SIN(Wellpath!$L24)*SIN(Wellpath!$M24) -> 0 | T24: =-SIN(Wellpath!$L24) -> -0.1448742957 | U24: 0 | V24: =COS(Wellpath!$L24) -> 0.9894500687
A25: =Wellpath!E25 -> 630 | B25: ='DEC-OS'!Q25+'DEC-OH'!Q25+'DEC-OI'!Q25+'DBH-OS'!Q25+'DBH-OH'!Q25+'DBH-OI'!Q25+XCLH!Q25+XCLA!Q25+DRFR!Q25+DSFS!Q25+DSTG!Q25+XYM1!Q25+XYM2!Q25+XYM3E!Q25+XYM4E!Q25+SAGE!Q25+'ABXY-TI1S'!Q25+'ABXY-TI2S'!Q25+ABZ!Q25+'ASXY-TI1S'!Q25+'ASXY-TI2S'!Q25+'ASXY-TI3S'!Q25+ASZ!Q25+'MBXY-TI1S'!Q25+'MBXY-TI2S'!Q25+MBZ!Q25+'MSXY-TI1S'!Q25+'MSXY-TI2S'!Q25++'MSXY-TI3S'!Q25+MSZ!Q25+'DEC-U'!Q25+DECR!Q25+'DBH-U'!Q25+DBHR!Q25+AMIL!Q25 -> 0.946025792 | C25: ='DEC-OS'!R25+'DEC-OH'!R25+'DEC-OI'!R25+'DBH-OS'!R25+'DBH-OH'!R25+'DBH-OI'!R25+XCLH!R25+XCLA!R25+DRFR!R25+DSFS!R25+DSTG!R25+XYM1!R25+XYM2!R25+XYM3E!R25+XYM4E!R25+SAGE!R25+'ABXY-TI1S'!R25+'ABXY-TI2S'!R25+ABZ!R25+'ASXY-TI1S'!R25+'ASXY-TI2S'!R25+'ASXY-TI3S'!R25+ASZ!R25+'MBXY-TI1S'!R25+'MBXY-TI2S'!R25+MBZ!R25+'MSXY-TI1S'!R25+'MSXY-TI2S'!R25++'MSXY-TI3S'!R25+MSZ!R25+'DEC-U'!R25+DECR!R25+'DBH-U'!R25+DBHR!R25+AMIL!R25 -> 0.748216979 | D25: ='DEC-OS'!S25+'DEC-OH'!S25+'DEC-OI'!S25+'DBH-OS'!S25+'DBH-OH'!S25+'DBH-OI'!S25+XCLH!S25+XCLA!S25+DRFR!S25+DSFS!S25+DSTG!S25+XYM1!S25+XYM2!S25+XYM3E!S25+XYM4E!S25+SAGE!S25+'ABXY-TI1S'!S25+'ABXY-TI2S'!S25+ABZ!S25+'ASXY-TI1S'!S25+'ASXY-TI2S'!S25+'ASXY-TI3S'!S25+ASZ!S25+'MBXY-TI1S'!S25+'MBXY-TI2S'!S25+MBZ!S25+'MSXY-TI1S'!S25+'MSXY-TI2S'!S25++'MSXY-TI3S'!S25+MSZ!S25+'DEC-U'!S25+DECR!S25+'DBH-U'!S25+DBHR!S25+AMIL!S25 -> 0.2580553515 | E25: ='DEC-OS'!T25+'DEC-OH'!T25+'DEC-OI'!T25+'DBH-OS'!T25+'DBH-OH'!T25+'DBH-OI'!T25+XCLH!T25+XCLA!T25+DRFR!T25+DSFS!T25+DSTG!T25+XYM1!T25+XYM2!T25+XYM3E!T25+XYM4E!T25+SAGE!T25+'ABXY-TI1S'!T25+'ABXY-TI2S'!T25+ABZ!T25+'ASXY-TI1S'!T25+'ASXY-TI2S'!T25+'ASXY-TI3S'!T25+ASZ!T25+'MBXY-TI1S'!T25+'MBXY-TI2S'!T25+MBZ!T25+'MSXY-TI1S'!T25+'MSXY-TI2S'!T25++'MSXY-TI3S'!T25+MSZ!T25+'DEC-U'!T25+DECR!T25+'DBH-U'!T25+DBHR!T25+AMIL!T25 -> -0.0007908071346 | F25: ='DEC-OS'!U25+'DEC-OH'!U25+'DEC-OI'!U25+'DBH-OS'!U25+'DBH-OH'!U25+'DBH-OI'!U25+XCLH!U25+XCLA!U25+DRFR!U25+DSFS!U25+DSTG!U25+XYM1!U25+XYM2!U25+XYM3E!U25+XYM4E!U25+SAGE!U25+'ABXY-TI1S'!U25+'ABXY-TI2S'!U25+ABZ!U25+'ASXY-TI1S'!U25+'ASXY-TI2S'!U25+'ASXY-TI3S'!U25+ASZ!U25+'MBXY-TI1S'!U25+'MBXY-TI2S'!U25+MBZ!U25+'MSXY-TI1S'!U25+'MSXY-TI2S'!U25++'MSXY-TI3S'!U25+MSZ!U25+'DEC-U'!U25+DECR!U25+'DBH-U'!U25+DBHR!U25+AMIL!U25 -> -0.01628536243 | G25: ='DEC-OS'!V25+'DEC-OH'!V25+'DEC-OI'!V25+'DBH-OS'!V25+'DBH-OH'!V25+'DBH-OI'!V25+XCLH!V25+XCLA!V25+DRFR!V25+DSFS!V25+DSTG!V25+XYM1!V25+XYM2!V25+XYM3E!V25+XYM4E!V25+SAGE!V25+'ABXY-TI1S'!V25+'ABXY-TI2S'!V25+ABZ!V25+'ASXY-TI1S'!V25+'ASXY-TI2S'!V25+'ASXY-TI3S'!V25+ASZ!V25+'MBXY-TI1S'!V25+'MBXY-TI2S'!V25+MBZ!V25+'MSXY-TI1S'!V25+'MSXY-TI2S'!V25++'MSXY-TI3S'!V25+MSZ!V25+'DEC-U'!V25+DECR!V25+'DBH-U'!V25+DBHR!V25+AMIL!V25 -> 1.603795918e-05 | H25: 0.9277480546 | I25: 0.748216979 | J25: 0.276333089 | K25: -0.0007797355336 | L25: 0.1118287996 | M25: -0.0001328368844 | N25: =COS(Wellpath!$L25)*COS(Wellpath!$M25) -> 0.9821890035 | O25: =-SIN(Wellpath!$M25) -> 0 | P25: =SIN(Wellpath!$L25)*COS(Wellpath!$M25) -> 0.1878956133 | Q25: =COS(Wellpath!$L25)*SIN(Wellpath!$M25) -> 0 | R25: =COS(Wellpath!$M25) -> 1 | S25: =SIN(Wellpath!$L25)*SIN(Wellpath!$M25) -> 0 | T25: =-SIN(Wellpath!$L25) -> -0.1878956133 | U25: 0 | V25: =COS(Wellpath!$L25) -> 0.9821890035
A26: =Wellpath!E26 -> 660 | B26: ='DEC-OS'!Q26+'DEC-OH'!Q26+'DEC-OI'!Q26+'DBH-OS'!Q26+'DBH-OH'!Q26+'DBH-OI'!Q26+XCLH!Q26+XCLA!Q26+DRFR!Q26+DSFS!Q26+DSTG!Q26+XYM1!Q26+XYM2!Q26+XYM3E!Q26+XYM4E!Q26+SAGE!Q26+'ABXY-TI1S'!Q26+'ABXY-TI2S'!Q26+ABZ!Q26+'ASXY-TI1S'!Q26+'ASXY-TI2S'!Q26+'ASXY-TI3S'!Q26+ASZ!Q26+'MBXY-TI1S'!Q26+'MBXY-TI2S'!Q26+MBZ!Q26+'MSXY-TI1S'!Q26+'MSXY-TI2S'!Q26++'MSXY-TI3S'!Q26+MSZ!Q26+'DEC-U'!Q26+DECR!Q26+'DBH-U'!Q26+DBHR!Q26+AMIL!Q26 -> 1.060004218 | C26: ='DEC-OS'!R26+'DEC-OH'!R26+'DEC-OI'!R26+'DBH-OS'!R26+'DBH-OH'!R26+'DBH-OI'!R26+XCLH!R26+XCLA!R26+DRFR!R26+DSFS!R26+DSTG!R26+XYM1!R26+XYM2!R26+XYM3E!R26+XYM4E!R26+SAGE!R26+'ABXY-TI1S'!R26+'ABXY-TI2S'!R26+ABZ!R26+'ASXY-TI1S'!R26+'ASXY-TI2S'!R26+'ASXY-TI3S'!R26+ASZ!R26+'MBXY-TI1S'!R26+'MBXY-TI2S'!R26+MBZ!R26+'MSXY-TI1S'!R26+'MSXY-TI2S'!R26++'MSXY-TI3S'!R26+MSZ!R26+'DEC-U'!R26+DECR!R26+'DBH-U'!R26+DBHR!R26+AMIL!R26 -> 0.8042856123 | D26: ='DEC-OS'!S26+'DEC-OH'!S26+'DEC-OI'!S26+'DBH-OS'!S26+'DBH-OH'!S26+'DBH-OI'!S26+XCLH!S26+XCLA!S26+DRFR!S26+DSFS!S26+DSTG!S26+XYM1!S26+XYM2!S26+XYM3E!S26+XYM4E!S26+SAGE!S26+'ABXY-TI1S'!S26+'ABXY-TI2S'!S26+ABZ!S26+'ASXY-TI1S'!S26+'ASXY-TI2S'!S26+'ASXY-TI3S'!S26+ASZ!S26+'MBXY-TI1S'!S26+'MBXY-TI2S'!S26+MBZ!S26+'MSXY-TI1S'!S26+'MSXY-TI2S'!S26++'MSXY-TI3S'!S26+MSZ!S26+'DEC-U'!S26+DECR!S26+'DBH-U'!S26+DBHR!S26+AMIL!S26 -> 0.2743727849 | E26: ='DEC-OS'!T26+'DEC-OH'!T26+'DEC-OI'!T26+'DBH-OS'!T26+'DBH-OH'!T26+'DBH-OI'!T26+XCLH!T26+XCLA!T26+DRFR!T26+DSFS!T26+DSTG!T26+XYM1!T26+XYM2!T26+XYM3E!T26+XYM4E!T26+SAGE!T26+'ABXY-TI1S'!T26+'ABXY-TI2S'!T26+ABZ!T26+'ASXY-TI1S'!T26+'ASXY-TI2S'!T26+'ASXY-TI3S'!T26+ASZ!T26+'MBXY-TI1S'!T26+'MBXY-TI2S'!T26+MBZ!T26+'MSXY-TI1S'!T26+'MSXY-TI2S'!T26++'MSXY-TI3S'!T26+MSZ!T26+'DEC-U'!T26+DECR!T26+'DBH-U'!T26+DBHR!T26+AMIL!T26 -> -0.001253302771 | F26: ='DEC-OS'!U26+'DEC-OH'!U26+'DEC-OI'!U26+'DBH-OS'!U26+'DBH-OH'!U26+'DBH-OI'!U26+XCLH!U26+XCLA!U26+DRFR!U26+DSFS!U26+DSTG!U26+XYM1!U26+XYM2!U26+XYM3E!U26+XYM4E!U26+SAGE!U26+'ABXY-TI1S'!U26+'ABXY-TI2S'!U26+ABZ!U26+'ASXY-TI1S'!U26+'ASXY-TI2S'!U26+'ASXY-TI3S'!U26+ASZ!U26+'MBXY-TI1S'!U26+'MBXY-TI2S'!U26+MBZ!U26+'MSXY-TI1S'!U26+'MSXY-TI2S'!U26++'MSXY-TI3S'!U26+MSZ!U26+'DEC-U'!U26+DECR!U26+'DBH-U'!U26+DBHR!U26+AMIL!U26 -> -0.03209695799 | G26: ='DEC-OS'!V26+'DEC-OH'!V26+'DEC-OI'!V26+'DBH-OS'!V26+'DBH-OH'!V26+'DBH-OI'!V26+XCLH!V26+XCLA!V26+DRFR!V26+DSFS!V26+DSTG!V26+XYM1!V26+XYM2!V26+XYM3E!V26+XYM4E!V26+SAGE!V26+'ABXY-TI1S'!V26+'ABXY-TI2S'!V26+ABZ!V26+'ASXY-TI1S'!V26+'ASXY-TI2S'!V26+'ASXY-TI3S'!V26+ASZ!V26+'MBXY-TI1S'!V26+'MBXY-TI2S'!V26+MBZ!V26+'MSXY-TI1S'!V26+'MSXY-TI2S'!V26++'MSXY-TI3S'!V26+MSZ!V26+'DEC-U'!V26+DECR!V26+'DBH-U'!V26+DBHR!V26+AMIL!V26 -> 3.736132777e-05 | H26: 1.032643709 | I26: 0.8042856123 | J26: 0.301733294 | K26: -0.001228150646 | L26: 0.1475699606 | M26: -0.000252605811 | N26: =COS(Wellpath!$L26)*COS(Wellpath!$M26) -> 0.9730582856 | O26: =-SIN(Wellpath!$M26) -> 0 | P26: =SIN(Wellpath!$L26)*COS(Wellpath!$M26) -> 0.2305592609 | Q26: =COS(Wellpath!$L26)*SIN(Wellpath!$M26) -> 0 | R26: =COS(Wellpath!$M26) -> 1 | S26: =SIN(Wellpath!$L26)*SIN(Wellpath!$M26) -> 0 | T26: =-SIN(Wellpath!$L26) -> -0.2305592609 | U26: 0 | V26: =COS(Wellpath!$L26) -> 0.9730582856
A27: =Wellpath!E27 -> 690 | B27: ='DEC-OS'!Q27+'DEC-OH'!Q27+'DEC-OI'!Q27+'DBH-OS'!Q27+'DBH-OH'!Q27+'DBH-OI'!Q27+XCLH!Q27+XCLA!Q27+DRFR!Q27+DSFS!Q27+DSTG!Q27+XYM1!Q27+XYM2!Q27+XYM3E!Q27+XYM4E!Q27+SAGE!Q27+'ABXY-TI1S'!Q27+'ABXY-TI2S'!Q27+ABZ!Q27+'ASXY-TI1S'!Q27+'ASXY-TI2S'!Q27+'ASXY-TI3S'!Q27+ASZ!Q27+'MBXY-TI1S'!Q27+'MBXY-TI2S'!Q27+MBZ!Q27+'MSXY-TI1S'!Q27+'MSXY-TI2S'!Q27++'MSXY-TI3S'!Q27+MSZ!Q27+'DEC-U'!Q27+DECR!Q27+'DBH-U'!Q27+DBHR!Q27+AMIL!Q27 -> 1.184655482 | C27: ='DEC-OS'!R27+'DEC-OH'!R27+'DEC-OI'!R27+'DBH-OS'!R27+'DBH-OH'!R27+'DBH-OI'!R27+XCLH!R27+XCLA!R27+DRFR!R27+DSFS!R27+DSTG!R27+XYM1!R27+XYM2!R27+XYM3E!R27+XYM4E!R27+SAGE!R27+'ABXY-TI1S'!R27+'ABXY-TI2S'!R27+ABZ!R27+'ASXY-TI1S'!R27+'ASXY-TI2S'!R27+'ASXY-TI3S'!R27+ASZ!R27+'MBXY-TI1S'!R27+'MBXY-TI2S'!R27+MBZ!R27+'MSXY-TI1S'!R27+'MSXY-TI2S'!R27++'MSXY-TI3S'!R27+MSZ!R27+'DEC-U'!R27+DECR!R27+'DBH-U'!R27+DBHR!R27+AMIL!R27 -> 0.872126969 | D27: ='DEC-OS'!S27+'DEC-OH'!S27+'DEC-OI'!S27+'DBH-OS'!S27+'DBH-OH'!S27+'DBH-OI'!S27+XCLH!S27+XCLA!S27+DRFR!S27+DSFS!S27+DSTG!S27+XYM1!S27+XYM2!S27+XYM3E!S27+XYM4E!S27+SAGE!S27+'ABXY-TI1S'!S27+'ABXY-TI2S'!S27+ABZ!S27+'ASXY-TI1S'!S27+'ASXY-TI2S'!S27+'ASXY-TI3S'!S27+ASZ!S27+'MBXY-TI1S'!S27+'MBXY-TI2S'!S27+MBZ!S27+'MSXY-TI1S'!S27+'MSXY-TI2S'!S27++'MSXY-TI3S'!S27+MSZ!S27+'DEC-U'!S27+DECR!S27+'DBH-U'!S27+DBHR!S27+AMIL!S27 -> 0.2932817151 | E27: ='DEC-OS'!T27+'DEC-OH'!T27+'DEC-OI'!T27+'DBH-OS'!T27+'DBH-OH'!T27+'DBH-OI'!T27+XCLH!T27+XCLA!T27+DRFR!T27+DSFS!T27+DSTG!T27+XYM1!T27+XYM2!T27+XYM3E!T27+XYM4E!T27+SAGE!T27+'ABXY-TI1S'!T27+'ABXY-TI2S'!T27+ABZ!T27+'ASXY-TI1S'!T27+'ASXY-TI2S'!T27+'ASXY-TI3S'!T27+ASZ!T27+'MBXY-TI1S'!T27+'MBXY-TI2S'!T27+MBZ!T27+'MSXY-TI1S'!T27+'MSXY-TI2S'!T27++'MSXY-TI3S'!T27+MSZ!T27+'DEC-U'!T27+DECR!T27+'DBH-U'!T27+DBHR!T27+AMIL!T27 -> -0.001845685329 | F27: ='DEC-OS'!U27+'DEC-OH'!U27+'DEC-OI'!U27+'DBH-OS'!U27+'DBH-OH'!U27+'DBH-OI'!U27+XCLH!U27+XCLA!U27+DRFR!U27+DSFS!U27+DSTG!U27+XYM1!U27+XYM2!U27+XYM3E!U27+XYM4E!U27+SAGE!U27+'ABXY-TI1S'!U27+'ABXY-TI2S'!U27+ABZ!U27+'ASXY-TI1S'!U27+'ASXY-TI2S'!U27+'ASXY-TI3S'!U27+ASZ!U27+'MBXY-TI1S'!U27+'MBXY-TI2S'!U27+MBZ!U27+'MSXY-TI1S'!U27+'MSXY-TI2S'!U27++'MSXY-TI3S'!U27+MSZ!U27+'DEC-U'!U27+DECR!U27+'DBH-U'!U27+DBHR!U27+AMIL!U27 -> -0.05421422863 | G27: ='DEC-OS'!V27+'DEC-OH'!V27+'DEC-OI'!V27+'DBH-OS'!V27+'DBH-OH'!V27+'DBH-OI'!V27+XCLH!V27+XCLA!V27+DRFR!V27+DSFS!V27+DSTG!V27+XYM1!V27+XYM2!V27+XYM3E!V27+XYM4E!V27+SAGE!V27+'ABXY-TI1S'!V27+'ABXY-TI2S'!V27+ABZ!V27+'ASXY-TI1S'!V27+'ASXY-TI2S'!V27+'ASXY-TI3S'!V27+ASZ!V27+'MBXY-TI1S'!V27+'MBXY-TI2S'!V27+MBZ!V27+'MSXY-TI1S'!V27+'MSXY-TI2S'!V27++'MSXY-TI3S'!V27+MSZ!V27+'DEC-U'!V27+DECR!V27+'DBH-U'!V27+DBHR!V27+AMIL!V27 -> 7.556419543e-05 | H27: 1.146783188 | I27: 0.872126969 | J27: 0.3311540085 | K27: -0.001796300964 | L27: 0.1877850919 | M27: -0.0004307750287 | N27: =COS(Wellpath!$L27)*COS(Wellpath!$M27) -> 0.962075296 | O27: =-SIN(Wellpath!$M27) -> 0 | P27: =SIN(Wellpath!$L27)*COS(Wellpath!$M27) -> 0.2727840259 | Q27: =COS(Wellpath!$L27)*SIN(Wellpath!$M27) -> 0 | R27: =COS(Wellpath!$M27) -> 1 | S27: =SIN(Wellpath!$L27)*SIN(Wellpath!$M27) -> 0 | T27: =-SIN(Wellpath!$L27) -> -0.2727840259 | U27: 0 | V27: =COS(Wellpath!$L27) -> 0.962075296
A28: =Wellpath!E28 -> 720 | B28: ='DEC-OS'!Q28+'DEC-OH'!Q28+'DEC-OI'!Q28+'DBH-OS'!Q28+'DBH-OH'!Q28+'DBH-OI'!Q28+XCLH!Q28+XCLA!Q28+DRFR!Q28+DSFS!Q28+DSTG!Q28+XYM1!Q28+XYM2!Q28+XYM3E!Q28+XYM4E!Q28+SAGE!Q28+'ABXY-TI1S'!Q28+'ABXY-TI2S'!Q28+ABZ!Q28+'ASXY-TI1S'!Q28+'ASXY-TI2S'!Q28+'ASXY-TI3S'!Q28+ASZ!Q28+'MBXY-TI1S'!Q28+'MBXY-TI2S'!Q28+MBZ!Q28+'MSXY-TI1S'!Q28+'MSXY-TI2S'!Q28++'MSXY-TI3S'!Q28+MSZ!Q28+'DEC-U'!Q28+DECR!Q28+'DBH-U'!Q28+DBHR!Q28+AMIL!Q28 -> 1.320357806 | C28: ='DEC-OS'!R28+'DEC-OH'!R28+'DEC-OI'!R28+'DBH-OS'!R28+'DBH-OH'!R28+'DBH-OI'!R28+XCLH!R28+XCLA!R28+DRFR!R28+DSFS!R28+DSTG!R28+XYM1!R28+XYM2!R28+XYM3E!R28+XYM4E!R28+SAGE!R28+'ABXY-TI1S'!R28+'ABXY-TI2S'!R28+ABZ!R28+'ASXY-TI1S'!R28+'ASXY-TI2S'!R28+'ASXY-TI3S'!R28+ASZ!R28+'MBXY-TI1S'!R28+'MBXY-TI2S'!R28+MBZ!R28+'MSXY-TI1S'!R28+'MSXY-TI2S'!R28++'MSXY-TI3S'!R28+MSZ!R28+'DEC-U'!R28+DECR!R28+'DBH-U'!R28+DBHR!R28+AMIL!R28 -> 0.9560762151 | D28: ='DEC-OS'!S28+'DEC-OH'!S28+'DEC-OI'!S28+'DBH-OS'!S28+'DBH-OH'!S28+'DBH-OI'!S28+XCLH!S28+XCLA!S28+DRFR!S28+DSFS!S28+DSTG!S28+XYM1!S28+XYM2!S28+XYM3E!S28+XYM4E!S28+SAGE!S28+'ABXY-TI1S'!S28+'ABXY-TI2S'!S28+ABZ!S28+'ASXY-TI1S'!S28+'ASXY-TI2S'!S28+'ASXY-TI3S'!S28+ASZ!S28+'MBXY-TI1S'!S28+'MBXY-TI2S'!S28+MBZ!S28+'MSXY-TI1S'!S28+'MSXY-TI2S'!S28++'MSXY-TI3S'!S28+MSZ!S28+'DEC-U'!S28+DECR!S28+'DBH-U'!S28+DBHR!S28+AMIL!S28 -> 0.315460813 | E28: ='DEC-OS'!T28+'DEC-OH'!T28+'DEC-OI'!T28+'DBH-OS'!T28+'DBH-OH'!T28+'DBH-OI'!T28+XCLH!T28+XCLA!T28+DRFR!T28+DSFS!T28+DSTG!T28+XYM1!T28+XYM2!T28+XYM3E!T28+XYM4E!T28+SAGE!T28+'ABXY-TI1S'!T28+'ABXY-TI2S'!T28+ABZ!T28+'ASXY-TI1S'!T28+'ASXY-TI2S'!T28+'ASXY-TI3S'!T28+ASZ!T28+'MBXY-TI1S'!T28+'MBXY-TI2S'!T28+MBZ!T28+'MSXY-TI1S'!T28+'MSXY-TI2S'!T28++'MSXY-TI3S'!T28+MSZ!T28+'DEC-U'!T28+DECR!T28+'DBH-U'!T28+DBHR!T28+AMIL!T28 -> -0.002579955335 | F28: ='DEC-OS'!U28+'DEC-OH'!U28+'DEC-OI'!U28+'DBH-OS'!U28+'DBH-OH'!U28+'DBH-OI'!U28+XCLH!U28+XCLA!U28+DRFR!U28+DSFS!U28+DSTG!U28+XYM1!U28+XYM2!U28+XYM3E!U28+XYM4E!U28+SAGE!U28+'ABXY-TI1S'!U28+'ABXY-TI2S'!U28+ABZ!U28+'ASXY-TI1S'!U28+'ASXY-TI2S'!U28+'ASXY-TI3S'!U28+ASZ!U28+'MBXY-TI1S'!U28+'MBXY-TI2S'!U28+MBZ!U28+'MSXY-TI1S'!U28+'MSXY-TI2S'!U28++'MSXY-TI3S'!U28+MSZ!U28+'DEC-U'!U28+DECR!U28+'DBH-U'!U28+DBHR!U28+AMIL!U28 -> -0.08349130545 | G28: ='DEC-OS'!V28+'DEC-OH'!V28+'DEC-OI'!V28+'DBH-OS'!V28+'DBH-OH'!V28+'DBH-OI'!V28+XCLH!V28+XCLA!V28+DRFR!V28+DSFS!V28+DSTG!V28+XYM1!V28+XYM2!V28+XYM3E!V28+XYM4E!V28+SAGE!V28+'ABXY-TI1S'!V28+'ABXY-TI2S'!V28+ABZ!V28+'ASXY-TI1S'!V28+'ASXY-TI2S'!V28+'ASXY-TI3S'!V28+ASZ!V28+'MBXY-TI1S'!V28+'MBXY-TI2S'!V28+MBZ!V28+'MSXY-TI1S'!V28+'MSXY-TI2S'!V28++'MSXY-TI3S'!V28+MSZ!V28+'DEC-U'!V28+DECR!V28+'DBH-U'!V28+DBHR!V28+AMIL!V28 -> 0.0001383302208 | H28: 1.270819568 | I28: 0.9560762151 | J28: 0.3649990509 | K28: -0.002492554236 | L28: 0.233018427 | M28: -0.0006800574674 | N28: =COS(Wellpath!$L28)*COS(Wellpath!$M28) -> 0.9492609414 | O28: =-SIN(Wellpath!$M28) -> 0 | P28: =SIN(Wellpath!$L28)*COS(Wellpath!$M28) -> 0.3144895309 | Q28: =COS(Wellpath!$L28)*SIN(Wellpath!$M28) -> 0 | R28: =COS(Wellpath!$M28) -> 1 | S28: =SIN(Wellpath!$L28)*SIN(Wellpath!$M28) -> 0 | T28: =-SIN(Wellpath!$L28) -> -0.3144895309 | U28: 0 | V28: =COS(Wellpath!$L28) -> 0.9492609414
A29: =Wellpath!E29 -> 750 | B29: ='DEC-OS'!Q29+'DEC-OH'!Q29+'DEC-OI'!Q29+'DBH-OS'!Q29+'DBH-OH'!Q29+'DBH-OI'!Q29+XCLH!Q29+XCLA!Q29+DRFR!Q29+DSFS!Q29+DSTG!Q29+XYM1!Q29+XYM2!Q29+XYM3E!Q29+XYM4E!Q29+SAGE!Q29+'ABXY-TI1S'!Q29+'ABXY-TI2S'!Q29+ABZ!Q29+'ASXY-TI1S'!Q29+'ASXY-TI2S'!Q29+'ASXY-TI3S'!Q29+ASZ!Q29+'MBXY-TI1S'!Q29+'MBXY-TI2S'!Q29+MBZ!Q29+'MSXY-TI1S'!Q29+'MSXY-TI2S'!Q29++'MSXY-TI3S'!Q29+MSZ!Q29+'DEC-U'!Q29+DECR!Q29+'DBH-U'!Q29+DBHR!Q29+AMIL!Q29 -> 1.467286515 | C29: ='DEC-OS'!R29+'DEC-OH'!R29+'DEC-OI'!R29+'DBH-OS'!R29+'DBH-OH'!R29+'DBH-OI'!R29+XCLH!R29+XCLA!R29+DRFR!R29+DSFS!R29+DSTG!R29+XYM1!R29+XYM2!R29+XYM3E!R29+XYM4E!R29+SAGE!R29+'ABXY-TI1S'!R29+'ABXY-TI2S'!R29+ABZ!R29+'ASXY-TI1S'!R29+'ASXY-TI2S'!R29+'ASXY-TI3S'!R29+ASZ!R29+'MBXY-TI1S'!R29+'MBXY-TI2S'!R29+MBZ!R29+'MSXY-TI1S'!R29+'MSXY-TI2S'!R29++'MSXY-TI3S'!R29+MSZ!R29+'DEC-U'!R29+DECR!R29+'DBH-U'!R29+DBHR!R29+AMIL!R29 -> 1.061149179 | D29: ='DEC-OS'!S29+'DEC-OH'!S29+'DEC-OI'!S29+'DBH-OS'!S29+'DBH-OH'!S29+'DBH-OI'!S29+XCLH!S29+XCLA!S29+DRFR!S29+DSFS!S29+DSTG!S29+XYM1!S29+XYM2!S29+XYM3E!S29+XYM4E!S29+SAGE!S29+'ABXY-TI1S'!S29+'ABXY-TI2S'!S29+ABZ!S29+'ASXY-TI1S'!S29+'ASXY-TI2S'!S29+'ASXY-TI3S'!S29+ASZ!S29+'MBXY-TI1S'!S29+'MBXY-TI2S'!S29+MBZ!S29+'MSXY-TI1S'!S29+'MSXY-TI2S'!S29++'MSXY-TI3S'!S29+MSZ!S29+'DEC-U'!S29+DECR!S29+'DBH-U'!S29+DBHR!S29+AMIL!S29 -> 0.3416848726 | E29: ='DEC-OS'!T29+'DEC-OH'!T29+'DEC-OI'!T29+'DBH-OS'!T29+'DBH-OH'!T29+'DBH-OI'!T29+XCLH!T29+XCLA!T29+DRFR!T29+DSFS!T29+DSTG!T29+XYM1!T29+XYM2!T29+XYM3E!T29+XYM4E!T29+SAGE!T29+'ABXY-TI1S'!T29+'ABXY-TI2S'!T29+ABZ!T29+'ASXY-TI1S'!T29+'ASXY-TI2S'!T29+'ASXY-TI3S'!T29+ASZ!T29+'MBXY-TI1S'!T29+'MBXY-TI2S'!T29+MBZ!T29+'MSXY-TI1S'!T29+'MSXY-TI2S'!T29++'MSXY-TI3S'!T29+MSZ!T29+'DEC-U'!T29+DECR!T29+'DBH-U'!T29+DBHR!T29+AMIL!T29 -> -0.003468027247 | F29: ='DEC-OS'!U29+'DEC-OH'!U29+'DEC-OI'!U29+'DBH-OS'!U29+'DBH-OH'!U29+'DBH-OI'!U29+XCLH!U29+XCLA!U29+DRFR!U29+DSFS!U29+DSTG!U29+XYM1!U29+XYM2!U29+XYM3E!U29+XYM4E!U29+SAGE!U29+'ABXY-TI1S'!U29+'ABXY-TI2S'!U29+ABZ!U29+'ASXY-TI1S'!U29+'ASXY-TI2S'!U29+'ASXY-TI3S'!U29+ASZ!U29+'MBXY-TI1S'!U29+'MBXY-TI2S'!U29+MBZ!U29+'MSXY-TI1S'!U29+'MSXY-TI2S'!U29++'MSXY-TI3S'!U29+MSZ!U29+'DEC-U'!U29+DECR!U29+'DBH-U'!U29+DBHR!U29+AMIL!U29 -> -0.1208017209 | G29: ='DEC-OS'!V29+'DEC-OH'!V29+'DEC-OI'!V29+'DBH-OS'!V29+'DBH-OH'!V29+'DBH-OI'!V29+XCLH!V29+XCLA!V29+DRFR!V29+DSFS!V29+DSTG!V29+XYM1!V29+XYM2!V29+XYM3E!V29+XYM4E!V29+SAGE!V29+'ABXY-TI1S'!V29+'ABXY-TI2S'!V29+ABZ!V29+'ASXY-TI1S'!V29+'ASXY-TI2S'!V29+'ASXY-TI3S'!V29+ASZ!V29+'MBXY-TI1S'!V29+'MBXY-TI2S'!V29+MBZ!V29+'MSXY-TI1S'!V29+'MSXY-TI2S'!V29++'MSXY-TI3S'!V29+MSZ!V29+'DEC-U'!V29+DECR!V29+'DBH-U'!V29+DBHR!V29+AMIL!V29 -> 0.0002350912076 | H29: 1.405253533 | I29: 1.061149179 | J29: 0.4037178552 | K29: -0.003324953234 | L29: 0.2838474801 | M29: -0.001013492404 | N29: =COS(Wellpath!$L29)*COS(Wellpath!$M29) -> 0.9346396147 | O29: =-SIN(Wellpath!$M29) -> 0 | P29: =SIN(Wellpath!$L29)*COS(Wellpath!$M29) -> 0.3555963873 | Q29: =COS(Wellpath!$L29)*SIN(Wellpath!$M29) -> 0 | R29: =COS(Wellpath!$M29) -> 1 | S29: =SIN(Wellpath!$L29)*SIN(Wellpath!$M29) -> 0 | T29: =-SIN(Wellpath!$L29) -> -0.3555963873 | U29: 0 | V29: =COS(Wellpath!$L29) -> 0.9346396147
A30: =Wellpath!E30 -> 780 | B30: ='DEC-OS'!Q30+'DEC-OH'!Q30+'DEC-OI'!Q30+'DBH-OS'!Q30+'DBH-OH'!Q30+'DBH-OI'!Q30+XCLH!Q30+XCLA!Q30+DRFR!Q30+DSFS!Q30+DSTG!Q30+XYM1!Q30+XYM2!Q30+XYM3E!Q30+XYM4E!Q30+SAGE!Q30+'ABXY-TI1S'!Q30+'ABXY-TI2S'!Q30+ABZ!Q30+'ASXY-TI1S'!Q30+'ASXY-TI2S'!Q30+'ASXY-TI3S'!Q30+ASZ!Q30+'MBXY-TI1S'!Q30+'MBXY-TI2S'!Q30+MBZ!Q30+'MSXY-TI1S'!Q30+'MSXY-TI2S'!Q30++'MSXY-TI3S'!Q30+MSZ!Q30+'DEC-U'!Q30+DECR!Q30+'DBH-U'!Q30+DBHR!Q30+AMIL!Q30 -> 1.625423899 | C30: ='DEC-OS'!R30+'DEC-OH'!R30+'DEC-OI'!R30+'DBH-OS'!R30+'DBH-OH'!R30+'DBH-OI'!R30+XCLH!R30+XCLA!R30+DRFR!R30+DSFS!R30+DSTG!R30+XYM1!R30+XYM2!R30+XYM3E!R30+XYM4E!R30+SAGE!R30+'ABXY-TI1S'!R30+'ABXY-TI2S'!R30+ABZ!R30+'ASXY-TI1S'!R30+'ASXY-TI2S'!R30+'ASXY-TI3S'!R30+ASZ!R30+'MBXY-TI1S'!R30+'MBXY-TI2S'!R30+MBZ!R30+'MSXY-TI1S'!R30+'MSXY-TI2S'!R30++'MSXY-TI3S'!R30+MSZ!R30+'DEC-U'!R30+DECR!R30+'DBH-U'!R30+DBHR!R30+AMIL!R30 -> 1.193008871 | D30: ='DEC-OS'!S30+'DEC-OH'!S30+'DEC-OI'!S30+'DBH-OS'!S30+'DBH-OH'!S30+'DBH-OI'!S30+XCLH!S30+XCLA!S30+DRFR!S30+DSFS!S30+DSTG!S30+XYM1!S30+XYM2!S30+XYM3E!S30+XYM4E!S30+SAGE!S30+'ABXY-TI1S'!S30+'ABXY-TI2S'!S30+ABZ!S30+'ASXY-TI1S'!S30+'ASXY-TI2S'!S30+'ASXY-TI3S'!S30+ASZ!S30+'MBXY-TI1S'!S30+'MBXY-TI2S'!S30+MBZ!S30+'MSXY-TI1S'!S30+'MSXY-TI2S'!S30++'MSXY-TI3S'!S30+MSZ!S30+'DEC-U'!S30+DECR!S30+'DBH-U'!S30+DBHR!S30+AMIL!S30 -> 0.3728289814 | E30: ='DEC-OS'!T30+'DEC-OH'!T30+'DEC-OI'!T30+'DBH-OS'!T30+'DBH-OH'!T30+'DBH-OI'!T30+XCLH!T30+XCLA!T30+DRFR!T30+DSFS!T30+DSTG!T30+XYM1!T30+XYM2!T30+XYM3E!T30+XYM4E!T30+SAGE!T30+'ABXY-TI1S'!T30+'ABXY-TI2S'!T30+ABZ!T30+'ASXY-TI1S'!T30+'ASXY-TI2S'!T30+'ASXY-TI3S'!T30+ASZ!T30+'MBXY-TI1S'!T30+'MBXY-TI2S'!T30+MBZ!T30+'MSXY-TI1S'!T30+'MSXY-TI2S'!T30++'MSXY-TI3S'!T30+MSZ!T30+'DEC-U'!T30+DECR!T30+'DBH-U'!T30+DBHR!T30+AMIL!T30 -> -0.004521433031 | F30: ='DEC-OS'!U30+'DEC-OH'!U30+'DEC-OI'!U30+'DBH-OS'!U30+'DBH-OH'!U30+'DBH-OI'!U30+XCLH!U30+XCLA!U30+DRFR!U30+DSFS!U30+DSTG!U30+XYM1!U30+XYM2!U30+XYM3E!U30+XYM4E!U30+SAGE!U30+'ABXY-TI1S'!U30+'ABXY-TI2S'!U30+ABZ!U30+'ASXY-TI1S'!U30+'ASXY-TI2S'!U30+'ASXY-TI3S'!U30+ASZ!U30+'MBXY-TI1S'!U30+'MBXY-TI2S'!U30+MBZ!U30+'MSXY-TI1S'!U30+'MSXY-TI2S'!U30++'MSXY-TI3S'!U30+MSZ!U30+'DEC-U'!U30+DECR!U30+'DBH-U'!U30+DBHR!U30+AMIL!U30 -> -0.1670201508 | G30: ='DEC-OS'!V30+'DEC-OH'!V30+'DEC-OI'!V30+'DBH-OS'!V30+'DBH-OH'!V30+'DBH-OI'!V30+XCLH!V30+XCLA!V30+DRFR!V30+DSFS!V30+DSTG!V30+XYM1!V30+XYM2!V30+XYM3E!V30+XYM4E!V30+SAGE!V30+'ABXY-TI1S'!V30+'ABXY-TI2S'!V30+ABZ!V30+'ASXY-TI1S'!V30+'ASXY-TI2S'!V30+'ASXY-TI3S'!V30+ASZ!V30+'MBXY-TI1S'!V30+'MBXY-TI2S'!V30+MBZ!V30+'MSXY-TI1S'!V30+'MSXY-TI2S'!V30++'MSXY-TI3S'!V30+MSZ!V30+'DEC-U'!V30+DECR!V30+'DBH-U'!V30+DBHR!V30+AMIL!V30 -> 0.0003770882493 | H30: 1.550443556 | I30: 1.193008871 | J30: 0.447809325 | K30: -0.004301093697 | L30: 0.3408719352 | M30: -0.001444349408 | N30: =COS(Wellpath!$L30)*COS(Wellpath!$M30) -> 0.9182391483 | O30: =-SIN(Wellpath!$M30) -> 0 | P30: =SIN(Wellpath!$L30)*COS(Wellpath!$M30) -> 0.3960263457 | Q30: =COS(Wellpath!$L30)*SIN(Wellpath!$M30) -> 0 | R30: =COS(Wellpath!$M30) -> 1 | S30: =SIN(Wellpath!$L30)*SIN(Wellpath!$M30) -> 0 | T30: =-SIN(Wellpath!$L30) -> -0.3960263457 | U30: 0 | V30: =COS(Wellpath!$L30) -> 0.9182391483
A31: =Wellpath!E31 -> 810 | B31: ='DEC-OS'!Q31+'DEC-OH'!Q31+'DEC-OI'!Q31+'DBH-OS'!Q31+'DBH-OH'!Q31+'DBH-OI'!Q31+XCLH!Q31+XCLA!Q31+DRFR!Q31+DSFS!Q31+DSTG!Q31+XYM1!Q31+XYM2!Q31+XYM3E!Q31+XYM4E!Q31+SAGE!Q31+'ABXY-TI1S'!Q31+'ABXY-TI2S'!Q31+ABZ!Q31+'ASXY-TI1S'!Q31+'ASXY-TI2S'!Q31+'ASXY-TI3S'!Q31+ASZ!Q31+'MBXY-TI1S'!Q31+'MBXY-TI2S'!Q31+MBZ!Q31+'MSXY-TI1S'!Q31+'MSXY-TI2S'!Q31++'MSXY-TI3S'!Q31+MSZ!Q31+'DEC-U'!Q31+DECR!Q31+'DBH-U'!Q31+DBHR!Q31+AMIL!Q31 -> 1.794565522 | C31: ='DEC-OS'!R31+'DEC-OH'!R31+'DEC-OI'!R31+'DBH-OS'!R31+'DBH-OH'!R31+'DBH-OI'!R31+XCLH!R31+XCLA!R31+DRFR!R31+DSFS!R31+DSTG!R31+XYM1!R31+XYM2!R31+XYM3E!R31+XYM4E!R31+SAGE!R31+'ABXY-TI1S'!R31+'ABXY-TI2S'!R31+ABZ!R31+'ASXY-TI1S'!R31+'ASXY-TI2S'!R31+'ASXY-TI3S'!R31+ASZ!R31+'MBXY-TI1S'!R31+'MBXY-TI2S'!R31+MBZ!R31+'MSXY-TI1S'!R31+'MSXY-TI2S'!R31++'MSXY-TI3S'!R31+MSZ!R31+'DEC-U'!R31+DECR!R31+'DBH-U'!R31+DBHR!R31+AMIL!R31 -> 1.357924612 | D31: ='DEC-OS'!S31+'DEC-OH'!S31+'DEC-OI'!S31+'DBH-OS'!S31+'DBH-OH'!S31+'DBH-OI'!S31+XCLH!S31+XCLA!S31+DRFR!S31+DSFS!S31+DSTG!S31+XYM1!S31+XYM2!S31+XYM3E!S31+XYM4E!S31+SAGE!S31+'ABXY-TI1S'!S31+'ABXY-TI2S'!S31+ABZ!S31+'ASXY-TI1S'!S31+'ASXY-TI2S'!S31+'ASXY-TI3S'!S31+ASZ!S31+'MBXY-TI1S'!S31+'MBXY-TI2S'!S31+MBZ!S31+'MSXY-TI1S'!S31+'MSXY-TI2S'!S31++'MSXY-TI3S'!S31+MSZ!S31+'DEC-U'!S31+DECR!S31+'DBH-U'!S31+DBHR!S31+AMIL!S31 -> 0.4098691036 | E31: ='DEC-OS'!T31+'DEC-OH'!T31+'DEC-OI'!T31+'DBH-OS'!T31+'DBH-OH'!T31+'DBH-OI'!T31+XCLH!T31+XCLA!T31+DRFR!T31+DSFS!T31+DSTG!T31+XYM1!T31+XYM2!T31+XYM3E!T31+XYM4E!T31+SAGE!T31+'ABXY-TI1S'!T31+'ABXY-TI2S'!T31+ABZ!T31+'ASXY-TI1S'!T31+'ASXY-TI2S'!T31+'ASXY-TI3S'!T31+ASZ!T31+'MBXY-TI1S'!T31+'MBXY-TI2S'!T31+MBZ!T31+'MSXY-TI1S'!T31+'MSXY-TI2S'!T31++'MSXY-TI3S'!T31+MSZ!T31+'DEC-U'!T31+DECR!T31+'DBH-U'!T31+DBHR!T31+AMIL!T31 -> -0.005750923059 | F31: ='DEC-OS'!U31+'DEC-OH'!U31+'DEC-OI'!U31+'DBH-OS'!U31+'DBH-OH'!U31+'DBH-OI'!U31+XCLH!U31+XCLA!U31+DRFR!U31+DSFS!U31+DSTG!U31+XYM1!U31+XYM2!U31+XYM3E!U31+XYM4E!U31+SAGE!U31+'ABXY-TI1S'!U31+'ABXY-TI2S'!U31+ABZ!U31+'ASXY-TI1S'!U31+'ASXY-TI2S'!U31+'ASXY-TI3S'!U31+ASZ!U31+'MBXY-TI1S'!U31+'MBXY-TI2S'!U31+MBZ!U31+'MSXY-TI1S'!U31+'MSXY-TI2S'!U31++'MSXY-TI3S'!U31+MSZ!U31+'DEC-U'!U31+DECR!U31+'DBH-U'!U31+DBHR!U31+AMIL!U31 -> -0.2230045726 | G31: ='DEC-OS'!V31+'DEC-OH'!V31+'DEC-OI'!V31+'DBH-OS'!V31+'DBH-OH'!V31+'DBH-OI'!V31+XCLH!V31+XCLA!V31+DRFR!V31+DSFS!V31+DSTG!V31+XYM1!V31+XYM2!V31+XYM3E!V31+XYM4E!V31+SAGE!V31+'ABXY-TI1S'!V31+'ABXY-TI2S'!V31+ABZ!V31+'ASXY-TI1S'!V31+'ASXY-TI2S'!V31+'ASXY-TI3S'!V31+ASZ!V31+'MBXY-TI1S'!V31+'MBXY-TI2S'!V31+MBZ!V31+'MSXY-TI1S'!V31+'MSXY-TI2S'!V31++'MSXY-TI3S'!V31+MSZ!V31+'DEC-U'!V31+DECR!V31+'DBH-U'!V31+DBHR!V31+AMIL!V31 -> 0.0005773562523 | H31: 1.706611618 | I31: 1.357924612 | J31: 0.4978230076 | K31: -0.005427908247 | L31: 0.4047031084 | M31: -0.001986018212 | N31: =COS(Wellpath!$L31)*COS(Wellpath!$M31) -> 0.9000907615 | O31: =-SIN(Wellpath!$M31) -> 0 | P31: =SIN(Wellpath!$L31)*COS(Wellpath!$M31) -> 0.4357024455 | Q31: =COS(Wellpath!$L31)*SIN(Wellpath!$M31) -> 0 | R31: =COS(Wellpath!$M31) -> 1 | S31: =SIN(Wellpath!$L31)*SIN(Wellpath!$M31) -> 0 | T31: =-SIN(Wellpath!$L31) -> -0.4357024455 | U31: 0 | V31: =COS(Wellpath!$L31) -> 0.9000907615
A32: =Wellpath!E32 -> 840 | B32: ='DEC-OS'!Q32+'DEC-OH'!Q32+'DEC-OI'!Q32+'DBH-OS'!Q32+'DBH-OH'!Q32+'DBH-OI'!Q32+XCLH!Q32+XCLA!Q32+DRFR!Q32+DSFS!Q32+DSTG!Q32+XYM1!Q32+XYM2!Q32+XYM3E!Q32+XYM4E!Q32+SAGE!Q32+'ABXY-TI1S'!Q32+'ABXY-TI2S'!Q32+ABZ!Q32+'ASXY-TI1S'!Q32+'ASXY-TI2S'!Q32+'ASXY-TI3S'!Q32+ASZ!Q32+'MBXY-TI1S'!Q32+'MBXY-TI2S'!Q32+MBZ!Q32+'MSXY-TI1S'!Q32+'MSXY-TI2S'!Q32++'MSXY-TI3S'!Q32+MSZ!Q32+'DEC-U'!Q32+DECR!Q32+'DBH-U'!Q32+DBHR!Q32+AMIL!Q32 -> 1.974324993 | C32: ='DEC-OS'!R32+'DEC-OH'!R32+'DEC-OI'!R32+'DBH-OS'!R32+'DBH-OH'!R32+'DBH-OI'!R32+XCLH!R32+XCLA!R32+DRFR!R32+DSFS!R32+DSTG!R32+XYM1!R32+XYM2!R32+XYM3E!R32+XYM4E!R32+SAGE!R32+'ABXY-TI1S'!R32+'ABXY-TI2S'!R32+ABZ!R32+'ASXY-TI1S'!R32+'ASXY-TI2S'!R32+'ASXY-TI3S'!R32+ASZ!R32+'MBXY-TI1S'!R32+'MBXY-TI2S'!R32+MBZ!R32+'MSXY-TI1S'!R32+'MSXY-TI2S'!R32++'MSXY-TI3S'!R32+MSZ!R32+'DEC-U'!R32+DECR!R32+'DBH-U'!R32+DBHR!R32+AMIL!R32 -> 1.56272354 | D32: ='DEC-OS'!S32+'DEC-OH'!S32+'DEC-OI'!S32+'DBH-OS'!S32+'DBH-OH'!S32+'DBH-OI'!S32+XCLH!S32+XCLA!S32+DRFR!S32+DSFS!S32+DSTG!S32+XYM1!S32+XYM2!S32+XYM3E!S32+XYM4E!S32+SAGE!S32+'ABXY-TI1S'!S32+'ABXY-TI2S'!S32+ABZ!S32+'ASXY-TI1S'!S32+'ASXY-TI2S'!S32+'ASXY-TI3S'!S32+ASZ!S32+'MBXY-TI1S'!S32+'MBXY-TI2S'!S32+MBZ!S32+'MSXY-TI1S'!S32+'MSXY-TI2S'!S32++'MSXY-TI3S'!S32+MSZ!S32+'DEC-U'!S32+DECR!S32+'DBH-U'!S32+DBHR!S32+AMIL!S32 -> 0.4538792274 | E32: ='DEC-OS'!T32+'DEC-OH'!T32+'DEC-OI'!T32+'DBH-OS'!T32+'DBH-OH'!T32+'DBH-OI'!T32+XCLH!T32+XCLA!T32+DRFR!T32+DSFS!T32+DSTG!T32+XYM1!T32+XYM2!T32+XYM3E!T32+XYM4E!T32+SAGE!T32+'ABXY-TI1S'!T32+'ABXY-TI2S'!T32+ABZ!T32+'ASXY-TI1S'!T32+'ASXY-TI2S'!T32+'ASXY-TI3S'!T32+ASZ!T32+'MBXY-TI1S'!T32+'MBXY-TI2S'!T32+MBZ!T32+'MSXY-TI1S'!T32+'MSXY-TI2S'!T32++'MSXY-TI3S'!T32+MSZ!T32+'DEC-U'!T32+DECR!T32+'DBH-U'!T32+DBHR!T32+AMIL!T32 -> -0.007165983372 | F32: ='DEC-OS'!U32+'DEC-OH'!U32+'DEC-OI'!U32+'DBH-OS'!U32+'DBH-OH'!U32+'DBH-OI'!U32+XCLH!U32+XCLA!U32+DRFR!U32+DSFS!U32+DSTG!U32+XYM1!U32+XYM2!U32+XYM3E!U32+XYM4E!U32+SAGE!U32+'ABXY-TI1S'!U32+'ABXY-TI2S'!U32+ABZ!U32+'ASXY-TI1S'!U32+'ASXY-TI2S'!U32+'ASXY-TI3S'!U32+ASZ!U32+'MBXY-TI1S'!U32+'MBXY-TI2S'!U32+MBZ!U32+'MSXY-TI1S'!U32+'MSXY-TI2S'!U32++'MSXY-TI3S'!U32+MSZ!U32+'DEC-U'!U32+DECR!U32+'DBH-U'!U32+DBHR!U32+AMIL!U32 -> -0.2895789684 | G32: ='DEC-OS'!V32+'DEC-OH'!V32+'DEC-OI'!V32+'DBH-OS'!V32+'DBH-OH'!V32+'DBH-OI'!V32+XCLH!V32+XCLA!V32+DRFR!V32+DSFS!V32+DSTG!V32+XYM1!V32+XYM2!V32+XYM3E!V32+XYM4E!V32+SAGE!V32+'ABXY-TI1S'!V32+'ABXY-TI2S'!V32+ABZ!V32+'ASXY-TI1S'!V32+'ASXY-TI2S'!V32+'ASXY-TI3S'!V32+ASZ!V32+'MBXY-TI1S'!V32+'MBXY-TI2S'!V32+MBZ!V32+'MSXY-TI1S'!V32+'MSXY-TI2S'!V32++'MSXY-TI3S'!V32+MSZ!V32+'DEC-U'!V32+DECR!V32+'DBH-U'!V32+DBHR!V32+AMIL!V32 -> 0.0008506129745 | H32: 1.873846493 | I32: 1.56272354 | J32: 0.5543577281 | K32: -0.006711364057 | L32: 0.4759539482 | M32: -0.002651877188 | N32: =COS(Wellpath!$L32)*COS(Wellpath!$M32) -> 0.8802290008 | O32: =-SIN(Wellpath!$M32) -> 0 | P32: =SIN(Wellpath!$L32)*COS(Wellpath!$M32) -> 0.4745491609 | Q32: =COS(Wellpath!$L32)*SIN(Wellpath!$M32) -> 0 | R32: =COS(Wellpath!$M32) -> 1 | S32: =SIN(Wellpath!$L32)*SIN(Wellpath!$M32) -> 0 | T32: =-SIN(Wellpath!$L32) -> -0.4745491609 | U32: 0 | V32: =COS(Wellpath!$L32) -> 0.8802290008
A33: =Wellpath!E33 -> 870 | B33: ='DEC-OS'!Q33+'DEC-OH'!Q33+'DEC-OI'!Q33+'DBH-OS'!Q33+'DBH-OH'!Q33+'DBH-OI'!Q33+XCLH!Q33+XCLA!Q33+DRFR!Q33+DSFS!Q33+DSTG!Q33+XYM1!Q33+XYM2!Q33+XYM3E!Q33+XYM4E!Q33+SAGE!Q33+'ABXY-TI1S'!Q33+'ABXY-TI2S'!Q33+ABZ!Q33+'ASXY-TI1S'!Q33+'ASXY-TI2S'!Q33+'ASXY-TI3S'!Q33+ASZ!Q33+'MBXY-TI1S'!Q33+'MBXY-TI2S'!Q33+MBZ!Q33+'MSXY-TI1S'!Q33+'MSXY-TI2S'!Q33++'MSXY-TI3S'!Q33+MSZ!Q33+'DEC-U'!Q33+DECR!Q33+'DBH-U'!Q33+DBHR!Q33+AMIL!Q33 -> 2.164138744 | C33: ='DEC-OS'!R33+'DEC-OH'!R33+'DEC-OI'!R33+'DBH-OS'!R33+'DBH-OH'!R33+'DBH-OI'!R33+XCLH!R33+XCLA!R33+DRFR!R33+DSFS!R33+DSTG!R33+XYM1!R33+XYM2!R33+XYM3E!R33+XYM4E!R33+SAGE!R33+'ABXY-TI1S'!R33+'ABXY-TI2S'!R33+ABZ!R33+'ASXY-TI1S'!R33+'ASXY-TI2S'!R33+'ASXY-TI3S'!R33+ASZ!R33+'MBXY-TI1S'!R33+'MBXY-TI2S'!R33+MBZ!R33+'MSXY-TI1S'!R33+'MSXY-TI2S'!R33++'MSXY-TI3S'!R33+MSZ!R33+'DEC-U'!R33+DECR!R33+'DBH-U'!R33+DBHR!R33+AMIL!R33 -> 1.814734368 | D33: ='DEC-OS'!S33+'DEC-OH'!S33+'DEC-OI'!S33+'DBH-OS'!S33+'DBH-OH'!S33+'DBH-OI'!S33+XCLH!S33+XCLA!S33+DRFR!S33+DSFS!S33+DSTG!S33+XYM1!S33+XYM2!S33+XYM3E!S33+XYM4E!S33+SAGE!S33+'ABXY-TI1S'!S33+'ABXY-TI2S'!S33+ABZ!S33+'ASXY-TI1S'!S33+'ASXY-TI2S'!S33+'ASXY-TI3S'!S33+ASZ!S33+'MBXY-TI1S'!S33+'MBXY-TI2S'!S33+MBZ!S33+'MSXY-TI1S'!S33+'MSXY-TI2S'!S33++'MSXY-TI3S'!S33+MSZ!S33+'DEC-U'!S33+DECR!S33+'DBH-U'!S33+DBHR!S33+AMIL!S33 -> 0.5060297067 | E33: ='DEC-OS'!T33+'DEC-OH'!T33+'DEC-OI'!T33+'DBH-OS'!T33+'DBH-OH'!T33+'DBH-OI'!T33+XCLH!T33+XCLA!T33+DRFR!T33+DSFS!T33+DSTG!T33+XYM1!T33+XYM2!T33+XYM3E!T33+XYM4E!T33+SAGE!T33+'ABXY-TI1S'!T33+'ABXY-TI2S'!T33+ABZ!T33+'ASXY-TI1S'!T33+'ASXY-TI2S'!T33+'ASXY-TI3S'!T33+ASZ!T33+'MBXY-TI1S'!T33+'MBXY-TI2S'!T33+MBZ!T33+'MSXY-TI1S'!T33+'MSXY-TI2S'!T33++'MSXY-TI3S'!T33+MSZ!T33+'DEC-U'!T33+DECR!T33+'DBH-U'!T33+DBHR!T33+AMIL!T33 -> -0.0087742958 | F33: ='DEC-OS'!U33+'DEC-OH'!U33+'DEC-OI'!U33+'DBH-OS'!U33+'DBH-OH'!U33+'DBH-OI'!U33+XCLH!U33+XCLA!U33+DRFR!U33+DSFS!U33+DSTG!U33+XYM1!U33+XYM2!U33+XYM3E!U33+XYM4E!U33+SAGE!U33+'ABXY-TI1S'!U33+'ABXY-TI2S'!U33+ABZ!U33+'ASXY-TI1S'!U33+'ASXY-TI2S'!U33+'ASXY-TI3S'!U33+ASZ!U33+'MBXY-TI1S'!U33+'MBXY-TI2S'!U33+MBZ!U33+'MSXY-TI1S'!U33+'MSXY-TI2S'!U33++'MSXY-TI3S'!U33+MSZ!U33+'DEC-U'!U33+DECR!U33+'DBH-U'!U33+DBHR!U33+AMIL!U33 -> -0.3675151462 | G33: ='DEC-OS'!V33+'DEC-OH'!V33+'DEC-OI'!V33+'DBH-OS'!V33+'DBH-OH'!V33+'DBH-OI'!V33+XCLH!V33+XCLA!V33+DRFR!V33+DSFS!V33+DSTG!V33+XYM1!V33+XYM2!V33+XYM3E!V33+XYM4E!V33+SAGE!V33+'ABXY-TI1S'!V33+'ABXY-TI2S'!V33+ABZ!V33+'ASXY-TI1S'!V33+'ASXY-TI2S'!V33+'ASXY-TI3S'!V33+ASZ!V33+'MBXY-TI1S'!V33+'MBXY-TI2S'!V33+MBZ!V33+'MSXY-TI1S'!V33+'MSXY-TI2S'!V33++'MSXY-TI3S'!V33+MSZ!V33+'DEC-U'!V33+DECR!V33+'DBH-U'!V33+DBHR!V33+AMIL!V33 -> 0.001213039534 | H33: 2.052105758 | I33: 1.814734368 | J33: 0.6180626927 | K33: -0.008156088469 | L33: 0.555228691 | M33: -0.003455134237 | N33: =COS(Wellpath!$L33)*COS(Wellpath!$M33) -> 0.8586916742 | O33: =-SIN(Wellpath!$M33) -> 0 | P33: =SIN(Wellpath!$L33)*COS(Wellpath!$M33) -> 0.512492545 | Q33: =COS(Wellpath!$L33)*SIN(Wellpath!$M33) -> 0 | R33: =COS(Wellpath!$M33) -> 1 | S33: =SIN(Wellpath!$L33)*SIN(Wellpath!$M33) -> 0 | T33: =-SIN(Wellpath!$L33) -> -0.512492545 | U33: 0 | V33: =COS(Wellpath!$L33) -> 0.8586916742
A34: =Wellpath!E34 -> 900 | B34: ='DEC-OS'!Q34+'DEC-OH'!Q34+'DEC-OI'!Q34+'DBH-OS'!Q34+'DBH-OH'!Q34+'DBH-OI'!Q34+XCLH!Q34+XCLA!Q34+DRFR!Q34+DSFS!Q34+DSTG!Q34+XYM1!Q34+XYM2!Q34+XYM3E!Q34+XYM4E!Q34+SAGE!Q34+'ABXY-TI1S'!Q34+'ABXY-TI2S'!Q34+ABZ!Q34+'ASXY-TI1S'!Q34+'ASXY-TI2S'!Q34+'ASXY-TI3S'!Q34+ASZ!Q34+'MBXY-TI1S'!Q34+'MBXY-TI2S'!Q34+MBZ!Q34+'MSXY-TI1S'!Q34+'MSXY-TI2S'!Q34++'MSXY-TI3S'!Q34+MSZ!Q34+'DEC-U'!Q34+DECR!Q34+'DBH-U'!Q34+DBHR!Q34+AMIL!Q34 -> 2.363271244 | C34: ='DEC-OS'!R34+'DEC-OH'!R34+'DEC-OI'!R34+'DBH-OS'!R34+'DBH-OH'!R34+'DBH-OI'!R34+XCLH!R34+XCLA!R34+DRFR!R34+DSFS!R34+DSTG!R34+XYM1!R34+XYM2!R34+XYM3E!R34+XYM4E!R34+SAGE!R34+'ABXY-TI1S'!R34+'ABXY-TI2S'!R34+ABZ!R34+'ASXY-TI1S'!R34+'ASXY-TI2S'!R34+'ASXY-TI3S'!R34+ASZ!R34+'MBXY-TI1S'!R34+'MBXY-TI2S'!R34+MBZ!R34+'MSXY-TI1S'!R34+'MSXY-TI2S'!R34++'MSXY-TI3S'!R34+MSZ!R34+'DEC-U'!R34+DECR!R34+'DBH-U'!R34+DBHR!R34+AMIL!R34 -> 2.121723449 | D34: ='DEC-OS'!S34+'DEC-OH'!S34+'DEC-OI'!S34+'DBH-OS'!S34+'DBH-OH'!S34+'DBH-OI'!S34+XCLH!S34+XCLA!S34+DRFR!S34+DSFS!S34+DSTG!S34+XYM1!S34+XYM2!S34+XYM3E!S34+XYM4E!S34+SAGE!S34+'ABXY-TI1S'!S34+'ABXY-TI2S'!S34+ABZ!S34+'ASXY-TI1S'!S34+'ASXY-TI2S'!S34+'ASXY-TI3S'!S34+ASZ!S34+'MBXY-TI1S'!S34+'MBXY-TI2S'!S34+MBZ!S34+'MSXY-TI1S'!S34+'MSXY-TI2S'!S34++'MSXY-TI3S'!S34+MSZ!S34+'DEC-U'!S34+DECR!S34+'DBH-U'!S34+DBHR!S34+AMIL!S34 -> 0.5675808262 | E34: ='DEC-OS'!T34+'DEC-OH'!T34+'DEC-OI'!T34+'DBH-OS'!T34+'DBH-OH'!T34+'DBH-OI'!T34+XCLH!T34+XCLA!T34+DRFR!T34+DSFS!T34+DSTG!T34+XYM1!T34+XYM2!T34+XYM3E!T34+XYM4E!T34+SAGE!T34+'ABXY-TI1S'!T34+'ABXY-TI2S'!T34+ABZ!T34+'ASXY-TI1S'!T34+'ASXY-TI2S'!T34+'ASXY-TI3S'!T34+ASZ!T34+'MBXY-TI1S'!T34+'MBXY-TI2S'!T34+MBZ!T34+'MSXY-TI1S'!T34+'MSXY-TI2S'!T34++'MSXY-TI3S'!T34+MSZ!T34+'DEC-U'!T34+DECR!T34+'DBH-U'!T34+DBHR!T34+AMIL!T34 -> -0.0105811731 | F34: ='DEC-OS'!U34+'DEC-OH'!U34+'DEC-OI'!U34+'DBH-OS'!U34+'DBH-OH'!U34+'DBH-OI'!U34+XCLH!U34+XCLA!U34+DRFR!U34+DSFS!U34+DSTG!U34+XYM1!U34+XYM2!U34+XYM3E!U34+XYM4E!U34+SAGE!U34+'ABXY-TI1S'!U34+'ABXY-TI2S'!U34+ABZ!U34+'ASXY-TI1S'!U34+'ASXY-TI2S'!U34+'ASXY-TI3S'!U34+ASZ!U34+'MBXY-TI1S'!U34+'MBXY-TI2S'!U34+MBZ!U34+'MSXY-TI1S'!U34+'MSXY-TI2S'!U34++'MSXY-TI3S'!U34+MSZ!U34+'DEC-U'!U34+DECR!U34+'DBH-U'!U34+DBHR!U34+AMIL!U34 -> -0.4575154748 | G34: ='DEC-OS'!V34+'DEC-OH'!V34+'DEC-OI'!V34+'DBH-OS'!V34+'DBH-OH'!V34+'DBH-OI'!V34+XCLH!V34+XCLA!V34+DRFR!V34+DSFS!V34+DSTG!V34+XYM1!V34+XYM2!V34+XYM3E!V34+XYM4E!V34+SAGE!V34+'ABXY-TI1S'!V34+'ABXY-TI2S'!V34+ABZ!V34+'ASXY-TI1S'!V34+'ASXY-TI2S'!V34+'ASXY-TI3S'!V34+ASZ!V34+'MBXY-TI1S'!V34+'MBXY-TI2S'!V34+MBZ!V34+'MSXY-TI1S'!V34+'MSXY-TI2S'!V34++'MSXY-TI3S'!V34+MSZ!V34+'DEC-U'!V34+DECR!V34+'DBH-U'!V34+DBHR!V34+AMIL!V34 -> 0.001681946591 | H34: 2.241217268 | I34: 2.121723449 | J34: 0.6896348019 | K34: -0.009764942409 | L34: 0.6431130471 | M34: -0.004408635647 | N34: =COS(Wellpath!$L34)*COS(Wellpath!$M34) -> 0.8355197791 | O34: =-SIN(Wellpath!$M34) -> 0 | P34: =SIN(Wellpath!$L34)*COS(Wellpath!$M34) -> 0.5494603704 | Q34: =COS(Wellpath!$L34)*SIN(Wellpath!$M34) -> 0 | R34: =COS(Wellpath!$M34) -> 1 | S34: =SIN(Wellpath!$L34)*SIN(Wellpath!$M34) -> 0 | T34: =-SIN(Wellpath!$L34) -> -0.5494603704 | U34: 0 | V34: =COS(Wellpath!$L34) -> 0.8355197791
A35: =Wellpath!E35 -> 930 | B35: ='DEC-OS'!Q35+'DEC-OH'!Q35+'DEC-OI'!Q35+'DBH-OS'!Q35+'DBH-OH'!Q35+'DBH-OI'!Q35+XCLH!Q35+XCLA!Q35+DRFR!Q35+DSFS!Q35+DSTG!Q35+XYM1!Q35+XYM2!Q35+XYM3E!Q35+XYM4E!Q35+SAGE!Q35+'ABXY-TI1S'!Q35+'ABXY-TI2S'!Q35+ABZ!Q35+'ASXY-TI1S'!Q35+'ASXY-TI2S'!Q35+'ASXY-TI3S'!Q35+ASZ!Q35+'MBXY-TI1S'!Q35+'MBXY-TI2S'!Q35+MBZ!Q35+'MSXY-TI1S'!Q35+'MSXY-TI2S'!Q35++'MSXY-TI3S'!Q35+MSZ!Q35+'DEC-U'!Q35+DECR!Q35+'DBH-U'!Q35+DBHR!Q35+AMIL!Q35 -> 2.570821895 | C35: ='DEC-OS'!R35+'DEC-OH'!R35+'DEC-OI'!R35+'DBH-OS'!R35+'DBH-OH'!R35+'DBH-OI'!R35+XCLH!R35+XCLA!R35+DRFR!R35+DSFS!R35+DSTG!R35+XYM1!R35+XYM2!R35+XYM3E!R35+XYM4E!R35+SAGE!R35+'ABXY-TI1S'!R35+'ABXY-TI2S'!R35+ABZ!R35+'ASXY-TI1S'!R35+'ASXY-TI2S'!R35+'ASXY-TI3S'!R35+ASZ!R35+'MBXY-TI1S'!R35+'MBXY-TI2S'!R35+MBZ!R35+'MSXY-TI1S'!R35+'MSXY-TI2S'!R35++'MSXY-TI3S'!R35+MSZ!R35+'DEC-U'!R35+DECR!R35+'DBH-U'!R35+DBHR!R35+AMIL!R35 -> 2.491823352 | D35: ='DEC-OS'!S35+'DEC-OH'!S35+'DEC-OI'!S35+'DBH-OS'!S35+'DBH-OH'!S35+'DBH-OI'!S35+XCLH!S35+XCLA!S35+DRFR!S35+DSFS!S35+DSTG!S35+XYM1!S35+XYM2!S35+XYM3E!S35+XYM4E!S35+SAGE!S35+'ABXY-TI1S'!S35+'ABXY-TI2S'!S35+ABZ!S35+'ASXY-TI1S'!S35+'ASXY-TI2S'!S35+'ASXY-TI3S'!S35+ASZ!S35+'MBXY-TI1S'!S35+'MBXY-TI2S'!S35+MBZ!S35+'MSXY-TI1S'!S35+'MSXY-TI2S'!S35++'MSXY-TI3S'!S35+MSZ!S35+'DEC-U'!S35+DECR!S35+'DBH-U'!S35+DBHR!S35+AMIL!S35 -> 0.6398782934 | E35: ='DEC-OS'!T35+'DEC-OH'!T35+'DEC-OI'!T35+'DBH-OS'!T35+'DBH-OH'!T35+'DBH-OI'!T35+XCLH!T35+XCLA!T35+DRFR!T35+DSFS!T35+DSTG!T35+XYM1!T35+XYM2!T35+XYM3E!T35+XYM4E!T35+SAGE!T35+'ABXY-TI1S'!T35+'ABXY-TI2S'!T35+ABZ!T35+'ASXY-TI1S'!T35+'ASXY-TI2S'!T35+'ASXY-TI3S'!T35+ASZ!T35+'MBXY-TI1S'!T35+'MBXY-TI2S'!T35+MBZ!T35+'MSXY-TI1S'!T35+'MSXY-TI2S'!T35++'MSXY-TI3S'!T35+MSZ!T35+'DEC-U'!T35+DECR!T35+'DBH-U'!T35+DBHR!T35+AMIL!T35 -> -0.01258900487 | F35: ='DEC-OS'!U35+'DEC-OH'!U35+'DEC-OI'!U35+'DBH-OS'!U35+'DBH-OH'!U35+'DBH-OI'!U35+XCLH!U35+XCLA!U35+DRFR!U35+DSFS!U35+DSTG!U35+XYM1!U35+XYM2!U35+XYM3E!U35+XYM4E!U35+SAGE!U35+'ABXY-TI1S'!U35+'ABXY-TI2S'!U35+ABZ!U35+'ASXY-TI1S'!U35+'ASXY-TI2S'!U35+'ASXY-TI3S'!U35+ASZ!U35+'MBXY-TI1S'!U35+'MBXY-TI2S'!U35+MBZ!U35+'MSXY-TI1S'!U35+'MSXY-TI2S'!U35++'MSXY-TI3S'!U35+MSZ!U35+'DEC-U'!U35+DECR!U35+'DBH-U'!U35+DBHR!U35+AMIL!U35 -> -0.560194246 | G35: ='DEC-OS'!V35+'DEC-OH'!V35+'DEC-OI'!V35+'DBH-OS'!V35+'DBH-OH'!V35+'DBH-OI'!V35+XCLH!V35+XCLA!V35+DRFR!V35+DSFS!V35+DSTG!V35+XYM1!V35+XYM2!V35+XYM3E!V35+XYM4E!V35+SAGE!V35+'ABXY-TI1S'!V35+'ABXY-TI2S'!V35+ABZ!V35+'ASXY-TI1S'!V35+'ASXY-TI2S'!V35+'ASXY-TI3S'!V35+ASZ!V35+'MBXY-TI1S'!V35+'MBXY-TI2S'!V35+MBZ!V35+'MSXY-TI1S'!V35+'MSXY-TI2S'!V35++'MSXY-TI3S'!V35+MSZ!V35+'DEC-U'!V35+DECR!V35+'DBH-U'!V35+DBHR!V35+AMIL!V35 -> 0.002275328594 | H35: =N35*(B35*N35+E35*Q35+F35*T35) + Q35*(E35*N35+C35*Q35+G35*T35)+ T35*(F35*N35+G35*Q35+D35*T35) -> 2.440880581 | I35: =O35*(B35*O35+E35*R35+F35*U35) + R35*(E35*O35+C35*R35+G35*U35)+ U35*(F35*O35+G35*R35+D35*U35) -> 2.491823352 | J35: =P35*(B35*P35+E35*S35+F35*V35) + S35*(E35*P35+C35*S35+G35*V35)+ V35*(F35*P35+G35*S35+D35*V35) -> 0.7698196075 | K35: =N35*(B35*O35+E35*R35+F35*U35) + Q35*(E35*O35+C35*R35+G35*U35)+ T35*(F35*O35+G35*R35+D35*U35) -> -0.01153856618 | L35: =N35*(B35*P35+E35*S35+F35*V35) + Q35*(E35*P35+C35*S35+G35*V35)+ T35*(F35*P35+G35*S35+D35*V35) -> 0.7401636286 | M35: =O35*(B35*P35+E35*S35+F35*V35) + R35*(E35*P35+C35*S35+G35*V35)+ U35*(F35*P35+G35*S35+D35*V35) -> -0.005524640655 | N35: =COS(Wellpath!$L35)*COS(Wellpath!$M35) -> 0.8107574247 | O35: =-SIN(Wellpath!$M35) -> 0 | P35: =SIN(Wellpath!$L35)*COS(Wellpath!$M35) -> 0.5853822668 | Q35: =COS(Wellpath!$L35)*SIN(Wellpath!$M35) -> 0 | R35: =COS(Wellpath!$M35) -> 1 | S35: =SIN(Wellpath!$L35)*SIN(Wellpath!$M35) -> 0 | T35: =-SIN(Wellpath!$L35) -> -0.5853822668 | U35: 0 | V35: =COS(Wellpath!$L35) -> 0.8107574247
A36: =Wellpath!E36 -> 960 | B36: ='DEC-OS'!Q36+'DEC-OH'!Q36+'DEC-OI'!Q36+'DBH-OS'!Q36+'DBH-OH'!Q36+'DBH-OI'!Q36+XCLH!Q36+XCLA!Q36+DRFR!Q36+DSFS!Q36+DSTG!Q36+XYM1!Q36+XYM2!Q36+XYM3E!Q36+XYM4E!Q36+SAGE!Q36+'ABXY-TI1S'!Q36+'ABXY-TI2S'!Q36+ABZ!Q36+'ASXY-TI1S'!Q36+'ASXY-TI2S'!Q36+'ASXY-TI3S'!Q36+ASZ!Q36+'MBXY-TI1S'!Q36+'MBXY-TI2S'!Q36+MBZ!Q36+'MSXY-TI1S'!Q36+'MSXY-TI2S'!Q36++'MSXY-TI3S'!Q36+MSZ!Q36+'DEC-U'!Q36+DECR!Q36+'DBH-U'!Q36+DBHR!Q36+AMIL!Q36 -> 2.785732568 | C36: ='DEC-OS'!R36+'DEC-OH'!R36+'DEC-OI'!R36+'DBH-OS'!R36+'DBH-OH'!R36+'DBH-OI'!R36+XCLH!R36+XCLA!R36+DRFR!R36+DSFS!R36+DSTG!R36+XYM1!R36+XYM2!R36+XYM3E!R36+XYM4E!R36+SAGE!R36+'ABXY-TI1S'!R36+'ABXY-TI2S'!R36+ABZ!R36+'ASXY-TI1S'!R36+'ASXY-TI2S'!R36+'ASXY-TI3S'!R36+ASZ!R36+'MBXY-TI1S'!R36+'MBXY-TI2S'!R36+MBZ!R36+'MSXY-TI1S'!R36+'MSXY-TI2S'!R36++'MSXY-TI3S'!R36+MSZ!R36+'DEC-U'!R36+DECR!R36+'DBH-U'!R36+DBHR!R36+AMIL!R36 -> 2.933454347 | D36: ='DEC-OS'!S36+'DEC-OH'!S36+'DEC-OI'!S36+'DBH-OS'!S36+'DBH-OH'!S36+'DBH-OI'!S36+XCLH!S36+XCLA!S36+DRFR!S36+DSFS!S36+DSTG!S36+XYM1!S36+XYM2!S36+XYM3E!S36+XYM4E!S36+SAGE!S36+'ABXY-TI1S'!S36+'ABXY-TI2S'!S36+ABZ!S36+'ASXY-TI1S'!S36+'ASXY-TI2S'!S36+'ASXY-TI3S'!S36+ASZ!S36+'MBXY-TI1S'!S36+'MBXY-TI2S'!S36+MBZ!S36+'MSXY-TI1S'!S36+'MSXY-TI2S'!S36++'MSXY-TI3S'!S36+MSZ!S36+'DEC-U'!S36+DECR!S36+'DBH-U'!S36+DBHR!S36+AMIL!S36 -> 0.7243396633 | E36: ='DEC-OS'!T36+'DEC-OH'!T36+'DEC-OI'!T36+'DBH-OS'!T36+'DBH-OH'!T36+'DBH-OI'!T36+XCLH!T36+XCLA!T36+DRFR!T36+DSFS!T36+DSTG!T36+XYM1!T36+XYM2!T36+XYM3E!T36+XYM4E!T36+SAGE!T36+'ABXY-TI1S'!T36+'ABXY-TI2S'!T36+ABZ!T36+'ASXY-TI1S'!T36+'ASXY-TI2S'!T36+'ASXY-TI3S'!T36+ASZ!T36+'MBXY-TI1S'!T36+'MBXY-TI2S'!T36+MBZ!T36+'MSXY-TI1S'!T36+'MSXY-TI2S'!T36++'MSXY-TI3S'!T36+MSZ!T36+'DEC-U'!T36+DECR!T36+'DBH-U'!T36+DBHR!T36+AMIL!T36 -> -0.01479675116 | F36: ='DEC-OS'!U36+'DEC-OH'!U36+'DEC-OI'!U36+'DBH-OS'!U36+'DBH-OH'!U36+'DBH-OI'!U36+XCLH!U36+XCLA!U36+DRFR!U36+DSFS!U36+DSTG!U36+XYM1!U36+XYM2!U36+XYM3E!U36+XYM4E!U36+SAGE!U36+'ABXY-TI1S'!U36+'ABXY-TI2S'!U36+ABZ!U36+'ASXY-TI1S'!U36+'ASXY-TI2S'!U36+'ASXY-TI3S'!U36+ASZ!U36+'MBXY-TI1S'!U36+'MBXY-TI2S'!U36+MBZ!U36+'MSXY-TI1S'!U36+'MSXY-TI2S'!U36++'MSXY-TI3S'!U36+MSZ!U36+'DEC-U'!U36+DECR!U36+'DBH-U'!U36+DBHR!U36+AMIL!U36 -> -0.6760623785 | G36: ='DEC-OS'!V36+'DEC-OH'!V36+'DEC-OI'!V36+'DBH-OS'!V36+'DBH-OH'!V36+'DBH-OI'!V36+XCLH!V36+XCLA!V36+DRFR!V36+DSFS!V36+DSTG!V36+XYM1!V36+XYM2!V36+XYM3E!V36+XYM4E!V36+SAGE!V36+'ABXY-TI1S'!V36+'ABXY-TI2S'!V36+ABZ!V36+'ASXY-TI1S'!V36+'ASXY-TI2S'!V36+'ASXY-TI3S'!V36+ASZ!V36+'MBXY-TI1S'!V36+'MBXY-TI2S'!V36+MBZ!V36+'MSXY-TI1S'!V36+'MSXY-TI2S'!V36++'MSXY-TI3S'!V36+MSZ!V36+'DEC-U'!V36+DECR!V36+'DBH-U'!V36+DBHR!V36+AMIL!V36 -> 0.003011317031 | H36: 2.650668652 | I36: 2.933454347 | J36: 0.8594035789 | K36: -0.01347492558 | L36: 0.8468989761 | M36: -0.006814562048 | N36: =COS(Wellpath!$L36)*COS(Wellpath!$M36) -> 0.7844517474 | O36: =-SIN(Wellpath!$M36) -> 0 | P36: =SIN(Wellpath!$L36)*COS(Wellpath!$M36) -> 0.6201898548 | Q36: =COS(Wellpath!$L36)*SIN(Wellpath!$M36) -> 0 | R36: =COS(Wellpath!$M36) -> 1 | S36: =SIN(Wellpath!$L36)*SIN(Wellpath!$M36) -> 0 | T36: =-SIN(Wellpath!$L36) -> -0.6201898548 | U36: 0 | V36: =COS(Wellpath!$L36) -> 0.7844517474
A37: =Wellpath!E37 -> 990 | B37: ='DEC-OS'!Q37+'DEC-OH'!Q37+'DEC-OI'!Q37+'DBH-OS'!Q37+'DBH-OH'!Q37+'DBH-OI'!Q37+XCLH!Q37+XCLA!Q37+DRFR!Q37+DSFS!Q37+DSTG!Q37+XYM1!Q37+XYM2!Q37+XYM3E!Q37+XYM4E!Q37+SAGE!Q37+'ABXY-TI1S'!Q37+'ABXY-TI2S'!Q37+ABZ!Q37+'ASXY-TI1S'!Q37+'ASXY-TI2S'!Q37+'ASXY-TI3S'!Q37+ASZ!Q37+'MBXY-TI1S'!Q37+'MBXY-TI2S'!Q37+MBZ!Q37+'MSXY-TI1S'!Q37+'MSXY-TI2S'!Q37++'MSXY-TI3S'!Q37+MSZ!Q37+'DEC-U'!Q37+DECR!Q37+'DBH-U'!Q37+DBHR!Q37+AMIL!Q37 -> 3.006797994 | C37: ='DEC-OS'!R37+'DEC-OH'!R37+'DEC-OI'!R37+'DBH-OS'!R37+'DBH-OH'!R37+'DBH-OI'!R37+XCLH!R37+XCLA!R37+DRFR!R37+DSFS!R37+DSTG!R37+XYM1!R37+XYM2!R37+XYM3E!R37+XYM4E!R37+SAGE!R37+'ABXY-TI1S'!R37+'ABXY-TI2S'!R37+ABZ!R37+'ASXY-TI1S'!R37+'ASXY-TI2S'!R37+'ASXY-TI3S'!R37+ASZ!R37+'MBXY-TI1S'!R37+'MBXY-TI2S'!R37+MBZ!R37+'MSXY-TI1S'!R37+'MSXY-TI2S'!R37++'MSXY-TI3S'!R37+MSZ!R37+'DEC-U'!R37+DECR!R37+'DBH-U'!R37+DBHR!R37+AMIL!R37 -> 3.455239343 | D37: ='DEC-OS'!S37+'DEC-OH'!S37+'DEC-OI'!S37+'DBH-OS'!S37+'DBH-OH'!S37+'DBH-OI'!S37+XCLH!S37+XCLA!S37+DRFR!S37+DSFS!S37+DSTG!S37+XYM1!S37+XYM2!S37+XYM3E!S37+XYM4E!S37+SAGE!S37+'ABXY-TI1S'!S37+'ABXY-TI2S'!S37+ABZ!S37+'ASXY-TI1S'!S37+'ASXY-TI2S'!S37+'ASXY-TI3S'!S37+ASZ!S37+'MBXY-TI1S'!S37+'MBXY-TI2S'!S37+MBZ!S37+'MSXY-TI1S'!S37+'MSXY-TI2S'!S37++'MSXY-TI3S'!S37+MSZ!S37+'DEC-U'!S37+DECR!S37+'DBH-U'!S37+DBHR!S37+AMIL!S37 -> 0.8224463355 | E37: ='DEC-OS'!T37+'DEC-OH'!T37+'DEC-OI'!T37+'DBH-OS'!T37+'DBH-OH'!T37+'DBH-OI'!T37+XCLH!T37+XCLA!T37+DRFR!T37+DSFS!T37+DSTG!T37+XYM1!T37+XYM2!T37+XYM3E!T37+XYM4E!T37+SAGE!T37+'ABXY-TI1S'!T37+'ABXY-TI2S'!T37+ABZ!T37+'ASXY-TI1S'!T37+'ASXY-TI2S'!T37+'ASXY-TI3S'!T37+ASZ!T37+'MBXY-TI1S'!T37+'MBXY-TI2S'!T37+MBZ!T37+'MSXY-TI1S'!T37+'MSXY-TI2S'!T37++'MSXY-TI3S'!T37+MSZ!T37+'DEC-U'!T37+DECR!T37+'DBH-U'!T37+DBHR!T37+AMIL!T37 -> -0.0171995195 | F37: ='DEC-OS'!U37+'DEC-OH'!U37+'DEC-OI'!U37+'DBH-OS'!U37+'DBH-OH'!U37+'DBH-OI'!U37+XCLH!U37+XCLA!U37+DRFR!U37+DSFS!U37+DSTG!U37+XYM1!U37+XYM2!U37+XYM3E!U37+XYM4E!U37+SAGE!U37+'ABXY-TI1S'!U37+'ABXY-TI2S'!U37+ABZ!U37+'ASXY-TI1S'!U37+'ASXY-TI2S'!U37+'ASXY-TI3S'!U37+ASZ!U37+'MBXY-TI1S'!U37+'MBXY-TI2S'!U37+MBZ!U37+'MSXY-TI1S'!U37+'MSXY-TI2S'!U37++'MSXY-TI3S'!U37+MSZ!U37+'DEC-U'!U37+DECR!U37+'DBH-U'!U37+DBHR!U37+AMIL!U37 -> -0.8055095139 | G37: ='DEC-OS'!V37+'DEC-OH'!V37+'DEC-OI'!V37+'DBH-OS'!V37+'DBH-OH'!V37+'DBH-OI'!V37+XCLH!V37+XCLA!V37+DRFR!V37+DSFS!V37+DSTG!V37+XYM1!V37+XYM2!V37+XYM3E!V37+XYM4E!V37+SAGE!V37+'ABXY-TI1S'!V37+'ABXY-TI2S'!V37+ABZ!V37+'ASXY-TI1S'!V37+'ASXY-TI2S'!V37+'ASXY-TI3S'!V37+ASZ!V37+'MBXY-TI1S'!V37+'MBXY-TI2S'!V37+MBZ!V37+'MSXY-TI1S'!V37+'MSXY-TI2S'!V37++'MSXY-TI3S'!V37+MSZ!V37+'DEC-U'!V37+DECR!V37+'DBH-U'!V37+DBHR!V37+AMIL!V37 -> 0.003907551937 | H37: 2.87003004 | I37: 3.455239343 | J37: 0.9592142892 | K37: -0.01556888836 | L37: 0.9637890902 | M37: -0.00828867591 | N37: =COS(Wellpath!$L37)*COS(Wellpath!$M37) -> 0.7566528217 | O37: =-SIN(Wellpath!$M37) -> 0 | P37: =SIN(Wellpath!$L37)*COS(Wellpath!$M37) -> 0.6538168761 | Q37: =COS(Wellpath!$L37)*SIN(Wellpath!$M37) -> 0 | R37: =COS(Wellpath!$M37) -> 1 | S37: =SIN(Wellpath!$L37)*SIN(Wellpath!$M37) -> 0 | T37: =-SIN(Wellpath!$L37) -> -0.6538168761 | U37: 0 | V37: =COS(Wellpath!$L37) -> 0.7566528217
A38: =Wellpath!E38 -> 1020 | B38: ='DEC-OS'!Q38+'DEC-OH'!Q38+'DEC-OI'!Q38+'DBH-OS'!Q38+'DBH-OH'!Q38+'DBH-OI'!Q38+XCLH!Q38+XCLA!Q38+DRFR!Q38+DSFS!Q38+DSTG!Q38+XYM1!Q38+XYM2!Q38+XYM3E!Q38+XYM4E!Q38+SAGE!Q38+'ABXY-TI1S'!Q38+'ABXY-TI2S'!Q38+ABZ!Q38+'ASXY-TI1S'!Q38+'ASXY-TI2S'!Q38+'ASXY-TI3S'!Q38+ASZ!Q38+'MBXY-TI1S'!Q38+'MBXY-TI2S'!Q38+MBZ!Q38+'MSXY-TI1S'!Q38+'MSXY-TI2S'!Q38++'MSXY-TI3S'!Q38+MSZ!Q38+'DEC-U'!Q38+DECR!Q38+'DBH-U'!Q38+DBHR!Q38+AMIL!Q38 -> 3.232677193 | C38: ='DEC-OS'!R38+'DEC-OH'!R38+'DEC-OI'!R38+'DBH-OS'!R38+'DBH-OH'!R38+'DBH-OI'!R38+XCLH!R38+XCLA!R38+DRFR!R38+DSFS!R38+DSTG!R38+XYM1!R38+XYM2!R38+XYM3E!R38+XYM4E!R38+SAGE!R38+'ABXY-TI1S'!R38+'ABXY-TI2S'!R38+ABZ!R38+'ASXY-TI1S'!R38+'ASXY-TI2S'!R38+'ASXY-TI3S'!R38+ASZ!R38+'MBXY-TI1S'!R38+'MBXY-TI2S'!R38+MBZ!R38+'MSXY-TI1S'!R38+'MSXY-TI2S'!R38++'MSXY-TI3S'!R38+MSZ!R38+'DEC-U'!R38+DECR!R38+'DBH-U'!R38+DBHR!R38+AMIL!R38 -> 4.06591302 | D38: ='DEC-OS'!S38+'DEC-OH'!S38+'DEC-OI'!S38+'DBH-OS'!S38+'DBH-OH'!S38+'DBH-OI'!S38+XCLH!S38+XCLA!S38+DRFR!S38+DSFS!S38+DSTG!S38+XYM1!S38+XYM2!S38+XYM3E!S38+XYM4E!S38+SAGE!S38+'ABXY-TI1S'!S38+'ABXY-TI2S'!S38+ABZ!S38+'ASXY-TI1S'!S38+'ASXY-TI2S'!S38+'ASXY-TI3S'!S38+ASZ!S38+'MBXY-TI1S'!S38+'MBXY-TI2S'!S38+MBZ!S38+'MSXY-TI1S'!S38+'MSXY-TI2S'!S38++'MSXY-TI3S'!S38+MSZ!S38+'DEC-U'!S38+DECR!S38+'DBH-U'!S38+DBHR!S38+AMIL!S38 -> 0.9357277712 | E38: ='DEC-OS'!T38+'DEC-OH'!T38+'DEC-OI'!T38+'DBH-OS'!T38+'DBH-OH'!T38+'DBH-OI'!T38+XCLH!T38+XCLA!T38+DRFR!T38+DSFS!T38+DSTG!T38+XYM1!T38+XYM2!T38+XYM3E!T38+XYM4E!T38+SAGE!T38+'ABXY-TI1S'!T38+'ABXY-TI2S'!T38+ABZ!T38+'ASXY-TI1S'!T38+'ASXY-TI2S'!T38+'ASXY-TI3S'!T38+ASZ!T38+'MBXY-TI1S'!T38+'MBXY-TI2S'!T38+MBZ!T38+'MSXY-TI1S'!T38+'MSXY-TI2S'!T38++'MSXY-TI3S'!T38+MSZ!T38+'DEC-U'!T38+DECR!T38+'DBH-U'!T38+DBHR!T38+AMIL!T38 -> -0.01978825708 | F38: ='DEC-OS'!U38+'DEC-OH'!U38+'DEC-OI'!U38+'DBH-OS'!U38+'DBH-OH'!U38+'DBH-OI'!U38+XCLH!U38+XCLA!U38+DRFR!U38+DSFS!U38+DSTG!U38+XYM1!U38+XYM2!U38+XYM3E!U38+XYM4E!U38+SAGE!U38+'ABXY-TI1S'!U38+'ABXY-TI2S'!U38+ABZ!U38+'ASXY-TI1S'!U38+'ASXY-TI2S'!U38+'ASXY-TI3S'!U38+ASZ!U38+'MBXY-TI1S'!U38+'MBXY-TI2S'!U38+MBZ!U38+'MSXY-TI1S'!U38+'MSXY-TI2S'!U38++'MSXY-TI3S'!U38+MSZ!U38+'DEC-U'!U38+DECR!U38+'DBH-U'!U38+DBHR!U38+AMIL!U38 -> -0.9487896906 | G38: ='DEC-OS'!V38+'DEC-OH'!V38+'DEC-OI'!V38+'DBH-OS'!V38+'DBH-OH'!V38+'DBH-OI'!V38+XCLH!V38+XCLA!V38+DRFR!V38+DSFS!V38+DSTG!V38+XYM1!V38+XYM2!V38+XYM3E!V38+XYM4E!V38+SAGE!V38+'ABXY-TI1S'!V38+'ABXY-TI2S'!V38+ABZ!V38+'ASXY-TI1S'!V38+'ASXY-TI2S'!V38+'ASXY-TI3S'!V38+ASZ!V38+'MBXY-TI1S'!V38+'MBXY-TI2S'!V38+MBZ!V38+'MSXY-TI1S'!V38+'MSXY-TI2S'!V38++'MSXY-TI3S'!V38+MSZ!V38+'DEC-U'!V38+DECR!V38+'DBH-U'!V38+DBHR!V38+AMIL!V38 -> 0.004980498337 | H38: 3.098291815 | I38: 4.06591302 | J38: 1.070113149 | K38: -0.01781186118 | L38: 1.091246472 | M38: -0.0099558065 | N38: =COS(Wellpath!$L38)*COS(Wellpath!$M38) -> 0.7274135643 | O38: =-SIN(Wellpath!$M38) -> 0 | P38: =SIN(Wellpath!$L38)*COS(Wellpath!$M38) -> 0.6861993198 | Q38: =COS(Wellpath!$L38)*SIN(Wellpath!$M38) -> 0 | R38: =COS(Wellpath!$M38) -> 1 | S38: =SIN(Wellpath!$L38)*SIN(Wellpath!$M38) -> 0 | T38: =-SIN(Wellpath!$L38) -> -0.6861993198 | U38: 0 | V38: =COS(Wellpath!$L38) -> 0.7274135643
A39: =Wellpath!E39 -> 1050 | B39: ='DEC-OS'!Q39+'DEC-OH'!Q39+'DEC-OI'!Q39+'DBH-OS'!Q39+'DBH-OH'!Q39+'DBH-OI'!Q39+XCLH!Q39+XCLA!Q39+DRFR!Q39+DSFS!Q39+DSTG!Q39+XYM1!Q39+XYM2!Q39+XYM3E!Q39+XYM4E!Q39+SAGE!Q39+'ABXY-TI1S'!Q39+'ABXY-TI2S'!Q39+ABZ!Q39+'ASXY-TI1S'!Q39+'ASXY-TI2S'!Q39+'ASXY-TI3S'!Q39+ASZ!Q39+'MBXY-TI1S'!Q39+'MBXY-TI2S'!Q39+MBZ!Q39+'MSXY-TI1S'!Q39+'MSXY-TI2S'!Q39++'MSXY-TI3S'!Q39+MSZ!Q39+'DEC-U'!Q39+DECR!Q39+'DBH-U'!Q39+DBHR!Q39+AMIL!Q39 -> 3.461907949 | C39: ='DEC-OS'!R39+'DEC-OH'!R39+'DEC-OI'!R39+'DBH-OS'!R39+'DBH-OH'!R39+'DBH-OI'!R39+XCLH!R39+XCLA!R39+DRFR!R39+DSFS!R39+DSTG!R39+XYM1!R39+XYM2!R39+XYM3E!R39+XYM4E!R39+SAGE!R39+'ABXY-TI1S'!R39+'ABXY-TI2S'!R39+ABZ!R39+'ASXY-TI1S'!R39+'ASXY-TI2S'!R39+'ASXY-TI3S'!R39+ASZ!R39+'MBXY-TI1S'!R39+'MBXY-TI2S'!R39+MBZ!R39+'MSXY-TI1S'!R39+'MSXY-TI2S'!R39++'MSXY-TI3S'!R39+MSZ!R39+'DEC-U'!R39+DECR!R39+'DBH-U'!R39+DBHR!R39+AMIL!R39 -> 4.774226009 | D39: ='DEC-OS'!S39+'DEC-OH'!S39+'DEC-OI'!S39+'DBH-OS'!S39+'DBH-OH'!S39+'DBH-OI'!S39+XCLH!S39+XCLA!S39+DRFR!S39+DSFS!S39+DSTG!S39+XYM1!S39+XYM2!S39+XYM3E!S39+XYM4E!S39+SAGE!S39+'ABXY-TI1S'!S39+'ABXY-TI2S'!S39+ABZ!S39+'ASXY-TI1S'!S39+'ASXY-TI2S'!S39+'ASXY-TI3S'!S39+ASZ!S39+'MBXY-TI1S'!S39+'MBXY-TI2S'!S39+MBZ!S39+'MSXY-TI1S'!S39+'MSXY-TI2S'!S39++'MSXY-TI3S'!S39+MSZ!S39+'DEC-U'!S39+DECR!S39+'DBH-U'!S39+DBHR!S39+AMIL!S39 -> 1.06574845 | E39: ='DEC-OS'!T39+'DEC-OH'!T39+'DEC-OI'!T39+'DBH-OS'!T39+'DBH-OH'!T39+'DBH-OI'!T39+XCLH!T39+XCLA!T39+DRFR!T39+DSFS!T39+DSTG!T39+XYM1!T39+XYM2!T39+XYM3E!T39+XYM4E!T39+SAGE!T39+'ABXY-TI1S'!T39+'ABXY-TI2S'!T39+ABZ!T39+'ASXY-TI1S'!T39+'ASXY-TI2S'!T39+'ASXY-TI3S'!T39+ASZ!T39+'MBXY-TI1S'!T39+'MBXY-TI2S'!T39+MBZ!T39+'MSXY-TI1S'!T39+'MSXY-TI2S'!T39++'MSXY-TI3S'!T39+MSZ!T39+'DEC-U'!T39+DECR!T39+'DBH-U'!T39+DBHR!T39+AMIL!T39 -> -0.02254958427 | F39: ='DEC-OS'!U39+'DEC-OH'!U39+'DEC-OI'!U39+'DBH-OS'!U39+'DBH-OH'!U39+'DBH-OI'!U39+XCLH!U39+XCLA!U39+DRFR!U39+DSFS!U39+DSTG!U39+XYM1!U39+XYM2!U39+XYM3E!U39+XYM4E!U39+SAGE!U39+'ABXY-TI1S'!U39+'ABXY-TI2S'!U39+ABZ!U39+'ASXY-TI1S'!U39+'ASXY-TI2S'!U39+'ASXY-TI3S'!U39+ASZ!U39+'MBXY-TI1S'!U39+'MBXY-TI2S'!U39+MBZ!U39+'MSXY-TI1S'!U39+'MSXY-TI2S'!U39++'MSXY-TI3S'!U39+MSZ!U39+'DEC-U'!U39+DECR!U39+'DBH-U'!U39+DBHR!U39+AMIL!U39 -> -1.106005731 | G39: ='DEC-OS'!V39+'DEC-OH'!V39+'DEC-OI'!V39+'DBH-OS'!V39+'DBH-OH'!V39+'DBH-OI'!V39+XCLH!V39+XCLA!V39+DRFR!V39+DSFS!V39+DSTG!V39+XYM1!V39+XYM2!V39+XYM3E!V39+XYM4E!V39+SAGE!V39+'ABXY-TI1S'!V39+'ABXY-TI2S'!V39+ABZ!V39+'ASXY-TI1S'!V39+'ASXY-TI2S'!V39+'ASXY-TI3S'!V39+ASZ!V39+'MBXY-TI1S'!V39+'MBXY-TI2S'!V39+MBZ!V39+'MSXY-TI1S'!V39+'MSXY-TI2S'!V39++'MSXY-TI3S'!V39+MSZ!V39+'DEC-U'!V39+DECR!V39+'DBH-U'!V39+DBHR!V39+AMIL!V39 -> 0.006244740335 | H39: 3.334663302 | I39: 4.774226009 | J39: 1.192993097 | K39: -0.02019151609 | L39: 1.229616179 | M39: -0.011822995 | N39: =COS(Wellpath!$L39)*COS(Wellpath!$M39) -> 0.6967896338 | O39: =-SIN(Wellpath!$M39) -> 0 | P39: =SIN(Wellpath!$L39)*COS(Wellpath!$M39) -> 0.7172755442 | Q39: =COS(Wellpath!$L39)*SIN(Wellpath!$M39) -> 0 | R39: =COS(Wellpath!$M39) -> 1 | S39: =SIN(Wellpath!$L39)*SIN(Wellpath!$M39) -> 0 | T39: =-SIN(Wellpath!$L39) -> -0.7172755442 | U39: 0 | V39: =COS(Wellpath!$L39) -> 0.6967896338
A40: =Wellpath!E40 -> 1080 | B40: ='DEC-OS'!Q40+'DEC-OH'!Q40+'DEC-OI'!Q40+'DBH-OS'!Q40+'DBH-OH'!Q40+'DBH-OI'!Q40+XCLH!Q40+XCLA!Q40+DRFR!Q40+DSFS!Q40+DSTG!Q40+XYM1!Q40+XYM2!Q40+XYM3E!Q40+XYM4E!Q40+SAGE!Q40+'ABXY-TI1S'!Q40+'ABXY-TI2S'!Q40+ABZ!Q40+'ASXY-TI1S'!Q40+'ASXY-TI2S'!Q40+'ASXY-TI3S'!Q40+ASZ!Q40+'MBXY-TI1S'!Q40+'MBXY-TI2S'!Q40+MBZ!Q40+'MSXY-TI1S'!Q40+'MSXY-TI2S'!Q40++'MSXY-TI3S'!Q40+MSZ!Q40+'DEC-U'!Q40+DECR!Q40+'DBH-U'!Q40+DBHR!Q40+AMIL!Q40 -> 3.692921679 | C40: ='DEC-OS'!R40+'DEC-OH'!R40+'DEC-OI'!R40+'DBH-OS'!R40+'DBH-OH'!R40+'DBH-OI'!R40+XCLH!R40+XCLA!R40+DRFR!R40+DSFS!R40+DSTG!R40+XYM1!R40+XYM2!R40+XYM3E!R40+XYM4E!R40+SAGE!R40+'ABXY-TI1S'!R40+'ABXY-TI2S'!R40+ABZ!R40+'ASXY-TI1S'!R40+'ASXY-TI2S'!R40+'ASXY-TI3S'!R40+ASZ!R40+'MBXY-TI1S'!R40+'MBXY-TI2S'!R40+MBZ!R40+'MSXY-TI1S'!R40+'MSXY-TI2S'!R40++'MSXY-TI3S'!R40+MSZ!R40+'DEC-U'!R40+DECR!R40+'DBH-U'!R40+DBHR!R40+AMIL!R40 -> 5.588845138 | D40: ='DEC-OS'!S40+'DEC-OH'!S40+'DEC-OI'!S40+'DBH-OS'!S40+'DBH-OH'!S40+'DBH-OI'!S40+XCLH!S40+XCLA!S40+DRFR!S40+DSFS!S40+DSTG!S40+XYM1!S40+XYM2!S40+XYM3E!S40+XYM4E!S40+SAGE!S40+'ABXY-TI1S'!S40+'ABXY-TI2S'!S40+ABZ!S40+'ASXY-TI1S'!S40+'ASXY-TI2S'!S40+'ASXY-TI3S'!S40+ASZ!S40+'MBXY-TI1S'!S40+'MBXY-TI2S'!S40+MBZ!S40+'MSXY-TI1S'!S40+'MSXY-TI2S'!S40++'MSXY-TI3S'!S40+MSZ!S40+'DEC-U'!S40+DECR!S40+'DBH-U'!S40+DBHR!S40+AMIL!S40 -> 1.214087179 | E40: ='DEC-OS'!T40+'DEC-OH'!T40+'DEC-OI'!T40+'DBH-OS'!T40+'DBH-OH'!T40+'DBH-OI'!T40+XCLH!T40+XCLA!T40+DRFR!T40+DSFS!T40+DSTG!T40+XYM1!T40+XYM2!T40+XYM3E!T40+XYM4E!T40+SAGE!T40+'ABXY-TI1S'!T40+'ABXY-TI2S'!T40+ABZ!T40+'ASXY-TI1S'!T40+'ASXY-TI2S'!T40+'ASXY-TI3S'!T40+ASZ!T40+'MBXY-TI1S'!T40+'MBXY-TI2S'!T40+MBZ!T40+'MSXY-TI1S'!T40+'MSXY-TI2S'!T40++'MSXY-TI3S'!T40+MSZ!T40+'DEC-U'!T40+DECR!T40+'DBH-U'!T40+DBHR!T40+AMIL!T40 -> -0.02546578752 | F40: ='DEC-OS'!U40+'DEC-OH'!U40+'DEC-OI'!U40+'DBH-OS'!U40+'DBH-OH'!U40+'DBH-OI'!U40+XCLH!U40+XCLA!U40+DRFR!U40+DSFS!U40+DSTG!U40+XYM1!U40+XYM2!U40+XYM3E!U40+XYM4E!U40+SAGE!U40+'ABXY-TI1S'!U40+'ABXY-TI2S'!U40+ABZ!U40+'ASXY-TI1S'!U40+'ASXY-TI2S'!U40+'ASXY-TI3S'!U40+ASZ!U40+'MBXY-TI1S'!U40+'MBXY-TI2S'!U40+MBZ!U40+'MSXY-TI1S'!U40+'MSXY-TI2S'!U40++'MSXY-TI3S'!U40+MSZ!U40+'DEC-U'!U40+DECR!U40+'DBH-U'!U40+DBHR!U40+AMIL!U40 -> -1.277098658 | G40: ='DEC-OS'!V40+'DEC-OH'!V40+'DEC-OI'!V40+'DBH-OS'!V40+'DBH-OH'!V40+'DBH-OI'!V40+XCLH!V40+XCLA!V40+DRFR!V40+DSFS!V40+DSTG!V40+XYM1!V40+XYM2!V40+XYM3E!V40+XYM4E!V40+SAGE!V40+'ABXY-TI1S'!V40+'ABXY-TI2S'!V40+ABZ!V40+'ASXY-TI1S'!V40+'ASXY-TI2S'!V40+'ASXY-TI3S'!V40+ASZ!V40+'MBXY-TI1S'!V40+'MBXY-TI2S'!V40+MBZ!V40+'MSXY-TI1S'!V40+'MSXY-TI2S'!V40++'MSXY-TI3S'!V40+MSZ!V40+'DEC-U'!V40+DECR!V40+'DBH-U'!V40+DBHR!V40+AMIL!V40 -> 0.007712289666 | H40: 3.578240723 | I40: 5.588845138 | J40: 1.328768135 | K40: -0.02269163242 | L40: 1.379167999 | M40: -0.01389516333 | N40: =COS(Wellpath!$L40)*COS(Wellpath!$M40) -> 0.6648393246 | O40: =-SIN(Wellpath!$M40) -> 0 | P40: =SIN(Wellpath!$L40)*COS(Wellpath!$M40) -> 0.7469863937 | Q40: =COS(Wellpath!$L40)*SIN(Wellpath!$M40) -> 0 | R40: =COS(Wellpath!$M40) -> 1 | S40: =SIN(Wellpath!$L40)*SIN(Wellpath!$M40) -> 0 | T40: =-SIN(Wellpath!$L40) -> -0.7469863937 | U40: 0 | V40: =COS(Wellpath!$L40) -> 0.6648393246
A41: =Wellpath!E41 -> 1100 | B41: ='DEC-OS'!Q41+'DEC-OH'!Q41+'DEC-OI'!Q41+'DBH-OS'!Q41+'DBH-OH'!Q41+'DBH-OI'!Q41+XCLH!Q41+XCLA!Q41+DRFR!Q41+DSFS!Q41+DSTG!Q41+XYM1!Q41+XYM2!Q41+XYM3E!Q41+XYM4E!Q41+SAGE!Q41+'ABXY-TI1S'!Q41+'ABXY-TI2S'!Q41+ABZ!Q41+'ASXY-TI1S'!Q41+'ASXY-TI2S'!Q41+'ASXY-TI3S'!Q41+ASZ!Q41+'MBXY-TI1S'!Q41+'MBXY-TI2S'!Q41+MBZ!Q41+'MSXY-TI1S'!Q41+'MSXY-TI2S'!Q41++'MSXY-TI3S'!Q41+MSZ!Q41+'DEC-U'!Q41+DECR!Q41+'DBH-U'!Q41+DBHR!Q41+AMIL!Q41 -> 3.838457468 | C41: ='DEC-OS'!R41+'DEC-OH'!R41+'DEC-OI'!R41+'DBH-OS'!R41+'DBH-OH'!R41+'DBH-OI'!R41+XCLH!R41+XCLA!R41+DRFR!R41+DSFS!R41+DSTG!R41+XYM1!R41+XYM2!R41+XYM3E!R41+XYM4E!R41+SAGE!R41+'ABXY-TI1S'!R41+'ABXY-TI2S'!R41+ABZ!R41+'ASXY-TI1S'!R41+'ASXY-TI2S'!R41+'ASXY-TI3S'!R41+ASZ!R41+'MBXY-TI1S'!R41+'MBXY-TI2S'!R41+MBZ!R41+'MSXY-TI1S'!R41+'MSXY-TI2S'!R41++'MSXY-TI3S'!R41+MSZ!R41+'DEC-U'!R41+DECR!R41+'DBH-U'!R41+DBHR!R41+AMIL!R41 -> 6.190031751 | D41: ='DEC-OS'!S41+'DEC-OH'!S41+'DEC-OI'!S41+'DBH-OS'!S41+'DBH-OH'!S41+'DBH-OI'!S41+XCLH!S41+XCLA!S41+DRFR!S41+DSFS!S41+DSTG!S41+XYM1!S41+XYM2!S41+XYM3E!S41+XYM4E!S41+SAGE!S41+'ABXY-TI1S'!S41+'ABXY-TI2S'!S41+ABZ!S41+'ASXY-TI1S'!S41+'ASXY-TI2S'!S41+'ASXY-TI3S'!S41+ASZ!S41+'MBXY-TI1S'!S41+'MBXY-TI2S'!S41+MBZ!S41+'MSXY-TI1S'!S41+'MSXY-TI2S'!S41++'MSXY-TI3S'!S41+MSZ!S41+'DEC-U'!S41+DECR!S41+'DBH-U'!S41+DBHR!S41+AMIL!S41 -> 1.309041222 | E41: ='DEC-OS'!T41+'DEC-OH'!T41+'DEC-OI'!T41+'DBH-OS'!T41+'DBH-OH'!T41+'DBH-OI'!T41+XCLH!T41+XCLA!T41+DRFR!T41+DSFS!T41+DSTG!T41+XYM1!T41+XYM2!T41+XYM3E!T41+XYM4E!T41+SAGE!T41+'ABXY-TI1S'!T41+'ABXY-TI2S'!T41+ABZ!T41+'ASXY-TI1S'!T41+'ASXY-TI2S'!T41+'ASXY-TI3S'!T41+ASZ!T41+'MBXY-TI1S'!T41+'MBXY-TI2S'!T41+MBZ!T41+'MSXY-TI1S'!T41+'MSXY-TI2S'!T41++'MSXY-TI3S'!T41+MSZ!T41+'DEC-U'!T41+DECR!T41+'DBH-U'!T41+DBHR!T41+AMIL!T41 -> -0.02748593417 | F41: ='DEC-OS'!U41+'DEC-OH'!U41+'DEC-OI'!U41+'DBH-OS'!U41+'DBH-OH'!U41+'DBH-OI'!U41+XCLH!U41+XCLA!U41+DRFR!U41+DSFS!U41+DSTG!U41+XYM1!U41+XYM2!U41+XYM3E!U41+XYM4E!U41+SAGE!U41+'ABXY-TI1S'!U41+'ABXY-TI2S'!U41+ABZ!U41+'ASXY-TI1S'!U41+'ASXY-TI2S'!U41+'ASXY-TI3S'!U41+ASZ!U41+'MBXY-TI1S'!U41+'MBXY-TI2S'!U41+MBZ!U41+'MSXY-TI1S'!U41+'MSXY-TI2S'!U41++'MSXY-TI3S'!U41+MSZ!U41+'DEC-U'!U41+DECR!U41+'DBH-U'!U41+DBHR!U41+AMIL!U41 -> -1.387293962 | G41: ='DEC-OS'!V41+'DEC-OH'!V41+'DEC-OI'!V41+'DBH-OS'!V41+'DBH-OH'!V41+'DBH-OI'!V41+XCLH!V41+XCLA!V41+DRFR!V41+DSFS!V41+DSTG!V41+XYM1!V41+XYM2!V41+XYM3E!V41+XYM4E!V41+SAGE!V41+'ABXY-TI1S'!V41+'ABXY-TI2S'!V41+ABZ!V41+'ASXY-TI1S'!V41+'ASXY-TI2S'!V41+'ASXY-TI3S'!V41+ASZ!V41+'MBXY-TI1S'!V41+'MBXY-TI2S'!V41+MBZ!V41+'MSXY-TI1S'!V41+'MSXY-TI2S'!V41++'MSXY-TI3S'!V41+MSZ!V41+'DEC-U'!V41+DECR!V41+'DBH-U'!V41+DBHR!V41+AMIL!V41 -> 0.008808477998 | H41: 3.720352934 | I41: 6.190031751 | J41: 1.427145756 | K41: -0.02441530355 | L41: 1.486395433 | M41: -0.01539346662 | N41: =COS(Wellpath!$L41)*COS(Wellpath!$M41) -> 0.6427876097 | O41: =-SIN(Wellpath!$M41) -> 0 | P41: =SIN(Wellpath!$L41)*COS(Wellpath!$M41) -> 0.7660444431 | Q41: =COS(Wellpath!$L41)*SIN(Wellpath!$M41) -> 0 | R41: =COS(Wellpath!$M41) -> 1 | S41: =SIN(Wellpath!$L41)*SIN(Wellpath!$M41) -> 0 | T41: =-SIN(Wellpath!$L41) -> -0.7660444431 | U41: 0 | V41: =COS(Wellpath!$L41) -> 0.6427876097
A42: =Wellpath!E42 -> 1110 | B42: ='DEC-OS'!Q42+'DEC-OH'!Q42+'DEC-OI'!Q42+'DBH-OS'!Q42+'DBH-OH'!Q42+'DBH-OI'!Q42+XCLH!Q42+XCLA!Q42+DRFR!Q42+DSFS!Q42+DSTG!Q42+XYM1!Q42+XYM2!Q42+XYM3E!Q42+XYM4E!Q42+SAGE!Q42+'ABXY-TI1S'!Q42+'ABXY-TI2S'!Q42+ABZ!Q42+'ASXY-TI1S'!Q42+'ASXY-TI2S'!Q42+'ASXY-TI3S'!Q42+ASZ!Q42+'MBXY-TI1S'!Q42+'MBXY-TI2S'!Q42+MBZ!Q42+'MSXY-TI1S'!Q42+'MSXY-TI2S'!Q42++'MSXY-TI3S'!Q42+MSZ!Q42+'DEC-U'!Q42+DECR!Q42+'DBH-U'!Q42+DBHR!Q42+AMIL!Q42 -> 3.909063521 | C42: ='DEC-OS'!R42+'DEC-OH'!R42+'DEC-OI'!R42+'DBH-OS'!R42+'DBH-OH'!R42+'DBH-OI'!R42+XCLH!R42+XCLA!R42+DRFR!R42+DSFS!R42+DSTG!R42+XYM1!R42+XYM2!R42+XYM3E!R42+XYM4E!R42+SAGE!R42+'ABXY-TI1S'!R42+'ABXY-TI2S'!R42+ABZ!R42+'ASXY-TI1S'!R42+'ASXY-TI2S'!R42+'ASXY-TI3S'!R42+ASZ!R42+'MBXY-TI1S'!R42+'MBXY-TI2S'!R42+MBZ!R42+'MSXY-TI1S'!R42+'MSXY-TI2S'!R42++'MSXY-TI3S'!R42+MSZ!R42+'DEC-U'!R42+DECR!R42+'DBH-U'!R42+DBHR!R42+AMIL!R42 -> 6.506290603 | D42: ='DEC-OS'!S42+'DEC-OH'!S42+'DEC-OI'!S42+'DBH-OS'!S42+'DBH-OH'!S42+'DBH-OI'!S42+XCLH!S42+XCLA!S42+DRFR!S42+DSFS!S42+DSTG!S42+XYM1!S42+XYM2!S42+XYM3E!S42+XYM4E!S42+SAGE!S42+'ABXY-TI1S'!S42+'ABXY-TI2S'!S42+ABZ!S42+'ASXY-TI1S'!S42+'ASXY-TI2S'!S42+'ASXY-TI3S'!S42+ASZ!S42+'MBXY-TI1S'!S42+'MBXY-TI2S'!S42+MBZ!S42+'MSXY-TI1S'!S42+'MSXY-TI2S'!S42++'MSXY-TI3S'!S42+MSZ!S42+'DEC-U'!S42+DECR!S42+'DBH-U'!S42+DBHR!S42+AMIL!S42 -> 1.356377649 | E42: ='DEC-OS'!T42+'DEC-OH'!T42+'DEC-OI'!T42+'DBH-OS'!T42+'DBH-OH'!T42+'DBH-OI'!T42+XCLH!T42+XCLA!T42+DRFR!T42+DSFS!T42+DSTG!T42+XYM1!T42+XYM2!T42+XYM3E!T42+XYM4E!T42+SAGE!T42+'ABXY-TI1S'!T42+'ABXY-TI2S'!T42+ABZ!T42+'ASXY-TI1S'!T42+'ASXY-TI2S'!T42+'ASXY-TI3S'!T42+ASZ!T42+'MBXY-TI1S'!T42+'MBXY-TI2S'!T42+MBZ!T42+'MSXY-TI1S'!T42+'MSXY-TI2S'!T42++'MSXY-TI3S'!T42+MSZ!T42+'DEC-U'!T42+DECR!T42+'DBH-U'!T42+DBHR!T42+AMIL!T42 -> -0.02851813508 | F42: ='DEC-OS'!U42+'DEC-OH'!U42+'DEC-OI'!U42+'DBH-OS'!U42+'DBH-OH'!U42+'DBH-OI'!U42+XCLH!U42+XCLA!U42+DRFR!U42+DSFS!U42+DSTG!U42+XYM1!U42+XYM2!U42+XYM3E!U42+XYM4E!U42+SAGE!U42+'ABXY-TI1S'!U42+'ABXY-TI2S'!U42+ABZ!U42+'ASXY-TI1S'!U42+'ASXY-TI2S'!U42+'ASXY-TI3S'!U42+ASZ!U42+'MBXY-TI1S'!U42+'MBXY-TI2S'!U42+MBZ!U42+'MSXY-TI1S'!U42+'MSXY-TI2S'!U42++'MSXY-TI3S'!U42+MSZ!U42+'DEC-U'!U42+DECR!U42+'DBH-U'!U42+DBHR!U42+AMIL!U42 -> -1.441630309 | G42: ='DEC-OS'!V42+'DEC-OH'!V42+'DEC-OI'!V42+'DBH-OS'!V42+'DBH-OH'!V42+'DBH-OI'!V42+XCLH!V42+XCLA!V42+DRFR!V42+DSFS!V42+DSTG!V42+XYM1!V42+XYM2!V42+XYM3E!V42+XYM4E!V42+SAGE!V42+'ABXY-TI1S'!V42+'ABXY-TI2S'!V42+ABZ!V42+'ASXY-TI1S'!V42+'ASXY-TI2S'!V42+'ASXY-TI3S'!V42+ASZ!V42+'MBXY-TI1S'!V42+'MBXY-TI2S'!V42+MBZ!V42+'MSXY-TI1S'!V42+'MSXY-TI2S'!V42++'MSXY-TI3S'!V42+MSZ!V42+'DEC-U'!V42+DECR!V42+'DBH-U'!V42+DBHR!V42+AMIL!V42 -> 0.009390527641 | H42: 3.830814665 | I42: 6.506290603 | J42: 1.434626505 | K42: -0.0255246654 | L42: 1.507288895 | M42: -0.01581004409 | N42: =COS(Wellpath!$L42)*COS(Wellpath!$M42) -> 0.6427876097 | O42: =-SIN(Wellpath!$M42) -> 0 | P42: =SIN(Wellpath!$L42)*COS(Wellpath!$M42) -> 0.7660444431 | Q42: =COS(Wellpath!$L42)*SIN(Wellpath!$M42) -> 0 | R42: =COS(Wellpath!$M42) -> 1 | S42: =SIN(Wellpath!$L42)*SIN(Wellpath!$M42) -> 0 | T42: =-SIN(Wellpath!$L42) -> -0.7660444431 | U42: 0 | V42: =COS(Wellpath!$L42) -> 0.6427876097
A43: =Wellpath!E43 -> 1140 | B43: ='DEC-OS'!Q43+'DEC-OH'!Q43+'DEC-OI'!Q43+'DBH-OS'!Q43+'DBH-OH'!Q43+'DBH-OI'!Q43+XCLH!Q43+XCLA!Q43+DRFR!Q43+DSFS!Q43+DSTG!Q43+XYM1!Q43+XYM2!Q43+XYM3E!Q43+XYM4E!Q43+SAGE!Q43+'ABXY-TI1S'!Q43+'ABXY-TI2S'!Q43+ABZ!Q43+'ASXY-TI1S'!Q43+'ASXY-TI2S'!Q43+'ASXY-TI3S'!Q43+ASZ!Q43+'MBXY-TI1S'!Q43+'MBXY-TI2S'!Q43+MBZ!Q43+'MSXY-TI1S'!Q43+'MSXY-TI2S'!Q43++'MSXY-TI3S'!Q43+MSZ!Q43+'DEC-U'!Q43+DECR!Q43+'DBH-U'!Q43+DBHR!Q43+AMIL!Q43 -> 4.125860895 | C43: ='DEC-OS'!R43+'DEC-OH'!R43+'DEC-OI'!R43+'DBH-OS'!R43+'DBH-OH'!R43+'DBH-OI'!R43+XCLH!R43+XCLA!R43+DRFR!R43+DSFS!R43+DSTG!R43+XYM1!R43+XYM2!R43+XYM3E!R43+XYM4E!R43+SAGE!R43+'ABXY-TI1S'!R43+'ABXY-TI2S'!R43+ABZ!R43+'ASXY-TI1S'!R43+'ASXY-TI2S'!R43+'ASXY-TI3S'!R43+ASZ!R43+'MBXY-TI1S'!R43+'MBXY-TI2S'!R43+MBZ!R43+'MSXY-TI1S'!R43+'MSXY-TI2S'!R43++'MSXY-TI3S'!R43+MSZ!R43+'DEC-U'!R43+DECR!R43+'DBH-U'!R43+DBHR!R43+AMIL!R43 -> 7.522489533 | D43: ='DEC-OS'!S43+'DEC-OH'!S43+'DEC-OI'!S43+'DBH-OS'!S43+'DBH-OH'!S43+'DBH-OI'!S43+XCLH!S43+XCLA!S43+DRFR!S43+DSFS!S43+DSTG!S43+XYM1!S43+XYM2!S43+XYM3E!S43+XYM4E!S43+SAGE!S43+'ABXY-TI1S'!S43+'ABXY-TI2S'!S43+ABZ!S43+'ASXY-TI1S'!S43+'ASXY-TI2S'!S43+'ASXY-TI3S'!S43+ASZ!S43+'MBXY-TI1S'!S43+'MBXY-TI2S'!S43+MBZ!S43+'MSXY-TI1S'!S43+'MSXY-TI2S'!S43++'MSXY-TI3S'!S43+MSZ!S43+'DEC-U'!S43+DECR!S43+'DBH-U'!S43+DBHR!S43+AMIL!S43 -> 1.518053002 | E43: ='DEC-OS'!T43+'DEC-OH'!T43+'DEC-OI'!T43+'DBH-OS'!T43+'DBH-OH'!T43+'DBH-OI'!T43+XCLH!T43+XCLA!T43+DRFR!T43+DSFS!T43+DSTG!T43+XYM1!T43+XYM2!T43+XYM3E!T43+XYM4E!T43+SAGE!T43+'ABXY-TI1S'!T43+'ABXY-TI2S'!T43+ABZ!T43+'ASXY-TI1S'!T43+'ASXY-TI2S'!T43+'ASXY-TI3S'!T43+ASZ!T43+'MBXY-TI1S'!T43+'MBXY-TI2S'!T43+MBZ!T43+'MSXY-TI1S'!T43+'MSXY-TI2S'!T43++'MSXY-TI3S'!T43+MSZ!T43+'DEC-U'!T43+DECR!T43+'DBH-U'!T43+DBHR!T43+AMIL!T43 -> -0.0317142346 | F43: ='DEC-OS'!U43+'DEC-OH'!U43+'DEC-OI'!U43+'DBH-OS'!U43+'DBH-OH'!U43+'DBH-OI'!U43+XCLH!U43+XCLA!U43+DRFR!U43+DSFS!U43+DSTG!U43+XYM1!U43+XYM2!U43+XYM3E!U43+XYM4E!U43+SAGE!U43+'ABXY-TI1S'!U43+'ABXY-TI2S'!U43+ABZ!U43+'ASXY-TI1S'!U43+'ASXY-TI2S'!U43+'ASXY-TI3S'!U43+ASZ!U43+'MBXY-TI1S'!U43+'MBXY-TI2S'!U43+MBZ!U43+'MSXY-TI1S'!U43+'MSXY-TI2S'!U43++'MSXY-TI3S'!U43+MSZ!U43+'DEC-U'!U43+DECR!U43+'DBH-U'!U43+DBHR!U43+AMIL!U43 -> -1.615304822 | G43: ='DEC-OS'!V43+'DEC-OH'!V43+'DEC-OI'!V43+'DBH-OS'!V43+'DBH-OH'!V43+'DBH-OI'!V43+XCLH!V43+XCLA!V43+DRFR!V43+DSFS!V43+DSTG!V43+XYM1!V43+XYM2!V43+XYM3E!V43+XYM4E!V43+SAGE!V43+'ABXY-TI1S'!V43+'ABXY-TI2S'!V43+ABZ!V43+'ASXY-TI1S'!V43+'ASXY-TI2S'!V43+'ASXY-TI3S'!V43+ASZ!V43+'MBXY-TI1S'!V43+'MBXY-TI2S'!V43+MBZ!V43+'MSXY-TI1S'!V43+'MSXY-TI2S'!V43++'MSXY-TI3S'!V43+MSZ!V43+'DEC-U'!V43+DECR!V43+'DBH-U'!V43+DBHR!V43+AMIL!V43 -> 0.01125525221 | H43: 4.186301116 | I43: 7.522489533 | J43: 1.457612781 | K43: -0.02900754046 | L43: 1.564589454 | M43: -0.01705977651 | N43: =COS(Wellpath!$L43)*COS(Wellpath!$M43) -> 0.6427876097 | O43: =-SIN(Wellpath!$M43) -> 0 | P43: =SIN(Wellpath!$L43)*COS(Wellpath!$M43) -> 0.7660444431 | Q43: =COS(Wellpath!$L43)*SIN(Wellpath!$M43) -> 0 | R43: =COS(Wellpath!$M43) -> 1 | S43: =SIN(Wellpath!$L43)*SIN(Wellpath!$M43) -> 0 | T43: =-SIN(Wellpath!$L43) -> -0.7660444431 | U43: 0 | V43: =COS(Wellpath!$L43) -> 0.6427876097
A44: =Wellpath!E44 -> 1170 | B44: ='DEC-OS'!Q44+'DEC-OH'!Q44+'DEC-OI'!Q44+'DBH-OS'!Q44+'DBH-OH'!Q44+'DBH-OI'!Q44+XCLH!Q44+XCLA!Q44+DRFR!Q44+DSFS!Q44+DSTG!Q44+XYM1!Q44+XYM2!Q44+XYM3E!Q44+XYM4E!Q44+SAGE!Q44+'ABXY-TI1S'!Q44+'ABXY-TI2S'!Q44+ABZ!Q44+'ASXY-TI1S'!Q44+'ASXY-TI2S'!Q44+'ASXY-TI3S'!Q44+ASZ!Q44+'MBXY-TI1S'!Q44+'MBXY-TI2S'!Q44+MBZ!Q44+'MSXY-TI1S'!Q44+'MSXY-TI2S'!Q44++'MSXY-TI3S'!Q44+MSZ!Q44+'DEC-U'!Q44+DECR!Q44+'DBH-U'!Q44+DBHR!Q44+AMIL!Q44 -> 4.354117083 | C44: ='DEC-OS'!R44+'DEC-OH'!R44+'DEC-OI'!R44+'DBH-OS'!R44+'DBH-OH'!R44+'DBH-OI'!R44+XCLH!R44+XCLA!R44+DRFR!R44+DSFS!R44+DSTG!R44+XYM1!R44+XYM2!R44+XYM3E!R44+XYM4E!R44+SAGE!R44+'ABXY-TI1S'!R44+'ABXY-TI2S'!R44+ABZ!R44+'ASXY-TI1S'!R44+'ASXY-TI2S'!R44+'ASXY-TI3S'!R44+ASZ!R44+'MBXY-TI1S'!R44+'MBXY-TI2S'!R44+MBZ!R44+'MSXY-TI1S'!R44+'MSXY-TI2S'!R44++'MSXY-TI3S'!R44+MSZ!R44+'DEC-U'!R44+DECR!R44+'DBH-U'!R44+DBHR!R44+AMIL!R44 -> 8.63038383 | D44: ='DEC-OS'!S44+'DEC-OH'!S44+'DEC-OI'!S44+'DBH-OS'!S44+'DBH-OH'!S44+'DBH-OI'!S44+XCLH!S44+XCLA!S44+DRFR!S44+DSFS!S44+DSTG!S44+XYM1!S44+XYM2!S44+XYM3E!S44+XYM4E!S44+SAGE!S44+'ABXY-TI1S'!S44+'ABXY-TI2S'!S44+ABZ!S44+'ASXY-TI1S'!S44+'ASXY-TI2S'!S44+'ASXY-TI3S'!S44+ASZ!S44+'MBXY-TI1S'!S44+'MBXY-TI2S'!S44+MBZ!S44+'MSXY-TI1S'!S44+'MSXY-TI2S'!S44++'MSXY-TI3S'!S44+MSZ!S44+'DEC-U'!S44+DECR!S44+'DBH-U'!S44+DBHR!S44+AMIL!S44 -> 1.695643602 | E44: ='DEC-OS'!T44+'DEC-OH'!T44+'DEC-OI'!T44+'DBH-OS'!T44+'DBH-OH'!T44+'DBH-OI'!T44+XCLH!T44+XCLA!T44+DRFR!T44+DSFS!T44+DSTG!T44+XYM1!T44+XYM2!T44+XYM3E!T44+XYM4E!T44+SAGE!T44+'ABXY-TI1S'!T44+'ABXY-TI2S'!T44+ABZ!T44+'ASXY-TI1S'!T44+'ASXY-TI2S'!T44+'ASXY-TI3S'!T44+ASZ!T44+'MBXY-TI1S'!T44+'MBXY-TI2S'!T44+MBZ!T44+'MSXY-TI1S'!T44+'MSXY-TI2S'!T44++'MSXY-TI3S'!T44+MSZ!T44+'DEC-U'!T44+DECR!T44+'DBH-U'!T44+DBHR!T44+AMIL!T44 -> -0.03505957928 | F44: ='DEC-OS'!U44+'DEC-OH'!U44+'DEC-OI'!U44+'DBH-OS'!U44+'DBH-OH'!U44+'DBH-OI'!U44+XCLH!U44+XCLA!U44+DRFR!U44+DSFS!U44+DSTG!U44+XYM1!U44+XYM2!U44+XYM3E!U44+XYM4E!U44+SAGE!U44+'ABXY-TI1S'!U44+'ABXY-TI2S'!U44+ABZ!U44+'ASXY-TI1S'!U44+'ASXY-TI2S'!U44+'ASXY-TI3S'!U44+ASZ!U44+'MBXY-TI1S'!U44+'MBXY-TI2S'!U44+MBZ!U44+'MSXY-TI1S'!U44+'MSXY-TI2S'!U44++'MSXY-TI3S'!U44+MSZ!U44+'DEC-U'!U44+DECR!U44+'DBH-U'!U44+DBHR!U44+AMIL!U44 -> -1.801396442 | G44: ='DEC-OS'!V44+'DEC-OH'!V44+'DEC-OI'!V44+'DBH-OS'!V44+'DBH-OH'!V44+'DBH-OI'!V44+XCLH!V44+XCLA!V44+DRFR!V44+DSFS!V44+DSTG!V44+XYM1!V44+XYM2!V44+XYM3E!V44+XYM4E!V44+SAGE!V44+'ABXY-TI1S'!V44+'ABXY-TI2S'!V44+ABZ!V44+'ASXY-TI1S'!V44+'ASXY-TI2S'!V44+'ASXY-TI3S'!V44+ASZ!V44+'MBXY-TI1S'!V44+'MBXY-TI2S'!V44+MBZ!V44+'MSXY-TI1S'!V44+'MSXY-TI2S'!V44++'MSXY-TI3S'!V44+MSZ!V44+'DEC-U'!V44+DECR!V44+'DBH-U'!V44+DBHR!V44+AMIL!V44 -> 0.01329784025 | H44: 4.568089986 | I44: 8.63038383 | J44: 1.481670698 | K44: -0.03272259979 | L44: 1.621851857 | M44: -0.01830950894 | N44: =COS(Wellpath!$L44)*COS(Wellpath!$M44) -> 0.6427876097 | O44: =-SIN(Wellpath!$M44) -> 0 | P44: =SIN(Wellpath!$L44)*COS(Wellpath!$M44) -> 0.7660444431 | Q44: =COS(Wellpath!$L44)*SIN(Wellpath!$M44) -> 0 | R44: =COS(Wellpath!$M44) -> 1 | S44: =SIN(Wellpath!$L44)*SIN(Wellpath!$M44) -> 0 | T44: =-SIN(Wellpath!$L44) -> -0.7660444431 | U44: 0 | V44: =COS(Wellpath!$L44) -> 0.6427876097
A45: =Wellpath!E45 -> 1200 | B45: ='DEC-OS'!Q45+'DEC-OH'!Q45+'DEC-OI'!Q45+'DBH-OS'!Q45+'DBH-OH'!Q45+'DBH-OI'!Q45+XCLH!Q45+XCLA!Q45+DRFR!Q45+DSFS!Q45+DSTG!Q45+XYM1!Q45+XYM2!Q45+XYM3E!Q45+XYM4E!Q45+SAGE!Q45+'ABXY-TI1S'!Q45+'ABXY-TI2S'!Q45+ABZ!Q45+'ASXY-TI1S'!Q45+'ASXY-TI2S'!Q45+'ASXY-TI3S'!Q45+ASZ!Q45+'MBXY-TI1S'!Q45+'MBXY-TI2S'!Q45+MBZ!Q45+'MSXY-TI1S'!Q45+'MSXY-TI2S'!Q45++'MSXY-TI3S'!Q45+MSZ!Q45+'DEC-U'!Q45+DECR!Q45+'DBH-U'!Q45+DBHR!Q45+AMIL!Q45 -> 4.592440772 | C45: ='DEC-OS'!R45+'DEC-OH'!R45+'DEC-OI'!R45+'DBH-OS'!R45+'DBH-OH'!R45+'DBH-OI'!R45+XCLH!R45+XCLA!R45+DRFR!R45+DSFS!R45+DSTG!R45+XYM1!R45+XYM2!R45+XYM3E!R45+XYM4E!R45+SAGE!R45+'ABXY-TI1S'!R45+'ABXY-TI2S'!R45+ABZ!R45+'ASXY-TI1S'!R45+'ASXY-TI2S'!R45+'ASXY-TI3S'!R45+ASZ!R45+'MBXY-TI1S'!R45+'MBXY-TI2S'!R45+MBZ!R45+'MSXY-TI1S'!R45+'MSXY-TI2S'!R45++'MSXY-TI3S'!R45+MSZ!R45+'DEC-U'!R45+DECR!R45+'DBH-U'!R45+DBHR!R45+AMIL!R45 -> 9.824930163 | D45: ='DEC-OS'!S45+'DEC-OH'!S45+'DEC-OI'!S45+'DBH-OS'!S45+'DBH-OH'!S45+'DBH-OI'!S45+XCLH!S45+XCLA!S45+DRFR!S45+DSFS!S45+DSTG!S45+XYM1!S45+XYM2!S45+XYM3E!S45+XYM4E!S45+SAGE!S45+'ABXY-TI1S'!S45+'ABXY-TI2S'!S45+ABZ!S45+'ASXY-TI1S'!S45+'ASXY-TI2S'!S45+'ASXY-TI3S'!S45+ASZ!S45+'MBXY-TI1S'!S45+'MBXY-TI2S'!S45+MBZ!S45+'MSXY-TI1S'!S45+'MSXY-TI2S'!S45++'MSXY-TI3S'!S45+MSZ!S45+'DEC-U'!S45+DECR!S45+'DBH-U'!S45+DBHR!S45+AMIL!S45 -> 1.887162995 | E45: ='DEC-OS'!T45+'DEC-OH'!T45+'DEC-OI'!T45+'DBH-OS'!T45+'DBH-OH'!T45+'DBH-OI'!T45+XCLH!T45+XCLA!T45+DRFR!T45+DSFS!T45+DSTG!T45+XYM1!T45+XYM2!T45+XYM3E!T45+XYM4E!T45+SAGE!T45+'ABXY-TI1S'!T45+'ABXY-TI2S'!T45+ABZ!T45+'ASXY-TI1S'!T45+'ASXY-TI2S'!T45+'ASXY-TI3S'!T45+ASZ!T45+'MBXY-TI1S'!T45+'MBXY-TI2S'!T45+MBZ!T45+'MSXY-TI1S'!T45+'MSXY-TI2S'!T45++'MSXY-TI3S'!T45+MSZ!T45+'DEC-U'!T45+DECR!T45+'DBH-U'!T45+DBHR!T45+AMIL!T45 -> -0.03855416912 | F45: ='DEC-OS'!U45+'DEC-OH'!U45+'DEC-OI'!U45+'DBH-OS'!U45+'DBH-OH'!U45+'DBH-OI'!U45+XCLH!U45+XCLA!U45+DRFR!U45+DSFS!U45+DSTG!U45+XYM1!U45+XYM2!U45+XYM3E!U45+XYM4E!U45+SAGE!U45+'ABXY-TI1S'!U45+'ABXY-TI2S'!U45+ABZ!U45+'ASXY-TI1S'!U45+'ASXY-TI2S'!U45+'ASXY-TI3S'!U45+ASZ!U45+'MBXY-TI1S'!U45+'MBXY-TI2S'!U45+MBZ!U45+'MSXY-TI1S'!U45+'MSXY-TI2S'!U45++'MSXY-TI3S'!U45+MSZ!U45+'DEC-U'!U45+DECR!U45+'DBH-U'!U45+DBHR!U45+AMIL!U45 -> -1.998221916 | G45: ='DEC-OS'!V45+'DEC-OH'!V45+'DEC-OI'!V45+'DBH-OS'!V45+'DBH-OH'!V45+'DBH-OI'!V45+XCLH!V45+XCLA!V45+DRFR!V45+DSFS!V45+DSTG!V45+XYM1!V45+XYM2!V45+XYM3E!V45+XYM4E!V45+SAGE!V45+'ABXY-TI1S'!V45+'ABXY-TI2S'!V45+ABZ!V45+'ASXY-TI1S'!V45+'ASXY-TI2S'!V45+'ASXY-TI3S'!V45+ASZ!V45+'MBXY-TI1S'!V45+'MBXY-TI2S'!V45+MBZ!V45+'MSXY-TI1S'!V45+'MSXY-TI2S'!V45++'MSXY-TI3S'!V45+MSZ!V45+'DEC-U'!V45+DECR!V45+'DBH-U'!V45+DBHR!V45+AMIL!V45 -> 0.01551829175 | H45: 4.972783041 | I45: 9.824930163 | J45: 1.506820726 | K45: -0.03666984337 | L45: 1.679076858 | M45: -0.01955924136 | N45: =COS(Wellpath!$L45)*COS(Wellpath!$M45) -> 0.6427876097 | O45: =-SIN(Wellpath!$M45) -> 0 | P45: =SIN(Wellpath!$L45)*COS(Wellpath!$M45) -> 0.7660444431 | Q45: =COS(Wellpath!$L45)*SIN(Wellpath!$M45) -> 0 | R45: =COS(Wellpath!$M45) -> 1 | S45: =SIN(Wellpath!$L45)*SIN(Wellpath!$M45) -> 0 | T45: =-SIN(Wellpath!$L45) -> -0.7660444431 | U45: 0 | V45: =COS(Wellpath!$L45) -> 0.6427876097
A46: =Wellpath!E46 -> 1230 | B46: ='DEC-OS'!Q46+'DEC-OH'!Q46+'DEC-OI'!Q46+'DBH-OS'!Q46+'DBH-OH'!Q46+'DBH-OI'!Q46+XCLH!Q46+XCLA!Q46+DRFR!Q46+DSFS!Q46+DSTG!Q46+XYM1!Q46+XYM2!Q46+XYM3E!Q46+XYM4E!Q46+SAGE!Q46+'ABXY-TI1S'!Q46+'ABXY-TI2S'!Q46+ABZ!Q46+'ASXY-TI1S'!Q46+'ASXY-TI2S'!Q46+'ASXY-TI3S'!Q46+ASZ!Q46+'MBXY-TI1S'!Q46+'MBXY-TI2S'!Q46+MBZ!Q46+'MSXY-TI1S'!Q46+'MSXY-TI2S'!Q46++'MSXY-TI3S'!Q46+MSZ!Q46+'DEC-U'!Q46+DECR!Q46+'DBH-U'!Q46+DBHR!Q46+AMIL!Q46 -> 4.840847192 | C46: ='DEC-OS'!R46+'DEC-OH'!R46+'DEC-OI'!R46+'DBH-OS'!R46+'DBH-OH'!R46+'DBH-OI'!R46+XCLH!R46+XCLA!R46+DRFR!R46+DSFS!R46+DSTG!R46+XYM1!R46+XYM2!R46+XYM3E!R46+XYM4E!R46+SAGE!R46+'ABXY-TI1S'!R46+'ABXY-TI2S'!R46+ABZ!R46+'ASXY-TI1S'!R46+'ASXY-TI2S'!R46+'ASXY-TI3S'!R46+ASZ!R46+'MBXY-TI1S'!R46+'MBXY-TI2S'!R46+MBZ!R46+'MSXY-TI1S'!R46+'MSXY-TI2S'!R46++'MSXY-TI3S'!R46+MSZ!R46+'DEC-U'!R46+DECR!R46+'DBH-U'!R46+DBHR!R46+AMIL!R46 -> 11.10612853 | D46: ='DEC-OS'!S46+'DEC-OH'!S46+'DEC-OI'!S46+'DBH-OS'!S46+'DBH-OH'!S46+'DBH-OI'!S46+XCLH!S46+XCLA!S46+DRFR!S46+DSFS!S46+DSTG!S46+XYM1!S46+XYM2!S46+XYM3E!S46+XYM4E!S46+SAGE!S46+'ABXY-TI1S'!S46+'ABXY-TI2S'!S46+ABZ!S46+'ASXY-TI1S'!S46+'ASXY-TI2S'!S46+'ASXY-TI3S'!S46+ASZ!S46+'MBXY-TI1S'!S46+'MBXY-TI2S'!S46+MBZ!S46+'MSXY-TI1S'!S46+'MSXY-TI2S'!S46++'MSXY-TI3S'!S46+MSZ!S46+'DEC-U'!S46+DECR!S46+'DBH-U'!S46+DBHR!S46+AMIL!S46 -> 2.092623205 | E46: ='DEC-OS'!T46+'DEC-OH'!T46+'DEC-OI'!T46+'DBH-OS'!T46+'DBH-OH'!T46+'DBH-OI'!T46+XCLH!T46+XCLA!T46+DRFR!T46+DSFS!T46+DSTG!T46+XYM1!T46+XYM2!T46+XYM3E!T46+XYM4E!T46+SAGE!T46+'ABXY-TI1S'!T46+'ABXY-TI2S'!T46+ABZ!T46+'ASXY-TI1S'!T46+'ASXY-TI2S'!T46+'ASXY-TI3S'!T46+ASZ!T46+'MBXY-TI1S'!T46+'MBXY-TI2S'!T46+MBZ!T46+'MSXY-TI1S'!T46+'MSXY-TI2S'!T46++'MSXY-TI3S'!T46+MSZ!T46+'DEC-U'!T46+DECR!T46+'DBH-U'!T46+DBHR!T46+AMIL!T46 -> -0.04219800413 | F46: ='DEC-OS'!U46+'DEC-OH'!U46+'DEC-OI'!U46+'DBH-OS'!U46+'DBH-OH'!U46+'DBH-OI'!U46+XCLH!U46+XCLA!U46+DRFR!U46+DSFS!U46+DSTG!U46+XYM1!U46+XYM2!U46+XYM3E!U46+XYM4E!U46+SAGE!U46+'ABXY-TI1S'!U46+'ABXY-TI2S'!U46+ABZ!U46+'ASXY-TI1S'!U46+'ASXY-TI2S'!U46+'ASXY-TI3S'!U46+ASZ!U46+'MBXY-TI1S'!U46+'MBXY-TI2S'!U46+MBZ!U46+'MSXY-TI1S'!U46+'MSXY-TI2S'!U46++'MSXY-TI3S'!U46+MSZ!U46+'DEC-U'!U46+DECR!U46+'DBH-U'!U46+DBHR!U46+AMIL!U46 -> -2.205767691 | G46: ='DEC-OS'!V46+'DEC-OH'!V46+'DEC-OI'!V46+'DBH-OS'!V46+'DBH-OH'!V46+'DBH-OI'!V46+XCLH!V46+XCLA!V46+DRFR!V46+DSFS!V46+DSTG!V46+XYM1!V46+XYM2!V46+XYM3E!V46+XYM4E!V46+SAGE!V46+'ABXY-TI1S'!V46+'ABXY-TI2S'!V46+ABZ!V46+'ASXY-TI1S'!V46+'ASXY-TI2S'!V46+'ASXY-TI3S'!V46+ASZ!V46+'MBXY-TI1S'!V46+'MBXY-TI2S'!V46+MBZ!V46+'MSXY-TI1S'!V46+'MSXY-TI2S'!V46++'MSXY-TI3S'!V46+MSZ!V46+'DEC-U'!V46+DECR!V46+'DBH-U'!V46+DBHR!V46+AMIL!V46 -> 0.01791660671 | H46: 5.400380278 | I46: 11.10612853 | J46: 1.533090119 | K46: -0.04084927122 | L46: 1.736263684 | M46: -0.02080897378 | N46: =COS(Wellpath!$L46)*COS(Wellpath!$M46) -> 0.6427876097 | O46: =-SIN(Wellpath!$M46) -> 0 | P46: =SIN(Wellpath!$L46)*COS(Wellpath!$M46) -> 0.7660444431 | Q46: =COS(Wellpath!$L46)*SIN(Wellpath!$M46) -> 0 | R46: =COS(Wellpath!$M46) -> 1 | S46: =SIN(Wellpath!$L46)*SIN(Wellpath!$M46) -> 0 | T46: =-SIN(Wellpath!$L46) -> -0.7660444431 | U46: 0 | V46: =COS(Wellpath!$L46) -> 0.6427876097
A47: =Wellpath!E47 -> 1260 | B47: ='DEC-OS'!Q47+'DEC-OH'!Q47+'DEC-OI'!Q47+'DBH-OS'!Q47+'DBH-OH'!Q47+'DBH-OI'!Q47+XCLH!Q47+XCLA!Q47+DRFR!Q47+DSFS!Q47+DSTG!Q47+XYM1!Q47+XYM2!Q47+XYM3E!Q47+XYM4E!Q47+SAGE!Q47+'ABXY-TI1S'!Q47+'ABXY-TI2S'!Q47+ABZ!Q47+'ASXY-TI1S'!Q47+'ASXY-TI2S'!Q47+'ASXY-TI3S'!Q47+ASZ!Q47+'MBXY-TI1S'!Q47+'MBXY-TI2S'!Q47+MBZ!Q47+'MSXY-TI1S'!Q47+'MSXY-TI2S'!Q47++'MSXY-TI3S'!Q47+MSZ!Q47+'DEC-U'!Q47+DECR!Q47+'DBH-U'!Q47+DBHR!Q47+AMIL!Q47 -> 5.099349437 | C47: ='DEC-OS'!R47+'DEC-OH'!R47+'DEC-OI'!R47+'DBH-OS'!R47+'DBH-OH'!R47+'DBH-OI'!R47+XCLH!R47+XCLA!R47+DRFR!R47+DSFS!R47+DSTG!R47+XYM1!R47+XYM2!R47+XYM3E!R47+XYM4E!R47+SAGE!R47+'ABXY-TI1S'!R47+'ABXY-TI2S'!R47+ABZ!R47+'ASXY-TI1S'!R47+'ASXY-TI2S'!R47+'ASXY-TI3S'!R47+ASZ!R47+'MBXY-TI1S'!R47+'MBXY-TI2S'!R47+MBZ!R47+'MSXY-TI1S'!R47+'MSXY-TI2S'!R47++'MSXY-TI3S'!R47+MSZ!R47+'DEC-U'!R47+DECR!R47+'DBH-U'!R47+DBHR!R47+AMIL!R47 -> 12.47397893 | D47: ='DEC-OS'!S47+'DEC-OH'!S47+'DEC-OI'!S47+'DBH-OS'!S47+'DBH-OH'!S47+'DBH-OI'!S47+XCLH!S47+XCLA!S47+DRFR!S47+DSFS!S47+DSTG!S47+XYM1!S47+XYM2!S47+XYM3E!S47+XYM4E!S47+SAGE!S47+'ABXY-TI1S'!S47+'ABXY-TI2S'!S47+ABZ!S47+'ASXY-TI1S'!S47+'ASXY-TI2S'!S47+'ASXY-TI3S'!S47+ASZ!S47+'MBXY-TI1S'!S47+'MBXY-TI2S'!S47+MBZ!S47+'MSXY-TI1S'!S47+'MSXY-TI2S'!S47++'MSXY-TI3S'!S47+MSZ!S47+'DEC-U'!S47+DECR!S47+'DBH-U'!S47+DBHR!S47+AMIL!S47 -> 2.31203212 | E47: ='DEC-OS'!T47+'DEC-OH'!T47+'DEC-OI'!T47+'DBH-OS'!T47+'DBH-OH'!T47+'DBH-OI'!T47+XCLH!T47+XCLA!T47+DRFR!T47+DSFS!T47+DSTG!T47+XYM1!T47+XYM2!T47+XYM3E!T47+XYM4E!T47+SAGE!T47+'ABXY-TI1S'!T47+'ABXY-TI2S'!T47+ABZ!T47+'ASXY-TI1S'!T47+'ASXY-TI2S'!T47+'ASXY-TI3S'!T47+ASZ!T47+'MBXY-TI1S'!T47+'MBXY-TI2S'!T47+MBZ!T47+'MSXY-TI1S'!T47+'MSXY-TI2S'!T47++'MSXY-TI3S'!T47+MSZ!T47+'DEC-U'!T47+DECR!T47+'DBH-U'!T47+DBHR!T47+AMIL!T47 -> -0.04599108431 | F47: ='DEC-OS'!U47+'DEC-OH'!U47+'DEC-OI'!U47+'DBH-OS'!U47+'DBH-OH'!U47+'DBH-OI'!U47+XCLH!U47+XCLA!U47+DRFR!U47+DSFS!U47+DSTG!U47+XYM1!U47+XYM2!U47+XYM3E!U47+XYM4E!U47+SAGE!U47+'ABXY-TI1S'!U47+'ABXY-TI2S'!U47+ABZ!U47+'ASXY-TI1S'!U47+'ASXY-TI2S'!U47+'ASXY-TI3S'!U47+ASZ!U47+'MBXY-TI1S'!U47+'MBXY-TI2S'!U47+MBZ!U47+'MSXY-TI1S'!U47+'MSXY-TI2S'!U47++'MSXY-TI3S'!U47+MSZ!U47+'DEC-U'!U47+DECR!U47+'DBH-U'!U47+DBHR!U47+AMIL!U47 -> -2.424023572 | G47: ='DEC-OS'!V47+'DEC-OH'!V47+'DEC-OI'!V47+'DBH-OS'!V47+'DBH-OH'!V47+'DBH-OI'!V47+XCLH!V47+XCLA!V47+DRFR!V47+DSFS!V47+DSTG!V47+XYM1!V47+XYM2!V47+XYM3E!V47+XYM4E!V47+SAGE!V47+'ABXY-TI1S'!V47+'ABXY-TI2S'!V47+ABZ!V47+'ASXY-TI1S'!V47+'ASXY-TI2S'!V47+'ASXY-TI3S'!V47+ASZ!V47+'MBXY-TI1S'!V47+'MBXY-TI2S'!V47+MBZ!V47+'MSXY-TI1S'!V47+'MSXY-TI2S'!V47++'MSXY-TI3S'!V47+MSZ!V47+'DEC-U'!V47+DECR!V47+'DBH-U'!V47+DBHR!V47+AMIL!V47 -> 0.02049278513 | H47: 5.8508817 | I47: 12.47397893 | J47: 1.560499857 | K47: -0.04526088333 | L47: 1.793413128 | M47: -0.0220587062 | N47: =COS(Wellpath!$L47)*COS(Wellpath!$M47) -> 0.6427876097 | O47: =-SIN(Wellpath!$M47) -> 0 | P47: =SIN(Wellpath!$L47)*COS(Wellpath!$M47) -> 0.7660444431 | Q47: =COS(Wellpath!$L47)*SIN(Wellpath!$M47) -> 0 | R47: =COS(Wellpath!$M47) -> 1 | S47: =SIN(Wellpath!$L47)*SIN(Wellpath!$M47) -> 0 | T47: =-SIN(Wellpath!$L47) -> -0.7660444431 | U47: 0 | V47: =COS(Wellpath!$L47) -> 0.6427876097
A48: =Wellpath!E48 -> 1290 | B48: ='DEC-OS'!Q48+'DEC-OH'!Q48+'DEC-OI'!Q48+'DBH-OS'!Q48+'DBH-OH'!Q48+'DBH-OI'!Q48+XCLH!Q48+XCLA!Q48+DRFR!Q48+DSFS!Q48+DSTG!Q48+XYM1!Q48+XYM2!Q48+XYM3E!Q48+XYM4E!Q48+SAGE!Q48+'ABXY-TI1S'!Q48+'ABXY-TI2S'!Q48+ABZ!Q48+'ASXY-TI1S'!Q48+'ASXY-TI2S'!Q48+'ASXY-TI3S'!Q48+ASZ!Q48+'MBXY-TI1S'!Q48+'MBXY-TI2S'!Q48+MBZ!Q48+'MSXY-TI1S'!Q48+'MSXY-TI2S'!Q48++'MSXY-TI3S'!Q48+MSZ!Q48+'DEC-U'!Q48+DECR!Q48+'DBH-U'!Q48+DBHR!Q48+AMIL!Q48 -> 5.367962777 | C48: ='DEC-OS'!R48+'DEC-OH'!R48+'DEC-OI'!R48+'DBH-OS'!R48+'DBH-OH'!R48+'DBH-OI'!R48+XCLH!R48+XCLA!R48+DRFR!R48+DSFS!R48+DSTG!R48+XYM1!R48+XYM2!R48+XYM3E!R48+XYM4E!R48+SAGE!R48+'ABXY-TI1S'!R48+'ABXY-TI2S'!R48+ABZ!R48+'ASXY-TI1S'!R48+'ASXY-TI2S'!R48+'ASXY-TI3S'!R48+ASZ!R48+'MBXY-TI1S'!R48+'MBXY-TI2S'!R48+MBZ!R48+'MSXY-TI1S'!R48+'MSXY-TI2S'!R48++'MSXY-TI3S'!R48+MSZ!R48+'DEC-U'!R48+DECR!R48+'DBH-U'!R48+DBHR!R48+AMIL!R48 -> 13.92848137 | D48: ='DEC-OS'!S48+'DEC-OH'!S48+'DEC-OI'!S48+'DBH-OS'!S48+'DBH-OH'!S48+'DBH-OI'!S48+XCLH!S48+XCLA!S48+DRFR!S48+DSFS!S48+DSTG!S48+XYM1!S48+XYM2!S48+XYM3E!S48+XYM4E!S48+SAGE!S48+'ABXY-TI1S'!S48+'ABXY-TI2S'!S48+ABZ!S48+'ASXY-TI1S'!S48+'ASXY-TI2S'!S48+'ASXY-TI3S'!S48+ASZ!S48+'MBXY-TI1S'!S48+'MBXY-TI2S'!S48+MBZ!S48+'MSXY-TI1S'!S48+'MSXY-TI2S'!S48++'MSXY-TI3S'!S48+MSZ!S48+'DEC-U'!S48+DECR!S48+'DBH-U'!S48+DBHR!S48+AMIL!S48 -> 2.545401146 | E48: ='DEC-OS'!T48+'DEC-OH'!T48+'DEC-OI'!T48+'DBH-OS'!T48+'DBH-OH'!T48+'DBH-OI'!T48+XCLH!T48+XCLA!T48+DRFR!T48+DSFS!T48+DSTG!T48+XYM1!T48+XYM2!T48+XYM3E!T48+XYM4E!T48+SAGE!T48+'ABXY-TI1S'!T48+'ABXY-TI2S'!T48+ABZ!T48+'ASXY-TI1S'!T48+'ASXY-TI2S'!T48+'ASXY-TI3S'!T48+ASZ!T48+'MBXY-TI1S'!T48+'MBXY-TI2S'!T48+MBZ!T48+'MSXY-TI1S'!T48+'MSXY-TI2S'!T48++'MSXY-TI3S'!T48+MSZ!T48+'DEC-U'!T48+DECR!T48+'DBH-U'!T48+DBHR!T48+AMIL!T48 -> -0.04993340966 | F48: ='DEC-OS'!U48+'DEC-OH'!U48+'DEC-OI'!U48+'DBH-OS'!U48+'DBH-OH'!U48+'DBH-OI'!U48+XCLH!U48+XCLA!U48+DRFR!U48+DSFS!U48+DSTG!U48+XYM1!U48+XYM2!U48+XYM3E!U48+XYM4E!U48+SAGE!U48+'ABXY-TI1S'!U48+'ABXY-TI2S'!U48+ABZ!U48+'ASXY-TI1S'!U48+'ASXY-TI2S'!U48+'ASXY-TI3S'!U48+ASZ!U48+'MBXY-TI1S'!U48+'MBXY-TI2S'!U48+MBZ!U48+'MSXY-TI1S'!U48+'MSXY-TI2S'!U48++'MSXY-TI3S'!U48+MSZ!U48+'DEC-U'!U48+DECR!U48+'DBH-U'!U48+DBHR!U48+AMIL!U48 -> -2.652976357 | G48: ='DEC-OS'!V48+'DEC-OH'!V48+'DEC-OI'!V48+'DBH-OS'!V48+'DBH-OH'!V48+'DBH-OI'!V48+XCLH!V48+XCLA!V48+DRFR!V48+DSFS!V48+DSTG!V48+XYM1!V48+XYM2!V48+XYM3E!V48+XYM4E!V48+SAGE!V48+'ABXY-TI1S'!V48+'ABXY-TI2S'!V48+ABZ!V48+'ASXY-TI1S'!V48+'ASXY-TI2S'!V48+'ASXY-TI3S'!V48+ASZ!V48+'MBXY-TI1S'!V48+'MBXY-TI2S'!V48+MBZ!V48+'MSXY-TI1S'!V48+'MSXY-TI2S'!V48++'MSXY-TI3S'!V48+MSZ!V48+'DEC-U'!V48+DECR!V48+'DBH-U'!V48+DBHR!V48+AMIL!V48 -> 0.02324682702 | H48: 6.324287305 | I48: 13.92848137 | J48: 1.589076618 | K48: -0.0499046797 | L48: 1.850524798 | M48: -0.02330843862 | N48: =COS(Wellpath!$L48)*COS(Wellpath!$M48) -> 0.6427876097 | O48: =-SIN(Wellpath!$M48) -> 0 | P48: =SIN(Wellpath!$L48)*COS(Wellpath!$M48) -> 0.7660444431 | Q48: =COS(Wellpath!$L48)*SIN(Wellpath!$M48) -> 0 | R48: =COS(Wellpath!$M48) -> 1 | S48: =SIN(Wellpath!$L48)*SIN(Wellpath!$M48) -> 0 | T48: =-SIN(Wellpath!$L48) -> -0.7660444431 | U48: 0 | V48: =COS(Wellpath!$L48) -> 0.6427876097
A49: =Wellpath!E49 -> 1320 | B49: ='DEC-OS'!Q49+'DEC-OH'!Q49+'DEC-OI'!Q49+'DBH-OS'!Q49+'DBH-OH'!Q49+'DBH-OI'!Q49+XCLH!Q49+XCLA!Q49+DRFR!Q49+DSFS!Q49+DSTG!Q49+XYM1!Q49+XYM2!Q49+XYM3E!Q49+XYM4E!Q49+SAGE!Q49+'ABXY-TI1S'!Q49+'ABXY-TI2S'!Q49+ABZ!Q49+'ASXY-TI1S'!Q49+'ASXY-TI2S'!Q49+'ASXY-TI3S'!Q49+ASZ!Q49+'MBXY-TI1S'!Q49+'MBXY-TI2S'!Q49+MBZ!Q49+'MSXY-TI1S'!Q49+'MSXY-TI2S'!Q49++'MSXY-TI3S'!Q49+MSZ!Q49+'DEC-U'!Q49+DECR!Q49+'DBH-U'!Q49+DBHR!Q49+AMIL!Q49 -> 5.64670306 | C49: ='DEC-OS'!R49+'DEC-OH'!R49+'DEC-OI'!R49+'DBH-OS'!R49+'DBH-OH'!R49+'DBH-OI'!R49+XCLH!R49+XCLA!R49+DRFR!R49+DSFS!R49+DSTG!R49+XYM1!R49+XYM2!R49+XYM3E!R49+XYM4E!R49+SAGE!R49+'ABXY-TI1S'!R49+'ABXY-TI2S'!R49+ABZ!R49+'ASXY-TI1S'!R49+'ASXY-TI2S'!R49+'ASXY-TI3S'!R49+ASZ!R49+'MBXY-TI1S'!R49+'MBXY-TI2S'!R49+MBZ!R49+'MSXY-TI1S'!R49+'MSXY-TI2S'!R49++'MSXY-TI3S'!R49+MSZ!R49+'DEC-U'!R49+DECR!R49+'DBH-U'!R49+DBHR!R49+AMIL!R49 -> 15.46963585 | D49: ='DEC-OS'!S49+'DEC-OH'!S49+'DEC-OI'!S49+'DBH-OS'!S49+'DBH-OH'!S49+'DBH-OI'!S49+XCLH!S49+XCLA!S49+DRFR!S49+DSFS!S49+DSTG!S49+XYM1!S49+XYM2!S49+XYM3E!S49+XYM4E!S49+SAGE!S49+'ABXY-TI1S'!S49+'ABXY-TI2S'!S49+ABZ!S49+'ASXY-TI1S'!S49+'ASXY-TI2S'!S49+'ASXY-TI3S'!S49+ASZ!S49+'MBXY-TI1S'!S49+'MBXY-TI2S'!S49+MBZ!S49+'MSXY-TI1S'!S49+'MSXY-TI2S'!S49++'MSXY-TI3S'!S49+MSZ!S49+'DEC-U'!S49+DECR!S49+'DBH-U'!S49+DBHR!S49+AMIL!S49 -> 2.792742168 | E49: ='DEC-OS'!T49+'DEC-OH'!T49+'DEC-OI'!T49+'DBH-OS'!T49+'DBH-OH'!T49+'DBH-OI'!T49+XCLH!T49+XCLA!T49+DRFR!T49+DSFS!T49+DSTG!T49+XYM1!T49+XYM2!T49+XYM3E!T49+XYM4E!T49+SAGE!T49+'ABXY-TI1S'!T49+'ABXY-TI2S'!T49+ABZ!T49+'ASXY-TI1S'!T49+'ASXY-TI2S'!T49+'ASXY-TI3S'!T49+ASZ!T49+'MBXY-TI1S'!T49+'MBXY-TI2S'!T49+MBZ!T49+'MSXY-TI1S'!T49+'MSXY-TI2S'!T49++'MSXY-TI3S'!T49+MSZ!T49+'DEC-U'!T49+DECR!T49+'DBH-U'!T49+DBHR!T49+AMIL!T49 -> -0.05402498017 | F49: ='DEC-OS'!U49+'DEC-OH'!U49+'DEC-OI'!U49+'DBH-OS'!U49+'DBH-OH'!U49+'DBH-OI'!U49+XCLH!U49+XCLA!U49+DRFR!U49+DSFS!U49+DSTG!U49+XYM1!U49+XYM2!U49+XYM3E!U49+XYM4E!U49+SAGE!U49+'ABXY-TI1S'!U49+'ABXY-TI2S'!U49+ABZ!U49+'ASXY-TI1S'!U49+'ASXY-TI2S'!U49+'ASXY-TI3S'!U49+ASZ!U49+'MBXY-TI1S'!U49+'MBXY-TI2S'!U49+MBZ!U49+'MSXY-TI1S'!U49+'MSXY-TI2S'!U49++'MSXY-TI3S'!U49+MSZ!U49+'DEC-U'!U49+DECR!U49+'DBH-U'!U49+DBHR!U49+AMIL!U49 -> -2.892612314 | G49: ='DEC-OS'!V49+'DEC-OH'!V49+'DEC-OI'!V49+'DBH-OS'!V49+'DBH-OH'!V49+'DBH-OI'!V49+XCLH!V49+XCLA!V49+DRFR!V49+DSFS!V49+DSTG!V49+XYM1!V49+XYM2!V49+XYM3E!V49+XYM4E!V49+SAGE!V49+'ABXY-TI1S'!V49+'ABXY-TI2S'!V49+ABZ!V49+'ASXY-TI1S'!V49+'ASXY-TI2S'!V49+'ASXY-TI3S'!V49+ASZ!V49+'MBXY-TI1S'!V49+'MBXY-TI2S'!V49+MBZ!V49+'MSXY-TI1S'!V49+'MSXY-TI2S'!V49++'MSXY-TI3S'!V49+MSZ!V49+'DEC-U'!V49+DECR!V49+'DBH-U'!V49+DBHR!V49+AMIL!V49 -> 0.02617873238 | H49: 6.820597093 | I49: 15.46963585 | J49: 1.618848135 | K49: -0.05478066033 | L49: 1.907598263 | M49: -0.02455817104 | N49: =COS(Wellpath!$L49)*COS(Wellpath!$M49) -> 0.6427876097 | O49: =-SIN(Wellpath!$M49) -> 0 | P49: =SIN(Wellpath!$L49)*COS(Wellpath!$M49) -> 0.7660444431 | Q49: =COS(Wellpath!$L49)*SIN(Wellpath!$M49) -> 0 | R49: =COS(Wellpath!$M49) -> 1 | S49: =SIN(Wellpath!$L49)*SIN(Wellpath!$M49) -> 0 | T49: =-SIN(Wellpath!$L49) -> -0.7660444431 | U49: 0 | V49: =COS(Wellpath!$L49) -> 0.6427876097
A50: =Wellpath!E50 -> 1350 | B50: ='DEC-OS'!Q50+'DEC-OH'!Q50+'DEC-OI'!Q50+'DBH-OS'!Q50+'DBH-OH'!Q50+'DBH-OI'!Q50+XCLH!Q50+XCLA!Q50+DRFR!Q50+DSFS!Q50+DSTG!Q50+XYM1!Q50+XYM2!Q50+XYM3E!Q50+XYM4E!Q50+SAGE!Q50+'ABXY-TI1S'!Q50+'ABXY-TI2S'!Q50+ABZ!Q50+'ASXY-TI1S'!Q50+'ASXY-TI2S'!Q50+'ASXY-TI3S'!Q50+ASZ!Q50+'MBXY-TI1S'!Q50+'MBXY-TI2S'!Q50+MBZ!Q50+'MSXY-TI1S'!Q50+'MSXY-TI2S'!Q50++'MSXY-TI3S'!Q50+MSZ!Q50+'DEC-U'!Q50+DECR!Q50+'DBH-U'!Q50+DBHR!Q50+AMIL!Q50 -> 5.935583836 | C50: ='DEC-OS'!R50+'DEC-OH'!R50+'DEC-OI'!R50+'DBH-OS'!R50+'DBH-OH'!R50+'DBH-OI'!R50+XCLH!R50+XCLA!R50+DRFR!R50+DSFS!R50+DSTG!R50+XYM1!R50+XYM2!R50+XYM3E!R50+XYM4E!R50+SAGE!R50+'ABXY-TI1S'!R50+'ABXY-TI2S'!R50+ABZ!R50+'ASXY-TI1S'!R50+'ASXY-TI2S'!R50+'ASXY-TI3S'!R50+ASZ!R50+'MBXY-TI1S'!R50+'MBXY-TI2S'!R50+MBZ!R50+'MSXY-TI1S'!R50+'MSXY-TI2S'!R50++'MSXY-TI3S'!R50+MSZ!R50+'DEC-U'!R50+DECR!R50+'DBH-U'!R50+DBHR!R50+AMIL!R50 -> 17.09744235 | D50: ='DEC-OS'!S50+'DEC-OH'!S50+'DEC-OI'!S50+'DBH-OS'!S50+'DBH-OH'!S50+'DBH-OI'!S50+XCLH!S50+XCLA!S50+DRFR!S50+DSFS!S50+DSTG!S50+XYM1!S50+XYM2!S50+XYM3E!S50+XYM4E!S50+SAGE!S50+'ABXY-TI1S'!S50+'ABXY-TI2S'!S50+ABZ!S50+'ASXY-TI1S'!S50+'ASXY-TI2S'!S50+'ASXY-TI3S'!S50+ASZ!S50+'MBXY-TI1S'!S50+'MBXY-TI2S'!S50+MBZ!S50+'MSXY-TI1S'!S50+'MSXY-TI2S'!S50++'MSXY-TI3S'!S50+MSZ!S50+'DEC-U'!S50+DECR!S50+'DBH-U'!S50+DBHR!S50+AMIL!S50 -> 3.054063295 | E50: ='DEC-OS'!T50+'DEC-OH'!T50+'DEC-OI'!T50+'DBH-OS'!T50+'DBH-OH'!T50+'DBH-OI'!T50+XCLH!T50+XCLA!T50+DRFR!T50+DSFS!T50+DSTG!T50+XYM1!T50+XYM2!T50+XYM3E!T50+XYM4E!T50+SAGE!T50+'ABXY-TI1S'!T50+'ABXY-TI2S'!T50+ABZ!T50+'ASXY-TI1S'!T50+'ASXY-TI2S'!T50+'ASXY-TI3S'!T50+ASZ!T50+'MBXY-TI1S'!T50+'MBXY-TI2S'!T50+MBZ!T50+'MSXY-TI1S'!T50+'MSXY-TI2S'!T50++'MSXY-TI3S'!T50+MSZ!T50+'DEC-U'!T50+DECR!T50+'DBH-U'!T50+DBHR!T50+AMIL!T50 -> -0.05826579585 | F50: ='DEC-OS'!U50+'DEC-OH'!U50+'DEC-OI'!U50+'DBH-OS'!U50+'DBH-OH'!U50+'DBH-OI'!U50+XCLH!U50+XCLA!U50+DRFR!U50+DSFS!U50+DSTG!U50+XYM1!U50+XYM2!U50+XYM3E!U50+XYM4E!U50+SAGE!U50+'ABXY-TI1S'!U50+'ABXY-TI2S'!U50+ABZ!U50+'ASXY-TI1S'!U50+'ASXY-TI2S'!U50+'ASXY-TI3S'!U50+ASZ!U50+'MBXY-TI1S'!U50+'MBXY-TI2S'!U50+MBZ!U50+'MSXY-TI1S'!U50+'MSXY-TI2S'!U50++'MSXY-TI3S'!U50+MSZ!U50+'DEC-U'!U50+DECR!U50+'DBH-U'!U50+DBHR!U50+AMIL!U50 -> -3.142920926 | G50: ='DEC-OS'!V50+'DEC-OH'!V50+'DEC-OI'!V50+'DBH-OS'!V50+'DBH-OH'!V50+'DBH-OI'!V50+XCLH!V50+XCLA!V50+DRFR!V50+DSFS!V50+DSTG!V50+XYM1!V50+XYM2!V50+XYM3E!V50+XYM4E!V50+SAGE!V50+'ABXY-TI1S'!V50+'ABXY-TI2S'!V50+ABZ!V50+'ASXY-TI1S'!V50+'ASXY-TI2S'!V50+'ASXY-TI3S'!V50+ASZ!V50+'MBXY-TI1S'!V50+'MBXY-TI2S'!V50+MBZ!V50+'MSXY-TI1S'!V50+'MSXY-TI2S'!V50++'MSXY-TI3S'!V50+MSZ!V50+'DEC-U'!V50+DECR!V50+'DBH-U'!V50+DBHR!V50+AMIL!V50 -> 0.02928850119 | H50: 7.339811065 | I50: 17.09744235 | J50: 1.649836065 | K50: -0.05988882523 | L50: 1.964634376 | M50: -0.02580790346 | N50: =COS(Wellpath!$L50)*COS(Wellpath!$M50) -> 0.6427876097 | O50: =-SIN(Wellpath!$M50) -> 0 | P50: =SIN(Wellpath!$L50)*COS(Wellpath!$M50) -> 0.7660444431 | Q50: =COS(Wellpath!$L50)*SIN(Wellpath!$M50) -> 0 | R50: =COS(Wellpath!$M50) -> 1 | S50: =SIN(Wellpath!$L50)*SIN(Wellpath!$M50) -> 0 | T50: =-SIN(Wellpath!$L50) -> -0.7660444431 | U50: 0 | V50: =COS(Wellpath!$L50) -> 0.6427876097
A51: =Wellpath!E51 -> 1380 | B51: ='DEC-OS'!Q51+'DEC-OH'!Q51+'DEC-OI'!Q51+'DBH-OS'!Q51+'DBH-OH'!Q51+'DBH-OI'!Q51+XCLH!Q51+XCLA!Q51+DRFR!Q51+DSFS!Q51+DSTG!Q51+XYM1!Q51+XYM2!Q51+XYM3E!Q51+XYM4E!Q51+SAGE!Q51+'ABXY-TI1S'!Q51+'ABXY-TI2S'!Q51+ABZ!Q51+'ASXY-TI1S'!Q51+'ASXY-TI2S'!Q51+'ASXY-TI3S'!Q51+ASZ!Q51+'MBXY-TI1S'!Q51+'MBXY-TI2S'!Q51+MBZ!Q51+'MSXY-TI1S'!Q51+'MSXY-TI2S'!Q51++'MSXY-TI3S'!Q51+MSZ!Q51+'DEC-U'!Q51+DECR!Q51+'DBH-U'!Q51+DBHR!Q51+AMIL!Q51 -> 6.234621466 | C51: ='DEC-OS'!R51+'DEC-OH'!R51+'DEC-OI'!R51+'DBH-OS'!R51+'DBH-OH'!R51+'DBH-OI'!R51+XCLH!R51+XCLA!R51+DRFR!R51+DSFS!R51+DSTG!R51+XYM1!R51+XYM2!R51+XYM3E!R51+XYM4E!R51+SAGE!R51+'ABXY-TI1S'!R51+'ABXY-TI2S'!R51+ABZ!R51+'ASXY-TI1S'!R51+'ASXY-TI2S'!R51+'ASXY-TI3S'!R51+ASZ!R51+'MBXY-TI1S'!R51+'MBXY-TI2S'!R51+MBZ!R51+'MSXY-TI1S'!R51+'MSXY-TI2S'!R51++'MSXY-TI3S'!R51+MSZ!R51+'DEC-U'!R51+DECR!R51+'DBH-U'!R51+DBHR!R51+AMIL!R51 -> 18.8119009 | D51: ='DEC-OS'!S51+'DEC-OH'!S51+'DEC-OI'!S51+'DBH-OS'!S51+'DBH-OH'!S51+'DBH-OI'!S51+XCLH!S51+XCLA!S51+DRFR!S51+DSFS!S51+DSTG!S51+XYM1!S51+XYM2!S51+XYM3E!S51+XYM4E!S51+SAGE!S51+'ABXY-TI1S'!S51+'ABXY-TI2S'!S51+ABZ!S51+'ASXY-TI1S'!S51+'ASXY-TI2S'!S51+'ASXY-TI3S'!S51+ASZ!S51+'MBXY-TI1S'!S51+'MBXY-TI2S'!S51+MBZ!S51+'MSXY-TI1S'!S51+'MSXY-TI2S'!S51++'MSXY-TI3S'!S51+MSZ!S51+'DEC-U'!S51+DECR!S51+'DBH-U'!S51+DBHR!S51+AMIL!S51 -> 3.329376753 | E51: ='DEC-OS'!T51+'DEC-OH'!T51+'DEC-OI'!T51+'DBH-OS'!T51+'DBH-OH'!T51+'DBH-OI'!T51+XCLH!T51+XCLA!T51+DRFR!T51+DSFS!T51+DSTG!T51+XYM1!T51+XYM2!T51+XYM3E!T51+XYM4E!T51+SAGE!T51+'ABXY-TI1S'!T51+'ABXY-TI2S'!T51+ABZ!T51+'ASXY-TI1S'!T51+'ASXY-TI2S'!T51+'ASXY-TI3S'!T51+ASZ!T51+'MBXY-TI1S'!T51+'MBXY-TI2S'!T51+MBZ!T51+'MSXY-TI1S'!T51+'MSXY-TI2S'!T51++'MSXY-TI3S'!T51+MSZ!T51+'DEC-U'!T51+DECR!T51+'DBH-U'!T51+DBHR!T51+AMIL!T51 -> -0.0626558567 | F51: ='DEC-OS'!U51+'DEC-OH'!U51+'DEC-OI'!U51+'DBH-OS'!U51+'DBH-OH'!U51+'DBH-OI'!U51+XCLH!U51+XCLA!U51+DRFR!U51+DSFS!U51+DSTG!U51+XYM1!U51+XYM2!U51+XYM3E!U51+XYM4E!U51+SAGE!U51+'ABXY-TI1S'!U51+'ABXY-TI2S'!U51+ABZ!U51+'ASXY-TI1S'!U51+'ASXY-TI2S'!U51+'ASXY-TI3S'!U51+ASZ!U51+'MBXY-TI1S'!U51+'MBXY-TI2S'!U51+MBZ!U51+'MSXY-TI1S'!U51+'MSXY-TI2S'!U51++'MSXY-TI3S'!U51+MSZ!U51+'DEC-U'!U51+DECR!U51+'DBH-U'!U51+DBHR!U51+AMIL!U51 -> -3.403888045 | G51: ='DEC-OS'!V51+'DEC-OH'!V51+'DEC-OI'!V51+'DBH-OS'!V51+'DBH-OH'!V51+'DBH-OI'!V51+XCLH!V51+XCLA!V51+DRFR!V51+DSFS!V51+DSTG!V51+XYM1!V51+XYM2!V51+XYM3E!V51+XYM4E!V51+SAGE!V51+'ABXY-TI1S'!V51+'ABXY-TI2S'!V51+ABZ!V51+'ASXY-TI1S'!V51+'ASXY-TI2S'!V51+'ASXY-TI3S'!V51+ASZ!V51+'MBXY-TI1S'!V51+'MBXY-TI2S'!V51+MBZ!V51+'MSXY-TI1S'!V51+'MSXY-TI2S'!V51++'MSXY-TI3S'!V51+MSZ!V51+'DEC-U'!V51+DECR!V51+'DBH-U'!V51+DBHR!V51+AMIL!V51 -> 0.03257613347 | H51: 7.881929221 | I51: 18.8119009 | J51: 1.682068998 | K51: -0.06522917439 | L51: 2.021632715 | M51: -0.02705763589 | N51: =COS(Wellpath!$L51)*COS(Wellpath!$M51) -> 0.6427876097 | O51: =-SIN(Wellpath!$M51) -> 0 | P51: =SIN(Wellpath!$L51)*COS(Wellpath!$M51) -> 0.7660444431 | Q51: =COS(Wellpath!$L51)*SIN(Wellpath!$M51) -> 0 | R51: =COS(Wellpath!$M51) -> 1 | S51: =SIN(Wellpath!$L51)*SIN(Wellpath!$M51) -> 0 | T51: =-SIN(Wellpath!$L51) -> -0.7660444431 | U51: 0 | V51: =COS(Wellpath!$L51) -> 0.6427876097
A52: =Wellpath!E52 -> 1410 | B52: ='DEC-OS'!Q52+'DEC-OH'!Q52+'DEC-OI'!Q52+'DBH-OS'!Q52+'DBH-OH'!Q52+'DBH-OI'!Q52+XCLH!Q52+XCLA!Q52+DRFR!Q52+DSFS!Q52+DSTG!Q52+XYM1!Q52+XYM2!Q52+XYM3E!Q52+XYM4E!Q52+SAGE!Q52+'ABXY-TI1S'!Q52+'ABXY-TI2S'!Q52+ABZ!Q52+'ASXY-TI1S'!Q52+'ASXY-TI2S'!Q52+'ASXY-TI3S'!Q52+ASZ!Q52+'MBXY-TI1S'!Q52+'MBXY-TI2S'!Q52+MBZ!Q52+'MSXY-TI1S'!Q52+'MSXY-TI2S'!Q52++'MSXY-TI3S'!Q52+MSZ!Q52+'DEC-U'!Q52+DECR!Q52+'DBH-U'!Q52+DBHR!Q52+AMIL!Q52 -> 6.543832936 | C52: ='DEC-OS'!R52+'DEC-OH'!R52+'DEC-OI'!R52+'DBH-OS'!R52+'DBH-OH'!R52+'DBH-OI'!R52+XCLH!R52+XCLA!R52+DRFR!R52+DSFS!R52+DSTG!R52+XYM1!R52+XYM2!R52+XYM3E!R52+XYM4E!R52+SAGE!R52+'ABXY-TI1S'!R52+'ABXY-TI2S'!R52+ABZ!R52+'ASXY-TI1S'!R52+'ASXY-TI2S'!R52+'ASXY-TI3S'!R52+ASZ!R52+'MBXY-TI1S'!R52+'MBXY-TI2S'!R52+MBZ!R52+'MSXY-TI1S'!R52+'MSXY-TI2S'!R52++'MSXY-TI3S'!R52+MSZ!R52+'DEC-U'!R52+DECR!R52+'DBH-U'!R52+DBHR!R52+AMIL!R52 -> 20.61301148 | D52: ='DEC-OS'!S52+'DEC-OH'!S52+'DEC-OI'!S52+'DBH-OS'!S52+'DBH-OH'!S52+'DBH-OI'!S52+XCLH!S52+XCLA!S52+DRFR!S52+DSFS!S52+DSTG!S52+XYM1!S52+XYM2!S52+XYM3E!S52+XYM4E!S52+SAGE!S52+'ABXY-TI1S'!S52+'ABXY-TI2S'!S52+ABZ!S52+'ASXY-TI1S'!S52+'ASXY-TI2S'!S52+'ASXY-TI3S'!S52+ASZ!S52+'MBXY-TI1S'!S52+'MBXY-TI2S'!S52+MBZ!S52+'MSXY-TI1S'!S52+'MSXY-TI2S'!S52++'MSXY-TI3S'!S52+MSZ!S52+'DEC-U'!S52+DECR!S52+'DBH-U'!S52+DBHR!S52+AMIL!S52 -> 3.618695276 | E52: ='DEC-OS'!T52+'DEC-OH'!T52+'DEC-OI'!T52+'DBH-OS'!T52+'DBH-OH'!T52+'DBH-OI'!T52+XCLH!T52+XCLA!T52+DRFR!T52+DSFS!T52+DSTG!T52+XYM1!T52+XYM2!T52+XYM3E!T52+XYM4E!T52+SAGE!T52+'ABXY-TI1S'!T52+'ABXY-TI2S'!T52+ABZ!T52+'ASXY-TI1S'!T52+'ASXY-TI2S'!T52+'ASXY-TI3S'!T52+ASZ!T52+'MBXY-TI1S'!T52+'MBXY-TI2S'!T52+MBZ!T52+'MSXY-TI1S'!T52+'MSXY-TI2S'!T52++'MSXY-TI3S'!T52+MSZ!T52+'DEC-U'!T52+DECR!T52+'DBH-U'!T52+DBHR!T52+AMIL!T52 -> -0.06719516271 | F52: ='DEC-OS'!U52+'DEC-OH'!U52+'DEC-OI'!U52+'DBH-OS'!U52+'DBH-OH'!U52+'DBH-OI'!U52+XCLH!U52+XCLA!U52+DRFR!U52+DSFS!U52+DSTG!U52+XYM1!U52+XYM2!U52+XYM3E!U52+XYM4E!U52+SAGE!U52+'ABXY-TI1S'!U52+'ABXY-TI2S'!U52+ABZ!U52+'ASXY-TI1S'!U52+'ASXY-TI2S'!U52+'ASXY-TI3S'!U52+ASZ!U52+'MBXY-TI1S'!U52+'MBXY-TI2S'!U52+MBZ!U52+'MSXY-TI1S'!U52+'MSXY-TI2S'!U52++'MSXY-TI3S'!U52+MSZ!U52+'DEC-U'!U52+DECR!U52+'DBH-U'!U52+DBHR!U52+AMIL!U52 -> -3.675498955 | G52: ='DEC-OS'!V52+'DEC-OH'!V52+'DEC-OI'!V52+'DBH-OS'!V52+'DBH-OH'!V52+'DBH-OI'!V52+XCLH!V52+XCLA!V52+DRFR!V52+DSFS!V52+DSTG!V52+XYM1!V52+XYM2!V52+XYM3E!V52+XYM4E!V52+SAGE!V52+'ABXY-TI1S'!V52+'ABXY-TI2S'!V52+ABZ!V52+'ASXY-TI1S'!V52+'ASXY-TI2S'!V52+'ASXY-TI3S'!V52+ASZ!V52+'MBXY-TI1S'!V52+'MBXY-TI2S'!V52+MBZ!V52+'MSXY-TI1S'!V52+'MSXY-TI2S'!V52++'MSXY-TI3S'!V52+MSZ!V52+'DEC-U'!V52+DECR!V52+'DBH-U'!V52+DBHR!V52+AMIL!V52 -> 0.03604162922 | H52: 8.446951561 | I52: 20.61301148 | J52: 1.715576651 | K52: -0.0708017078 | L52: 2.078592819 | M52: -0.02830736831 | N52: =COS(Wellpath!$L52)*COS(Wellpath!$M52) -> 0.6427876097 | O52: =-SIN(Wellpath!$M52) -> 0 | P52: =SIN(Wellpath!$L52)*COS(Wellpath!$M52) -> 0.7660444431 | Q52: =COS(Wellpath!$L52)*SIN(Wellpath!$M52) -> 0 | R52: =COS(Wellpath!$M52) -> 1 | S52: =SIN(Wellpath!$L52)*SIN(Wellpath!$M52) -> 0 | T52: =-SIN(Wellpath!$L52) -> -0.7660444431 | U52: 0 | V52: =COS(Wellpath!$L52) -> 0.6427876097
A53: =Wellpath!E53 -> 1440 | B53: ='DEC-OS'!Q53+'DEC-OH'!Q53+'DEC-OI'!Q53+'DBH-OS'!Q53+'DBH-OH'!Q53+'DBH-OI'!Q53+XCLH!Q53+XCLA!Q53+DRFR!Q53+DSFS!Q53+DSTG!Q53+XYM1!Q53+XYM2!Q53+XYM3E!Q53+XYM4E!Q53+SAGE!Q53+'ABXY-TI1S'!Q53+'ABXY-TI2S'!Q53+ABZ!Q53+'ASXY-TI1S'!Q53+'ASXY-TI2S'!Q53+'ASXY-TI3S'!Q53+ASZ!Q53+'MBXY-TI1S'!Q53+'MBXY-TI2S'!Q53+MBZ!Q53+'MSXY-TI1S'!Q53+'MSXY-TI2S'!Q53++'MSXY-TI3S'!Q53+MSZ!Q53+'DEC-U'!Q53+DECR!Q53+'DBH-U'!Q53+DBHR!Q53+AMIL!Q53 -> 6.863232185 | C53: ='DEC-OS'!R53+'DEC-OH'!R53+'DEC-OI'!R53+'DBH-OS'!R53+'DBH-OH'!R53+'DBH-OI'!R53+XCLH!R53+XCLA!R53+DRFR!R53+DSFS!R53+DSTG!R53+XYM1!R53+XYM2!R53+XYM3E!R53+XYM4E!R53+SAGE!R53+'ABXY-TI1S'!R53+'ABXY-TI2S'!R53+ABZ!R53+'ASXY-TI1S'!R53+'ASXY-TI2S'!R53+'ASXY-TI3S'!R53+ASZ!R53+'MBXY-TI1S'!R53+'MBXY-TI2S'!R53+MBZ!R53+'MSXY-TI1S'!R53+'MSXY-TI2S'!R53++'MSXY-TI3S'!R53+MSZ!R53+'DEC-U'!R53+DECR!R53+'DBH-U'!R53+DBHR!R53+AMIL!R53 -> 22.50077409 | D53: ='DEC-OS'!S53+'DEC-OH'!S53+'DEC-OI'!S53+'DBH-OS'!S53+'DBH-OH'!S53+'DBH-OI'!S53+XCLH!S53+XCLA!S53+DRFR!S53+DSFS!S53+DSTG!S53+XYM1!S53+XYM2!S53+XYM3E!S53+XYM4E!S53+SAGE!S53+'ABXY-TI1S'!S53+'ABXY-TI2S'!S53+ABZ!S53+'ASXY-TI1S'!S53+'ASXY-TI2S'!S53+'ASXY-TI3S'!S53+ASZ!S53+'MBXY-TI1S'!S53+'MBXY-TI2S'!S53+MBZ!S53+'MSXY-TI1S'!S53+'MSXY-TI2S'!S53++'MSXY-TI3S'!S53+MSZ!S53+'DEC-U'!S53+DECR!S53+'DBH-U'!S53+DBHR!S53+AMIL!S53 -> 3.922027146 | E53: ='DEC-OS'!T53+'DEC-OH'!T53+'DEC-OI'!T53+'DBH-OS'!T53+'DBH-OH'!T53+'DBH-OI'!T53+XCLH!T53+XCLA!T53+DRFR!T53+DSFS!T53+DSTG!T53+XYM1!T53+XYM2!T53+XYM3E!T53+XYM4E!T53+SAGE!T53+'ABXY-TI1S'!T53+'ABXY-TI2S'!T53+ABZ!T53+'ASXY-TI1S'!T53+'ASXY-TI2S'!T53+'ASXY-TI3S'!T53+ASZ!T53+'MBXY-TI1S'!T53+'MBXY-TI2S'!T53+MBZ!T53+'MSXY-TI1S'!T53+'MSXY-TI2S'!T53++'MSXY-TI3S'!T53+MSZ!T53+'DEC-U'!T53+DECR!T53+'DBH-U'!T53+DBHR!T53+AMIL!T53 -> -0.07188371389 | F53: ='DEC-OS'!U53+'DEC-OH'!U53+'DEC-OI'!U53+'DBH-OS'!U53+'DBH-OH'!U53+'DBH-OI'!U53+XCLH!U53+XCLA!U53+DRFR!U53+DSFS!U53+DSTG!U53+XYM1!U53+XYM2!U53+XYM3E!U53+XYM4E!U53+SAGE!U53+'ABXY-TI1S'!U53+'ABXY-TI2S'!U53+ABZ!U53+'ASXY-TI1S'!U53+'ASXY-TI2S'!U53+'ASXY-TI3S'!U53+ASZ!U53+'MBXY-TI1S'!U53+'MBXY-TI2S'!U53+MBZ!U53+'MSXY-TI1S'!U53+'MSXY-TI2S'!U53++'MSXY-TI3S'!U53+MSZ!U53+'DEC-U'!U53+DECR!U53+'DBH-U'!U53+DBHR!U53+AMIL!U53 -> -3.957742873 | G53: ='DEC-OS'!V53+'DEC-OH'!V53+'DEC-OI'!V53+'DBH-OS'!V53+'DBH-OH'!V53+'DBH-OI'!V53+XCLH!V53+XCLA!V53+DRFR!V53+DSFS!V53+DSTG!V53+XYM1!V53+XYM2!V53+XYM3E!V53+XYM4E!V53+SAGE!V53+'ABXY-TI1S'!V53+'ABXY-TI2S'!V53+ABZ!V53+'ASXY-TI1S'!V53+'ASXY-TI2S'!V53+'ASXY-TI3S'!V53+ASZ!V53+'MBXY-TI1S'!V53+'MBXY-TI2S'!V53+MBZ!V53+'MSXY-TI1S'!V53+'MSXY-TI2S'!V53++'MSXY-TI3S'!V53+MSZ!V53+'DEC-U'!V53+DECR!V53+'DBH-U'!V53+DBHR!V53+AMIL!V53 -> 0.03968498842 | H53: 9.034878084 | I53: 22.50077409 | J53: 1.750381247 | K53: -0.07660642549 | L53: 2.1355156 | M53: -0.02955710073 | N53: =COS(Wellpath!$L53)*COS(Wellpath!$M53) -> 0.6427876097 | O53: =-SIN(Wellpath!$M53) -> 0 | P53: =SIN(Wellpath!$L53)*COS(Wellpath!$M53) -> 0.7660444431 | Q53: =COS(Wellpath!$L53)*SIN(Wellpath!$M53) -> 0 | R53: =COS(Wellpath!$M53) -> 1 | S53: =SIN(Wellpath!$L53)*SIN(Wellpath!$M53) -> 0 | T53: =-SIN(Wellpath!$L53) -> -0.7660444431 | U53: 0 | V53: =COS(Wellpath!$L53) -> 0.6427876097
A54: =Wellpath!E54 -> 1470 | B54: ='DEC-OS'!Q54+'DEC-OH'!Q54+'DEC-OI'!Q54+'DBH-OS'!Q54+'DBH-OH'!Q54+'DBH-OI'!Q54+XCLH!Q54+XCLA!Q54+DRFR!Q54+DSFS!Q54+DSTG!Q54+XYM1!Q54+XYM2!Q54+XYM3E!Q54+XYM4E!Q54+SAGE!Q54+'ABXY-TI1S'!Q54+'ABXY-TI2S'!Q54+ABZ!Q54+'ASXY-TI1S'!Q54+'ASXY-TI2S'!Q54+'ASXY-TI3S'!Q54+ASZ!Q54+'MBXY-TI1S'!Q54+'MBXY-TI2S'!Q54+MBZ!Q54+'MSXY-TI1S'!Q54+'MSXY-TI2S'!Q54++'MSXY-TI3S'!Q54+MSZ!Q54+'DEC-U'!Q54+DECR!Q54+'DBH-U'!Q54+DBHR!Q54+AMIL!Q54 -> 7.192836698 | C54: ='DEC-OS'!R54+'DEC-OH'!R54+'DEC-OI'!R54+'DBH-OS'!R54+'DBH-OH'!R54+'DBH-OI'!R54+XCLH!R54+XCLA!R54+DRFR!R54+DSFS!R54+DSTG!R54+XYM1!R54+XYM2!R54+XYM3E!R54+XYM4E!R54+SAGE!R54+'ABXY-TI1S'!R54+'ABXY-TI2S'!R54+ABZ!R54+'ASXY-TI1S'!R54+'ASXY-TI2S'!R54+'ASXY-TI3S'!R54+ASZ!R54+'MBXY-TI1S'!R54+'MBXY-TI2S'!R54+MBZ!R54+'MSXY-TI1S'!R54+'MSXY-TI2S'!R54++'MSXY-TI3S'!R54+MSZ!R54+'DEC-U'!R54+DECR!R54+'DBH-U'!R54+DBHR!R54+AMIL!R54 -> 24.47518874 | D54: ='DEC-OS'!S54+'DEC-OH'!S54+'DEC-OI'!S54+'DBH-OS'!S54+'DBH-OH'!S54+'DBH-OI'!S54+XCLH!S54+XCLA!S54+DRFR!S54+DSFS!S54+DSTG!S54+XYM1!S54+XYM2!S54+XYM3E!S54+XYM4E!S54+SAGE!S54+'ABXY-TI1S'!S54+'ABXY-TI2S'!S54+ABZ!S54+'ASXY-TI1S'!S54+'ASXY-TI2S'!S54+'ASXY-TI3S'!S54+ASZ!S54+'MBXY-TI1S'!S54+'MBXY-TI2S'!S54+MBZ!S54+'MSXY-TI1S'!S54+'MSXY-TI2S'!S54++'MSXY-TI3S'!S54+MSZ!S54+'DEC-U'!S54+DECR!S54+'DBH-U'!S54+DBHR!S54+AMIL!S54 -> 4.239385434 | E54: ='DEC-OS'!T54+'DEC-OH'!T54+'DEC-OI'!T54+'DBH-OS'!T54+'DBH-OH'!T54+'DBH-OI'!T54+XCLH!T54+XCLA!T54+DRFR!T54+DSFS!T54+DSTG!T54+XYM1!T54+XYM2!T54+XYM3E!T54+XYM4E!T54+SAGE!T54+'ABXY-TI1S'!T54+'ABXY-TI2S'!T54+ABZ!T54+'ASXY-TI1S'!T54+'ASXY-TI2S'!T54+'ASXY-TI3S'!T54+ASZ!T54+'MBXY-TI1S'!T54+'MBXY-TI2S'!T54+MBZ!T54+'MSXY-TI1S'!T54+'MSXY-TI2S'!T54++'MSXY-TI3S'!T54+MSZ!T54+'DEC-U'!T54+DECR!T54+'DBH-U'!T54+DBHR!T54+AMIL!T54 -> -0.07672151024 | F54: ='DEC-OS'!U54+'DEC-OH'!U54+'DEC-OI'!U54+'DBH-OS'!U54+'DBH-OH'!U54+'DBH-OI'!U54+XCLH!U54+XCLA!U54+DRFR!U54+DSFS!U54+DSTG!U54+XYM1!U54+XYM2!U54+XYM3E!U54+XYM4E!U54+SAGE!U54+'ABXY-TI1S'!U54+'ABXY-TI2S'!U54+ABZ!U54+'ASXY-TI1S'!U54+'ASXY-TI2S'!U54+'ASXY-TI3S'!U54+ASZ!U54+'MBXY-TI1S'!U54+'MBXY-TI2S'!U54+MBZ!U54+'MSXY-TI1S'!U54+'MSXY-TI2S'!U54++'MSXY-TI3S'!U54+MSZ!U54+'DEC-U'!U54+DECR!U54+'DBH-U'!U54+DBHR!U54+AMIL!U54 -> -4.250604676 | G54: ='DEC-OS'!V54+'DEC-OH'!V54+'DEC-OI'!V54+'DBH-OS'!V54+'DBH-OH'!V54+'DBH-OI'!V54+XCLH!V54+XCLA!V54+DRFR!V54+DSFS!V54+DSTG!V54+XYM1!V54+XYM2!V54+XYM3E!V54+XYM4E!V54+SAGE!V54+'ABXY-TI1S'!V54+'ABXY-TI2S'!V54+ABZ!V54+'ASXY-TI1S'!V54+'ASXY-TI2S'!V54+'ASXY-TI3S'!V54+ASZ!V54+'MBXY-TI1S'!V54+'MBXY-TI2S'!V54+MBZ!V54+'MSXY-TI1S'!V54+'MSXY-TI2S'!V54++'MSXY-TI3S'!V54+MSZ!V54+'DEC-U'!V54+DECR!V54+'DBH-U'!V54+DBHR!V54+AMIL!V54 -> 0.04350621109 | H54: 9.645708791 | I54: 24.47518874 | J54: 1.786513341 | K54: -0.08264332743 | L54: 2.192400607 | M54: -0.03080683315 | N54: =COS(Wellpath!$L54)*COS(Wellpath!$M54) -> 0.6427876097 | O54: =-SIN(Wellpath!$M54) -> 0 | P54: =SIN(Wellpath!$L54)*COS(Wellpath!$M54) -> 0.7660444431 | Q54: =COS(Wellpath!$L54)*SIN(Wellpath!$M54) -> 0 | R54: =COS(Wellpath!$M54) -> 1 | S54: =SIN(Wellpath!$L54)*SIN(Wellpath!$M54) -> 0 | T54: =-SIN(Wellpath!$L54) -> -0.7660444431 | U54: 0 | V54: =COS(Wellpath!$L54) -> 0.6427876097
A55: =Wellpath!E55 -> 1500 | B55: ='DEC-OS'!Q55+'DEC-OH'!Q55+'DEC-OI'!Q55+'DBH-OS'!Q55+'DBH-OH'!Q55+'DBH-OI'!Q55+XCLH!Q55+XCLA!Q55+DRFR!Q55+DSFS!Q55+DSTG!Q55+XYM1!Q55+XYM2!Q55+XYM3E!Q55+XYM4E!Q55+SAGE!Q55+'ABXY-TI1S'!Q55+'ABXY-TI2S'!Q55+ABZ!Q55+'ASXY-TI1S'!Q55+'ASXY-TI2S'!Q55+'ASXY-TI3S'!Q55+ASZ!Q55+'MBXY-TI1S'!Q55+'MBXY-TI2S'!Q55+MBZ!Q55+'MSXY-TI1S'!Q55+'MSXY-TI2S'!Q55++'MSXY-TI3S'!Q55+MSZ!Q55+'DEC-U'!Q55+DECR!Q55+'DBH-U'!Q55+DBHR!Q55+AMIL!Q55 -> 7.532664636 | C55: ='DEC-OS'!R55+'DEC-OH'!R55+'DEC-OI'!R55+'DBH-OS'!R55+'DBH-OH'!R55+'DBH-OI'!R55+XCLH!R55+XCLA!R55+DRFR!R55+DSFS!R55+DSTG!R55+XYM1!R55+XYM2!R55+XYM3E!R55+XYM4E!R55+SAGE!R55+'ABXY-TI1S'!R55+'ABXY-TI2S'!R55+ABZ!R55+'ASXY-TI1S'!R55+'ASXY-TI2S'!R55+'ASXY-TI3S'!R55+ASZ!R55+'MBXY-TI1S'!R55+'MBXY-TI2S'!R55+MBZ!R55+'MSXY-TI1S'!R55+'MSXY-TI2S'!R55++'MSXY-TI3S'!R55+MSZ!R55+'DEC-U'!R55+DECR!R55+'DBH-U'!R55+DBHR!R55+AMIL!R55 -> 26.53625543 | D55: ='DEC-OS'!S55+'DEC-OH'!S55+'DEC-OI'!S55+'DBH-OS'!S55+'DBH-OH'!S55+'DBH-OI'!S55+XCLH!S55+XCLA!S55+DRFR!S55+DSFS!S55+DSTG!S55+XYM1!S55+XYM2!S55+XYM3E!S55+XYM4E!S55+SAGE!S55+'ABXY-TI1S'!S55+'ABXY-TI2S'!S55+ABZ!S55+'ASXY-TI1S'!S55+'ASXY-TI2S'!S55+'ASXY-TI3S'!S55+ASZ!S55+'MBXY-TI1S'!S55+'MBXY-TI2S'!S55+MBZ!S55+'MSXY-TI1S'!S55+'MSXY-TI2S'!S55++'MSXY-TI3S'!S55+MSZ!S55+'DEC-U'!S55+DECR!S55+'DBH-U'!S55+DBHR!S55+AMIL!S55 -> 4.570783747 | E55: ='DEC-OS'!T55+'DEC-OH'!T55+'DEC-OI'!T55+'DBH-OS'!T55+'DBH-OH'!T55+'DBH-OI'!T55+XCLH!T55+XCLA!T55+DRFR!T55+DSFS!T55+DSTG!T55+XYM1!T55+XYM2!T55+XYM3E!T55+XYM4E!T55+SAGE!T55+'ABXY-TI1S'!T55+'ABXY-TI2S'!T55+ABZ!T55+'ASXY-TI1S'!T55+'ASXY-TI2S'!T55+'ASXY-TI3S'!T55+ASZ!T55+'MBXY-TI1S'!T55+'MBXY-TI2S'!T55+MBZ!T55+'MSXY-TI1S'!T55+'MSXY-TI2S'!T55++'MSXY-TI3S'!T55+MSZ!T55+'DEC-U'!T55+DECR!T55+'DBH-U'!T55+DBHR!T55+AMIL!T55 -> -0.08170855175 | F55: ='DEC-OS'!U55+'DEC-OH'!U55+'DEC-OI'!U55+'DBH-OS'!U55+'DBH-OH'!U55+'DBH-OI'!U55+XCLH!U55+XCLA!U55+DRFR!U55+DSFS!U55+DSTG!U55+XYM1!U55+XYM2!U55+XYM3E!U55+XYM4E!U55+SAGE!U55+'ABXY-TI1S'!U55+'ABXY-TI2S'!U55+ABZ!U55+'ASXY-TI1S'!U55+'ASXY-TI2S'!U55+'ASXY-TI3S'!U55+ASZ!U55+'MBXY-TI1S'!U55+'MBXY-TI2S'!U55+MBZ!U55+'MSXY-TI1S'!U55+'MSXY-TI2S'!U55++'MSXY-TI3S'!U55+MSZ!U55+'DEC-U'!U55+DECR!U55+'DBH-U'!U55+DBHR!U55+AMIL!U55 -> -4.554068634 | G55: ='DEC-OS'!V55+'DEC-OH'!V55+'DEC-OI'!V55+'DBH-OS'!V55+'DBH-OH'!V55+'DBH-OI'!V55+XCLH!V55+XCLA!V55+DRFR!V55+DSFS!V55+DSTG!V55+XYM1!V55+XYM2!V55+XYM3E!V55+XYM4E!V55+SAGE!V55+'ABXY-TI1S'!V55+'ABXY-TI2S'!V55+ABZ!V55+'ASXY-TI1S'!V55+'ASXY-TI2S'!V55+'ASXY-TI3S'!V55+ASZ!V55+'MBXY-TI1S'!V55+'MBXY-TI2S'!V55+MBZ!V55+'MSXY-TI1S'!V55+'MSXY-TI2S'!V55++'MSXY-TI3S'!V55+MSZ!V55+'DEC-U'!V55+DECR!V55+'DBH-U'!V55+DBHR!V55+AMIL!V55 -> 0.04750529723 | H55: 10.27944368 | I55: 26.53625543 | J55: 1.824004702 | K55: -0.08891241363 | L55: 2.249247351 | M55: -0.03205656557 | N55: =COS(Wellpath!$L55)*COS(Wellpath!$M55) -> 0.6427876097 | O55: =-SIN(Wellpath!$M55) -> 0 | P55: =SIN(Wellpath!$L55)*COS(Wellpath!$M55) -> 0.7660444431 | Q55: =COS(Wellpath!$L55)*SIN(Wellpath!$M55) -> 0 | R55: =COS(Wellpath!$M55) -> 1 | S55: =SIN(Wellpath!$L55)*SIN(Wellpath!$M55) -> 0 | T55: =-SIN(Wellpath!$L55) -> -0.7660444431 | U55: 0 | V55: =COS(Wellpath!$L55) -> 0.6427876097
A56: =Wellpath!E56 -> 1530 | B56: ='DEC-OS'!Q56+'DEC-OH'!Q56+'DEC-OI'!Q56+'DBH-OS'!Q56+'DBH-OH'!Q56+'DBH-OI'!Q56+XCLH!Q56+XCLA!Q56+DRFR!Q56+DSFS!Q56+DSTG!Q56+XYM1!Q56+XYM2!Q56+XYM3E!Q56+XYM4E!Q56+SAGE!Q56+'ABXY-TI1S'!Q56+'ABXY-TI2S'!Q56+ABZ!Q56+'ASXY-TI1S'!Q56+'ASXY-TI2S'!Q56+'ASXY-TI3S'!Q56+ASZ!Q56+'MBXY-TI1S'!Q56+'MBXY-TI2S'!Q56+MBZ!Q56+'MSXY-TI1S'!Q56+'MSXY-TI2S'!Q56++'MSXY-TI3S'!Q56+MSZ!Q56+'DEC-U'!Q56+DECR!Q56+'DBH-U'!Q56+DBHR!Q56+AMIL!Q56 -> 7.882730253 | C56: ='DEC-OS'!R56+'DEC-OH'!R56+'DEC-OI'!R56+'DBH-OS'!R56+'DBH-OH'!R56+'DBH-OI'!R56+XCLH!R56+XCLA!R56+DRFR!R56+DSFS!R56+DSTG!R56+XYM1!R56+XYM2!R56+XYM3E!R56+XYM4E!R56+SAGE!R56+'ABXY-TI1S'!R56+'ABXY-TI2S'!R56+ABZ!R56+'ASXY-TI1S'!R56+'ASXY-TI2S'!R56+'ASXY-TI3S'!R56+ASZ!R56+'MBXY-TI1S'!R56+'MBXY-TI2S'!R56+MBZ!R56+'MSXY-TI1S'!R56+'MSXY-TI2S'!R56++'MSXY-TI3S'!R56+MSZ!R56+'DEC-U'!R56+DECR!R56+'DBH-U'!R56+DBHR!R56+AMIL!R56 -> 28.68397415 | D56: ='DEC-OS'!S56+'DEC-OH'!S56+'DEC-OI'!S56+'DBH-OS'!S56+'DBH-OH'!S56+'DBH-OI'!S56+XCLH!S56+XCLA!S56+DRFR!S56+DSFS!S56+DSTG!S56+XYM1!S56+XYM2!S56+XYM3E!S56+XYM4E!S56+SAGE!S56+'ABXY-TI1S'!S56+'ABXY-TI2S'!S56+ABZ!S56+'ASXY-TI1S'!S56+'ASXY-TI2S'!S56+'ASXY-TI3S'!S56+ASZ!S56+'MBXY-TI1S'!S56+'MBXY-TI2S'!S56+MBZ!S56+'MSXY-TI1S'!S56+'MSXY-TI2S'!S56++'MSXY-TI3S'!S56+MSZ!S56+'DEC-U'!S56+DECR!S56+'DBH-U'!S56+DBHR!S56+AMIL!S56 -> 4.916230493 | E56: ='DEC-OS'!T56+'DEC-OH'!T56+'DEC-OI'!T56+'DBH-OS'!T56+'DBH-OH'!T56+'DBH-OI'!T56+XCLH!T56+XCLA!T56+DRFR!T56+DSFS!T56+DSTG!T56+XYM1!T56+XYM2!T56+XYM3E!T56+XYM4E!T56+SAGE!T56+'ABXY-TI1S'!T56+'ABXY-TI2S'!T56+ABZ!T56+'ASXY-TI1S'!T56+'ASXY-TI2S'!T56+'ASXY-TI3S'!T56+ASZ!T56+'MBXY-TI1S'!T56+'MBXY-TI2S'!T56+MBZ!T56+'MSXY-TI1S'!T56+'MSXY-TI2S'!T56++'MSXY-TI3S'!T56+MSZ!T56+'DEC-U'!T56+DECR!T56+'DBH-U'!T56+DBHR!T56+AMIL!T56 -> -0.08684483843 | F56: ='DEC-OS'!U56+'DEC-OH'!U56+'DEC-OI'!U56+'DBH-OS'!U56+'DBH-OH'!U56+'DBH-OI'!U56+XCLH!U56+XCLA!U56+DRFR!U56+DSFS!U56+DSTG!U56+XYM1!U56+XYM2!U56+XYM3E!U56+XYM4E!U56+SAGE!U56+'ABXY-TI1S'!U56+'ABXY-TI2S'!U56+ABZ!U56+'ASXY-TI1S'!U56+'ASXY-TI2S'!U56+'ASXY-TI3S'!U56+ASZ!U56+'MBXY-TI1S'!U56+'MBXY-TI2S'!U56+MBZ!U56+'MSXY-TI1S'!U56+'MSXY-TI2S'!U56++'MSXY-TI3S'!U56+MSZ!U56+'DEC-U'!U56+DECR!U56+'DBH-U'!U56+DBHR!U56+AMIL!U56 -> -4.86812376 | G56: ='DEC-OS'!V56+'DEC-OH'!V56+'DEC-OI'!V56+'DBH-OS'!V56+'DBH-OH'!V56+'DBH-OI'!V56+XCLH!V56+XCLA!V56+DRFR!V56+DSFS!V56+DSTG!V56+XYM1!V56+XYM2!V56+XYM3E!V56+XYM4E!V56+SAGE!V56+'ABXY-TI1S'!V56+'ABXY-TI2S'!V56+ABZ!V56+'ASXY-TI1S'!V56+'ASXY-TI2S'!V56+'ASXY-TI3S'!V56+ASZ!V56+'MBXY-TI1S'!V56+'MBXY-TI2S'!V56+MBZ!V56+'MSXY-TI1S'!V56+'MSXY-TI2S'!V56++'MSXY-TI3S'!V56+MSZ!V56+'DEC-U'!V56+DECR!V56+'DBH-U'!V56+DBHR!V56+AMIL!V56 -> 0.05168224683 | H56: 10.93608276 | I56: 28.68397415 | J56: 1.86287799 | K56: -0.0954136841 | L56: 2.306056801 | M56: -0.03330629799 | N56: =COS(Wellpath!$L56)*COS(Wellpath!$M56) -> 0.6427876097 | O56: =-SIN(Wellpath!$M56) -> 0 | P56: =SIN(Wellpath!$L56)*COS(Wellpath!$M56) -> 0.7660444431 | Q56: =COS(Wellpath!$L56)*SIN(Wellpath!$M56) -> 0 | R56: =COS(Wellpath!$M56) -> 1 | S56: =SIN(Wellpath!$L56)*SIN(Wellpath!$M56) -> 0 | T56: =-SIN(Wellpath!$L56) -> -0.7660444431 | U56: 0 | V56: =COS(Wellpath!$L56) -> 0.6427876097
A57: =Wellpath!E57 -> 1560 | B57: ='DEC-OS'!Q57+'DEC-OH'!Q57+'DEC-OI'!Q57+'DBH-OS'!Q57+'DBH-OH'!Q57+'DBH-OI'!Q57+XCLH!Q57+XCLA!Q57+DRFR!Q57+DSFS!Q57+DSTG!Q57+XYM1!Q57+XYM2!Q57+XYM3E!Q57+XYM4E!Q57+SAGE!Q57+'ABXY-TI1S'!Q57+'ABXY-TI2S'!Q57+ABZ!Q57+'ASXY-TI1S'!Q57+'ASXY-TI2S'!Q57+'ASXY-TI3S'!Q57+ASZ!Q57+'MBXY-TI1S'!Q57+'MBXY-TI2S'!Q57+MBZ!Q57+'MSXY-TI1S'!Q57+'MSXY-TI2S'!Q57++'MSXY-TI3S'!Q57+MSZ!Q57+'DEC-U'!Q57+DECR!Q57+'DBH-U'!Q57+DBHR!Q57+AMIL!Q57 -> 8.243053845 | C57: ='DEC-OS'!R57+'DEC-OH'!R57+'DEC-OI'!R57+'DBH-OS'!R57+'DBH-OH'!R57+'DBH-OI'!R57+XCLH!R57+XCLA!R57+DRFR!R57+DSFS!R57+DSTG!R57+XYM1!R57+XYM2!R57+XYM3E!R57+XYM4E!R57+SAGE!R57+'ABXY-TI1S'!R57+'ABXY-TI2S'!R57+ABZ!R57+'ASXY-TI1S'!R57+'ASXY-TI2S'!R57+'ASXY-TI3S'!R57+ASZ!R57+'MBXY-TI1S'!R57+'MBXY-TI2S'!R57+MBZ!R57+'MSXY-TI1S'!R57+'MSXY-TI2S'!R57++'MSXY-TI3S'!R57+MSZ!R57+'DEC-U'!R57+DECR!R57+'DBH-U'!R57+DBHR!R57+AMIL!R57 -> 30.9183449 | D57: ='DEC-OS'!S57+'DEC-OH'!S57+'DEC-OI'!S57+'DBH-OS'!S57+'DBH-OH'!S57+'DBH-OI'!S57+XCLH!S57+XCLA!S57+DRFR!S57+DSFS!S57+DSTG!S57+XYM1!S57+XYM2!S57+XYM3E!S57+XYM4E!S57+SAGE!S57+'ABXY-TI1S'!S57+'ABXY-TI2S'!S57+ABZ!S57+'ASXY-TI1S'!S57+'ASXY-TI2S'!S57+'ASXY-TI3S'!S57+ASZ!S57+'MBXY-TI1S'!S57+'MBXY-TI2S'!S57+MBZ!S57+'MSXY-TI1S'!S57+'MSXY-TI2S'!S57++'MSXY-TI3S'!S57+MSZ!S57+'DEC-U'!S57+DECR!S57+'DBH-U'!S57+DBHR!S57+AMIL!S57 -> 5.275741624 | E57: ='DEC-OS'!T57+'DEC-OH'!T57+'DEC-OI'!T57+'DBH-OS'!T57+'DBH-OH'!T57+'DBH-OI'!T57+XCLH!T57+XCLA!T57+DRFR!T57+DSFS!T57+DSTG!T57+XYM1!T57+XYM2!T57+XYM3E!T57+XYM4E!T57+SAGE!T57+'ABXY-TI1S'!T57+'ABXY-TI2S'!T57+ABZ!T57+'ASXY-TI1S'!T57+'ASXY-TI2S'!T57+'ASXY-TI3S'!T57+ASZ!T57+'MBXY-TI1S'!T57+'MBXY-TI2S'!T57+MBZ!T57+'MSXY-TI1S'!T57+'MSXY-TI2S'!T57++'MSXY-TI3S'!T57+MSZ!T57+'DEC-U'!T57+DECR!T57+'DBH-U'!T57+DBHR!T57+AMIL!T57 -> -0.09213037028 | F57: ='DEC-OS'!U57+'DEC-OH'!U57+'DEC-OI'!U57+'DBH-OS'!U57+'DBH-OH'!U57+'DBH-OI'!U57+XCLH!U57+XCLA!U57+DRFR!U57+DSFS!U57+DSTG!U57+XYM1!U57+XYM2!U57+XYM3E!U57+XYM4E!U57+SAGE!U57+'ABXY-TI1S'!U57+'ABXY-TI2S'!U57+ABZ!U57+'ASXY-TI1S'!U57+'ASXY-TI2S'!U57+'ASXY-TI3S'!U57+ASZ!U57+'MBXY-TI1S'!U57+'MBXY-TI2S'!U57+MBZ!U57+'MSXY-TI1S'!U57+'MSXY-TI2S'!U57++'MSXY-TI3S'!U57+MSZ!U57+'DEC-U'!U57+DECR!U57+'DBH-U'!U57+DBHR!U57+AMIL!U57 -> -5.19275203 | G57: ='DEC-OS'!V57+'DEC-OH'!V57+'DEC-OI'!V57+'DBH-OS'!V57+'DBH-OH'!V57+'DBH-OI'!V57+XCLH!V57+XCLA!V57+DRFR!V57+DSFS!V57+DSTG!V57+XYM1!V57+XYM2!V57+XYM3E!V57+XYM4E!V57+SAGE!V57+'ABXY-TI1S'!V57+'ABXY-TI2S'!V57+ABZ!V57+'ASXY-TI1S'!V57+'ASXY-TI2S'!V57+'ASXY-TI3S'!V57+ASZ!V57+'MBXY-TI1S'!V57+'MBXY-TI2S'!V57+MBZ!V57+'MSXY-TI1S'!V57+'MSXY-TI2S'!V57++'MSXY-TI3S'!V57+MSZ!V57+'DEC-U'!V57+DECR!V57+'DBH-U'!V57+DBHR!V57+AMIL!V57 -> 0.05603705989 | H57: 11.61562601 | I57: 30.9183449 | J57: 1.903169456 | K57: -0.1021471388 | L57: 2.362827967 | M57: -0.03455603041 | N57: =COS(Wellpath!$L57)*COS(Wellpath!$M57) -> 0.6427876097 | O57: =-SIN(Wellpath!$M57) -> 0 | P57: =SIN(Wellpath!$L57)*COS(Wellpath!$M57) -> 0.7660444431 | Q57: =COS(Wellpath!$L57)*SIN(Wellpath!$M57) -> 0 | R57: =COS(Wellpath!$M57) -> 1 | S57: =SIN(Wellpath!$L57)*SIN(Wellpath!$M57) -> 0 | T57: =-SIN(Wellpath!$L57) -> -0.7660444431 | U57: 0 | V57: =COS(Wellpath!$L57) -> 0.6427876097
A58: =Wellpath!E58 -> 1590 | B58: ='DEC-OS'!Q58+'DEC-OH'!Q58+'DEC-OI'!Q58+'DBH-OS'!Q58+'DBH-OH'!Q58+'DBH-OI'!Q58+XCLH!Q58+XCLA!Q58+DRFR!Q58+DSFS!Q58+DSTG!Q58+XYM1!Q58+XYM2!Q58+XYM3E!Q58+XYM4E!Q58+SAGE!Q58+'ABXY-TI1S'!Q58+'ABXY-TI2S'!Q58+ABZ!Q58+'ASXY-TI1S'!Q58+'ASXY-TI2S'!Q58+'ASXY-TI3S'!Q58+ASZ!Q58+'MBXY-TI1S'!Q58+'MBXY-TI2S'!Q58+MBZ!Q58+'MSXY-TI1S'!Q58+'MSXY-TI2S'!Q58++'MSXY-TI3S'!Q58+MSZ!Q58+'DEC-U'!Q58+DECR!Q58+'DBH-U'!Q58+DBHR!Q58+AMIL!Q58 -> 8.613649836 | C58: ='DEC-OS'!R58+'DEC-OH'!R58+'DEC-OI'!R58+'DBH-OS'!R58+'DBH-OH'!R58+'DBH-OI'!R58+XCLH!R58+XCLA!R58+DRFR!R58+DSFS!R58+DSTG!R58+XYM1!R58+XYM2!R58+XYM3E!R58+XYM4E!R58+SAGE!R58+'ABXY-TI1S'!R58+'ABXY-TI2S'!R58+ABZ!R58+'ASXY-TI1S'!R58+'ASXY-TI2S'!R58+'ASXY-TI3S'!R58+ASZ!R58+'MBXY-TI1S'!R58+'MBXY-TI2S'!R58+MBZ!R58+'MSXY-TI1S'!R58+'MSXY-TI2S'!R58++'MSXY-TI3S'!R58+MSZ!R58+'DEC-U'!R58+DECR!R58+'DBH-U'!R58+DBHR!R58+AMIL!R58 -> 33.23936769 | D58: ='DEC-OS'!S58+'DEC-OH'!S58+'DEC-OI'!S58+'DBH-OS'!S58+'DBH-OH'!S58+'DBH-OI'!S58+XCLH!S58+XCLA!S58+DRFR!S58+DSFS!S58+DSTG!S58+XYM1!S58+XYM2!S58+XYM3E!S58+XYM4E!S58+SAGE!S58+'ABXY-TI1S'!S58+'ABXY-TI2S'!S58+ABZ!S58+'ASXY-TI1S'!S58+'ASXY-TI2S'!S58+'ASXY-TI3S'!S58+ASZ!S58+'MBXY-TI1S'!S58+'MBXY-TI2S'!S58+MBZ!S58+'MSXY-TI1S'!S58+'MSXY-TI2S'!S58++'MSXY-TI3S'!S58+MSZ!S58+'DEC-U'!S58+DECR!S58+'DBH-U'!S58+DBHR!S58+AMIL!S58 -> 5.649325601 | E58: ='DEC-OS'!T58+'DEC-OH'!T58+'DEC-OI'!T58+'DBH-OS'!T58+'DBH-OH'!T58+'DBH-OI'!T58+XCLH!T58+XCLA!T58+DRFR!T58+DSFS!T58+DSTG!T58+XYM1!T58+XYM2!T58+XYM3E!T58+XYM4E!T58+SAGE!T58+'ABXY-TI1S'!T58+'ABXY-TI2S'!T58+ABZ!T58+'ASXY-TI1S'!T58+'ASXY-TI2S'!T58+'ASXY-TI3S'!T58+ASZ!T58+'MBXY-TI1S'!T58+'MBXY-TI2S'!T58+MBZ!T58+'MSXY-TI1S'!T58+'MSXY-TI2S'!T58++'MSXY-TI3S'!T58+MSZ!T58+'DEC-U'!T58+DECR!T58+'DBH-U'!T58+DBHR!T58+AMIL!T58 -> -0.09756514729 | F58: ='DEC-OS'!U58+'DEC-OH'!U58+'DEC-OI'!U58+'DBH-OS'!U58+'DBH-OH'!U58+'DBH-OI'!U58+XCLH!U58+XCLA!U58+DRFR!U58+DSFS!U58+DSTG!U58+XYM1!U58+XYM2!U58+XYM3E!U58+XYM4E!U58+SAGE!U58+'ABXY-TI1S'!U58+'ABXY-TI2S'!U58+ABZ!U58+'ASXY-TI1S'!U58+'ASXY-TI2S'!U58+'ASXY-TI3S'!U58+ASZ!U58+'MBXY-TI1S'!U58+'MBXY-TI2S'!U58+MBZ!U58+'MSXY-TI1S'!U58+'MSXY-TI2S'!U58++'MSXY-TI3S'!U58+MSZ!U58+'DEC-U'!U58+DECR!U58+'DBH-U'!U58+DBHR!U58+AMIL!U58 -> -5.527942352 | G58: ='DEC-OS'!V58+'DEC-OH'!V58+'DEC-OI'!V58+'DBH-OS'!V58+'DBH-OH'!V58+'DBH-OI'!V58+XCLH!V58+XCLA!V58+DRFR!V58+DSFS!V58+DSTG!V58+XYM1!V58+XYM2!V58+XYM3E!V58+XYM4E!V58+SAGE!V58+'ABXY-TI1S'!V58+'ABXY-TI2S'!V58+ABZ!V58+'ASXY-TI1S'!V58+'ASXY-TI2S'!V58+'ASXY-TI3S'!V58+ASZ!V58+'MBXY-TI1S'!V58+'MBXY-TI2S'!V58+MBZ!V58+'MSXY-TI1S'!V58+'MSXY-TI2S'!V58++'MSXY-TI3S'!V58+MSZ!V58+'DEC-U'!V58+DECR!V58+'DBH-U'!V58+DBHR!V58+AMIL!V58 -> 0.06056973641 | H58: 12.31807345 | I58: 33.23936769 | J58: 1.944901983 | K58: -0.1091127778 | L58: 2.41956186 | M58: -0.03580576284 | N58: =COS(Wellpath!$L58)*COS(Wellpath!$M58) -> 0.6427876097 | O58: =-SIN(Wellpath!$M58) -> 0 | P58: =SIN(Wellpath!$L58)*COS(Wellpath!$M58) -> 0.7660444431 | Q58: =COS(Wellpath!$L58)*SIN(Wellpath!$M58) -> 0 | R58: =COS(Wellpath!$M58) -> 1 | S58: =SIN(Wellpath!$L58)*SIN(Wellpath!$M58) -> 0 | T58: =-SIN(Wellpath!$L58) -> -0.7660444431 | U58: 0 | V58: =COS(Wellpath!$L58) -> 0.6427876097
A59: =Wellpath!E59 -> 1620 | B59: ='DEC-OS'!Q59+'DEC-OH'!Q59+'DEC-OI'!Q59+'DBH-OS'!Q59+'DBH-OH'!Q59+'DBH-OI'!Q59+XCLH!Q59+XCLA!Q59+DRFR!Q59+DSFS!Q59+DSTG!Q59+XYM1!Q59+XYM2!Q59+XYM3E!Q59+XYM4E!Q59+SAGE!Q59+'ABXY-TI1S'!Q59+'ABXY-TI2S'!Q59+ABZ!Q59+'ASXY-TI1S'!Q59+'ASXY-TI2S'!Q59+'ASXY-TI3S'!Q59+ASZ!Q59+'MBXY-TI1S'!Q59+'MBXY-TI2S'!Q59+MBZ!Q59+'MSXY-TI1S'!Q59+'MSXY-TI2S'!Q59++'MSXY-TI3S'!Q59+MSZ!Q59+'DEC-U'!Q59+DECR!Q59+'DBH-U'!Q59+DBHR!Q59+AMIL!Q59 -> 8.994537667 | C59: ='DEC-OS'!R59+'DEC-OH'!R59+'DEC-OI'!R59+'DBH-OS'!R59+'DBH-OH'!R59+'DBH-OI'!R59+XCLH!R59+XCLA!R59+DRFR!R59+DSFS!R59+DSTG!R59+XYM1!R59+XYM2!R59+XYM3E!R59+XYM4E!R59+SAGE!R59+'ABXY-TI1S'!R59+'ABXY-TI2S'!R59+ABZ!R59+'ASXY-TI1S'!R59+'ASXY-TI2S'!R59+'ASXY-TI3S'!R59+ASZ!R59+'MBXY-TI1S'!R59+'MBXY-TI2S'!R59+MBZ!R59+'MSXY-TI1S'!R59+'MSXY-TI2S'!R59++'MSXY-TI3S'!R59+MSZ!R59+'DEC-U'!R59+DECR!R59+'DBH-U'!R59+DBHR!R59+AMIL!R59 -> 35.64704252 | D59: ='DEC-OS'!S59+'DEC-OH'!S59+'DEC-OI'!S59+'DBH-OS'!S59+'DBH-OH'!S59+'DBH-OI'!S59+XCLH!S59+XCLA!S59+DRFR!S59+DSFS!S59+DSTG!S59+XYM1!S59+XYM2!S59+XYM3E!S59+XYM4E!S59+SAGE!S59+'ABXY-TI1S'!S59+'ABXY-TI2S'!S59+ABZ!S59+'ASXY-TI1S'!S59+'ASXY-TI2S'!S59+'ASXY-TI3S'!S59+ASZ!S59+'MBXY-TI1S'!S59+'MBXY-TI2S'!S59+MBZ!S59+'MSXY-TI1S'!S59+'MSXY-TI2S'!S59++'MSXY-TI3S'!S59+MSZ!S59+'DEC-U'!S59+DECR!S59+'DBH-U'!S59+DBHR!S59+AMIL!S59 -> 6.036996953 | E59: ='DEC-OS'!T59+'DEC-OH'!T59+'DEC-OI'!T59+'DBH-OS'!T59+'DBH-OH'!T59+'DBH-OI'!T59+XCLH!T59+XCLA!T59+DRFR!T59+DSFS!T59+DSTG!T59+XYM1!T59+XYM2!T59+XYM3E!T59+XYM4E!T59+SAGE!T59+'ABXY-TI1S'!T59+'ABXY-TI2S'!T59+ABZ!T59+'ASXY-TI1S'!T59+'ASXY-TI2S'!T59+'ASXY-TI3S'!T59+ASZ!T59+'MBXY-TI1S'!T59+'MBXY-TI2S'!T59+MBZ!T59+'MSXY-TI1S'!T59+'MSXY-TI2S'!T59++'MSXY-TI3S'!T59+MSZ!T59+'DEC-U'!T59+DECR!T59+'DBH-U'!T59+DBHR!T59+AMIL!T59 -> -0.1031491695 | F59: ='DEC-OS'!U59+'DEC-OH'!U59+'DEC-OI'!U59+'DBH-OS'!U59+'DBH-OH'!U59+'DBH-OI'!U59+XCLH!U59+XCLA!U59+DRFR!U59+DSFS!U59+DSTG!U59+XYM1!U59+XYM2!U59+XYM3E!U59+XYM4E!U59+SAGE!U59+'ABXY-TI1S'!U59+'ABXY-TI2S'!U59+ABZ!U59+'ASXY-TI1S'!U59+'ASXY-TI2S'!U59+'ASXY-TI3S'!U59+ASZ!U59+'MBXY-TI1S'!U59+'MBXY-TI2S'!U59+MBZ!U59+'MSXY-TI1S'!U59+'MSXY-TI2S'!U59++'MSXY-TI3S'!U59+MSZ!U59+'DEC-U'!U59+DECR!U59+'DBH-U'!U59+DBHR!U59+AMIL!U59 -> -5.873677912 | G59: ='DEC-OS'!V59+'DEC-OH'!V59+'DEC-OI'!V59+'DBH-OS'!V59+'DBH-OH'!V59+'DBH-OI'!V59+XCLH!V59+XCLA!V59+DRFR!V59+DSFS!V59+DSTG!V59+XYM1!V59+XYM2!V59+XYM3E!V59+XYM4E!V59+SAGE!V59+'ABXY-TI1S'!V59+'ABXY-TI2S'!V59+ABZ!V59+'ASXY-TI1S'!V59+'ASXY-TI2S'!V59+'ASXY-TI3S'!V59+ASZ!V59+'MBXY-TI1S'!V59+'MBXY-TI2S'!V59+MBZ!V59+'MSXY-TI1S'!V59+'MSXY-TI2S'!V59++'MSXY-TI3S'!V59+MSZ!V59+'DEC-U'!V59+DECR!V59+'DBH-U'!V59+DBHR!V59+AMIL!V59 -> 0.0652802764 | H59: 13.04342508 | I59: 35.64704252 | J59: 1.988109541 | K59: -0.1163106011 | L59: 2.476257978 | M59: -0.03705549526 | N59: =COS(Wellpath!$L59)*COS(Wellpath!$M59) -> 0.6427876097 | O59: =-SIN(Wellpath!$M59) -> 0 | P59: =SIN(Wellpath!$L59)*COS(Wellpath!$M59) -> 0.7660444431 | Q59: =COS(Wellpath!$L59)*SIN(Wellpath!$M59) -> 0 | R59: =COS(Wellpath!$M59) -> 1 | S59: =SIN(Wellpath!$L59)*SIN(Wellpath!$M59) -> 0 | T59: =-SIN(Wellpath!$L59) -> -0.7660444431 | U59: 0 | V59: =COS(Wellpath!$L59) -> 0.6427876097
A60: =Wellpath!E60 -> 1650 | B60: ='DEC-OS'!Q60+'DEC-OH'!Q60+'DEC-OI'!Q60+'DBH-OS'!Q60+'DBH-OH'!Q60+'DBH-OI'!Q60+XCLH!Q60+XCLA!Q60+DRFR!Q60+DSFS!Q60+DSTG!Q60+XYM1!Q60+XYM2!Q60+XYM3E!Q60+XYM4E!Q60+SAGE!Q60+'ABXY-TI1S'!Q60+'ABXY-TI2S'!Q60+ABZ!Q60+'ASXY-TI1S'!Q60+'ASXY-TI2S'!Q60+'ASXY-TI3S'!Q60+ASZ!Q60+'MBXY-TI1S'!Q60+'MBXY-TI2S'!Q60+MBZ!Q60+'MSXY-TI1S'!Q60+'MSXY-TI2S'!Q60++'MSXY-TI3S'!Q60+MSZ!Q60+'DEC-U'!Q60+DECR!Q60+'DBH-U'!Q60+DBHR!Q60+AMIL!Q60 -> 9.385737543 | C60: ='DEC-OS'!R60+'DEC-OH'!R60+'DEC-OI'!R60+'DBH-OS'!R60+'DBH-OH'!R60+'DBH-OI'!R60+XCLH!R60+XCLA!R60+DRFR!R60+DSFS!R60+DSTG!R60+XYM1!R60+XYM2!R60+XYM3E!R60+XYM4E!R60+SAGE!R60+'ABXY-TI1S'!R60+'ABXY-TI2S'!R60+ABZ!R60+'ASXY-TI1S'!R60+'ASXY-TI2S'!R60+'ASXY-TI3S'!R60+ASZ!R60+'MBXY-TI1S'!R60+'MBXY-TI2S'!R60+MBZ!R60+'MSXY-TI1S'!R60+'MSXY-TI2S'!R60++'MSXY-TI3S'!R60+MSZ!R60+'DEC-U'!R60+DECR!R60+'DBH-U'!R60+DBHR!R60+AMIL!R60 -> 38.14136938 | D60: ='DEC-OS'!S60+'DEC-OH'!S60+'DEC-OI'!S60+'DBH-OS'!S60+'DBH-OH'!S60+'DBH-OI'!S60+XCLH!S60+XCLA!S60+DRFR!S60+DSFS!S60+DSTG!S60+XYM1!S60+XYM2!S60+XYM3E!S60+XYM4E!S60+SAGE!S60+'ABXY-TI1S'!S60+'ABXY-TI2S'!S60+ABZ!S60+'ASXY-TI1S'!S60+'ASXY-TI2S'!S60+'ASXY-TI3S'!S60+ASZ!S60+'MBXY-TI1S'!S60+'MBXY-TI2S'!S60+MBZ!S60+'MSXY-TI1S'!S60+'MSXY-TI2S'!S60++'MSXY-TI3S'!S60+MSZ!S60+'DEC-U'!S60+DECR!S60+'DBH-U'!S60+DBHR!S60+AMIL!S60 -> 6.438770808 | E60: ='DEC-OS'!T60+'DEC-OH'!T60+'DEC-OI'!T60+'DBH-OS'!T60+'DBH-OH'!T60+'DBH-OI'!T60+XCLH!T60+XCLA!T60+DRFR!T60+DSFS!T60+DSTG!T60+XYM1!T60+XYM2!T60+XYM3E!T60+XYM4E!T60+SAGE!T60+'ABXY-TI1S'!T60+'ABXY-TI2S'!T60+ABZ!T60+'ASXY-TI1S'!T60+'ASXY-TI2S'!T60+'ASXY-TI3S'!T60+ASZ!T60+'MBXY-TI1S'!T60+'MBXY-TI2S'!T60+MBZ!T60+'MSXY-TI1S'!T60+'MSXY-TI2S'!T60++'MSXY-TI3S'!T60+MSZ!T60+'DEC-U'!T60+DECR!T60+'DBH-U'!T60+DBHR!T60+AMIL!T60 -> -0.1088824368 | F60: ='DEC-OS'!U60+'DEC-OH'!U60+'DEC-OI'!U60+'DBH-OS'!U60+'DBH-OH'!U60+'DBH-OI'!U60+XCLH!U60+XCLA!U60+DRFR!U60+DSFS!U60+DSTG!U60+XYM1!U60+XYM2!U60+XYM3E!U60+XYM4E!U60+SAGE!U60+'ABXY-TI1S'!U60+'ABXY-TI2S'!U60+ABZ!U60+'ASXY-TI1S'!U60+'ASXY-TI2S'!U60+'ASXY-TI3S'!U60+ASZ!U60+'MBXY-TI1S'!U60+'MBXY-TI2S'!U60+MBZ!U60+'MSXY-TI1S'!U60+'MSXY-TI2S'!U60++'MSXY-TI3S'!U60+MSZ!U60+'DEC-U'!U60+DECR!U60+'DBH-U'!U60+DBHR!U60+AMIL!U60 -> -6.22994122 | G60: ='DEC-OS'!V60+'DEC-OH'!V60+'DEC-OI'!V60+'DBH-OS'!V60+'DBH-OH'!V60+'DBH-OI'!V60+XCLH!V60+XCLA!V60+DRFR!V60+DSFS!V60+DSTG!V60+XYM1!V60+XYM2!V60+XYM3E!V60+XYM4E!V60+SAGE!V60+'ABXY-TI1S'!V60+'ABXY-TI2S'!V60+ABZ!V60+'ASXY-TI1S'!V60+'ASXY-TI2S'!V60+'ASXY-TI3S'!V60+ASZ!V60+'MBXY-TI1S'!V60+'MBXY-TI2S'!V60+MBZ!V60+'MSXY-TI1S'!V60+'MSXY-TI2S'!V60++'MSXY-TI3S'!V60+MSZ!V60+'DEC-U'!V60+DECR!V60+'DBH-U'!V60+DBHR!V60+AMIL!V60 -> 0.07016867986 | H60: 13.79168089 | I60: 38.14136938 | J60: 2.032827462 | K60: -0.1237406086 | L60: 2.532915784 | M60: -0.03830522768 | N60: =COS(Wellpath!$L60)*COS(Wellpath!$M60) -> 0.6427876097 | O60: =-SIN(Wellpath!$M60) -> 0 | P60: =SIN(Wellpath!$L60)*COS(Wellpath!$M60) -> 0.7660444431 | Q60: =COS(Wellpath!$L60)*SIN(Wellpath!$M60) -> 0 | R60: =COS(Wellpath!$M60) -> 1 | S60: =SIN(Wellpath!$L60)*SIN(Wellpath!$M60) -> 0 | T60: =-SIN(Wellpath!$L60) -> -0.7660444431 | U60: 0 | V60: =COS(Wellpath!$L60) -> 0.6427876097
A61: =Wellpath!E61 -> 1680 | B61: ='DEC-OS'!Q61+'DEC-OH'!Q61+'DEC-OI'!Q61+'DBH-OS'!Q61+'DBH-OH'!Q61+'DBH-OI'!Q61+XCLH!Q61+XCLA!Q61+DRFR!Q61+DSFS!Q61+DSTG!Q61+XYM1!Q61+XYM2!Q61+XYM3E!Q61+XYM4E!Q61+SAGE!Q61+'ABXY-TI1S'!Q61+'ABXY-TI2S'!Q61+ABZ!Q61+'ASXY-TI1S'!Q61+'ASXY-TI2S'!Q61+'ASXY-TI3S'!Q61+ASZ!Q61+'MBXY-TI1S'!Q61+'MBXY-TI2S'!Q61+MBZ!Q61+'MSXY-TI1S'!Q61+'MSXY-TI2S'!Q61++'MSXY-TI3S'!Q61+MSZ!Q61+'DEC-U'!Q61+DECR!Q61+'DBH-U'!Q61+DBHR!Q61+AMIL!Q61 -> 9.787264071 | C61: ='DEC-OS'!R61+'DEC-OH'!R61+'DEC-OI'!R61+'DBH-OS'!R61+'DBH-OH'!R61+'DBH-OI'!R61+XCLH!R61+XCLA!R61+DRFR!R61+DSFS!R61+DSTG!R61+XYM1!R61+XYM2!R61+XYM3E!R61+XYM4E!R61+SAGE!R61+'ABXY-TI1S'!R61+'ABXY-TI2S'!R61+ABZ!R61+'ASXY-TI1S'!R61+'ASXY-TI2S'!R61+'ASXY-TI3S'!R61+ASZ!R61+'MBXY-TI1S'!R61+'MBXY-TI2S'!R61+MBZ!R61+'MSXY-TI1S'!R61+'MSXY-TI2S'!R61++'MSXY-TI3S'!R61+MSZ!R61+'DEC-U'!R61+DECR!R61+'DBH-U'!R61+DBHR!R61+AMIL!R61 -> 40.72234828 | D61: ='DEC-OS'!S61+'DEC-OH'!S61+'DEC-OI'!S61+'DBH-OS'!S61+'DBH-OH'!S61+'DBH-OI'!S61+XCLH!S61+XCLA!S61+DRFR!S61+DSFS!S61+DSTG!S61+XYM1!S61+XYM2!S61+XYM3E!S61+XYM4E!S61+SAGE!S61+'ABXY-TI1S'!S61+'ABXY-TI2S'!S61+ABZ!S61+'ASXY-TI1S'!S61+'ASXY-TI2S'!S61+'ASXY-TI3S'!S61+ASZ!S61+'MBXY-TI1S'!S61+'MBXY-TI2S'!S61+MBZ!S61+'MSXY-TI1S'!S61+'MSXY-TI2S'!S61++'MSXY-TI3S'!S61+MSZ!S61+'DEC-U'!S61+DECR!S61+'DBH-U'!S61+DBHR!S61+AMIL!S61 -> 6.854655659 | E61: ='DEC-OS'!T61+'DEC-OH'!T61+'DEC-OI'!T61+'DBH-OS'!T61+'DBH-OH'!T61+'DBH-OI'!T61+XCLH!T61+XCLA!T61+DRFR!T61+DSFS!T61+DSTG!T61+XYM1!T61+XYM2!T61+XYM3E!T61+XYM4E!T61+SAGE!T61+'ABXY-TI1S'!T61+'ABXY-TI2S'!T61+ABZ!T61+'ASXY-TI1S'!T61+'ASXY-TI2S'!T61+'ASXY-TI3S'!T61+ASZ!T61+'MBXY-TI1S'!T61+'MBXY-TI2S'!T61+MBZ!T61+'MSXY-TI1S'!T61+'MSXY-TI2S'!T61++'MSXY-TI3S'!T61+MSZ!T61+'DEC-U'!T61+DECR!T61+'DBH-U'!T61+DBHR!T61+AMIL!T61 -> -0.1147649493 | F61: ='DEC-OS'!U61+'DEC-OH'!U61+'DEC-OI'!U61+'DBH-OS'!U61+'DBH-OH'!U61+'DBH-OI'!U61+XCLH!U61+XCLA!U61+DRFR!U61+DSFS!U61+DSTG!U61+XYM1!U61+XYM2!U61+XYM3E!U61+XYM4E!U61+SAGE!U61+'ABXY-TI1S'!U61+'ABXY-TI2S'!U61+ABZ!U61+'ASXY-TI1S'!U61+'ASXY-TI2S'!U61+'ASXY-TI3S'!U61+ASZ!U61+'MBXY-TI1S'!U61+'MBXY-TI2S'!U61+MBZ!U61+'MSXY-TI1S'!U61+'MSXY-TI2S'!U61++'MSXY-TI3S'!U61+MSZ!U61+'DEC-U'!U61+DECR!U61+'DBH-U'!U61+DBHR!U61+AMIL!U61 -> -6.596721085 | G61: ='DEC-OS'!V61+'DEC-OH'!V61+'DEC-OI'!V61+'DBH-OS'!V61+'DBH-OH'!V61+'DBH-OI'!V61+XCLH!V61+XCLA!V61+DRFR!V61+DSFS!V61+DSTG!V61+XYM1!V61+XYM2!V61+XYM3E!V61+XYM4E!V61+SAGE!V61+'ABXY-TI1S'!V61+'ABXY-TI2S'!V61+ABZ!V61+'ASXY-TI1S'!V61+'ASXY-TI2S'!V61+'ASXY-TI3S'!V61+ASZ!V61+'MBXY-TI1S'!V61+'MBXY-TI2S'!V61+MBZ!V61+'MSXY-TI1S'!V61+'MSXY-TI2S'!V61++'MSXY-TI3S'!V61+MSZ!V61+'DEC-U'!V61+DECR!V61+'DBH-U'!V61+DBHR!V61+AMIL!V61 -> 0.07523494677 | H61: 14.56284088 | I61: 40.72234828 | J61: 2.07907885 | K61: -0.1314028004 | L61: 2.589536345 | M61: -0.0395549601 | N61: =COS(Wellpath!$L61)*COS(Wellpath!$M61) -> 0.6427876097 | O61: =-SIN(Wellpath!$M61) -> 0 | P61: =SIN(Wellpath!$L61)*COS(Wellpath!$M61) -> 0.7660444431 | Q61: =COS(Wellpath!$L61)*SIN(Wellpath!$M61) -> 0 | R61: =COS(Wellpath!$M61) -> 1 | S61: =SIN(Wellpath!$L61)*SIN(Wellpath!$M61) -> 0 | T61: =-SIN(Wellpath!$L61) -> -0.7660444431 | U61: 0 | V61: =COS(Wellpath!$L61) -> 0.6427876097
A62: =Wellpath!E62 -> 1700 | B62: ='DEC-OS'!Q62+'DEC-OH'!Q62+'DEC-OI'!Q62+'DBH-OS'!Q62+'DBH-OH'!Q62+'DBH-OI'!Q62+XCLH!Q62+XCLA!Q62+DRFR!Q62+DSFS!Q62+DSTG!Q62+XYM1!Q62+XYM2!Q62+XYM3E!Q62+XYM4E!Q62+SAGE!Q62+'ABXY-TI1S'!Q62+'ABXY-TI2S'!Q62+ABZ!Q62+'ASXY-TI1S'!Q62+'ASXY-TI2S'!Q62+'ASXY-TI3S'!Q62+ASZ!Q62+'MBXY-TI1S'!Q62+'MBXY-TI2S'!Q62+MBZ!Q62+'MSXY-TI1S'!Q62+'MSXY-TI2S'!Q62++'MSXY-TI3S'!Q62+MSZ!Q62+'DEC-U'!Q62+DECR!Q62+'DBH-U'!Q62+DBHR!Q62+AMIL!Q62 -> 10.05879348 | C62: ='DEC-OS'!R62+'DEC-OH'!R62+'DEC-OI'!R62+'DBH-OS'!R62+'DBH-OH'!R62+'DBH-OI'!R62+XCLH!R62+XCLA!R62+DRFR!R62+DSFS!R62+DSTG!R62+XYM1!R62+XYM2!R62+XYM3E!R62+XYM4E!R62+SAGE!R62+'ABXY-TI1S'!R62+'ABXY-TI2S'!R62+ABZ!R62+'ASXY-TI1S'!R62+'ASXY-TI2S'!R62+'ASXY-TI3S'!R62+ASZ!R62+'MBXY-TI1S'!R62+'MBXY-TI2S'!R62+MBZ!R62+'MSXY-TI1S'!R62+'MSXY-TI2S'!R62++'MSXY-TI3S'!R62+MSZ!R62+'DEC-U'!R62+DECR!R62+'DBH-U'!R62+DBHR!R62+AMIL!R62 -> 42.48598489 | D62: ='DEC-OS'!S62+'DEC-OH'!S62+'DEC-OI'!S62+'DBH-OS'!S62+'DBH-OH'!S62+'DBH-OI'!S62+XCLH!S62+XCLA!S62+DRFR!S62+DSFS!S62+DSTG!S62+XYM1!S62+XYM2!S62+XYM3E!S62+XYM4E!S62+SAGE!S62+'ABXY-TI1S'!S62+'ABXY-TI2S'!S62+ABZ!S62+'ASXY-TI1S'!S62+'ASXY-TI2S'!S62+'ASXY-TI3S'!S62+ASZ!S62+'MBXY-TI1S'!S62+'MBXY-TI2S'!S62+MBZ!S62+'MSXY-TI1S'!S62+'MSXY-TI2S'!S62++'MSXY-TI3S'!S62+MSZ!S62+'DEC-U'!S62+DECR!S62+'DBH-U'!S62+DBHR!S62+AMIL!S62 -> 7.137057209 | E62: ='DEC-OS'!T62+'DEC-OH'!T62+'DEC-OI'!T62+'DBH-OS'!T62+'DBH-OH'!T62+'DBH-OI'!T62+XCLH!T62+XCLA!T62+DRFR!T62+DSFS!T62+DSTG!T62+XYM1!T62+XYM2!T62+XYM3E!T62+XYM4E!T62+SAGE!T62+'ABXY-TI1S'!T62+'ABXY-TI2S'!T62+ABZ!T62+'ASXY-TI1S'!T62+'ASXY-TI2S'!T62+'ASXY-TI3S'!T62+ASZ!T62+'MBXY-TI1S'!T62+'MBXY-TI2S'!T62+MBZ!T62+'MSXY-TI1S'!T62+'MSXY-TI2S'!T62++'MSXY-TI3S'!T62+MSZ!T62+'DEC-U'!T62+DECR!T62+'DBH-U'!T62+DBHR!T62+AMIL!T62 -> -0.1187695383 | F62: ='DEC-OS'!U62+'DEC-OH'!U62+'DEC-OI'!U62+'DBH-OS'!U62+'DBH-OH'!U62+'DBH-OI'!U62+XCLH!U62+XCLA!U62+DRFR!U62+DSFS!U62+DSTG!U62+XYM1!U62+XYM2!U62+XYM3E!U62+XYM4E!U62+SAGE!U62+'ABXY-TI1S'!U62+'ABXY-TI2S'!U62+ABZ!U62+'ASXY-TI1S'!U62+'ASXY-TI2S'!U62+'ASXY-TI3S'!U62+ASZ!U62+'MBXY-TI1S'!U62+'MBXY-TI2S'!U62+MBZ!U62+'MSXY-TI1S'!U62+'MSXY-TI2S'!U62++'MSXY-TI3S'!U62+MSZ!U62+'DEC-U'!U62+DECR!U62+'DBH-U'!U62+DBHR!U62+AMIL!U62 -> -6.844804147 | G62: ='DEC-OS'!V62+'DEC-OH'!V62+'DEC-OI'!V62+'DBH-OS'!V62+'DBH-OH'!V62+'DBH-OI'!V62+XCLH!V62+XCLA!V62+DRFR!V62+DSFS!V62+DSTG!V62+XYM1!V62+XYM2!V62+XYM3E!V62+XYM4E!V62+SAGE!V62+'ABXY-TI1S'!V62+'ABXY-TI2S'!V62+ABZ!V62+'ASXY-TI1S'!V62+'ASXY-TI2S'!V62+'ASXY-TI3S'!V62+ASZ!V62+'MBXY-TI1S'!V62+'MBXY-TI2S'!V62+MBZ!V62+'MSXY-TI1S'!V62+'MSXY-TI2S'!V62++'MSXY-TI3S'!V62+MSZ!V62+'DEC-U'!V62+DECR!V62+'DBH-U'!V62+DBHR!V62+AMIL!V62 -> 0.07871127109 | H62: 15.08506445 | I62: 42.48598489 | J62: 2.110786239 | K62: -0.1366399195 | L62: 2.62726203 | M62: -0.04038811505 | N62: =COS(Wellpath!$L62)*COS(Wellpath!$M62) -> 0.6427876097 | O62: =-SIN(Wellpath!$M62) -> 0 | P62: =SIN(Wellpath!$L62)*COS(Wellpath!$M62) -> 0.7660444431 | Q62: =COS(Wellpath!$L62)*SIN(Wellpath!$M62) -> 0 | R62: =COS(Wellpath!$M62) -> 1 | S62: =SIN(Wellpath!$L62)*SIN(Wellpath!$M62) -> 0 | T62: =-SIN(Wellpath!$L62) -> -0.7660444431 | U62: 0 | V62: =COS(Wellpath!$L62) -> 0.6427876097
A63: =Wellpath!E63 -> 1710 | B63: ='DEC-OS'!Q63+'DEC-OH'!Q63+'DEC-OI'!Q63+'DBH-OS'!Q63+'DBH-OH'!Q63+'DBH-OI'!Q63+XCLH!Q63+XCLA!Q63+DRFR!Q63+DSFS!Q63+DSTG!Q63+XYM1!Q63+XYM2!Q63+XYM3E!Q63+XYM4E!Q63+SAGE!Q63+'ABXY-TI1S'!Q63+'ABXY-TI2S'!Q63+ABZ!Q63+'ASXY-TI1S'!Q63+'ASXY-TI2S'!Q63+'ASXY-TI3S'!Q63+ASZ!Q63+'MBXY-TI1S'!Q63+'MBXY-TI2S'!Q63+MBZ!Q63+'MSXY-TI1S'!Q63+'MSXY-TI2S'!Q63++'MSXY-TI3S'!Q63+MSZ!Q63+'DEC-U'!Q63+DECR!Q63+'DBH-U'!Q63+DBHR!Q63+AMIL!Q63 -> 10.19564637 | C63: ='DEC-OS'!R63+'DEC-OH'!R63+'DEC-OI'!R63+'DBH-OS'!R63+'DBH-OH'!R63+'DBH-OI'!R63+XCLH!R63+XCLA!R63+DRFR!R63+DSFS!R63+DSTG!R63+XYM1!R63+XYM2!R63+XYM3E!R63+XYM4E!R63+SAGE!R63+'ABXY-TI1S'!R63+'ABXY-TI2S'!R63+ABZ!R63+'ASXY-TI1S'!R63+'ASXY-TI2S'!R63+'ASXY-TI3S'!R63+ASZ!R63+'MBXY-TI1S'!R63+'MBXY-TI2S'!R63+MBZ!R63+'MSXY-TI1S'!R63+'MSXY-TI2S'!R63++'MSXY-TI3S'!R63+MSZ!R63+'DEC-U'!R63+DECR!R63+'DBH-U'!R63+DBHR!R63+AMIL!R63 -> 43.37534081 | D63: ='DEC-OS'!S63+'DEC-OH'!S63+'DEC-OI'!S63+'DBH-OS'!S63+'DBH-OH'!S63+'DBH-OI'!S63+XCLH!S63+XCLA!S63+DRFR!S63+DSFS!S63+DSTG!S63+XYM1!S63+XYM2!S63+XYM3E!S63+XYM4E!S63+SAGE!S63+'ABXY-TI1S'!S63+'ABXY-TI2S'!S63+ABZ!S63+'ASXY-TI1S'!S63+'ASXY-TI2S'!S63+'ASXY-TI3S'!S63+ASZ!S63+'MBXY-TI1S'!S63+'MBXY-TI2S'!S63+MBZ!S63+'MSXY-TI1S'!S63+'MSXY-TI2S'!S63++'MSXY-TI3S'!S63+MSZ!S63+'DEC-U'!S63+DECR!S63+'DBH-U'!S63+DBHR!S63+AMIL!S63 -> 7.27964625 | E63: ='DEC-OS'!T63+'DEC-OH'!T63+'DEC-OI'!T63+'DBH-OS'!T63+'DBH-OH'!T63+'DBH-OI'!T63+XCLH!T63+XCLA!T63+DRFR!T63+DSFS!T63+DSTG!T63+XYM1!T63+XYM2!T63+XYM3E!T63+XYM4E!T63+SAGE!T63+'ABXY-TI1S'!T63+'ABXY-TI2S'!T63+ABZ!T63+'ASXY-TI1S'!T63+'ASXY-TI2S'!T63+'ASXY-TI3S'!T63+ASZ!T63+'MBXY-TI1S'!T63+'MBXY-TI2S'!T63+MBZ!T63+'MSXY-TI1S'!T63+'MSXY-TI2S'!T63++'MSXY-TI3S'!T63+MSZ!T63+'DEC-U'!T63+DECR!T63+'DBH-U'!T63+DBHR!T63+AMIL!T63 -> -0.1207997889 | F63: ='DEC-OS'!U63+'DEC-OH'!U63+'DEC-OI'!U63+'DBH-OS'!U63+'DBH-OH'!U63+'DBH-OI'!U63+XCLH!U63+XCLA!U63+DRFR!U63+DSFS!U63+DSTG!U63+XYM1!U63+XYM2!U63+XYM3E!U63+XYM4E!U63+SAGE!U63+'ABXY-TI1S'!U63+'ABXY-TI2S'!U63+ABZ!U63+'ASXY-TI1S'!U63+'ASXY-TI2S'!U63+'ASXY-TI3S'!U63+ASZ!U63+'MBXY-TI1S'!U63+'MBXY-TI2S'!U63+MBZ!U63+'MSXY-TI1S'!U63+'MSXY-TI2S'!U63++'MSXY-TI3S'!U63+MSZ!U63+'DEC-U'!U63+DECR!U63+'DBH-U'!U63+DBHR!U63+AMIL!U63 -> -6.969540853 | G63: ='DEC-OS'!V63+'DEC-OH'!V63+'DEC-OI'!V63+'DBH-OS'!V63+'DBH-OH'!V63+'DBH-OI'!V63+XCLH!V63+XCLA!V63+DRFR!V63+DSFS!V63+DSTG!V63+XYM1!V63+XYM2!V63+XYM3E!V63+XYM4E!V63+SAGE!V63+'ABXY-TI1S'!V63+'ABXY-TI2S'!V63+ABZ!V63+'ASXY-TI1S'!V63+'ASXY-TI2S'!V63+'ASXY-TI3S'!V63+ASZ!V63+'MBXY-TI1S'!V63+'MBXY-TI2S'!V63+MBZ!V63+'MSXY-TI1S'!V63+'MSXY-TI2S'!V63++'MSXY-TI3S'!V63+MSZ!V63+'DEC-U'!V63+DECR!V63+'DBH-U'!V63+DBHR!V63+AMIL!V63 -> 0.08047219503 | H63: 15.40819707 | I63: 43.37534081 | J63: 2.067095543 | K63: -0.1397615883 | L63: 2.490786295 | M63: -0.03917986224 | N63: =COS(Wellpath!$L63)*COS(Wellpath!$M63) -> 0.6517013563 | O63: =-SIN(Wellpath!$M63) -> 0 | P63: =SIN(Wellpath!$L63)*COS(Wellpath!$M63) -> 0.7584756702 | Q63: =COS(Wellpath!$L63)*SIN(Wellpath!$M63) -> 0 | R63: =COS(Wellpath!$M63) -> 1 | S63: =SIN(Wellpath!$L63)*SIN(Wellpath!$M63) -> 0 | T63: =-SIN(Wellpath!$L63) -> -0.7584756702 | U63: 0 | V63: =COS(Wellpath!$L63) -> 0.6517013563
A64: =Wellpath!E64 -> 1740 | B64: ='DEC-OS'!Q64+'DEC-OH'!Q64+'DEC-OI'!Q64+'DBH-OS'!Q64+'DBH-OH'!Q64+'DBH-OI'!Q64+XCLH!Q64+XCLA!Q64+DRFR!Q64+DSFS!Q64+DSTG!Q64+XYM1!Q64+XYM2!Q64+XYM3E!Q64+XYM4E!Q64+SAGE!Q64+'ABXY-TI1S'!Q64+'ABXY-TI2S'!Q64+ABZ!Q64+'ASXY-TI1S'!Q64+'ASXY-TI2S'!Q64+'ASXY-TI3S'!Q64+ASZ!Q64+'MBXY-TI1S'!Q64+'MBXY-TI2S'!Q64+MBZ!Q64+'MSXY-TI1S'!Q64+'MSXY-TI2S'!Q64++'MSXY-TI3S'!Q64+MSZ!Q64+'DEC-U'!Q64+DECR!Q64+'DBH-U'!Q64+DBHR!Q64+AMIL!Q64 -> 10.63493017 | C64: ='DEC-OS'!R64+'DEC-OH'!R64+'DEC-OI'!R64+'DBH-OS'!R64+'DBH-OH'!R64+'DBH-OI'!R64+XCLH!R64+XCLA!R64+DRFR!R64+DSFS!R64+DSTG!R64+XYM1!R64+XYM2!R64+XYM3E!R64+XYM4E!R64+SAGE!R64+'ABXY-TI1S'!R64+'ABXY-TI2S'!R64+ABZ!R64+'ASXY-TI1S'!R64+'ASXY-TI2S'!R64+'ASXY-TI3S'!R64+ASZ!R64+'MBXY-TI1S'!R64+'MBXY-TI2S'!R64+MBZ!R64+'MSXY-TI1S'!R64+'MSXY-TI2S'!R64++'MSXY-TI3S'!R64+MSZ!R64+'DEC-U'!R64+DECR!R64+'DBH-U'!R64+DBHR!R64+AMIL!R64 -> 46.05273161 | D64: ='DEC-OS'!S64+'DEC-OH'!S64+'DEC-OI'!S64+'DBH-OS'!S64+'DBH-OH'!S64+'DBH-OI'!S64+XCLH!S64+XCLA!S64+DRFR!S64+DSFS!S64+DSTG!S64+XYM1!S64+XYM2!S64+XYM3E!S64+XYM4E!S64+SAGE!S64+'ABXY-TI1S'!S64+'ABXY-TI2S'!S64+ABZ!S64+'ASXY-TI1S'!S64+'ASXY-TI2S'!S64+'ASXY-TI3S'!S64+ASZ!S64+'MBXY-TI1S'!S64+'MBXY-TI2S'!S64+MBZ!S64+'MSXY-TI1S'!S64+'MSXY-TI2S'!S64++'MSXY-TI3S'!S64+MSZ!S64+'DEC-U'!S64+DECR!S64+'DBH-U'!S64+DBHR!S64+AMIL!S64 -> 7.724330351 | E64: ='DEC-OS'!T64+'DEC-OH'!T64+'DEC-OI'!T64+'DBH-OS'!T64+'DBH-OH'!T64+'DBH-OI'!T64+XCLH!T64+XCLA!T64+DRFR!T64+DSFS!T64+DSTG!T64+XYM1!T64+XYM2!T64+XYM3E!T64+XYM4E!T64+SAGE!T64+'ABXY-TI1S'!T64+'ABXY-TI2S'!T64+ABZ!T64+'ASXY-TI1S'!T64+'ASXY-TI2S'!T64+'ASXY-TI3S'!T64+ASZ!T64+'MBXY-TI1S'!T64+'MBXY-TI2S'!T64+MBZ!T64+'MSXY-TI1S'!T64+'MSXY-TI2S'!T64++'MSXY-TI3S'!T64+MSZ!T64+'DEC-U'!T64+DECR!T64+'DBH-U'!T64+DBHR!T64+AMIL!T64 -> -0.1270197889 | F64: ='DEC-OS'!U64+'DEC-OH'!U64+'DEC-OI'!U64+'DBH-OS'!U64+'DBH-OH'!U64+'DBH-OI'!U64+XCLH!U64+XCLA!U64+DRFR!U64+DSFS!U64+DSTG!U64+XYM1!U64+XYM2!U64+XYM3E!U64+XYM4E!U64+SAGE!U64+'ABXY-TI1S'!U64+'ABXY-TI2S'!U64+ABZ!U64+'ASXY-TI1S'!U64+'ASXY-TI2S'!U64+'ASXY-TI3S'!U64+ASZ!U64+'MBXY-TI1S'!U64+'MBXY-TI2S'!U64+MBZ!U64+'MSXY-TI1S'!U64+'MSXY-TI2S'!U64++'MSXY-TI3S'!U64+MSZ!U64+'DEC-U'!U64+DECR!U64+'DBH-U'!U64+DBHR!U64+AMIL!U64 -> -7.363612439 | G64: ='DEC-OS'!V64+'DEC-OH'!V64+'DEC-OI'!V64+'DBH-OS'!V64+'DBH-OH'!V64+'DBH-OI'!V64+XCLH!V64+XCLA!V64+DRFR!V64+DSFS!V64+DSTG!V64+XYM1!V64+XYM2!V64+XYM3E!V64+XYM4E!V64+SAGE!V64+'ABXY-TI1S'!V64+'ABXY-TI2S'!V64+ABZ!V64+'ASXY-TI1S'!V64+'ASXY-TI2S'!V64+'ASXY-TI3S'!V64+ASZ!V64+'MBXY-TI1S'!V64+'MBXY-TI2S'!V64+MBZ!V64+'MSXY-TI1S'!V64+'MSXY-TI2S'!V64++'MSXY-TI3S'!V64+MSZ!V64+'DEC-U'!V64+DECR!V64+'DBH-U'!V64+DBHR!V64+AMIL!V64 -> 0.08577981392 | H64: 16.40066866 | I64: 46.05273161 | J64: 1.958591862 | K64: -0.1491620966 | L64: 2.048728983 | M64: -0.03525439233 | N64: =COS(Wellpath!$L64)*COS(Wellpath!$M64) -> 0.6777747765 | O64: =-SIN(Wellpath!$M64) -> 0 | P64: =SIN(Wellpath!$L64)*COS(Wellpath!$M64) -> 0.735269578 | Q64: =COS(Wellpath!$L64)*SIN(Wellpath!$M64) -> 0 | R64: =COS(Wellpath!$M64) -> 1 | S64: =SIN(Wellpath!$L64)*SIN(Wellpath!$M64) -> 0 | T64: =-SIN(Wellpath!$L64) -> -0.735269578 | U64: 0 | V64: =COS(Wellpath!$L64) -> 0.6777747765
A65: =Wellpath!E65 -> 1770 | B65: ='DEC-OS'!Q65+'DEC-OH'!Q65+'DEC-OI'!Q65+'DBH-OS'!Q65+'DBH-OH'!Q65+'DBH-OI'!Q65+XCLH!Q65+XCLA!Q65+DRFR!Q65+DSFS!Q65+DSTG!Q65+XYM1!Q65+XYM2!Q65+XYM3E!Q65+XYM4E!Q65+SAGE!Q65+'ABXY-TI1S'!Q65+'ABXY-TI2S'!Q65+ABZ!Q65+'ASXY-TI1S'!Q65+'ASXY-TI2S'!Q65+'ASXY-TI3S'!Q65+ASZ!Q65+'MBXY-TI1S'!Q65+'MBXY-TI2S'!Q65+MBZ!Q65+'MSXY-TI1S'!Q65+'MSXY-TI2S'!Q65++'MSXY-TI3S'!Q65+MSZ!Q65+'DEC-U'!Q65+DECR!Q65+'DBH-U'!Q65+DBHR!Q65+AMIL!Q65 -> 11.09826833 | C65: ='DEC-OS'!R65+'DEC-OH'!R65+'DEC-OI'!R65+'DBH-OS'!R65+'DBH-OH'!R65+'DBH-OI'!R65+XCLH!R65+XCLA!R65+DRFR!R65+DSFS!R65+DSTG!R65+XYM1!R65+XYM2!R65+XYM3E!R65+XYM4E!R65+SAGE!R65+'ABXY-TI1S'!R65+'ABXY-TI2S'!R65+ABZ!R65+'ASXY-TI1S'!R65+'ASXY-TI2S'!R65+'ASXY-TI3S'!R65+ASZ!R65+'MBXY-TI1S'!R65+'MBXY-TI2S'!R65+MBZ!R65+'MSXY-TI1S'!R65+'MSXY-TI2S'!R65++'MSXY-TI3S'!R65+MSZ!R65+'DEC-U'!R65+DECR!R65+'DBH-U'!R65+DBHR!R65+AMIL!R65 -> 48.72657654 | D65: ='DEC-OS'!S65+'DEC-OH'!S65+'DEC-OI'!S65+'DBH-OS'!S65+'DBH-OH'!S65+'DBH-OI'!S65+XCLH!S65+XCLA!S65+DRFR!S65+DSFS!S65+DSTG!S65+XYM1!S65+XYM2!S65+XYM3E!S65+XYM4E!S65+SAGE!S65+'ABXY-TI1S'!S65+'ABXY-TI2S'!S65+ABZ!S65+'ASXY-TI1S'!S65+'ASXY-TI2S'!S65+'ASXY-TI3S'!S65+ASZ!S65+'MBXY-TI1S'!S65+'MBXY-TI2S'!S65+MBZ!S65+'MSXY-TI1S'!S65+'MSXY-TI2S'!S65++'MSXY-TI3S'!S65+MSZ!S65+'DEC-U'!S65+DECR!S65+'DBH-U'!S65+DBHR!S65+AMIL!S65 -> 8.169004407 | E65: ='DEC-OS'!T65+'DEC-OH'!T65+'DEC-OI'!T65+'DBH-OS'!T65+'DBH-OH'!T65+'DBH-OI'!T65+XCLH!T65+XCLA!T65+DRFR!T65+DSFS!T65+DSTG!T65+XYM1!T65+XYM2!T65+XYM3E!T65+XYM4E!T65+SAGE!T65+'ABXY-TI1S'!T65+'ABXY-TI2S'!T65+ABZ!T65+'ASXY-TI1S'!T65+'ASXY-TI2S'!T65+'ASXY-TI3S'!T65+ASZ!T65+'MBXY-TI1S'!T65+'MBXY-TI2S'!T65+MBZ!T65+'MSXY-TI1S'!T65+'MSXY-TI2S'!T65++'MSXY-TI3S'!T65+MSZ!T65+'DEC-U'!T65+DECR!T65+'DBH-U'!T65+DBHR!T65+AMIL!T65 -> -0.1334190082 | F65: ='DEC-OS'!U65+'DEC-OH'!U65+'DEC-OI'!U65+'DBH-OS'!U65+'DBH-OH'!U65+'DBH-OI'!U65+XCLH!U65+XCLA!U65+DRFR!U65+DSFS!U65+DSTG!U65+XYM1!U65+XYM2!U65+XYM3E!U65+XYM4E!U65+SAGE!U65+'ABXY-TI1S'!U65+'ABXY-TI2S'!U65+ABZ!U65+'ASXY-TI1S'!U65+'ASXY-TI2S'!U65+'ASXY-TI3S'!U65+ASZ!U65+'MBXY-TI1S'!U65+'MBXY-TI2S'!U65+MBZ!U65+'MSXY-TI1S'!U65+'MSXY-TI2S'!U65++'MSXY-TI3S'!U65+MSZ!U65+'DEC-U'!U65+DECR!U65+'DBH-U'!U65+DBHR!U65+AMIL!U65 -> -7.765512305 | G65: ='DEC-OS'!V65+'DEC-OH'!V65+'DEC-OI'!V65+'DBH-OS'!V65+'DBH-OH'!V65+'DBH-OI'!V65+XCLH!V65+XCLA!V65+DRFR!V65+DSFS!V65+DSTG!V65+XYM1!V65+XYM2!V65+XYM3E!V65+XYM4E!V65+SAGE!V65+'ABXY-TI1S'!V65+'ABXY-TI2S'!V65+ABZ!V65+'ASXY-TI1S'!V65+'ASXY-TI2S'!V65+'ASXY-TI3S'!V65+ASZ!V65+'MBXY-TI1S'!V65+'MBXY-TI2S'!V65+MBZ!V65+'MSXY-TI1S'!V65+'MSXY-TI2S'!V65++'MSXY-TI3S'!V65+MSZ!V65+'DEC-U'!V65+DECR!V65+'DBH-U'!V65+DBHR!V65+AMIL!V65 -> 0.0910991646 | H65: 17.3817625 | I65: 48.72657654 | J65: 1.885510243 | K65: -0.1585833366 | L65: 1.553985094 | M65: -0.03083852926 | N65: =COS(Wellpath!$L65)*COS(Wellpath!$M65) -> 0.7030224327 | O65: =-SIN(Wellpath!$M65) -> 0 | P65: =SIN(Wellpath!$L65)*COS(Wellpath!$M65) -> 0.711167673 | Q65: =COS(Wellpath!$L65)*SIN(Wellpath!$M65) -> 0 | R65: =COS(Wellpath!$M65) -> 1 | S65: =SIN(Wellpath!$L65)*SIN(Wellpath!$M65) -> 0 | T65: =-SIN(Wellpath!$L65) -> -0.711167673 | U65: 0 | V65: =COS(Wellpath!$L65) -> 0.7030224327
A66: =Wellpath!E66 -> 1800 | B66: ='DEC-OS'!Q66+'DEC-OH'!Q66+'DEC-OI'!Q66+'DBH-OS'!Q66+'DBH-OH'!Q66+'DBH-OI'!Q66+XCLH!Q66+XCLA!Q66+DRFR!Q66+DSFS!Q66+DSTG!Q66+XYM1!Q66+XYM2!Q66+XYM3E!Q66+XYM4E!Q66+SAGE!Q66+'ABXY-TI1S'!Q66+'ABXY-TI2S'!Q66+ABZ!Q66+'ASXY-TI1S'!Q66+'ASXY-TI2S'!Q66+'ASXY-TI3S'!Q66+ASZ!Q66+'MBXY-TI1S'!Q66+'MBXY-TI2S'!Q66+MBZ!Q66+'MSXY-TI1S'!Q66+'MSXY-TI2S'!Q66++'MSXY-TI3S'!Q66+MSZ!Q66+'DEC-U'!Q66+DECR!Q66+'DBH-U'!Q66+DBHR!Q66+AMIL!Q66 -> 11.58520333 | C66: ='DEC-OS'!R66+'DEC-OH'!R66+'DEC-OI'!R66+'DBH-OS'!R66+'DBH-OH'!R66+'DBH-OI'!R66+XCLH!R66+XCLA!R66+DRFR!R66+DSFS!R66+DSTG!R66+XYM1!R66+XYM2!R66+XYM3E!R66+XYM4E!R66+SAGE!R66+'ABXY-TI1S'!R66+'ABXY-TI2S'!R66+ABZ!R66+'ASXY-TI1S'!R66+'ASXY-TI2S'!R66+'ASXY-TI3S'!R66+ASZ!R66+'MBXY-TI1S'!R66+'MBXY-TI2S'!R66+MBZ!R66+'MSXY-TI1S'!R66+'MSXY-TI2S'!R66++'MSXY-TI3S'!R66+MSZ!R66+'DEC-U'!R66+DECR!R66+'DBH-U'!R66+DBHR!R66+AMIL!R66 -> 51.3804894 | D66: ='DEC-OS'!S66+'DEC-OH'!S66+'DEC-OI'!S66+'DBH-OS'!S66+'DBH-OH'!S66+'DBH-OI'!S66+XCLH!S66+XCLA!S66+DRFR!S66+DSFS!S66+DSTG!S66+XYM1!S66+XYM2!S66+XYM3E!S66+XYM4E!S66+SAGE!S66+'ABXY-TI1S'!S66+'ABXY-TI2S'!S66+ABZ!S66+'ASXY-TI1S'!S66+'ASXY-TI2S'!S66+'ASXY-TI3S'!S66+ASZ!S66+'MBXY-TI1S'!S66+'MBXY-TI2S'!S66+MBZ!S66+'MSXY-TI1S'!S66+'MSXY-TI2S'!S66++'MSXY-TI3S'!S66+MSZ!S66+'DEC-U'!S66+DECR!S66+'DBH-U'!S66+DBHR!S66+AMIL!S66 -> 8.608247412 | E66: ='DEC-OS'!T66+'DEC-OH'!T66+'DEC-OI'!T66+'DBH-OS'!T66+'DBH-OH'!T66+'DBH-OI'!T66+XCLH!T66+XCLA!T66+DRFR!T66+DSFS!T66+DSTG!T66+XYM1!T66+XYM2!T66+XYM3E!T66+XYM4E!T66+SAGE!T66+'ABXY-TI1S'!T66+'ABXY-TI2S'!T66+ABZ!T66+'ASXY-TI1S'!T66+'ASXY-TI2S'!T66+'ASXY-TI3S'!T66+ASZ!T66+'MBXY-TI1S'!T66+'MBXY-TI2S'!T66+MBZ!T66+'MSXY-TI1S'!T66+'MSXY-TI2S'!T66++'MSXY-TI3S'!T66+MSZ!T66+'DEC-U'!T66+DECR!T66+'DBH-U'!T66+DBHR!T66+AMIL!T66 -> -0.1399729515 | F66: ='DEC-OS'!U66+'DEC-OH'!U66+'DEC-OI'!U66+'DBH-OS'!U66+'DBH-OH'!U66+'DBH-OI'!U66+XCLH!U66+XCLA!U66+DRFR!U66+DSFS!U66+DSTG!U66+XYM1!U66+XYM2!U66+XYM3E!U66+XYM4E!U66+SAGE!U66+'ABXY-TI1S'!U66+'ABXY-TI2S'!U66+ABZ!U66+'ASXY-TI1S'!U66+'ASXY-TI2S'!U66+'ASXY-TI3S'!U66+ASZ!U66+'MBXY-TI1S'!U66+'MBXY-TI2S'!U66+MBZ!U66+'MSXY-TI1S'!U66+'MSXY-TI2S'!U66++'MSXY-TI3S'!U66+MSZ!U66+'DEC-U'!U66+DECR!U66+'DBH-U'!U66+DBHR!U66+AMIL!U66 -> -8.172554091 | G66: ='DEC-OS'!V66+'DEC-OH'!V66+'DEC-OI'!V66+'DBH-OS'!V66+'DBH-OH'!V66+'DBH-OI'!V66+XCLH!V66+XCLA!V66+DRFR!V66+DSFS!V66+DSTG!V66+XYM1!V66+XYM2!V66+XYM3E!V66+XYM4E!V66+SAGE!V66+'ABXY-TI1S'!V66+'ABXY-TI2S'!V66+ABZ!V66+'ASXY-TI1S'!V66+'ASXY-TI2S'!V66+'ASXY-TI3S'!V66+ASZ!V66+'MBXY-TI1S'!V66+'MBXY-TI2S'!V66+MBZ!V66+'MSXY-TI1S'!V66+'MSXY-TI2S'!V66++'MSXY-TI3S'!V66+MSZ!V66+'DEC-U'!V66+DECR!V66+'DBH-U'!V66+DBHR!V66+AMIL!V66 -> 0.09639376601 | H66: 18.34211764 | I66: 51.3804894 | J66: 1.851333099 | K66: -0.1679635602 | L66: 1.009808543 | M66: -0.02593121123 | N66: =COS(Wellpath!$L66)*COS(Wellpath!$M66) -> 0.7274135643 | O66: =-SIN(Wellpath!$M66) -> 0 | P66: =SIN(Wellpath!$L66)*COS(Wellpath!$M66) -> 0.6861993198 | Q66: =COS(Wellpath!$L66)*SIN(Wellpath!$M66) -> 0 | R66: =COS(Wellpath!$M66) -> 1 | S66: =SIN(Wellpath!$L66)*SIN(Wellpath!$M66) -> 0 | T66: =-SIN(Wellpath!$L66) -> -0.6861993198 | U66: 0 | V66: =COS(Wellpath!$L66) -> 0.7274135643
A67: =Wellpath!E67 -> 1830 | B67: ='DEC-OS'!Q67+'DEC-OH'!Q67+'DEC-OI'!Q67+'DBH-OS'!Q67+'DBH-OH'!Q67+'DBH-OI'!Q67+XCLH!Q67+XCLA!Q67+DRFR!Q67+DSFS!Q67+DSTG!Q67+XYM1!Q67+XYM2!Q67+XYM3E!Q67+XYM4E!Q67+SAGE!Q67+'ABXY-TI1S'!Q67+'ABXY-TI2S'!Q67+ABZ!Q67+'ASXY-TI1S'!Q67+'ASXY-TI2S'!Q67+'ASXY-TI3S'!Q67+ASZ!Q67+'MBXY-TI1S'!Q67+'MBXY-TI2S'!Q67+MBZ!Q67+'MSXY-TI1S'!Q67+'MSXY-TI2S'!Q67++'MSXY-TI3S'!Q67+MSZ!Q67+'DEC-U'!Q67+DECR!Q67+'DBH-U'!Q67+DBHR!Q67+AMIL!Q67 -> 12.09526196 | C67: ='DEC-OS'!R67+'DEC-OH'!R67+'DEC-OI'!R67+'DBH-OS'!R67+'DBH-OH'!R67+'DBH-OI'!R67+XCLH!R67+XCLA!R67+DRFR!R67+DSFS!R67+DSTG!R67+XYM1!R67+XYM2!R67+XYM3E!R67+XYM4E!R67+SAGE!R67+'ABXY-TI1S'!R67+'ABXY-TI2S'!R67+ABZ!R67+'ASXY-TI1S'!R67+'ASXY-TI2S'!R67+'ASXY-TI3S'!R67+ASZ!R67+'MBXY-TI1S'!R67+'MBXY-TI2S'!R67+MBZ!R67+'MSXY-TI1S'!R67+'MSXY-TI2S'!R67++'MSXY-TI3S'!R67+MSZ!R67+'DEC-U'!R67+DECR!R67+'DBH-U'!R67+DBHR!R67+AMIL!R67 -> 54.00330184 | D67: ='DEC-OS'!S67+'DEC-OH'!S67+'DEC-OI'!S67+'DBH-OS'!S67+'DBH-OH'!S67+'DBH-OI'!S67+XCLH!S67+XCLA!S67+DRFR!S67+DSFS!S67+DSTG!S67+XYM1!S67+XYM2!S67+XYM3E!S67+XYM4E!S67+SAGE!S67+'ABXY-TI1S'!S67+'ABXY-TI2S'!S67+ABZ!S67+'ASXY-TI1S'!S67+'ASXY-TI2S'!S67+'ASXY-TI3S'!S67+ASZ!S67+'MBXY-TI1S'!S67+'MBXY-TI2S'!S67+MBZ!S67+'MSXY-TI1S'!S67+'MSXY-TI2S'!S67++'MSXY-TI3S'!S67+MSZ!S67+'DEC-U'!S67+DECR!S67+'DBH-U'!S67+DBHR!S67+AMIL!S67 -> 9.040194004 | E67: ='DEC-OS'!T67+'DEC-OH'!T67+'DEC-OI'!T67+'DBH-OS'!T67+'DBH-OH'!T67+'DBH-OI'!T67+XCLH!T67+XCLA!T67+DRFR!T67+DSFS!T67+DSTG!T67+XYM1!T67+XYM2!T67+XYM3E!T67+XYM4E!T67+SAGE!T67+'ABXY-TI1S'!T67+'ABXY-TI2S'!T67+ABZ!T67+'ASXY-TI1S'!T67+'ASXY-TI2S'!T67+'ASXY-TI3S'!T67+ASZ!T67+'MBXY-TI1S'!T67+'MBXY-TI2S'!T67+MBZ!T67+'MSXY-TI1S'!T67+'MSXY-TI2S'!T67++'MSXY-TI3S'!T67+MSZ!T67+'DEC-U'!T67+DECR!T67+'DBH-U'!T67+DBHR!T67+AMIL!T67 -> -0.1466545417 | F67: ='DEC-OS'!U67+'DEC-OH'!U67+'DEC-OI'!U67+'DBH-OS'!U67+'DBH-OH'!U67+'DBH-OI'!U67+XCLH!U67+XCLA!U67+DRFR!U67+DSFS!U67+DSTG!U67+XYM1!U67+XYM2!U67+XYM3E!U67+XYM4E!U67+SAGE!U67+'ABXY-TI1S'!U67+'ABXY-TI2S'!U67+ABZ!U67+'ASXY-TI1S'!U67+'ASXY-TI2S'!U67+'ASXY-TI3S'!U67+ASZ!U67+'MBXY-TI1S'!U67+'MBXY-TI2S'!U67+MBZ!U67+'MSXY-TI1S'!U67+'MSXY-TI2S'!U67++'MSXY-TI3S'!U67+MSZ!U67+'DEC-U'!U67+DECR!U67+'DBH-U'!U67+DBHR!U67+AMIL!U67 -> -8.583452214 | G67: ='DEC-OS'!V67+'DEC-OH'!V67+'DEC-OI'!V67+'DBH-OS'!V67+'DBH-OH'!V67+'DBH-OI'!V67+XCLH!V67+XCLA!V67+DRFR!V67+DSFS!V67+DSTG!V67+XYM1!V67+XYM2!V67+XYM3E!V67+XYM4E!V67+SAGE!V67+'ABXY-TI1S'!V67+'ABXY-TI2S'!V67+ABZ!V67+'ASXY-TI1S'!V67+'ASXY-TI2S'!V67+'ASXY-TI3S'!V67+ASZ!V67+'MBXY-TI1S'!V67+'MBXY-TI2S'!V67+MBZ!V67+'MSXY-TI1S'!V67+'MSXY-TI2S'!V67++'MSXY-TI3S'!V67+MSZ!V67+'DEC-U'!V67+DECR!V67+'DBH-U'!V67+DBHR!V67+AMIL!V67 -> 0.1016272466 | H67: =N67*(B67*N67+E67*Q67+F67*T67) + Q67*(E67*N67+C67*Q67+G67*T67)+ T67*(F67*N67+G67*Q67+D67*T67) -> 19.27599627 | I67: =O67*(B67*O67+E67*R67+F67*U67) + R67*(E67*O67+C67*R67+G67*U67)+ U67*(F67*O67+G67*R67+D67*U67) -> 54.00330184 | J67: =P67*(B67*P67+E67*S67+F67*V67) + S67*(E67*P67+C67*S67+G67*V67)+ V67*(F67*P67+G67*S67+D67*V67) -> 1.85945969 | K67: =N67*(B67*O67+E67*R67+F67*U67) + Q67*(E67*O67+C67*R67+G67*U67)+ T67*(F67*O67+G67*R67+D67*U67) -> -0.177239721 | L67: =N67*(B67*P67+E67*S67+F67*V67) + Q67*(E67*P67+C67*S67+G67*V67)+ T67*(F67*P67+G67*S67+D67*V67) -> 0.4184200517 | M67: =O67*(B67*P67+E67*S67+F67*V67) + R67*(E67*P67+C67*S67+G67*V67)+ U67*(F67*P67+G67*S67+D67*V67) -> -0.02053614207 | N67: =COS(Wellpath!$L67)*COS(Wellpath!$M67) -> 0.7509184545 | O67: =-SIN(Wellpath!$M67) -> 0 | P67: =SIN(Wellpath!$L67)*COS(Wellpath!$M67) -> 0.6603949385 | Q67: =COS(Wellpath!$L67)*SIN(Wellpath!$M67) -> 0 | R67: =COS(Wellpath!$M67) -> 1 | S67: =SIN(Wellpath!$L67)*SIN(Wellpath!$M67) -> 0 | T67: =-SIN(Wellpath!$L67) -> -0.6603949385 | U67: 0 | V67: =COS(Wellpath!$L67) -> 0.7509184545
A68: =Wellpath!E68 -> 1860 | B68: ='DEC-OS'!Q68+'DEC-OH'!Q68+'DEC-OI'!Q68+'DBH-OS'!Q68+'DBH-OH'!Q68+'DBH-OI'!Q68+XCLH!Q68+XCLA!Q68+DRFR!Q68+DSFS!Q68+DSTG!Q68+XYM1!Q68+XYM2!Q68+XYM3E!Q68+XYM4E!Q68+SAGE!Q68+'ABXY-TI1S'!Q68+'ABXY-TI2S'!Q68+ABZ!Q68+'ASXY-TI1S'!Q68+'ASXY-TI2S'!Q68+'ASXY-TI3S'!Q68+ASZ!Q68+'MBXY-TI1S'!Q68+'MBXY-TI2S'!Q68+MBZ!Q68+'MSXY-TI1S'!Q68+'MSXY-TI2S'!Q68++'MSXY-TI3S'!Q68+MSZ!Q68+'DEC-U'!Q68+DECR!Q68+'DBH-U'!Q68+DBHR!Q68+AMIL!Q68 -> 12.62780972 | C68: ='DEC-OS'!R68+'DEC-OH'!R68+'DEC-OI'!R68+'DBH-OS'!R68+'DBH-OH'!R68+'DBH-OI'!R68+XCLH!R68+XCLA!R68+DRFR!R68+DSFS!R68+DSTG!R68+XYM1!R68+XYM2!R68+XYM3E!R68+XYM4E!R68+SAGE!R68+'ABXY-TI1S'!R68+'ABXY-TI2S'!R68+ABZ!R68+'ASXY-TI1S'!R68+'ASXY-TI2S'!R68+'ASXY-TI3S'!R68+ASZ!R68+'MBXY-TI1S'!R68+'MBXY-TI2S'!R68+MBZ!R68+'MSXY-TI1S'!R68+'MSXY-TI2S'!R68++'MSXY-TI3S'!R68+MSZ!R68+'DEC-U'!R68+DECR!R68+'DBH-U'!R68+DBHR!R68+AMIL!R68 -> 56.58401712 | D68: ='DEC-OS'!S68+'DEC-OH'!S68+'DEC-OI'!S68+'DBH-OS'!S68+'DBH-OH'!S68+'DBH-OI'!S68+XCLH!S68+XCLA!S68+DRFR!S68+DSFS!S68+DSTG!S68+XYM1!S68+XYM2!S68+XYM3E!S68+XYM4E!S68+SAGE!S68+'ABXY-TI1S'!S68+'ABXY-TI2S'!S68+ABZ!S68+'ASXY-TI1S'!S68+'ASXY-TI2S'!S68+'ASXY-TI3S'!S68+ASZ!S68+'MBXY-TI1S'!S68+'MBXY-TI2S'!S68+MBZ!S68+'MSXY-TI1S'!S68+'MSXY-TI2S'!S68++'MSXY-TI3S'!S68+MSZ!S68+'DEC-U'!S68+DECR!S68+'DBH-U'!S68+DBHR!S68+AMIL!S68 -> 9.463079988 | E68: ='DEC-OS'!T68+'DEC-OH'!T68+'DEC-OI'!T68+'DBH-OS'!T68+'DBH-OH'!T68+'DBH-OI'!T68+XCLH!T68+XCLA!T68+DRFR!T68+DSFS!T68+DSTG!T68+XYM1!T68+XYM2!T68+XYM3E!T68+XYM4E!T68+SAGE!T68+'ABXY-TI1S'!T68+'ABXY-TI2S'!T68+ABZ!T68+'ASXY-TI1S'!T68+'ASXY-TI2S'!T68+'ASXY-TI3S'!T68+ASZ!T68+'MBXY-TI1S'!T68+'MBXY-TI2S'!T68+MBZ!T68+'MSXY-TI1S'!T68+'MSXY-TI2S'!T68++'MSXY-TI3S'!T68+MSZ!T68+'DEC-U'!T68+DECR!T68+'DBH-U'!T68+DBHR!T68+AMIL!T68 -> -0.1534343355 | F68: ='DEC-OS'!U68+'DEC-OH'!U68+'DEC-OI'!U68+'DBH-OS'!U68+'DBH-OH'!U68+'DBH-OI'!U68+XCLH!U68+XCLA!U68+DRFR!U68+DSFS!U68+DSTG!U68+XYM1!U68+XYM2!U68+XYM3E!U68+XYM4E!U68+SAGE!U68+'ABXY-TI1S'!U68+'ABXY-TI2S'!U68+ABZ!U68+'ASXY-TI1S'!U68+'ASXY-TI2S'!U68+'ASXY-TI3S'!U68+ASZ!U68+'MBXY-TI1S'!U68+'MBXY-TI2S'!U68+MBZ!U68+'MSXY-TI1S'!U68+'MSXY-TI2S'!U68++'MSXY-TI3S'!U68+MSZ!U68+'DEC-U'!U68+DECR!U68+'DBH-U'!U68+DBHR!U68+AMIL!U68 -> -8.996825191 | G68: ='DEC-OS'!V68+'DEC-OH'!V68+'DEC-OI'!V68+'DBH-OS'!V68+'DBH-OH'!V68+'DBH-OI'!V68+XCLH!V68+XCLA!V68+DRFR!V68+DSFS!V68+DSTG!V68+XYM1!V68+XYM2!V68+XYM3E!V68+XYM4E!V68+SAGE!V68+'ABXY-TI1S'!V68+'ABXY-TI2S'!V68+ABZ!V68+'ASXY-TI1S'!V68+'ASXY-TI2S'!V68+'ASXY-TI3S'!V68+ASZ!V68+'MBXY-TI1S'!V68+'MBXY-TI2S'!V68+MBZ!V68+'MSXY-TI1S'!V68+'MSXY-TI2S'!V68++'MSXY-TI3S'!V68+MSZ!V68+'DEC-U'!V68+DECR!V68+'DBH-U'!V68+DBHR!V68+AMIL!V68 -> 0.1067638841 | H68: 20.17777214 | I68: 56.58401712 | J68: 1.913117571 | K68: -0.1863482091 | L68: -0.2175786425 | M68: -0.01466176058 | N68: =COS(Wellpath!$L68)*COS(Wellpath!$M68) -> 0.7735084662 | O68: =-SIN(Wellpath!$M68) -> 0 | P68: =SIN(Wellpath!$L68)*COS(Wellpath!$M68) -> 0.6337859676 | Q68: =COS(Wellpath!$L68)*SIN(Wellpath!$M68) -> 0 | R68: =COS(Wellpath!$M68) -> 1 | S68: =SIN(Wellpath!$L68)*SIN(Wellpath!$M68) -> 0 | T68: =-SIN(Wellpath!$L68) -> -0.6337859676 | U68: 0 | V68: =COS(Wellpath!$L68) -> 0.7735084662
A69: =Wellpath!E69 -> 1890 | B69: ='DEC-OS'!Q69+'DEC-OH'!Q69+'DEC-OI'!Q69+'DBH-OS'!Q69+'DBH-OH'!Q69+'DBH-OI'!Q69+XCLH!Q69+XCLA!Q69+DRFR!Q69+DSFS!Q69+DSTG!Q69+XYM1!Q69+XYM2!Q69+XYM3E!Q69+XYM4E!Q69+SAGE!Q69+'ABXY-TI1S'!Q69+'ABXY-TI2S'!Q69+ABZ!Q69+'ASXY-TI1S'!Q69+'ASXY-TI2S'!Q69+'ASXY-TI3S'!Q69+ASZ!Q69+'MBXY-TI1S'!Q69+'MBXY-TI2S'!Q69+MBZ!Q69+'MSXY-TI1S'!Q69+'MSXY-TI2S'!Q69++'MSXY-TI3S'!Q69+MSZ!Q69+'DEC-U'!Q69+DECR!Q69+'DBH-U'!Q69+DBHR!Q69+AMIL!Q69 -> 13.18204102 | C69: ='DEC-OS'!R69+'DEC-OH'!R69+'DEC-OI'!R69+'DBH-OS'!R69+'DBH-OH'!R69+'DBH-OI'!R69+XCLH!R69+XCLA!R69+DRFR!R69+DSFS!R69+DSTG!R69+XYM1!R69+XYM2!R69+XYM3E!R69+XYM4E!R69+SAGE!R69+'ABXY-TI1S'!R69+'ABXY-TI2S'!R69+ABZ!R69+'ASXY-TI1S'!R69+'ASXY-TI2S'!R69+'ASXY-TI3S'!R69+ASZ!R69+'MBXY-TI1S'!R69+'MBXY-TI2S'!R69+MBZ!R69+'MSXY-TI1S'!R69+'MSXY-TI2S'!R69++'MSXY-TI3S'!R69+MSZ!R69+'DEC-U'!R69+DECR!R69+'DBH-U'!R69+DBHR!R69+AMIL!R69 -> 59.11186805 | D69: ='DEC-OS'!S69+'DEC-OH'!S69+'DEC-OI'!S69+'DBH-OS'!S69+'DBH-OH'!S69+'DBH-OI'!S69+XCLH!S69+XCLA!S69+DRFR!S69+DSFS!S69+DSTG!S69+XYM1!S69+XYM2!S69+XYM3E!S69+XYM4E!S69+SAGE!S69+'ABXY-TI1S'!S69+'ABXY-TI2S'!S69+ABZ!S69+'ASXY-TI1S'!S69+'ASXY-TI2S'!S69+'ASXY-TI3S'!S69+ASZ!S69+'MBXY-TI1S'!S69+'MBXY-TI2S'!S69+MBZ!S69+'MSXY-TI1S'!S69+'MSXY-TI2S'!S69++'MSXY-TI3S'!S69+MSZ!S69+'DEC-U'!S69+DECR!S69+'DBH-U'!S69+DBHR!S69+AMIL!S69 -> 9.875255744 | E69: ='DEC-OS'!T69+'DEC-OH'!T69+'DEC-OI'!T69+'DBH-OS'!T69+'DBH-OH'!T69+'DBH-OI'!T69+XCLH!T69+XCLA!T69+DRFR!T69+DSFS!T69+DSTG!T69+XYM1!T69+XYM2!T69+XYM3E!T69+XYM4E!T69+SAGE!T69+'ABXY-TI1S'!T69+'ABXY-TI2S'!T69+ABZ!T69+'ASXY-TI1S'!T69+'ASXY-TI2S'!T69+'ASXY-TI3S'!T69+ASZ!T69+'MBXY-TI1S'!T69+'MBXY-TI2S'!T69+MBZ!T69+'MSXY-TI1S'!T69+'MSXY-TI2S'!T69++'MSXY-TI3S'!T69+MSZ!T69+'DEC-U'!T69+DECR!T69+'DBH-U'!T69+DBHR!T69+AMIL!T69 -> -0.1602808064 | F69: ='DEC-OS'!U69+'DEC-OH'!U69+'DEC-OI'!U69+'DBH-OS'!U69+'DBH-OH'!U69+'DBH-OI'!U69+XCLH!U69+XCLA!U69+DRFR!U69+DSFS!U69+DSTG!U69+XYM1!U69+XYM2!U69+XYM3E!U69+XYM4E!U69+SAGE!U69+'ABXY-TI1S'!U69+'ABXY-TI2S'!U69+ABZ!U69+'ASXY-TI1S'!U69+'ASXY-TI2S'!U69+'ASXY-TI3S'!U69+ASZ!U69+'MBXY-TI1S'!U69+'MBXY-TI2S'!U69+MBZ!U69+'MSXY-TI1S'!U69+'MSXY-TI2S'!U69++'MSXY-TI3S'!U69+MSZ!U69+'DEC-U'!U69+DECR!U69+'DBH-U'!U69+DBHR!U69+AMIL!U69 -> -9.41120675 | G69: ='DEC-OS'!V69+'DEC-OH'!V69+'DEC-OI'!V69+'DBH-OS'!V69+'DBH-OH'!V69+'DBH-OI'!V69+XCLH!V69+XCLA!V69+DRFR!V69+DSFS!V69+DSTG!V69+XYM1!V69+XYM2!V69+XYM3E!V69+XYM4E!V69+SAGE!V69+'ABXY-TI1S'!V69+'ABXY-TI2S'!V69+ABZ!V69+'ASXY-TI1S'!V69+'ASXY-TI2S'!V69+'ASXY-TI3S'!V69+ASZ!V69+'MBXY-TI1S'!V69+'MBXY-TI2S'!V69+MBZ!V69+'MSXY-TI1S'!V69+'MSXY-TI2S'!V69++'MSXY-TI3S'!V69+MSZ!V69+'DEC-U'!V69+DECR!V69+'DBH-U'!V69+DBHR!V69+AMIL!V69 -> 0.1117691458 | H69: 21.04196077 | I69: 59.11186805 | J69: 2.015335994 | K69: -0.1952256066 | L69: -0.8952134574 | M69: -0.008321139003 | N69: =COS(Wellpath!$L69)*COS(Wellpath!$M69) -> 0.795156077 | O69: =-SIN(Wellpath!$M69) -> 0 | P69: =SIN(Wellpath!$L69)*COS(Wellpath!$M69) -> 0.6064048261 | Q69: =COS(Wellpath!$L69)*SIN(Wellpath!$M69) -> 0 | R69: =COS(Wellpath!$M69) -> 1 | S69: =SIN(Wellpath!$L69)*SIN(Wellpath!$M69) -> 0 | T69: =-SIN(Wellpath!$L69) -> -0.6064048261 | U69: 0 | V69: =COS(Wellpath!$L69) -> 0.795156077
A70: =Wellpath!E70 -> 1920 | B70: ='DEC-OS'!Q70+'DEC-OH'!Q70+'DEC-OI'!Q70+'DBH-OS'!Q70+'DBH-OH'!Q70+'DBH-OI'!Q70+XCLH!Q70+XCLA!Q70+DRFR!Q70+DSFS!Q70+DSTG!Q70+XYM1!Q70+XYM2!Q70+XYM3E!Q70+XYM4E!Q70+SAGE!Q70+'ABXY-TI1S'!Q70+'ABXY-TI2S'!Q70+ABZ!Q70+'ASXY-TI1S'!Q70+'ASXY-TI2S'!Q70+'ASXY-TI3S'!Q70+ASZ!Q70+'MBXY-TI1S'!Q70+'MBXY-TI2S'!Q70+MBZ!Q70+'MSXY-TI1S'!Q70+'MSXY-TI2S'!Q70++'MSXY-TI3S'!Q70+MSZ!Q70+'DEC-U'!Q70+DECR!Q70+'DBH-U'!Q70+DBHR!Q70+AMIL!Q70 -> 13.75696985 | C70: ='DEC-OS'!R70+'DEC-OH'!R70+'DEC-OI'!R70+'DBH-OS'!R70+'DBH-OH'!R70+'DBH-OI'!R70+XCLH!R70+XCLA!R70+DRFR!R70+DSFS!R70+DSTG!R70+XYM1!R70+XYM2!R70+XYM3E!R70+XYM4E!R70+SAGE!R70+'ABXY-TI1S'!R70+'ABXY-TI2S'!R70+ABZ!R70+'ASXY-TI1S'!R70+'ASXY-TI2S'!R70+'ASXY-TI3S'!R70+ASZ!R70+'MBXY-TI1S'!R70+'MBXY-TI2S'!R70+MBZ!R70+'MSXY-TI1S'!R70+'MSXY-TI2S'!R70++'MSXY-TI3S'!R70+MSZ!R70+'DEC-U'!R70+DECR!R70+'DBH-U'!R70+DBHR!R70+AMIL!R70 -> 61.57637267 | D70: ='DEC-OS'!S70+'DEC-OH'!S70+'DEC-OI'!S70+'DBH-OS'!S70+'DBH-OH'!S70+'DBH-OI'!S70+XCLH!S70+XCLA!S70+DRFR!S70+DSFS!S70+DSTG!S70+XYM1!S70+XYM2!S70+XYM3E!S70+XYM4E!S70+SAGE!S70+'ABXY-TI1S'!S70+'ABXY-TI2S'!S70+ABZ!S70+'ASXY-TI1S'!S70+'ASXY-TI2S'!S70+'ASXY-TI3S'!S70+ASZ!S70+'MBXY-TI1S'!S70+'MBXY-TI2S'!S70+MBZ!S70+'MSXY-TI1S'!S70+'MSXY-TI2S'!S70++'MSXY-TI3S'!S70+MSZ!S70+'DEC-U'!S70+DECR!S70+'DBH-U'!S70+DBHR!S70+AMIL!S70 -> 10.27519851 | E70: ='DEC-OS'!T70+'DEC-OH'!T70+'DEC-OI'!T70+'DBH-OS'!T70+'DBH-OH'!T70+'DBH-OI'!T70+XCLH!T70+XCLA!T70+DRFR!T70+DSFS!T70+DSTG!T70+XYM1!T70+XYM2!T70+XYM3E!T70+XYM4E!T70+SAGE!T70+'ABXY-TI1S'!T70+'ABXY-TI2S'!T70+ABZ!T70+'ASXY-TI1S'!T70+'ASXY-TI2S'!T70+'ASXY-TI3S'!T70+ASZ!T70+'MBXY-TI1S'!T70+'MBXY-TI2S'!T70+MBZ!T70+'MSXY-TI1S'!T70+'MSXY-TI2S'!T70++'MSXY-TI3S'!T70+MSZ!T70+'DEC-U'!T70+DECR!T70+'DBH-U'!T70+DBHR!T70+AMIL!T70 -> -0.1671606855 | F70: ='DEC-OS'!U70+'DEC-OH'!U70+'DEC-OI'!U70+'DBH-OS'!U70+'DBH-OH'!U70+'DBH-OI'!U70+XCLH!U70+XCLA!U70+DRFR!U70+DSFS!U70+DSTG!U70+XYM1!U70+XYM2!U70+XYM3E!U70+XYM4E!U70+SAGE!U70+'ABXY-TI1S'!U70+'ABXY-TI2S'!U70+ABZ!U70+'ASXY-TI1S'!U70+'ASXY-TI2S'!U70+'ASXY-TI3S'!U70+ASZ!U70+'MBXY-TI1S'!U70+'MBXY-TI2S'!U70+MBZ!U70+'MSXY-TI1S'!U70+'MSXY-TI2S'!U70++'MSXY-TI3S'!U70+MSZ!U70+'DEC-U'!U70+DECR!U70+'DBH-U'!U70+DBHR!U70+AMIL!U70 -> -9.825057712 | G70: ='DEC-OS'!V70+'DEC-OH'!V70+'DEC-OI'!V70+'DBH-OS'!V70+'DBH-OH'!V70+'DBH-OI'!V70+XCLH!V70+XCLA!V70+DRFR!V70+DSFS!V70+DSTG!V70+XYM1!V70+XYM2!V70+XYM3E!V70+XYM4E!V70+SAGE!V70+'ABXY-TI1S'!V70+'ABXY-TI2S'!V70+ABZ!V70+'ASXY-TI1S'!V70+'ASXY-TI2S'!V70+'ASXY-TI3S'!V70+ASZ!V70+'MBXY-TI1S'!V70+'MBXY-TI2S'!V70+MBZ!V70+'MSXY-TI1S'!V70+'MSXY-TI2S'!V70++'MSXY-TI3S'!V70+MSZ!V70+'DEC-U'!V70+DECR!V70+'DBH-U'!V70+DBHR!V70+AMIL!V70 -> 0.1166102147 | H70: 21.86324837 | I70: 61.57637267 | J70: 2.168919985 | K70: -0.2038094466 | L70: -1.611148444 | M70: -0.00153181157 | N70: =COS(Wellpath!$L70)*COS(Wellpath!$M70) -> 0.8158349127 | O70: =-SIN(Wellpath!$M70) -> 0 | P70: =SIN(Wellpath!$L70)*COS(Wellpath!$M70) -> 0.5782848738 | Q70: =COS(Wellpath!$L70)*SIN(Wellpath!$M70) -> 0 | R70: =COS(Wellpath!$M70) -> 1 | S70: =SIN(Wellpath!$L70)*SIN(Wellpath!$M70) -> 0 | T70: =-SIN(Wellpath!$L70) -> -0.5782848738 | U70: 0 | V70: =COS(Wellpath!$L70) -> 0.8158349127
A71: =Wellpath!E71 -> 1950 | B71: ='DEC-OS'!Q71+'DEC-OH'!Q71+'DEC-OI'!Q71+'DBH-OS'!Q71+'DBH-OH'!Q71+'DBH-OI'!Q71+XCLH!Q71+XCLA!Q71+DRFR!Q71+DSFS!Q71+DSTG!Q71+XYM1!Q71+XYM2!Q71+XYM3E!Q71+XYM4E!Q71+SAGE!Q71+'ABXY-TI1S'!Q71+'ABXY-TI2S'!Q71+ABZ!Q71+'ASXY-TI1S'!Q71+'ASXY-TI2S'!Q71+'ASXY-TI3S'!Q71+ASZ!Q71+'MBXY-TI1S'!Q71+'MBXY-TI2S'!Q71+MBZ!Q71+'MSXY-TI1S'!Q71+'MSXY-TI2S'!Q71++'MSXY-TI3S'!Q71+MSZ!Q71+'DEC-U'!Q71+DECR!Q71+'DBH-U'!Q71+DBHR!Q71+AMIL!Q71 -> 14.35142336 | C71: ='DEC-OS'!R71+'DEC-OH'!R71+'DEC-OI'!R71+'DBH-OS'!R71+'DBH-OH'!R71+'DBH-OI'!R71+XCLH!R71+XCLA!R71+DRFR!R71+DSFS!R71+DSTG!R71+XYM1!R71+XYM2!R71+XYM3E!R71+XYM4E!R71+SAGE!R71+'ABXY-TI1S'!R71+'ABXY-TI2S'!R71+ABZ!R71+'ASXY-TI1S'!R71+'ASXY-TI2S'!R71+'ASXY-TI3S'!R71+ASZ!R71+'MBXY-TI1S'!R71+'MBXY-TI2S'!R71+MBZ!R71+'MSXY-TI1S'!R71+'MSXY-TI2S'!R71++'MSXY-TI3S'!R71+MSZ!R71+'DEC-U'!R71+DECR!R71+'DBH-U'!R71+DBHR!R71+AMIL!R71 -> 63.96738735 | D71: ='DEC-OS'!S71+'DEC-OH'!S71+'DEC-OI'!S71+'DBH-OS'!S71+'DBH-OH'!S71+'DBH-OI'!S71+XCLH!S71+XCLA!S71+DRFR!S71+DSFS!S71+DSTG!S71+XYM1!S71+XYM2!S71+XYM3E!S71+XYM4E!S71+SAGE!S71+'ABXY-TI1S'!S71+'ABXY-TI2S'!S71+ABZ!S71+'ASXY-TI1S'!S71+'ASXY-TI2S'!S71+'ASXY-TI3S'!S71+ASZ!S71+'MBXY-TI1S'!S71+'MBXY-TI2S'!S71+MBZ!S71+'MSXY-TI1S'!S71+'MSXY-TI2S'!S71++'MSXY-TI3S'!S71+MSZ!S71+'DEC-U'!S71+DECR!S71+'DBH-U'!S71+DBHR!S71+AMIL!S71 -> 10.66152823 | E71: ='DEC-OS'!T71+'DEC-OH'!T71+'DEC-OI'!T71+'DBH-OS'!T71+'DBH-OH'!T71+'DBH-OI'!T71+XCLH!T71+XCLA!T71+DRFR!T71+DSFS!T71+DSTG!T71+XYM1!T71+XYM2!T71+XYM3E!T71+XYM4E!T71+SAGE!T71+'ABXY-TI1S'!T71+'ABXY-TI2S'!T71+ABZ!T71+'ASXY-TI1S'!T71+'ASXY-TI2S'!T71+'ASXY-TI3S'!T71+ASZ!T71+'MBXY-TI1S'!T71+'MBXY-TI2S'!T71+MBZ!T71+'MSXY-TI1S'!T71+'MSXY-TI2S'!T71++'MSXY-TI3S'!T71+MSZ!T71+'DEC-U'!T71+DECR!T71+'DBH-U'!T71+DBHR!T71+AMIL!T71 -> -0.1740393575 | F71: ='DEC-OS'!U71+'DEC-OH'!U71+'DEC-OI'!U71+'DBH-OS'!U71+'DBH-OH'!U71+'DBH-OI'!U71+XCLH!U71+XCLA!U71+DRFR!U71+DSFS!U71+DSTG!U71+XYM1!U71+XYM2!U71+XYM3E!U71+XYM4E!U71+SAGE!U71+'ABXY-TI1S'!U71+'ABXY-TI2S'!U71+ABZ!U71+'ASXY-TI1S'!U71+'ASXY-TI2S'!U71+'ASXY-TI3S'!U71+ASZ!U71+'MBXY-TI1S'!U71+'MBXY-TI2S'!U71+MBZ!U71+'MSXY-TI1S'!U71+'MSXY-TI2S'!U71++'MSXY-TI3S'!U71+MSZ!U71+'DEC-U'!U71+DECR!U71+'DBH-U'!U71+DBHR!U71+AMIL!U71 -> -10.23677496 | G71: ='DEC-OS'!V71+'DEC-OH'!V71+'DEC-OI'!V71+'DBH-OS'!V71+'DBH-OH'!V71+'DBH-OI'!V71+XCLH!V71+XCLA!V71+DRFR!V71+DSFS!V71+DSTG!V71+XYM1!V71+XYM2!V71+XYM3E!V71+XYM4E!V71+SAGE!V71+'ABXY-TI1S'!V71+'ABXY-TI2S'!V71+ABZ!V71+'ASXY-TI1S'!V71+'ASXY-TI2S'!V71+'ASXY-TI3S'!V71+ASZ!V71+'MBXY-TI1S'!V71+'MBXY-TI2S'!V71+MBZ!V71+'MSXY-TI1S'!V71+'MSXY-TI2S'!V71++'MSXY-TI3S'!V71+MSZ!V71+'DEC-U'!V71+DECR!V71+'DBH-U'!V71+DBHR!V71+AMIL!V71 -> 0.1212564879 | H71: 22.63651911 | I71: 63.96738735 | J71: 2.376432475 | K71: -0.2120389603 | L71: -2.361697556 | M71: 0.005684464201 | N71: =COS(Wellpath!$L71)*COS(Wellpath!$M71) -> 0.8355197791 | O71: =-SIN(Wellpath!$M71) -> 0 | P71: =SIN(Wellpath!$L71)*COS(Wellpath!$M71) -> 0.5494603704 | Q71: =COS(Wellpath!$L71)*SIN(Wellpath!$M71) -> 0 | R71: =COS(Wellpath!$M71) -> 1 | S71: =SIN(Wellpath!$L71)*SIN(Wellpath!$M71) -> 0 | T71: =-SIN(Wellpath!$L71) -> -0.5494603704 | U71: 0 | V71: =COS(Wellpath!$L71) -> 0.8355197791
A72: =Wellpath!E72 -> 1980 | B72: ='DEC-OS'!Q72+'DEC-OH'!Q72+'DEC-OI'!Q72+'DBH-OS'!Q72+'DBH-OH'!Q72+'DBH-OI'!Q72+XCLH!Q72+XCLA!Q72+DRFR!Q72+DSFS!Q72+DSTG!Q72+XYM1!Q72+XYM2!Q72+XYM3E!Q72+XYM4E!Q72+SAGE!Q72+'ABXY-TI1S'!Q72+'ABXY-TI2S'!Q72+ABZ!Q72+'ASXY-TI1S'!Q72+'ASXY-TI2S'!Q72+'ASXY-TI3S'!Q72+ASZ!Q72+'MBXY-TI1S'!Q72+'MBXY-TI2S'!Q72+MBZ!Q72+'MSXY-TI1S'!Q72+'MSXY-TI2S'!Q72++'MSXY-TI3S'!Q72+MSZ!Q72+'DEC-U'!Q72+DECR!Q72+'DBH-U'!Q72+DBHR!Q72+AMIL!Q72 -> 14.96402809 | C72: ='DEC-OS'!R72+'DEC-OH'!R72+'DEC-OI'!R72+'DBH-OS'!R72+'DBH-OH'!R72+'DBH-OI'!R72+XCLH!R72+XCLA!R72+DRFR!R72+DSFS!R72+DSTG!R72+XYM1!R72+XYM2!R72+XYM3E!R72+XYM4E!R72+SAGE!R72+'ABXY-TI1S'!R72+'ABXY-TI2S'!R72+ABZ!R72+'ASXY-TI1S'!R72+'ASXY-TI2S'!R72+'ASXY-TI3S'!R72+ASZ!R72+'MBXY-TI1S'!R72+'MBXY-TI2S'!R72+MBZ!R72+'MSXY-TI1S'!R72+'MSXY-TI2S'!R72++'MSXY-TI3S'!R72+MSZ!R72+'DEC-U'!R72+DECR!R72+'DBH-U'!R72+DBHR!R72+AMIL!R72 -> 66.27515707 | D72: ='DEC-OS'!S72+'DEC-OH'!S72+'DEC-OI'!S72+'DBH-OS'!S72+'DBH-OH'!S72+'DBH-OI'!S72+XCLH!S72+XCLA!S72+DRFR!S72+DSFS!S72+DSTG!S72+XYM1!S72+XYM2!S72+XYM3E!S72+XYM4E!S72+SAGE!S72+'ABXY-TI1S'!S72+'ABXY-TI2S'!S72+ABZ!S72+'ASXY-TI1S'!S72+'ASXY-TI2S'!S72+'ASXY-TI3S'!S72+ASZ!S72+'MBXY-TI1S'!S72+'MBXY-TI2S'!S72+MBZ!S72+'MSXY-TI1S'!S72+'MSXY-TI2S'!S72++'MSXY-TI3S'!S72+MSZ!S72+'DEC-U'!S72+DECR!S72+'DBH-U'!S72+DBHR!S72+AMIL!S72 -> 11.03300878 | E72: ='DEC-OS'!T72+'DEC-OH'!T72+'DEC-OI'!T72+'DBH-OS'!T72+'DBH-OH'!T72+'DBH-OI'!T72+XCLH!T72+XCLA!T72+DRFR!T72+DSFS!T72+DSTG!T72+XYM1!T72+XYM2!T72+XYM3E!T72+XYM4E!T72+SAGE!T72+'ABXY-TI1S'!T72+'ABXY-TI2S'!T72+ABZ!T72+'ASXY-TI1S'!T72+'ASXY-TI2S'!T72+'ASXY-TI3S'!T72+ASZ!T72+'MBXY-TI1S'!T72+'MBXY-TI2S'!T72+MBZ!T72+'MSXY-TI1S'!T72+'MSXY-TI2S'!T72++'MSXY-TI3S'!T72+MSZ!T72+'DEC-U'!T72+DECR!T72+'DBH-U'!T72+DBHR!T72+AMIL!T72 -> -0.1808812977 | F72: ='DEC-OS'!U72+'DEC-OH'!U72+'DEC-OI'!U72+'DBH-OS'!U72+'DBH-OH'!U72+'DBH-OI'!U72+XCLH!U72+XCLA!U72+DRFR!U72+DSFS!U72+DSTG!U72+XYM1!U72+XYM2!U72+XYM3E!U72+XYM4E!U72+SAGE!U72+'ABXY-TI1S'!U72+'ABXY-TI2S'!U72+ABZ!U72+'ASXY-TI1S'!U72+'ASXY-TI2S'!U72+'ASXY-TI3S'!U72+ASZ!U72+'MBXY-TI1S'!U72+'MBXY-TI2S'!U72+MBZ!U72+'MSXY-TI1S'!U72+'MSXY-TI2S'!U72++'MSXY-TI3S'!U72+MSZ!U72+'DEC-U'!U72+DECR!U72+'DBH-U'!U72+DBHR!U72+AMIL!U72 -> -10.64471073 | G72: ='DEC-OS'!V72+'DEC-OH'!V72+'DEC-OI'!V72+'DBH-OS'!V72+'DBH-OH'!V72+'DBH-OI'!V72+XCLH!V72+XCLA!V72+DRFR!V72+DSFS!V72+DSTG!V72+XYM1!V72+XYM2!V72+XYM3E!V72+XYM4E!V72+SAGE!V72+'ABXY-TI1S'!V72+'ABXY-TI2S'!V72+ABZ!V72+'ASXY-TI1S'!V72+'ASXY-TI2S'!V72+'ASXY-TI3S'!V72+ASZ!V72+'MBXY-TI1S'!V72+'MBXY-TI2S'!V72+MBZ!V72+'MSXY-TI1S'!V72+'MSXY-TI2S'!V72++'MSXY-TI3S'!V72+MSZ!V72+'DEC-U'!V72+DECR!V72+'DBH-U'!V72+DBHR!V72+AMIL!V72 -> 0.125680034 | H72: 23.35688036 | I72: 66.27515707 | J72: 2.64015651 | K72: -0.2198557967 | L72: -3.142838348 | M72: 0.01330200928 | N72: =COS(Wellpath!$L72)*COS(Wellpath!$M72) -> 0.8541866934 | O72: =-SIN(Wellpath!$M72) -> 0 | P72: =SIN(Wellpath!$L72)*COS(Wellpath!$M72) -> 0.5199664342 | Q72: =COS(Wellpath!$L72)*SIN(Wellpath!$M72) -> 0 | R72: =COS(Wellpath!$M72) -> 1 | S72: =SIN(Wellpath!$L72)*SIN(Wellpath!$M72) -> 0 | T72: =-SIN(Wellpath!$L72) -> -0.5199664342 | U72: 0 | V72: =COS(Wellpath!$L72) -> 0.8541866934
